Workbook

Sheet Home
E2: Watershed Resource Action Plan
B4: Chena River Watershed
B5: Focal Resources / Conservation Targets
B6: =IF(Targets!$B3=0,"",Targets!$B3) -> 1 | C6: =IF(Targets!$C3=0,"",Targets!$C3) -> Alpine Tundra - Upper Chena
B7: =IF(Targets!$B9=0,"",Targets!$B9) -> 2 | C7: =IF(Targets!$C9=0,"",Targets!$C9) -> Boreal Forests - Upper Chena
B8: =IF(Targets!$B15=0,"",Targets!$B15) -> 3 | C8: =IF(Targets!$C15=0,"",Targets!$C15) -> Boreal Forests - Lower Chena
B9: =IF(Targets!$B19=0,"",Targets!$B19) -> 4 | C9: =IF(Targets!$C19=0,"",Targets!$C19) -> Tributaries - Upper Chena
B10: =IF(Targets!$B26=0,"",Targets!$B26) -> 5 | C10: =IF(Targets!$C26=0,"",Targets!$C26) -> Tributaries - Lower Chena
B11: =IF(Targets!$B31=0,"",Targets!$B31) -> 6 | C11: =IF(Targets!$C31=0,"",Targets!$C31) -> Sloughs and Wetlands - Upper Chena
B12: =IF(Targets!$B38=0,"",Targets!$B38) -> 7 | C12: =IF(Targets!$C38=0,"",Targets!$C38) -> Sloughs and Wetlands - Lower Chena
B13: =IF(Targets!$B43=0,"",Targets!$B43) -> 8 | C13: =IF(Targets!$C43=0,"",Targets!$C43) -> Mainstem River & Major Forks - Upper Chena
B14: =IF(Targets!$B50=0,"",Targets!$B50) -> 9 | C14: =IF(Targets!$C50=0,"",Targets!$C50) -> Mainstem River & Major Forks - Lower Chena
B15: =IF(Targets!$B55=0,"",Targets!$B55) -> 10 | C15: =IF(Targets!$C55=0,"",Targets!$C55) -> Confluence with Tanana
B16: =IF(Targets!$B60=0,"",Targets!$B60) -> 11 | C16: =IF(Targets!$C60=0,"",Targets!$C60) -> 
B17: =IF(Targets!$B61=0,"",Targets!$B61) -> 12 | C17: =IF(Targets!$C61=0,"",Targets!$C61) -> 
B19: Project Information
C20: Project Area Description
C21: The Chena River is a tributary of the Tanana River and originates in a mountainous area about 90 miles east of the city of Fairbanks in interior Alaska. The river flows southwest from its headwaters to its confluence with the Tanana River in Fairbanks. The Chena River Watershed encompasses 2,115 square miles. The watershed is characterized by highlands, tapering to a broad plain near Fairbanks. The plain is a mosaic of wetlands with braided sloughs. Urban developments such as Fort Wainwright, the University of Alaska, North Pole, and several unincorporated suburbs are interspersed throughout the watershed. Fairbanks, Alaska's second largest city, lies at the northern edge of the broad Tanana River Valley on the banks of the Chena River. | AA21: =C21 -> The Chena River is a tributary of the Tanana River and originates in a mountainous area about 90 miles east of the city of Fairbanks in interior Alaska. The river flows southwest from its headwaters to its confluence with the Tanana River in Fairbanks. The Chena River Watershed encompasses 2,115 square miles. The watershed is characterized by highlands, tapering to a broad plain near Fairbanks. The plain is a mosaic of wetlands with braided sloughs. Urban developments such as Fort Wainwright, the University of Alaska, North Pole, and several unincorporated suburbs are interspersed throughout the watershed. Fairbanks, Alaska's second largest city, lies at the northern edge of the broad Tanana River Valley on the banks of the Chena River.
C23: Planning Team
A24: T | C24: Jewelz Barker, co-sponsor | D24: Tanana Valley Watershed Association (TVWA)
A25: T | C25: Jimmy Fox, co-sponsor | D25: U.S. Fish and Wildlife Service
A26: T | C26: Irene Holak | D26: TVWA
A27: T | C27: Greg Low, Facilitator | D27: Applied Conservation
A28: T | C28: Aaron Martin | D28: U.S. Fish and Wildlife Service
A29: T | C29: Aditi Brase | D29: Fairbanks Cooperative Weed Mgmt Area
A30: T | C30: Audra Brase | D30: Alaska Department of Fish and Game
A31: T | C31: Bob Henszey | D31: U.S. Fish and Wildlife Service
A32: T | C32: Chandra McGee | D32: Alaska Department of Environmental Conservation
A33: T | C33: Christy Everett | D33: TVWA
A34: T | C34: David Wigglesworth | D34: U.S. Fish and Wildlife Service
A35: T | C35: Gale Vick | D35: Tanana Chiefs Conference
A36: T | C36: Jackson Fox | D36: City of Fairbanks
A37: T | C37: James Savereide | D37: Alaska Department of Fish and Game
A38: T | C38: Jeff Falke | D38: University of Alaska Fairbanks
A39: T | C39: Jeff Adams | D39: U.S. Fish and Wildlife Service
A40: T | C40: Jessica Guritz | D40: Fairbanks Soil & Water Conservation District
A41: T | C41: Laura Jacobs | D41: Alaska Department of Fish and Game
A42: T | C42: Melissa Riordan | D42: U.S. Army of Corp. of Engineers
A43: T | C43: Roger Harding | D43: Alaska Department of Fish and Game
A44: T | C44: Anna Plager | D44: Chena Riverfront Commission
C47: Planning Process
C48: The project team produced a Conservation Action Plan (CAP) following the internationally-recognized Nature Conservancy CAP planning model. The CAP methodology has been deployed successfully by hundreds of teams working to conserve species, ecosystems, landscapes, watersheds and seascapes across the globe. From a political boundary perspective, CAP has been applied by projects with a global, multi/national, country-based, state, province, municipality, village or community focus. CAP is a relatively simple, straightforward, and proven approach for planning, implementing, and measuring success for conservation actions. The process included three, 2.5-day CAP workshops with the planning team to determine focal conservation resources in the Chena River Watershed (focusing on ecosystem-level resources), assess the current and projected future health of the resources, identify critical threats, and develop conservation strategies to enhance health and abate threats. The workshops were held in November, 2014, February 2015 and April 2015. The CAP was facilitated and assisted by Greg Low of Applied Conservation. | AA48: =C48 -> The project team produced a Conservation Action Plan (CAP) following the internationally-recognized Nature Conservancy CAP planning model. The CAP methodology has been deployed successfully by hundreds of teams working to conserve species, ecosystems, landscapes, watersheds and seascapes across the globe. From a political boundary perspective, CAP has been applied by projects with a global, multi/national, country-based, state, province, municipality, village or community focus. CAP is a relatively simple, straightforward, and proven approach for planning, implementing, and measuring success for conservation actions. The process included three, 2.5-day CAP workshops with the planning team to determine focal conservation resources in the Chena River Watershed (focusing on ecosystem-level resources), assess the current and projected future health of the resources, identify critical threats, and develop conservation strategies to enhance health and abate threats. The workshops were held in November, 2014, February 2015 and April 2015. The CAP was facilitated and assisted by Greg Low of Applied Conservation.

Sheet Targets
A1: L | B1: =IF(Home!B4="","",Home!B4) -> Chena River Watershed
A2: L | B2: Focal Targets, Descriptions and Nested Targets
A3: T1 | B3: 1 | C3: Alpine Tundra - Upper Chena
A4: Y | B4: Type | C4: Terrestrial - Alpine Tundra
A5: D | B5: Description | C5: Alpine tundra climate is cold, windy, and icy/snowy, and characterized by rocky, rough to gentle terrain. Alpine tundra has a low-growing season temperatures with very short frost-free period. Alpine biome is generally treeless, and dominated by scrubfields/ shrubs (e.g. willows, birch), herbs, bryophytes, and lichens. Few stunted trees are at the lower elevations (e.g. black spruce, aspen). Dwarf scrubs and herb meadows dominate mid-elevation, while alpines grasses and herbfields reside in the higher elevations. At the highest parts of the alpine zones are few vascular plants (i.e. cushion- or mat-formers), mosses, liverworts, and amble lichen populations. Wildlife species diversity (e.g. caribou, hoary marmot, and peregrine falcon) and density are low in the alpine tundra because of limiting factors of exposure to wind, solar radiation, soil temperature, and the distribution of snow and its meltwater. (Ecosystems of British Columbia 1991)
A6: N | B6: Nested | C6: Caribou
A7: N | B7: Nested | C7: Moose
A8: N | B8: Nested | C8: Rock Ptarmigan
A9: T2 | B9: 2 | C9: Boreal Forests - Upper Chena
A10: Y | B10: Type | C10: Terrestrial - Conifer Forest
A11: D | B11: Description | C11: Boreal forests, also known as taiga, form an extensive vegetation zone between the coastal forests to the northern limit of forests, extending in a broad circumpolar belt across the northern hemisphere. They are the most extensive vegetation formation in North America. Forests predominate, but there are also extensive mosaics of shrubs and herbaceous plant communities. The forests on well drained uplands, flood plains, and stream terraces consists of pure and mixed stands of white spruce, paper birch, quaking aspen, and balsam poplar. On lowlands, north-facing hillslopes, toeslopes, and stream terraces with permafrost, stunted forests of black spruce and occasional paper birch and tamarack occur. Where fire has burned the forest, shrubs and herbaceous plants occur before the forest eventually return. (White et al. 1991; U.S. Department of Agriculture et al. 1992; Johnson et al. 1995; Wikipdeia 2015)
A12: N | B12: Nested | C12: Marten
A13: N | B13: Nested | C13: Moose
A14: N | B14: Nested | C14: Little Brown Bat?
A15: T3 | B15: 3 | C15: Boreal Forests - Lower Chena
A16: N | B16: Nested | C16: Marten
A17: N | B17: Nested | C17: Moose
A18: N | B18: Nested | C18: Little Brown Bat
A19: T4 | B19: 4 | C19: Tributaries - Upper Chena
A20: Y | B20: Type | C20: Freswater - River/Stream
A21: D | B21: Description | C21: Tributaries are defined as all perennial streams and their adjacent riparian forest, not including the mainstem and major forks (defined separately). Tributary streams in the Chena River basin originate from hill slopes, where they are relatively high gradient, with coarse substrates and forced pool-riffle sequences. Often when tributaries flow onto the floodplain of the mainstem or major forks they transition to having lower gradients, slower velocity, with fine substrates and pool or run habitats. Many tributaries meet sloughs or off-channel habitats prior to meeting the mainstem or major fork. The surrounding riparian area is a complex mosaic of black and white spruce, with groves of aspen and birch trees mixed with small meadows. Common shrubs and ground cover plants include willow, alder, mosses, lichens, and grasses.
A22: N | B22: Nested | C22: Rearing Juvenile Salmon/Fish Assemblage
A23: N | B23: Nested | C23: Rearing Juvenile Grayling/Fish Assemblage
A24: N | B24: Nested | C24: Moose
A25: N | B25: Nested | C25: Olive-Sided Flycatcher
A26: T5 | B26: 5 | C26: Tributaries - Lower Chena
A27: N | B27: Nested | C27: Rearing Juvenile Salmon/Fish Assemblage
A28: N | B28: Nested | C28: Rearing Juvenile Grayling/Fish Assemblage
A29: N | B29: Nested | C29: Moose
A30: N | B30: Nested | C30: Olive-Sided Flycatcher
A31: T6 | B31: 6 | C31: Sloughs and Wetlands - Upper Chena
A32: Y | B32: Type | C32: Freshwater Wetlands
A33: D | B33: Description | C33: Wetlands are the transitional areas between terrestrial and aquatic environments where the water table is usually at or near the land surface. These areas are saturated by water at a frequency and duration sufficient to support, and that under normal conditions do support, a prevalence of vegetation, typically adapted for life in saturated soil conditions. Wetlands are also commonly referred to as swamps, marshes, and bogs. (U.S. Army Corps of Engineers n.d.; Environmental Proteciton Agency & U.S. Army Corps of Engineers 2014). Sloughs are sluggish channels of water connected to the main stem or side channel of a stream that flow slowly through low, swampy ground. Most sloughs are old streambed channels that contain water most of the year and only carry stream current under high water conditions. However, some sloughs may only have a season connection to the main stem or side channel. (Alaska Legal Resource Center n.d.)
A34: N | B34: Nested | C34: Rearing Juvenile Fish Assemblage (e.g. Salmon)
A35: N | B35: Nested | C35: Rusty Blackbird
A36: N | B36: Nested | C36: Olive-Sided Flycatcher
A37: N | B37: Nested | C37: Moose
A38: T7 | B38: 7 | C38: Sloughs and Wetlands - Lower Chena
A39: N | B39: Nested | C39: Rearing Juvenile Fish Assemblage (e.g. Salmon)
A40: N | B40: Nested | C40: Rusty Blackbird
A41: N | B41: Nested | C41: Olive-Sided Flycatcher
A42: N | B42: Nested | C42: Moose
A43: T8 | B43: 8 | C43: Mainstem River & Major Forks - Upper Chena
A44: Y | B44: Type | C44: Freswater - River/Stream
A45: D | B45: Description | C45: The mainstem will define the Chena River to include the major forks (North, South, Middle, West, and Little Chena River). Mainstem of the Chena River are characterized as clear water runoff streams fed by the combined input of surface and subsurface water from the surrounding valley. They are permanently flowing streams with established streambeds (channels) and banks. The river forks are 4th and 5th order streams with relatively high gradient, small gravel bars, and a series of riffle-pool sequences; the mainstem is a meandering river with moderate gradient, prominent gravel bars, riffle-pool sequences, and numerous off-channel habitats. The surrounding riparian area is a complex mosaic of black and white spruce, with groves of aspen and birch trees mixed with small meadows. Common shrubs and ground cover plants include willow, alder, mosses, lichens, and grasses. (Note: Specific extent of major forks: North Fork to Monument Creek, South Fork to Beaver Creek, Middle Fork to Munson Creek, West Fork to Frozenfoot Creek, and Little Chena River to Anaconda Creek. The stream network and adjacent riparian forest upstream of these locations would fall under Chena River Tributaries.)
A46: N | B46: Nested | C46: Adult and Juvenile Salmon
A47: N | B47: Nested | C47: Adult and Juvenile Arctic Grayling
A48: N | B48: Nested | C48: Moose
A49: N | B49: Nested | C49: Osprey
A50: T9 | B50: 9 | C50: Mainstem River & Major Forks - Lower Chena
A51: N | B51: Nested | C51: Adult and Juvenile Salmon
A52: N | B52: Nested | C52: Adult and Juvenile Arctic Grayling
A53: N | B53: Nested | C53: Moose
A54: N | B54: Nested | C54: Osprey
A55: T10 | B55: 10 | C55: Confluence with Tanana
A56: D | B56: Description | C56: Confluence is the junction of two or more water bodies, described by complex hydrodynamic conditions that feature: 1) stagnant flow upstream of the junction; 2) a shear layer between the merging flows; 3) converging cells on each side of the shear layer; and 4) divergent flow downstream of the junction (Rhoads & Kenworthy 1995). The main influences on these areas are the: 1) junction angle; 2) ratio of discharges between the channels (Best 1987; Boyer et al. 2006); and 3) form and composition of the channel beds (Constantinescu et al. 2011) i.e. stream mouth. Confluences provide greater habitat complexity (Benda et al. 2004) that are important for western Washington sculpin, juvenile bull, rainbow, and cutthroat trout, and Chinook, sockeye, coho, and pink salmon (Kiffney et al. 2006). Fish species richness and abundance are found to be greater at confluences than at other sites in streams of the mid-Atlantic Highlands of the eastern U.S. (Angermeier & Hitt 2008). Migrating fish like burbot use the confluence , as documentation shows at the Chena-Tanana confluence in the early 1990s (Evenson 1993).
A57: N | B57: Nested | C57: Burbot
A58: N | B58: Nested | C58: Bald Eagle
A59: N | B59: Nested | C59: Moose
A60: T11 | B60: 11
A61: T12 | B61: 12

Sheet Health
A1: UID | B1: ID | C1: Target Name | D1: Category | E1: Key Attribute | F1: Indicator | G1: Poor | H1: Fair | I1: Good | J1: Very Good | K1: Current Rating | L1: Projected Future Rating w No Action | M1: Projected Future Rating w Strategies | AA1: Current | AB1: Threat | AD1: Threat Delta | AE1: Change | AF1: Concern Rank
A2: 104 | B2: 1 | C2: Alpine Tundra - Upper Chena | D2: Landscape Context | E2: Fire regime | F2: Frequency, size, type of fires, severity | G2: Highly altered regime | H2: Moderately altered regime | I2: Mostly natural regime | J2: Mother Nature | K2: Good | L2: Good | M2: =IFERROR(INDEX(Outcomes!F:F,MATCH(A2,Outcomes!H:H,0)),"") ->  | X2: =C2 & "|" &E2 -> Alpine Tundra - Upper Chena|Fire regime | AA2: =IF(K2=Scoring!$A$45,Scoring!$B$45,IF(K2=Scoring!$A$46,Scoring!$B$46,IF(K2=Scoring!$A$47,Scoring!$B$47,IF(K2=Scoring!$A$48,Scoring!$B$48,IF(K2=Scoring!$A$49,Scoring!$B$49,IF(K2=Scoring!$A$50,Scoring!$B$50)))))) -> 80.03 | AB2: =IF(L2=Scoring!$A$45,Scoring!$B$45,IF(L2=Scoring!$A$46,Scoring!$B$46,IF(L2=Scoring!$A$47,Scoring!$B$47,IF(L2=Scoring!$A$48,Scoring!$B$48,IF(L2=Scoring!$A$49,Scoring!$B$49,IF(L2=Scoring!$A$50,Scoring!$B$50)))))) -> 80.03 | AD2: =AA2-AB2 -> 0 | AE2: =IF(AD2>Scoring!$B$134,Scoring!$A$134,IF(AD2>Scoring!$B$135,Scoring!$A$135,IF(AD2>Scoring!$B$136,Scoring!$A$136,IF(AD2>Scoring!$B$137,Scoring!$A$137,IF(AD2>Scoring!$B$138,Scoring!$A$138,IF(AD2>Scoring!$B$139,Scoring!$A$139,IF(AD2>Scoring!$B$140,Scoring!$A$140,IF(AD2>Scoring!$B$141,Scoring!$A$141,IF(AD2>=Scoring!$B$142,Scoring!$A$142,IF(AD2>Scoring!$B$143,Scoring!$A$143)))))))))) -> None | AF2: =IFERROR(INDEX(StrategicActionMatrix,MATCH(K2,Rating,0),MATCH(AE2,Change,0)),"") -> 10
A3: 105 | B3: 1 | C3: Alpine Tundra - Upper Chena | D3: Landscape Context | E3: Habitat connectivity | F3: Movement of species | G3: Most species are isolated | H3: Some species are isolated | I3: Most species are mostly able to move freely among most habitats | J3: Mother Nature | K3: Very Good | L3: Very Good | M3: =IFERROR(INDEX(Outcomes!F:F,MATCH(A3,Outcomes!H:H,0)),"") ->  | X3: Alpine Tundra - Upper Chena|Habitat connectivity | AA3: =IF(K3=Scoring!$A$45,Scoring!$B$45,IF(K3=Scoring!$A$46,Scoring!$B$46,IF(K3=Scoring!$A$47,Scoring!$B$47,IF(K3=Scoring!$A$48,Scoring!$B$48,IF(K3=Scoring!$A$49,Scoring!$B$49,IF(K3=Scoring!$A$50,Scoring!$B$50)))))) -> 100 | AB3: =IF(L3=Scoring!$A$45,Scoring!$B$45,IF(L3=Scoring!$A$46,Scoring!$B$46,IF(L3=Scoring!$A$47,Scoring!$B$47,IF(L3=Scoring!$A$48,Scoring!$B$48,IF(L3=Scoring!$A$49,Scoring!$B$49,IF(L3=Scoring!$A$50,Scoring!$B$50)))))) -> 100 | AD3: 0 | AE3: =IF(AD3>Scoring!$B$134,Scoring!$A$134,IF(AD3>Scoring!$B$135,Scoring!$A$135,IF(AD3>Scoring!$B$136,Scoring!$A$136,IF(AD3>Scoring!$B$137,Scoring!$A$137,IF(AD3>Scoring!$B$138,Scoring!$A$138,IF(AD3>Scoring!$B$139,Scoring!$A$139,IF(AD3>Scoring!$B$140,Scoring!$A$140,IF(AD3>Scoring!$B$141,Scoring!$A$141,IF(AD3>=Scoring!$B$142,Scoring!$A$142,IF(AD3>Scoring!$B$143,Scoring!$A$143)))))))))) -> None | AF3: 10
A4: 106 | B4: 1 | C4: Alpine Tundra - Upper Chena | D4: Landscape Context | E4: Hydrologic regime | F4: Natural fluctuations of surface and ground water -amount, frequency, timing, duration | G4: Water levels, flows or fluctuations are too high or too low, not related to the precipitation, and unlikely to maintain nested targets in many habitats within the target area and downstream | H4: Water levels, flows or fluctuations in relationship to precipitation and ground water are likely to maintain nested targets in some habitats within the target and downstream | I4: Water levels, flows or fluctuations in relationship to precipitation and ground water are likely to maintain nested targets in most habitats within the target area and downstream | J4: Water levels, flows or fluctuations in relationship to precipitation and ground water are likely to maintain nested targets in almost all habitats within the target area and downstream | K4: Very Good | L4: Very Good | M4: =IFERROR(INDEX(Outcomes!F:F,MATCH(A4,Outcomes!H:H,0)),"") ->  | X4: Alpine Tundra - Upper Chena|Hydrologic regime | AA4: =IF(K4=Scoring!$A$45,Scoring!$B$45,IF(K4=Scoring!$A$46,Scoring!$B$46,IF(K4=Scoring!$A$47,Scoring!$B$47,IF(K4=Scoring!$A$48,Scoring!$B$48,IF(K4=Scoring!$A$49,Scoring!$B$49,IF(K4=Scoring!$A$50,Scoring!$B$50)))))) -> 100 | AB4: =IF(L4=Scoring!$A$45,Scoring!$B$45,IF(L4=Scoring!$A$46,Scoring!$B$46,IF(L4=Scoring!$A$47,Scoring!$B$47,IF(L4=Scoring!$A$48,Scoring!$B$48,IF(L4=Scoring!$A$49,Scoring!$B$49,IF(L4=Scoring!$A$50,Scoring!$B$50)))))) -> 100 | AD4: 0 | AE4: =IF(AD4>Scoring!$B$134,Scoring!$A$134,IF(AD4>Scoring!$B$135,Scoring!$A$135,IF(AD4>Scoring!$B$136,Scoring!$A$136,IF(AD4>Scoring!$B$137,Scoring!$A$137,IF(AD4>Scoring!$B$138,Scoring!$A$138,IF(AD4>Scoring!$B$139,Scoring!$A$139,IF(AD4>Scoring!$B$140,Scoring!$A$140,IF(AD4>Scoring!$B$141,Scoring!$A$141,IF(AD4>=Scoring!$B$142,Scoring!$A$142,IF(AD4>Scoring!$B$143,Scoring!$A$143)))))))))) -> None | AF4: 10
A5: 107 | B5: 1 | C5: Alpine Tundra - Upper Chena | D5: Condition | E5: Characteristic native community | F5: Presence of characteristic native communities within habitats | G5: Few habitats have the characteristic native communities to accom-modate most nested targets in abundance | H5: Some habitats have the characteristic native communities to accom-modate most nested targets in abundance | I5: Most habitats have the characteristic native communities to accom-modate most nested targets in abundance | J5: Almost all habitats have the characteristic native communities to accom­modate almost all nested targets in abundance | K5: Good | L5: Fair | M5: =IFERROR(INDEX(Outcomes!F:F,MATCH(A5,Outcomes!H:H,0)),"") ->  | X5: Alpine Tundra - Upper Chena|Characteristic native community | AA5: =IF(K5=Scoring!$A$45,Scoring!$B$45,IF(K5=Scoring!$A$46,Scoring!$B$46,IF(K5=Scoring!$A$47,Scoring!$B$47,IF(K5=Scoring!$A$48,Scoring!$B$48,IF(K5=Scoring!$A$49,Scoring!$B$49,IF(K5=Scoring!$A$50,Scoring!$B$50)))))) -> 80.03 | AB5: =IF(L5=Scoring!$A$45,Scoring!$B$45,IF(L5=Scoring!$A$46,Scoring!$B$46,IF(L5=Scoring!$A$47,Scoring!$B$47,IF(L5=Scoring!$A$48,Scoring!$B$48,IF(L5=Scoring!$A$49,Scoring!$B$49,IF(L5=Scoring!$A$50,Scoring!$B$50)))))) -> 40.04 | AD5: 39.99 | AE5: =IF(AD5>Scoring!$B$134,Scoring!$A$134,IF(AD5>Scoring!$B$135,Scoring!$A$135,IF(AD5>Scoring!$B$136,Scoring!$A$136,IF(AD5>Scoring!$B$137,Scoring!$A$137,IF(AD5>Scoring!$B$138,Scoring!$A$138,IF(AD5>Scoring!$B$139,Scoring!$A$139,IF(AD5>Scoring!$B$140,Scoring!$A$140,IF(AD5>Scoring!$B$141,Scoring!$A$141,IF(AD5>=Scoring!$B$142,Scoring!$A$142,IF(AD5>Scoring!$B$143,Scoring!$A$143)))))))))) -> Very Severe | AF5: 2
A6: 108 | B6: 1 | C6: Alpine Tundra - Upper Chena | D6: Condition | E6: Vegetation composition & structure - mosaic | F6: Diversity of species and age classes | G6: Low diversity of species and age classes | H6: Moderate diversity of species and age classes | I6: Good diversity of species and age classes | J6: High diversity of species and age class | K6: Good | L6: Good | M6: =IFERROR(INDEX(Outcomes!F:F,MATCH(A6,Outcomes!H:H,0)),"") ->  | X6: Alpine Tundra - Upper Chena|Vegetation composition & structure - mosaic | AA6: =IF(K6=Scoring!$A$45,Scoring!$B$45,IF(K6=Scoring!$A$46,Scoring!$B$46,IF(K6=Scoring!$A$47,Scoring!$B$47,IF(K6=Scoring!$A$48,Scoring!$B$48,IF(K6=Scoring!$A$49,Scoring!$B$49,IF(K6=Scoring!$A$50,Scoring!$B$50)))))) -> 80.03 | AB6: =IF(L6=Scoring!$A$45,Scoring!$B$45,IF(L6=Scoring!$A$46,Scoring!$B$46,IF(L6=Scoring!$A$47,Scoring!$B$47,IF(L6=Scoring!$A$48,Scoring!$B$48,IF(L6=Scoring!$A$49,Scoring!$B$49,IF(L6=Scoring!$A$50,Scoring!$B$50)))))) -> 80.03 | AD6: 0 | AE6: =IF(AD6>Scoring!$B$134,Scoring!$A$134,IF(AD6>Scoring!$B$135,Scoring!$A$135,IF(AD6>Scoring!$B$136,Scoring!$A$136,IF(AD6>Scoring!$B$137,Scoring!$A$137,IF(AD6>Scoring!$B$138,Scoring!$A$138,IF(AD6>Scoring!$B$139,Scoring!$A$139,IF(AD6>Scoring!$B$140,Scoring!$A$140,IF(AD6>Scoring!$B$141,Scoring!$A$141,IF(AD6>=Scoring!$B$142,Scoring!$A$142,IF(AD6>Scoring!$B$143,Scoring!$A$143)))))))))) -> None | AF6: 10
A7: 109 | B7: 1 | C7: Alpine Tundra - Upper Chena | D7: Size | E7: Extent of area | F7: Extent, patch size, and/or distribution | G7: Severe, mostly gone | H7: Moderate to substantial loss | I7: Minimal loss | J7: Mother Nature | K7: Very Good | L7: Good | M7: =IFERROR(INDEX(Outcomes!F:F,MATCH(A7,Outcomes!H:H,0)),"") ->  | X7: Alpine Tundra - Upper Chena|Extent of area | AA7: =IF(K7=Scoring!$A$45,Scoring!$B$45,IF(K7=Scoring!$A$46,Scoring!$B$46,IF(K7=Scoring!$A$47,Scoring!$B$47,IF(K7=Scoring!$A$48,Scoring!$B$48,IF(K7=Scoring!$A$49,Scoring!$B$49,IF(K7=Scoring!$A$50,Scoring!$B$50)))))) -> 100 | AB7: =IF(L7=Scoring!$A$45,Scoring!$B$45,IF(L7=Scoring!$A$46,Scoring!$B$46,IF(L7=Scoring!$A$47,Scoring!$B$47,IF(L7=Scoring!$A$48,Scoring!$B$48,IF(L7=Scoring!$A$49,Scoring!$B$49,IF(L7=Scoring!$A$50,Scoring!$B$50)))))) -> 80.03 | AD7: 19.97 | AE7: =IF(AD7>Scoring!$B$134,Scoring!$A$134,IF(AD7>Scoring!$B$135,Scoring!$A$135,IF(AD7>Scoring!$B$136,Scoring!$A$136,IF(AD7>Scoring!$B$137,Scoring!$A$137,IF(AD7>Scoring!$B$138,Scoring!$A$138,IF(AD7>Scoring!$B$139,Scoring!$A$139,IF(AD7>Scoring!$B$140,Scoring!$A$140,IF(AD7>Scoring!$B$141,Scoring!$A$141,IF(AD7>=Scoring!$B$142,Scoring!$A$142,IF(AD7>Scoring!$B$143,Scoring!$A$143)))))))))) -> Moderate | AF7: 6
A8: 110 | B8: 1 | C8: Alpine Tundra - Upper Chena | M8: =IFERROR(INDEX(Outcomes!F:F,MATCH(A8,Outcomes!H:H,0)),"") ->  | X8: Alpine Tundra - Upper Chena| | AA8: =IF(K8=Scoring!$A$45,Scoring!$B$45,IF(K8=Scoring!$A$46,Scoring!$B$46,IF(K8=Scoring!$A$47,Scoring!$B$47,IF(K8=Scoring!$A$48,Scoring!$B$48,IF(K8=Scoring!$A$49,Scoring!$B$49,IF(K8=Scoring!$A$50,Scoring!$B$50)))))) -> FALSE | AB8: =IF(L8=Scoring!$A$45,Scoring!$B$45,IF(L8=Scoring!$A$46,Scoring!$B$46,IF(L8=Scoring!$A$47,Scoring!$B$47,IF(L8=Scoring!$A$48,Scoring!$B$48,IF(L8=Scoring!$A$49,Scoring!$B$49,IF(L8=Scoring!$A$50,Scoring!$B$50)))))) -> FALSE | AD8: 0 | AE8: =IF(AD8>Scoring!$B$134,Scoring!$A$134,IF(AD8>Scoring!$B$135,Scoring!$A$135,IF(AD8>Scoring!$B$136,Scoring!$A$136,IF(AD8>Scoring!$B$137,Scoring!$A$137,IF(AD8>Scoring!$B$138,Scoring!$A$138,IF(AD8>Scoring!$B$139,Scoring!$A$139,IF(AD8>Scoring!$B$140,Scoring!$A$140,IF(AD8>Scoring!$B$141,Scoring!$A$141,IF(AD8>=Scoring!$B$142,Scoring!$A$142,IF(AD8>Scoring!$B$143,Scoring!$A$143)))))))))) -> None
A9: 111 | B9: 1 | C9: Alpine Tundra - Upper Chena | M9: =IFERROR(INDEX(Outcomes!F:F,MATCH(A9,Outcomes!H:H,0)),"") ->  | X9: Alpine Tundra - Upper Chena| | AA9: =IF(K9=Scoring!$A$45,Scoring!$B$45,IF(K9=Scoring!$A$46,Scoring!$B$46,IF(K9=Scoring!$A$47,Scoring!$B$47,IF(K9=Scoring!$A$48,Scoring!$B$48,IF(K9=Scoring!$A$49,Scoring!$B$49,IF(K9=Scoring!$A$50,Scoring!$B$50)))))) -> FALSE | AB9: =IF(L9=Scoring!$A$45,Scoring!$B$45,IF(L9=Scoring!$A$46,Scoring!$B$46,IF(L9=Scoring!$A$47,Scoring!$B$47,IF(L9=Scoring!$A$48,Scoring!$B$48,IF(L9=Scoring!$A$49,Scoring!$B$49,IF(L9=Scoring!$A$50,Scoring!$B$50)))))) -> FALSE | AD9: 0 | AE9: =IF(AD9>Scoring!$B$134,Scoring!$A$134,IF(AD9>Scoring!$B$135,Scoring!$A$135,IF(AD9>Scoring!$B$136,Scoring!$A$136,IF(AD9>Scoring!$B$137,Scoring!$A$137,IF(AD9>Scoring!$B$138,Scoring!$A$138,IF(AD9>Scoring!$B$139,Scoring!$A$139,IF(AD9>Scoring!$B$140,Scoring!$A$140,IF(AD9>Scoring!$B$141,Scoring!$A$141,IF(AD9>=Scoring!$B$142,Scoring!$A$142,IF(AD9>Scoring!$B$143,Scoring!$A$143)))))))))) -> None
A10: 112 | B10: 1 | C10: Alpine Tundra - Upper Chena | M10: =IFERROR(INDEX(Outcomes!F:F,MATCH(A10,Outcomes!H:H,0)),"") ->  | X10: Alpine Tundra - Upper Chena| | AA10: =IF(K10=Scoring!$A$45,Scoring!$B$45,IF(K10=Scoring!$A$46,Scoring!$B$46,IF(K10=Scoring!$A$47,Scoring!$B$47,IF(K10=Scoring!$A$48,Scoring!$B$48,IF(K10=Scoring!$A$49,Scoring!$B$49,IF(K10=Scoring!$A$50,Scoring!$B$50)))))) -> FALSE | AB10: =IF(L10=Scoring!$A$45,Scoring!$B$45,IF(L10=Scoring!$A$46,Scoring!$B$46,IF(L10=Scoring!$A$47,Scoring!$B$47,IF(L10=Scoring!$A$48,Scoring!$B$48,IF(L10=Scoring!$A$49,Scoring!$B$49,IF(L10=Scoring!$A$50,Scoring!$B$50)))))) -> FALSE | AD10: 0 | AE10: =IF(AD10>Scoring!$B$134,Scoring!$A$134,IF(AD10>Scoring!$B$135,Scoring!$A$135,IF(AD10>Scoring!$B$136,Scoring!$A$136,IF(AD10>Scoring!$B$137,Scoring!$A$137,IF(AD10>Scoring!$B$138,Scoring!$A$138,IF(AD10>Scoring!$B$139,Scoring!$A$139,IF(AD10>Scoring!$B$140,Scoring!$A$140,IF(AD10>Scoring!$B$141,Scoring!$A$141,IF(AD10>=Scoring!$B$142,Scoring!$A$142,IF(AD10>Scoring!$B$143,Scoring!$A$143)))))))))) -> None
A11: 113 | B11: 1 | C11: Alpine Tundra - Upper Chena | M11: =IFERROR(INDEX(Outcomes!F:F,MATCH(A11,Outcomes!H:H,0)),"") ->  | X11: Alpine Tundra - Upper Chena| | AA11: =IF(K11=Scoring!$A$45,Scoring!$B$45,IF(K11=Scoring!$A$46,Scoring!$B$46,IF(K11=Scoring!$A$47,Scoring!$B$47,IF(K11=Scoring!$A$48,Scoring!$B$48,IF(K11=Scoring!$A$49,Scoring!$B$49,IF(K11=Scoring!$A$50,Scoring!$B$50)))))) -> FALSE | AB11: =IF(L11=Scoring!$A$45,Scoring!$B$45,IF(L11=Scoring!$A$46,Scoring!$B$46,IF(L11=Scoring!$A$47,Scoring!$B$47,IF(L11=Scoring!$A$48,Scoring!$B$48,IF(L11=Scoring!$A$49,Scoring!$B$49,IF(L11=Scoring!$A$50,Scoring!$B$50)))))) -> FALSE | AD11: 0 | AE11: =IF(AD11>Scoring!$B$134,Scoring!$A$134,IF(AD11>Scoring!$B$135,Scoring!$A$135,IF(AD11>Scoring!$B$136,Scoring!$A$136,IF(AD11>Scoring!$B$137,Scoring!$A$137,IF(AD11>Scoring!$B$138,Scoring!$A$138,IF(AD11>Scoring!$B$139,Scoring!$A$139,IF(AD11>Scoring!$B$140,Scoring!$A$140,IF(AD11>Scoring!$B$141,Scoring!$A$141,IF(AD11>=Scoring!$B$142,Scoring!$A$142,IF(AD11>Scoring!$B$143,Scoring!$A$143)))))))))) -> None
A12: 204 | B12: 2 | C12: Boreal Forests - Upper Chena | D12: Landscape Context | E12: Fire regime | F12: Frequency, size, type of fires, severity | G12: Highly altered regime | H12: Moderately altered regime | I12: Mostly natural regime | J12: Mother Nature | K12: Good | L12: Fair | M12: =IFERROR(INDEX(Outcomes!F:F,MATCH(A12,Outcomes!H:H,0)),"") ->  | X12: Boreal Forests - Upper Chena|Fire regime | AA12: =IF(K12=Scoring!$A$45,Scoring!$B$45,IF(K12=Scoring!$A$46,Scoring!$B$46,IF(K12=Scoring!$A$47,Scoring!$B$47,IF(K12=Scoring!$A$48,Scoring!$B$48,IF(K12=Scoring!$A$49,Scoring!$B$49,IF(K12=Scoring!$A$50,Scoring!$B$50)))))) -> 80.03 | AB12: =IF(L12=Scoring!$A$45,Scoring!$B$45,IF(L12=Scoring!$A$46,Scoring!$B$46,IF(L12=Scoring!$A$47,Scoring!$B$47,IF(L12=Scoring!$A$48,Scoring!$B$48,IF(L12=Scoring!$A$49,Scoring!$B$49,IF(L12=Scoring!$A$50,Scoring!$B$50)))))) -> 40.04 | AD12: 39.99 | AE12: =IF(AD12>Scoring!$B$134,Scoring!$A$134,IF(AD12>Scoring!$B$135,Scoring!$A$135,IF(AD12>Scoring!$B$136,Scoring!$A$136,IF(AD12>Scoring!$B$137,Scoring!$A$137,IF(AD12>Scoring!$B$138,Scoring!$A$138,IF(AD12>Scoring!$B$139,Scoring!$A$139,IF(AD12>Scoring!$B$140,Scoring!$A$140,IF(AD12>Scoring!$B$141,Scoring!$A$141,IF(AD12>=Scoring!$B$142,Scoring!$A$142,IF(AD12>Scoring!$B$143,Scoring!$A$143)))))))))) -> Very Severe | AF12: 2
A13: 205 | B13: 2 | C13: Boreal Forests - Upper Chena | D13: Landscape Context | E13: Habitat connectivity | F13: Movement of species | G13: Most species are isolated | H13: Some species are isolated | I13: Most species are mostly able to move freely among most habitats | J13: Mother Nature | K13: Good | L13: Good - | M13: =IFERROR(INDEX(Outcomes!F:F,MATCH(A13,Outcomes!H:H,0)),"") -> Good - | X13: Boreal Forests - Upper Chena|Habitat connectivity | AA13: =IF(K13=Scoring!$A$45,Scoring!$B$45,IF(K13=Scoring!$A$46,Scoring!$B$46,IF(K13=Scoring!$A$47,Scoring!$B$47,IF(K13=Scoring!$A$48,Scoring!$B$48,IF(K13=Scoring!$A$49,Scoring!$B$49,IF(K13=Scoring!$A$50,Scoring!$B$50)))))) -> 80.03 | AB13: =IF(L13=Scoring!$A$45,Scoring!$B$45,IF(L13=Scoring!$A$46,Scoring!$B$46,IF(L13=Scoring!$A$47,Scoring!$B$47,IF(L13=Scoring!$A$48,Scoring!$B$48,IF(L13=Scoring!$A$49,Scoring!$B$49,IF(L13=Scoring!$A$50,Scoring!$B$50)))))) -> 60.04 | AD13: 19.99 | AE13: =IF(AD13>Scoring!$B$134,Scoring!$A$134,IF(AD13>Scoring!$B$135,Scoring!$A$135,IF(AD13>Scoring!$B$136,Scoring!$A$136,IF(AD13>Scoring!$B$137,Scoring!$A$137,IF(AD13>Scoring!$B$138,Scoring!$A$138,IF(AD13>Scoring!$B$139,Scoring!$A$139,IF(AD13>Scoring!$B$140,Scoring!$A$140,IF(AD13>Scoring!$B$141,Scoring!$A$141,IF(AD13>=Scoring!$B$142,Scoring!$A$142,IF(AD13>Scoring!$B$143,Scoring!$A$143)))))))))) -> Moderate | AF13: 6
A14: 206 | B14: 2 | C14: Boreal Forests - Upper Chena | D14: Landscape Context | E14: Hydrologic regime | F14: Natural fluctuations of surface and ground water -amount, frequency, timing, duration | G14: Water levels, flows or fluctuations are too high or too low, not related to the precipitation, and unlikely to maintain nested targets in many habitats within the target area and downstream | H14: Water levels, flows or fluctuations in relationship to precipitation and ground water are likely to maintain nested targets in some habitats within the target and downstream | I14: Water levels, flows or fluctuations in relationship to precipitation and ground water are likely to maintain nested targets in most habitats within the target area and downstream | J14: Water levels, flows or fluctuations in relationship to precipitation and ground water are likely to maintain nested targets in almost all habitats within the target area and downstream | K14: Good | L14: Good - | M14: =IFERROR(INDEX(Outcomes!F:F,MATCH(A14,Outcomes!H:H,0)),"") ->  | X14: Boreal Forests - Upper Chena|Hydrologic regime | AA14: =IF(K14=Scoring!$A$45,Scoring!$B$45,IF(K14=Scoring!$A$46,Scoring!$B$46,IF(K14=Scoring!$A$47,Scoring!$B$47,IF(K14=Scoring!$A$48,Scoring!$B$48,IF(K14=Scoring!$A$49,Scoring!$B$49,IF(K14=Scoring!$A$50,Scoring!$B$50)))))) -> 80.03 | AB14: =IF(L14=Scoring!$A$45,Scoring!$B$45,IF(L14=Scoring!$A$46,Scoring!$B$46,IF(L14=Scoring!$A$47,Scoring!$B$47,IF(L14=Scoring!$A$48,Scoring!$B$48,IF(L14=Scoring!$A$49,Scoring!$B$49,IF(L14=Scoring!$A$50,Scoring!$B$50)))))) -> 60.04 | AD14: 19.99 | AE14: =IF(AD14>Scoring!$B$134,Scoring!$A$134,IF(AD14>Scoring!$B$135,Scoring!$A$135,IF(AD14>Scoring!$B$136,Scoring!$A$136,IF(AD14>Scoring!$B$137,Scoring!$A$137,IF(AD14>Scoring!$B$138,Scoring!$A$138,IF(AD14>Scoring!$B$139,Scoring!$A$139,IF(AD14>Scoring!$B$140,Scoring!$A$140,IF(AD14>Scoring!$B$141,Scoring!$A$141,IF(AD14>=Scoring!$B$142,Scoring!$A$142,IF(AD14>Scoring!$B$143,Scoring!$A$143)))))))))) -> Moderate | AF14: 6
A15: 207 | B15: 2 | C15: Boreal Forests - Upper Chena | D15: Condition | E15: Characteristic native community | F15: Presence of characteristic native communities within habitats | G15: Few habitats have the characteristic native communities to accom-modate most nested targets in abundance | H15: Some habitats have the characteristic native communities to accom-modate most nested targets in abundance | I15: Most habitats have the characteristic native communities to accom-modate most nested targets in abundance | J15: Almost all habitats have the characteristic native communities to accom­modate almost all nested targets in abundance | K15: Good | L15: Good - | M15: =IFERROR(INDEX(Outcomes!F:F,MATCH(A15,Outcomes!H:H,0)),"") ->  | X15: Boreal Forests - Upper Chena|Characteristic native community | AA15: =IF(K15=Scoring!$A$45,Scoring!$B$45,IF(K15=Scoring!$A$46,Scoring!$B$46,IF(K15=Scoring!$A$47,Scoring!$B$47,IF(K15=Scoring!$A$48,Scoring!$B$48,IF(K15=Scoring!$A$49,Scoring!$B$49,IF(K15=Scoring!$A$50,Scoring!$B$50)))))) -> 80.03 | AB15: =IF(L15=Scoring!$A$45,Scoring!$B$45,IF(L15=Scoring!$A$46,Scoring!$B$46,IF(L15=Scoring!$A$47,Scoring!$B$47,IF(L15=Scoring!$A$48,Scoring!$B$48,IF(L15=Scoring!$A$49,Scoring!$B$49,IF(L15=Scoring!$A$50,Scoring!$B$50)))))) -> 60.04 | AD15: 19.99 | AE15: =IF(AD15>Scoring!$B$134,Scoring!$A$134,IF(AD15>Scoring!$B$135,Scoring!$A$135,IF(AD15>Scoring!$B$136,Scoring!$A$136,IF(AD15>Scoring!$B$137,Scoring!$A$137,IF(AD15>Scoring!$B$138,Scoring!$A$138,IF(AD15>Scoring!$B$139,Scoring!$A$139,IF(AD15>Scoring!$B$140,Scoring!$A$140,IF(AD15>Scoring!$B$141,Scoring!$A$141,IF(AD15>=Scoring!$B$142,Scoring!$A$142,IF(AD15>Scoring!$B$143,Scoring!$A$143)))))))))) -> Moderate | AF15: 6
A16: 208 | B16: 2 | C16: Boreal Forests - Upper Chena | D16: Condition | E16: Vegetation composition & structure - mosaic | F16: Diversity of species and age classes | G16: Low diversity of species and age classes | H16: Moderate diversity of species and age classes | I16: Good diversity of species and age classes | J16: High diversity of species and age class | K16: Good | L16: Good - | M16: =IFERROR(INDEX(Outcomes!F:F,MATCH(A16,Outcomes!H:H,0)),"") -> Good | X16: Boreal Forests - Upper Chena|Vegetation composition & structure - mosaic | AA16: =IF(K16=Scoring!$A$45,Scoring!$B$45,IF(K16=Scoring!$A$46,Scoring!$B$46,IF(K16=Scoring!$A$47,Scoring!$B$47,IF(K16=Scoring!$A$48,Scoring!$B$48,IF(K16=Scoring!$A$49,Scoring!$B$49,IF(K16=Scoring!$A$50,Scoring!$B$50)))))) -> 80.03 | AB16: =IF(L16=Scoring!$A$45,Scoring!$B$45,IF(L16=Scoring!$A$46,Scoring!$B$46,IF(L16=Scoring!$A$47,Scoring!$B$47,IF(L16=Scoring!$A$48,Scoring!$B$48,IF(L16=Scoring!$A$49,Scoring!$B$49,IF(L16=Scoring!$A$50,Scoring!$B$50)))))) -> 60.04 | AD16: 19.99 | AE16: =IF(AD16>Scoring!$B$134,Scoring!$A$134,IF(AD16>Scoring!$B$135,Scoring!$A$135,IF(AD16>Scoring!$B$136,Scoring!$A$136,IF(AD16>Scoring!$B$137,Scoring!$A$137,IF(AD16>Scoring!$B$138,Scoring!$A$138,IF(AD16>Scoring!$B$139,Scoring!$A$139,IF(AD16>Scoring!$B$140,Scoring!$A$140,IF(AD16>Scoring!$B$141,Scoring!$A$141,IF(AD16>=Scoring!$B$142,Scoring!$A$142,IF(AD16>Scoring!$B$143,Scoring!$A$143)))))))))) -> Moderate | AF16: 6
A17: 209 | B17: 2 | C17: Boreal Forests - Upper Chena | D17: Size | E17: Extent of area | F17: Extent, patch size, and/or distribution | G17: Severe, mostly gone | H17: Moderate to substantial loss | I17: Minimal loss | J17: Mother Nature | K17: Good | L17: Good - | M17: =IFERROR(INDEX(Outcomes!F:F,MATCH(A17,Outcomes!H:H,0)),"") ->  | X17: Boreal Forests - Upper Chena|Extent of area | AA17: =IF(K17=Scoring!$A$45,Scoring!$B$45,IF(K17=Scoring!$A$46,Scoring!$B$46,IF(K17=Scoring!$A$47,Scoring!$B$47,IF(K17=Scoring!$A$48,Scoring!$B$48,IF(K17=Scoring!$A$49,Scoring!$B$49,IF(K17=Scoring!$A$50,Scoring!$B$50)))))) -> 80.03 | AB17: =IF(L17=Scoring!$A$45,Scoring!$B$45,IF(L17=Scoring!$A$46,Scoring!$B$46,IF(L17=Scoring!$A$47,Scoring!$B$47,IF(L17=Scoring!$A$48,Scoring!$B$48,IF(L17=Scoring!$A$49,Scoring!$B$49,IF(L17=Scoring!$A$50,Scoring!$B$50)))))) -> 60.04 | AD17: 19.99 | AE17: =IF(AD17>Scoring!$B$134,Scoring!$A$134,IF(AD17>Scoring!$B$135,Scoring!$A$135,IF(AD17>Scoring!$B$136,Scoring!$A$136,IF(AD17>Scoring!$B$137,Scoring!$A$137,IF(AD17>Scoring!$B$138,Scoring!$A$138,IF(AD17>Scoring!$B$139,Scoring!$A$139,IF(AD17>Scoring!$B$140,Scoring!$A$140,IF(AD17>Scoring!$B$141,Scoring!$A$141,IF(AD17>=Scoring!$B$142,Scoring!$A$142,IF(AD17>Scoring!$B$143,Scoring!$A$143)))))))))) -> Moderate | AF17: 6
A18: 210 | B18: 2 | C18: Boreal Forests - Upper Chena | M18: =IFERROR(INDEX(Outcomes!F:F,MATCH(A18,Outcomes!H:H,0)),"") ->  | X18: Boreal Forests - Upper Chena| | AA18: =IF(K18=Scoring!$A$45,Scoring!$B$45,IF(K18=Scoring!$A$46,Scoring!$B$46,IF(K18=Scoring!$A$47,Scoring!$B$47,IF(K18=Scoring!$A$48,Scoring!$B$48,IF(K18=Scoring!$A$49,Scoring!$B$49,IF(K18=Scoring!$A$50,Scoring!$B$50)))))) -> FALSE | AB18: =IF(L18=Scoring!$A$45,Scoring!$B$45,IF(L18=Scoring!$A$46,Scoring!$B$46,IF(L18=Scoring!$A$47,Scoring!$B$47,IF(L18=Scoring!$A$48,Scoring!$B$48,IF(L18=Scoring!$A$49,Scoring!$B$49,IF(L18=Scoring!$A$50,Scoring!$B$50)))))) -> FALSE | AD18: 0 | AE18: =IF(AD18>Scoring!$B$134,Scoring!$A$134,IF(AD18>Scoring!$B$135,Scoring!$A$135,IF(AD18>Scoring!$B$136,Scoring!$A$136,IF(AD18>Scoring!$B$137,Scoring!$A$137,IF(AD18>Scoring!$B$138,Scoring!$A$138,IF(AD18>Scoring!$B$139,Scoring!$A$139,IF(AD18>Scoring!$B$140,Scoring!$A$140,IF(AD18>Scoring!$B$141,Scoring!$A$141,IF(AD18>=Scoring!$B$142,Scoring!$A$142,IF(AD18>Scoring!$B$143,Scoring!$A$143)))))))))) -> None
A19: 211 | B19: 2 | C19: Boreal Forests - Upper Chena | M19: =IFERROR(INDEX(Outcomes!F:F,MATCH(A19,Outcomes!H:H,0)),"") ->  | X19: Boreal Forests - Upper Chena| | AA19: =IF(K19=Scoring!$A$45,Scoring!$B$45,IF(K19=Scoring!$A$46,Scoring!$B$46,IF(K19=Scoring!$A$47,Scoring!$B$47,IF(K19=Scoring!$A$48,Scoring!$B$48,IF(K19=Scoring!$A$49,Scoring!$B$49,IF(K19=Scoring!$A$50,Scoring!$B$50)))))) -> FALSE | AB19: =IF(L19=Scoring!$A$45,Scoring!$B$45,IF(L19=Scoring!$A$46,Scoring!$B$46,IF(L19=Scoring!$A$47,Scoring!$B$47,IF(L19=Scoring!$A$48,Scoring!$B$48,IF(L19=Scoring!$A$49,Scoring!$B$49,IF(L19=Scoring!$A$50,Scoring!$B$50)))))) -> FALSE | AD19: 0 | AE19: =IF(AD19>Scoring!$B$134,Scoring!$A$134,IF(AD19>Scoring!$B$135,Scoring!$A$135,IF(AD19>Scoring!$B$136,Scoring!$A$136,IF(AD19>Scoring!$B$137,Scoring!$A$137,IF(AD19>Scoring!$B$138,Scoring!$A$138,IF(AD19>Scoring!$B$139,Scoring!$A$139,IF(AD19>Scoring!$B$140,Scoring!$A$140,IF(AD19>Scoring!$B$141,Scoring!$A$141,IF(AD19>=Scoring!$B$142,Scoring!$A$142,IF(AD19>Scoring!$B$143,Scoring!$A$143)))))))))) -> None
A20: 212 | B20: 2 | C20: Boreal Forests - Upper Chena | M20: =IFERROR(INDEX(Outcomes!F:F,MATCH(A20,Outcomes!H:H,0)),"") ->  | X20: Boreal Forests - Upper Chena| | AA20: =IF(K20=Scoring!$A$45,Scoring!$B$45,IF(K20=Scoring!$A$46,Scoring!$B$46,IF(K20=Scoring!$A$47,Scoring!$B$47,IF(K20=Scoring!$A$48,Scoring!$B$48,IF(K20=Scoring!$A$49,Scoring!$B$49,IF(K20=Scoring!$A$50,Scoring!$B$50)))))) -> FALSE | AB20: =IF(L20=Scoring!$A$45,Scoring!$B$45,IF(L20=Scoring!$A$46,Scoring!$B$46,IF(L20=Scoring!$A$47,Scoring!$B$47,IF(L20=Scoring!$A$48,Scoring!$B$48,IF(L20=Scoring!$A$49,Scoring!$B$49,IF(L20=Scoring!$A$50,Scoring!$B$50)))))) -> FALSE | AD20: 0 | AE20: =IF(AD20>Scoring!$B$134,Scoring!$A$134,IF(AD20>Scoring!$B$135,Scoring!$A$135,IF(AD20>Scoring!$B$136,Scoring!$A$136,IF(AD20>Scoring!$B$137,Scoring!$A$137,IF(AD20>Scoring!$B$138,Scoring!$A$138,IF(AD20>Scoring!$B$139,Scoring!$A$139,IF(AD20>Scoring!$B$140,Scoring!$A$140,IF(AD20>Scoring!$B$141,Scoring!$A$141,IF(AD20>=Scoring!$B$142,Scoring!$A$142,IF(AD20>Scoring!$B$143,Scoring!$A$143)))))))))) -> None
A21: 213 | B21: 2 | C21: Boreal Forests - Upper Chena | M21: =IFERROR(INDEX(Outcomes!F:F,MATCH(A21,Outcomes!H:H,0)),"") ->  | X21: Boreal Forests - Upper Chena| | AA21: =IF(K21=Scoring!$A$45,Scoring!$B$45,IF(K21=Scoring!$A$46,Scoring!$B$46,IF(K21=Scoring!$A$47,Scoring!$B$47,IF(K21=Scoring!$A$48,Scoring!$B$48,IF(K21=Scoring!$A$49,Scoring!$B$49,IF(K21=Scoring!$A$50,Scoring!$B$50)))))) -> FALSE | AB21: =IF(L21=Scoring!$A$45,Scoring!$B$45,IF(L21=Scoring!$A$46,Scoring!$B$46,IF(L21=Scoring!$A$47,Scoring!$B$47,IF(L21=Scoring!$A$48,Scoring!$B$48,IF(L21=Scoring!$A$49,Scoring!$B$49,IF(L21=Scoring!$A$50,Scoring!$B$50)))))) -> FALSE | AD21: 0 | AE21: =IF(AD21>Scoring!$B$134,Scoring!$A$134,IF(AD21>Scoring!$B$135,Scoring!$A$135,IF(AD21>Scoring!$B$136,Scoring!$A$136,IF(AD21>Scoring!$B$137,Scoring!$A$137,IF(AD21>Scoring!$B$138,Scoring!$A$138,IF(AD21>Scoring!$B$139,Scoring!$A$139,IF(AD21>Scoring!$B$140,Scoring!$A$140,IF(AD21>Scoring!$B$141,Scoring!$A$141,IF(AD21>=Scoring!$B$142,Scoring!$A$142,IF(AD21>Scoring!$B$143,Scoring!$A$143)))))))))) -> None
A22: 304 | B22: 3 | C22: Boreal Forests - Lower Chena | D22: Landscape Context | E22: Fire regime | F22: Frequency, size, type of fires, severity | G22: Highly altered regime | H22: Moderately altered regime | I22: Mostly natural regime | J22: Mother Nature | K22: Fair | L22: Fair | M22: =IFERROR(INDEX(Outcomes!F:F,MATCH(A22,Outcomes!H:H,0)),"") ->  | X22: Boreal Forests - Lower Chena|Fire regime | AA22: =IF(K22=Scoring!$A$45,Scoring!$B$45,IF(K22=Scoring!$A$46,Scoring!$B$46,IF(K22=Scoring!$A$47,Scoring!$B$47,IF(K22=Scoring!$A$48,Scoring!$B$48,IF(K22=Scoring!$A$49,Scoring!$B$49,IF(K22=Scoring!$A$50,Scoring!$B$50)))))) -> 40.04 | AB22: =IF(L22=Scoring!$A$45,Scoring!$B$45,IF(L22=Scoring!$A$46,Scoring!$B$46,IF(L22=Scoring!$A$47,Scoring!$B$47,IF(L22=Scoring!$A$48,Scoring!$B$48,IF(L22=Scoring!$A$49,Scoring!$B$49,IF(L22=Scoring!$A$50,Scoring!$B$50)))))) -> 40.04 | AD22: 0 | AE22: =IF(AD22>Scoring!$B$134,Scoring!$A$134,IF(AD22>Scoring!$B$135,Scoring!$A$135,IF(AD22>Scoring!$B$136,Scoring!$A$136,IF(AD22>Scoring!$B$137,Scoring!$A$137,IF(AD22>Scoring!$B$138,Scoring!$A$138,IF(AD22>Scoring!$B$139,Scoring!$A$139,IF(AD22>Scoring!$B$140,Scoring!$A$140,IF(AD22>Scoring!$B$141,Scoring!$A$141,IF(AD22>=Scoring!$B$142,Scoring!$A$142,IF(AD22>Scoring!$B$143,Scoring!$A$143)))))))))) -> None | AF22: 7
A23: 305 | B23: 3 | C23: Boreal Forests - Lower Chena | D23: Landscape Context | E23: Habitat connectivity | F23: Movement of species | G23: Most species are isolated | H23: Some species are isolated | I23: Most species are mostly able to move freely among most habitats | J23: Mother Nature | K23: Fair | L23: Fair - | M23: =IFERROR(INDEX(Outcomes!F:F,MATCH(A23,Outcomes!H:H,0)),"") -> Fair - | X23: Boreal Forests - Lower Chena|Habitat connectivity | AA23: =IF(K23=Scoring!$A$45,Scoring!$B$45,IF(K23=Scoring!$A$46,Scoring!$B$46,IF(K23=Scoring!$A$47,Scoring!$B$47,IF(K23=Scoring!$A$48,Scoring!$B$48,IF(K23=Scoring!$A$49,Scoring!$B$49,IF(K23=Scoring!$A$50,Scoring!$B$50)))))) -> 40.04 | AB23: =IF(L23=Scoring!$A$45,Scoring!$B$45,IF(L23=Scoring!$A$46,Scoring!$B$46,IF(L23=Scoring!$A$47,Scoring!$B$47,IF(L23=Scoring!$A$48,Scoring!$B$48,IF(L23=Scoring!$A$49,Scoring!$B$49,IF(L23=Scoring!$A$50,Scoring!$B$50)))))) -> 20.03 | AD23: 20.01 | AE23: =IF(AD23>Scoring!$B$134,Scoring!$A$134,IF(AD23>Scoring!$B$135,Scoring!$A$135,IF(AD23>Scoring!$B$136,Scoring!$A$136,IF(AD23>Scoring!$B$137,Scoring!$A$137,IF(AD23>Scoring!$B$138,Scoring!$A$138,IF(AD23>Scoring!$B$139,Scoring!$A$139,IF(AD23>Scoring!$B$140,Scoring!$A$140,IF(AD23>Scoring!$B$141,Scoring!$A$141,IF(AD23>=Scoring!$B$142,Scoring!$A$142,IF(AD23>Scoring!$B$143,Scoring!$A$143)))))))))) -> High | AF23: 3
A24: 306 | B24: 3 | C24: Boreal Forests - Lower Chena | D24: Landscape Context | E24: Hydrologic regime | F24: Natural fluctuations of surface and ground water -amount, frequency, timing, duration | G24: Water levels, flows or fluctuations are too high or too low, not related to the precipitation, and unlikely to maintain nested targets in many habitats within the target area and downstream | H24: Water levels, flows or fluctuations in relationship to precipitation and ground water are likely to maintain nested targets in some habitats within the target and downstream | I24: Water levels, flows or fluctuations in relationship to precipitation and ground water are likely to maintain nested targets in most habitats within the target area and downstream | J24: Water levels, flows or fluctuations in relationship to precipitation and ground water are likely to maintain nested targets in almost all habitats within the target area and downstream | K24: Fair | L24: Fair - | M24: =IFERROR(INDEX(Outcomes!F:F,MATCH(A24,Outcomes!H:H,0)),"") -> Fair | X24: Boreal Forests - Lower Chena|Hydrologic regime | AA24: =IF(K24=Scoring!$A$45,Scoring!$B$45,IF(K24=Scoring!$A$46,Scoring!$B$46,IF(K24=Scoring!$A$47,Scoring!$B$47,IF(K24=Scoring!$A$48,Scoring!$B$48,IF(K24=Scoring!$A$49,Scoring!$B$49,IF(K24=Scoring!$A$50,Scoring!$B$50)))))) -> 40.04 | AB24: =IF(L24=Scoring!$A$45,Scoring!$B$45,IF(L24=Scoring!$A$46,Scoring!$B$46,IF(L24=Scoring!$A$47,Scoring!$B$47,IF(L24=Scoring!$A$48,Scoring!$B$48,IF(L24=Scoring!$A$49,Scoring!$B$49,IF(L24=Scoring!$A$50,Scoring!$B$50)))))) -> 20.03 | AD24: 20.01 | AE24: =IF(AD24>Scoring!$B$134,Scoring!$A$134,IF(AD24>Scoring!$B$135,Scoring!$A$135,IF(AD24>Scoring!$B$136,Scoring!$A$136,IF(AD24>Scoring!$B$137,Scoring!$A$137,IF(AD24>Scoring!$B$138,Scoring!$A$138,IF(AD24>Scoring!$B$139,Scoring!$A$139,IF(AD24>Scoring!$B$140,Scoring!$A$140,IF(AD24>Scoring!$B$141,Scoring!$A$141,IF(AD24>=Scoring!$B$142,Scoring!$A$142,IF(AD24>Scoring!$B$143,Scoring!$A$143)))))))))) -> High | AF24: 3
A25: 307 | B25: 3 | C25: Boreal Forests - Lower Chena | D25: Condition | E25: Characteristic native community | F25: Presence of characteristic native communities within habitats | G25: Few habitats have the characteristic native communities to accom-modate most nested targets in abundance | H25: Some habitats have the characteristic native communities to accom-modate most nested targets in abundance | I25: Most habitats have the characteristic native communities to accom-modate most nested targets in abundance | J25: Almost all habitats have the characteristic native communities to accom­modate almost all nested targets in abundance | K25: Good | L25: Good - | M25: =IFERROR(INDEX(Outcomes!F:F,MATCH(A25,Outcomes!H:H,0)),"") ->  | X25: Boreal Forests - Lower Chena|Characteristic native community | AA25: =IF(K25=Scoring!$A$45,Scoring!$B$45,IF(K25=Scoring!$A$46,Scoring!$B$46,IF(K25=Scoring!$A$47,Scoring!$B$47,IF(K25=Scoring!$A$48,Scoring!$B$48,IF(K25=Scoring!$A$49,Scoring!$B$49,IF(K25=Scoring!$A$50,Scoring!$B$50)))))) -> 80.03 | AB25: =IF(L25=Scoring!$A$45,Scoring!$B$45,IF(L25=Scoring!$A$46,Scoring!$B$46,IF(L25=Scoring!$A$47,Scoring!$B$47,IF(L25=Scoring!$A$48,Scoring!$B$48,IF(L25=Scoring!$A$49,Scoring!$B$49,IF(L25=Scoring!$A$50,Scoring!$B$50)))))) -> 60.04 | AD25: 19.99 | AE25: =IF(AD25>Scoring!$B$134,Scoring!$A$134,IF(AD25>Scoring!$B$135,Scoring!$A$135,IF(AD25>Scoring!$B$136,Scoring!$A$136,IF(AD25>Scoring!$B$137,Scoring!$A$137,IF(AD25>Scoring!$B$138,Scoring!$A$138,IF(AD25>Scoring!$B$139,Scoring!$A$139,IF(AD25>Scoring!$B$140,Scoring!$A$140,IF(AD25>Scoring!$B$141,Scoring!$A$141,IF(AD25>=Scoring!$B$142,Scoring!$A$142,IF(AD25>Scoring!$B$143,Scoring!$A$143)))))))))) -> Moderate | AF25: 6
A26: 308 | B26: 3 | C26: Boreal Forests - Lower Chena | D26: Condition | E26: Vegetation composition & structure - mosaic | F26: Diversity of species and age classes | G26: Low diversity of species and age classes | H26: Moderate diversity of species and age classes | I26: Good diversity of species and age classes | J26: High diversity of species and age class | K26: Good | L26: Good - | M26: =IFERROR(INDEX(Outcomes!F:F,MATCH(A26,Outcomes!H:H,0)),"") -> Good | X26: Boreal Forests - Lower Chena|Vegetation composition & structure - mosaic | AA26: =IF(K26=Scoring!$A$45,Scoring!$B$45,IF(K26=Scoring!$A$46,Scoring!$B$46,IF(K26=Scoring!$A$47,Scoring!$B$47,IF(K26=Scoring!$A$48,Scoring!$B$48,IF(K26=Scoring!$A$49,Scoring!$B$49,IF(K26=Scoring!$A$50,Scoring!$B$50)))))) -> 80.03 | AB26: =IF(L26=Scoring!$A$45,Scoring!$B$45,IF(L26=Scoring!$A$46,Scoring!$B$46,IF(L26=Scoring!$A$47,Scoring!$B$47,IF(L26=Scoring!$A$48,Scoring!$B$48,IF(L26=Scoring!$A$49,Scoring!$B$49,IF(L26=Scoring!$A$50,Scoring!$B$50)))))) -> 60.04 | AD26: 19.99 | AE26: =IF(AD26>Scoring!$B$134,Scoring!$A$134,IF(AD26>Scoring!$B$135,Scoring!$A$135,IF(AD26>Scoring!$B$136,Scoring!$A$136,IF(AD26>Scoring!$B$137,Scoring!$A$137,IF(AD26>Scoring!$B$138,Scoring!$A$138,IF(AD26>Scoring!$B$139,Scoring!$A$139,IF(AD26>Scoring!$B$140,Scoring!$A$140,IF(AD26>Scoring!$B$141,Scoring!$A$141,IF(AD26>=Scoring!$B$142,Scoring!$A$142,IF(AD26>Scoring!$B$143,Scoring!$A$143)))))))))) -> Moderate | AF26: 6
A27: 309 | B27: 3 | C27: Boreal Forests - Lower Chena | D27: Size | E27: Extent of area | F27: Extent, patch size, distribution | G27: Severe, mostly gone | H27: Moderate to substantial loss | I27: Minimal loss | J27: Mother Nature | K27: Fair | L27: Fair - | M27: =IFERROR(INDEX(Outcomes!F:F,MATCH(A27,Outcomes!H:H,0)),"") -> Fair | X27: Boreal Forests - Lower Chena|Extent of area | AA27: =IF(K27=Scoring!$A$45,Scoring!$B$45,IF(K27=Scoring!$A$46,Scoring!$B$46,IF(K27=Scoring!$A$47,Scoring!$B$47,IF(K27=Scoring!$A$48,Scoring!$B$48,IF(K27=Scoring!$A$49,Scoring!$B$49,IF(K27=Scoring!$A$50,Scoring!$B$50)))))) -> 40.04 | AB27: =IF(L27=Scoring!$A$45,Scoring!$B$45,IF(L27=Scoring!$A$46,Scoring!$B$46,IF(L27=Scoring!$A$47,Scoring!$B$47,IF(L27=Scoring!$A$48,Scoring!$B$48,IF(L27=Scoring!$A$49,Scoring!$B$49,IF(L27=Scoring!$A$50,Scoring!$B$50)))))) -> 20.03 | AD27: 20.01 | AE27: =IF(AD27>Scoring!$B$134,Scoring!$A$134,IF(AD27>Scoring!$B$135,Scoring!$A$135,IF(AD27>Scoring!$B$136,Scoring!$A$136,IF(AD27>Scoring!$B$137,Scoring!$A$137,IF(AD27>Scoring!$B$138,Scoring!$A$138,IF(AD27>Scoring!$B$139,Scoring!$A$139,IF(AD27>Scoring!$B$140,Scoring!$A$140,IF(AD27>Scoring!$B$141,Scoring!$A$141,IF(AD27>=Scoring!$B$142,Scoring!$A$142,IF(AD27>Scoring!$B$143,Scoring!$A$143)))))))))) -> High | AF27: 3
A28: 310 | B28: 3 | C28: Boreal Forests - Lower Chena | M28: =IFERROR(INDEX(Outcomes!F:F,MATCH(A28,Outcomes!H:H,0)),"") ->  | X28: Boreal Forests - Lower Chena| | AA28: =IF(K28=Scoring!$A$45,Scoring!$B$45,IF(K28=Scoring!$A$46,Scoring!$B$46,IF(K28=Scoring!$A$47,Scoring!$B$47,IF(K28=Scoring!$A$48,Scoring!$B$48,IF(K28=Scoring!$A$49,Scoring!$B$49,IF(K28=Scoring!$A$50,Scoring!$B$50)))))) -> FALSE | AB28: =IF(L28=Scoring!$A$45,Scoring!$B$45,IF(L28=Scoring!$A$46,Scoring!$B$46,IF(L28=Scoring!$A$47,Scoring!$B$47,IF(L28=Scoring!$A$48,Scoring!$B$48,IF(L28=Scoring!$A$49,Scoring!$B$49,IF(L28=Scoring!$A$50,Scoring!$B$50)))))) -> FALSE | AD28: 0 | AE28: =IF(AD28>Scoring!$B$134,Scoring!$A$134,IF(AD28>Scoring!$B$135,Scoring!$A$135,IF(AD28>Scoring!$B$136,Scoring!$A$136,IF(AD28>Scoring!$B$137,Scoring!$A$137,IF(AD28>Scoring!$B$138,Scoring!$A$138,IF(AD28>Scoring!$B$139,Scoring!$A$139,IF(AD28>Scoring!$B$140,Scoring!$A$140,IF(AD28>Scoring!$B$141,Scoring!$A$141,IF(AD28>=Scoring!$B$142,Scoring!$A$142,IF(AD28>Scoring!$B$143,Scoring!$A$143)))))))))) -> None
A29: 311 | B29: 3 | C29: Boreal Forests - Lower Chena | M29: =IFERROR(INDEX(Outcomes!F:F,MATCH(A29,Outcomes!H:H,0)),"") ->  | X29: Boreal Forests - Lower Chena| | AA29: =IF(K29=Scoring!$A$45,Scoring!$B$45,IF(K29=Scoring!$A$46,Scoring!$B$46,IF(K29=Scoring!$A$47,Scoring!$B$47,IF(K29=Scoring!$A$48,Scoring!$B$48,IF(K29=Scoring!$A$49,Scoring!$B$49,IF(K29=Scoring!$A$50,Scoring!$B$50)))))) -> FALSE | AB29: =IF(L29=Scoring!$A$45,Scoring!$B$45,IF(L29=Scoring!$A$46,Scoring!$B$46,IF(L29=Scoring!$A$47,Scoring!$B$47,IF(L29=Scoring!$A$48,Scoring!$B$48,IF(L29=Scoring!$A$49,Scoring!$B$49,IF(L29=Scoring!$A$50,Scoring!$B$50)))))) -> FALSE | AD29: 0 | AE29: =IF(AD29>Scoring!$B$134,Scoring!$A$134,IF(AD29>Scoring!$B$135,Scoring!$A$135,IF(AD29>Scoring!$B$136,Scoring!$A$136,IF(AD29>Scoring!$B$137,Scoring!$A$137,IF(AD29>Scoring!$B$138,Scoring!$A$138,IF(AD29>Scoring!$B$139,Scoring!$A$139,IF(AD29>Scoring!$B$140,Scoring!$A$140,IF(AD29>Scoring!$B$141,Scoring!$A$141,IF(AD29>=Scoring!$B$142,Scoring!$A$142,IF(AD29>Scoring!$B$143,Scoring!$A$143)))))))))) -> None
A30: 312 | B30: 3 | C30: Boreal Forests - Lower Chena | M30: =IFERROR(INDEX(Outcomes!F:F,MATCH(A30,Outcomes!H:H,0)),"") ->  | X30: Boreal Forests - Lower Chena| | AA30: =IF(K30=Scoring!$A$45,Scoring!$B$45,IF(K30=Scoring!$A$46,Scoring!$B$46,IF(K30=Scoring!$A$47,Scoring!$B$47,IF(K30=Scoring!$A$48,Scoring!$B$48,IF(K30=Scoring!$A$49,Scoring!$B$49,IF(K30=Scoring!$A$50,Scoring!$B$50)))))) -> FALSE | AB30: =IF(L30=Scoring!$A$45,Scoring!$B$45,IF(L30=Scoring!$A$46,Scoring!$B$46,IF(L30=Scoring!$A$47,Scoring!$B$47,IF(L30=Scoring!$A$48,Scoring!$B$48,IF(L30=Scoring!$A$49,Scoring!$B$49,IF(L30=Scoring!$A$50,Scoring!$B$50)))))) -> FALSE | AD30: 0 | AE30: =IF(AD30>Scoring!$B$134,Scoring!$A$134,IF(AD30>Scoring!$B$135,Scoring!$A$135,IF(AD30>Scoring!$B$136,Scoring!$A$136,IF(AD30>Scoring!$B$137,Scoring!$A$137,IF(AD30>Scoring!$B$138,Scoring!$A$138,IF(AD30>Scoring!$B$139,Scoring!$A$139,IF(AD30>Scoring!$B$140,Scoring!$A$140,IF(AD30>Scoring!$B$141,Scoring!$A$141,IF(AD30>=Scoring!$B$142,Scoring!$A$142,IF(AD30>Scoring!$B$143,Scoring!$A$143)))))))))) -> None
A31: 313 | B31: 3 | C31: Boreal Forests - Lower Chena | M31: =IFERROR(INDEX(Outcomes!F:F,MATCH(A31,Outcomes!H:H,0)),"") ->  | X31: Boreal Forests - Lower Chena| | AA31: =IF(K31=Scoring!$A$45,Scoring!$B$45,IF(K31=Scoring!$A$46,Scoring!$B$46,IF(K31=Scoring!$A$47,Scoring!$B$47,IF(K31=Scoring!$A$48,Scoring!$B$48,IF(K31=Scoring!$A$49,Scoring!$B$49,IF(K31=Scoring!$A$50,Scoring!$B$50)))))) -> FALSE | AB31: =IF(L31=Scoring!$A$45,Scoring!$B$45,IF(L31=Scoring!$A$46,Scoring!$B$46,IF(L31=Scoring!$A$47,Scoring!$B$47,IF(L31=Scoring!$A$48,Scoring!$B$48,IF(L31=Scoring!$A$49,Scoring!$B$49,IF(L31=Scoring!$A$50,Scoring!$B$50)))))) -> FALSE | AD31: 0 | AE31: =IF(AD31>Scoring!$B$134,Scoring!$A$134,IF(AD31>Scoring!$B$135,Scoring!$A$135,IF(AD31>Scoring!$B$136,Scoring!$A$136,IF(AD31>Scoring!$B$137,Scoring!$A$137,IF(AD31>Scoring!$B$138,Scoring!$A$138,IF(AD31>Scoring!$B$139,Scoring!$A$139,IF(AD31>Scoring!$B$140,Scoring!$A$140,IF(AD31>Scoring!$B$141,Scoring!$A$141,IF(AD31>=Scoring!$B$142,Scoring!$A$142,IF(AD31>Scoring!$B$143,Scoring!$A$143)))))))))) -> None
A32: 404 | B32: 4 | C32: Tributaries - Upper Chena | D32: Landscape Context | E32: Connectivity to tributaries and within mainstem | F32: Number, extent, & type of barriers | G32: Many widespread or complete manmade or natural blockages, Where culverts exist % of red barriers based on ADFG fish passage inventory | H32: Some widespread or complete manmade or natural blockages, Where culverts exist % of red barriers based on ADFG fish passage inventory | I32: Few widespread or complete manmade or natural blockages, Where culverts exist % of green barriers based on ADFG fish passage inventory | J32: No widespread or complete manmade or natural blockages, | K32: Good | L32: Good - | M32: =IFERROR(INDEX(Outcomes!F:F,MATCH(A32,Outcomes!H:H,0)),"") -> Good | X32: Tributaries - Upper Chena|Connectivity to tributaries and within mainstem | AA32: =IF(K32=Scoring!$A$45,Scoring!$B$45,IF(K32=Scoring!$A$46,Scoring!$B$46,IF(K32=Scoring!$A$47,Scoring!$B$47,IF(K32=Scoring!$A$48,Scoring!$B$48,IF(K32=Scoring!$A$49,Scoring!$B$49,IF(K32=Scoring!$A$50,Scoring!$B$50)))))) -> 80.03 | AB32: =IF(L32=Scoring!$A$45,Scoring!$B$45,IF(L32=Scoring!$A$46,Scoring!$B$46,IF(L32=Scoring!$A$47,Scoring!$B$47,IF(L32=Scoring!$A$48,Scoring!$B$48,IF(L32=Scoring!$A$49,Scoring!$B$49,IF(L32=Scoring!$A$50,Scoring!$B$50)))))) -> 60.04 | AD32: 19.99 | AE32: =IF(AD32>Scoring!$B$134,Scoring!$A$134,IF(AD32>Scoring!$B$135,Scoring!$A$135,IF(AD32>Scoring!$B$136,Scoring!$A$136,IF(AD32>Scoring!$B$137,Scoring!$A$137,IF(AD32>Scoring!$B$138,Scoring!$A$138,IF(AD32>Scoring!$B$139,Scoring!$A$139,IF(AD32>Scoring!$B$140,Scoring!$A$140,IF(AD32>Scoring!$B$141,Scoring!$A$141,IF(AD32>=Scoring!$B$142,Scoring!$A$142,IF(AD32>Scoring!$B$143,Scoring!$A$143)))))))))) -> Moderate | AF32: 6
A33: 405 | B33: 4 | C33: Tributaries - Upper Chena | D33: Landscape Context | E33: Hydrologic regime | F33: Natural fluctuations of surface and ground water -amount, frequency, timing, duration | G33: Water levels, flows or fluctuations are too high or too low, not related to the precipitation, and unlikely to maintain nested targets in many habitats within the target area and downstream | H33: Water levels, flows or fluctuations in relationship to precipitation and ground water are likely to maintain nested targets in some habitats within the target and downstream | I33: Water levels, flows or fluctuations in relationship to precipitation and ground water are likely to maintain nested targets in most habitats within the target area and downstream | J33: Water levels, flows or fluctuations in relationship to precipitation and ground water are likely to maintain nested targets in almost all habitats within the target area and downstream | K33: Good | L33: Good - | M33: =IFERROR(INDEX(Outcomes!F:F,MATCH(A33,Outcomes!H:H,0)),"") -> Good | X33: Tributaries - Upper Chena|Hydrologic regime | AA33: =IF(K33=Scoring!$A$45,Scoring!$B$45,IF(K33=Scoring!$A$46,Scoring!$B$46,IF(K33=Scoring!$A$47,Scoring!$B$47,IF(K33=Scoring!$A$48,Scoring!$B$48,IF(K33=Scoring!$A$49,Scoring!$B$49,IF(K33=Scoring!$A$50,Scoring!$B$50)))))) -> 80.03 | AB33: =IF(L33=Scoring!$A$45,Scoring!$B$45,IF(L33=Scoring!$A$46,Scoring!$B$46,IF(L33=Scoring!$A$47,Scoring!$B$47,IF(L33=Scoring!$A$48,Scoring!$B$48,IF(L33=Scoring!$A$49,Scoring!$B$49,IF(L33=Scoring!$A$50,Scoring!$B$50)))))) -> 60.04 | AD33: 19.99 | AE33: =IF(AD33>Scoring!$B$134,Scoring!$A$134,IF(AD33>Scoring!$B$135,Scoring!$A$135,IF(AD33>Scoring!$B$136,Scoring!$A$136,IF(AD33>Scoring!$B$137,Scoring!$A$137,IF(AD33>Scoring!$B$138,Scoring!$A$138,IF(AD33>Scoring!$B$139,Scoring!$A$139,IF(AD33>Scoring!$B$140,Scoring!$A$140,IF(AD33>Scoring!$B$141,Scoring!$A$141,IF(AD33>=Scoring!$B$142,Scoring!$A$142,IF(AD33>Scoring!$B$143,Scoring!$A$143)))))))))) -> Moderate | AF33: 6
A34: 406 | B34: 4 | C34: Tributaries - Upper Chena | D34: Landscape Context | E34: Substrate and banks | F34: Amount, type, size, availability of, & distribution | G34: Low diversity of and abundance of suitable substrates in most habitats | H34: Moderate diversity of abundance of suitable substrates/material in most habitats | I34: Diversity and abundance of suitable substrates/ material in most habitat for aquatic species | J34: High diversity and abundance of suitable substrates/ material in most habitat for aquatic species | K34: Good | L34: Fair | M34: =IFERROR(INDEX(Outcomes!F:F,MATCH(A34,Outcomes!H:H,0)),"") -> Good | X34: =C34 & "|" &E34 -> Tributaries - Upper Chena|Substrate and banks | AA34: =IF(K34=Scoring!$A$45,Scoring!$B$45,IF(K34=Scoring!$A$46,Scoring!$B$46,IF(K34=Scoring!$A$47,Scoring!$B$47,IF(K34=Scoring!$A$48,Scoring!$B$48,IF(K34=Scoring!$A$49,Scoring!$B$49,IF(K34=Scoring!$A$50,Scoring!$B$50)))))) -> 80.03 | AB34: =IF(L34=Scoring!$A$45,Scoring!$B$45,IF(L34=Scoring!$A$46,Scoring!$B$46,IF(L34=Scoring!$A$47,Scoring!$B$47,IF(L34=Scoring!$A$48,Scoring!$B$48,IF(L34=Scoring!$A$49,Scoring!$B$49,IF(L34=Scoring!$A$50,Scoring!$B$50)))))) -> 40.04 | AD34: =AA34-AB34 -> 39.99 | AE34: =IF(AD34>Scoring!$B$134,Scoring!$A$134,IF(AD34>Scoring!$B$135,Scoring!$A$135,IF(AD34>Scoring!$B$136,Scoring!$A$136,IF(AD34>Scoring!$B$137,Scoring!$A$137,IF(AD34>Scoring!$B$138,Scoring!$A$138,IF(AD34>Scoring!$B$139,Scoring!$A$139,IF(AD34>Scoring!$B$140,Scoring!$A$140,IF(AD34>Scoring!$B$141,Scoring!$A$141,IF(AD34>=Scoring!$B$142,Scoring!$A$142,IF(AD34>Scoring!$B$143,Scoring!$A$143)))))))))) -> Very Severe | AF34: =IFERROR(INDEX(StrategicActionMatrix,MATCH(K34,Rating,0),MATCH(AE34,Change,0)),"") -> 2
A35: 407 | B35: 4 | C35: Tributaries - Upper Chena | D35: Condition | E35: Characteristic native communities | F35: Presence of characteristic native communities within habitats | G35: Few habitats have the characteristic native communities to accom-modate most nested targets in abundance | H35: Some habitats have the characteristic native communities to accom-modate most nested targets in abundance | I35: Most habitats have the characteristic native communities to accom-modate most nested targets in abundance | J35: Almost all habitats have the characteristic native communities to accom­modate almost all nested targets in abundance | K35: Good | L35: Good - | M35: =IFERROR(INDEX(Outcomes!F:F,MATCH(A35,Outcomes!H:H,0)),"") ->  | X35: Tributaries - Upper Chena|Characteristic native communities | AA35: =IF(K35=Scoring!$A$45,Scoring!$B$45,IF(K35=Scoring!$A$46,Scoring!$B$46,IF(K35=Scoring!$A$47,Scoring!$B$47,IF(K35=Scoring!$A$48,Scoring!$B$48,IF(K35=Scoring!$A$49,Scoring!$B$49,IF(K35=Scoring!$A$50,Scoring!$B$50)))))) -> 80.03 | AB35: =IF(L35=Scoring!$A$45,Scoring!$B$45,IF(L35=Scoring!$A$46,Scoring!$B$46,IF(L35=Scoring!$A$47,Scoring!$B$47,IF(L35=Scoring!$A$48,Scoring!$B$48,IF(L35=Scoring!$A$49,Scoring!$B$49,IF(L35=Scoring!$A$50,Scoring!$B$50)))))) -> 60.04 | AD35: 19.99 | AE35: =IF(AD35>Scoring!$B$134,Scoring!$A$134,IF(AD35>Scoring!$B$135,Scoring!$A$135,IF(AD35>Scoring!$B$136,Scoring!$A$136,IF(AD35>Scoring!$B$137,Scoring!$A$137,IF(AD35>Scoring!$B$138,Scoring!$A$138,IF(AD35>Scoring!$B$139,Scoring!$A$139,IF(AD35>Scoring!$B$140,Scoring!$A$140,IF(AD35>Scoring!$B$141,Scoring!$A$141,IF(AD35>=Scoring!$B$142,Scoring!$A$142,IF(AD35>Scoring!$B$143,Scoring!$A$143)))))))))) -> Moderate | AF35: 6
A36: 408 | B36: 4 | C36: Tributaries - Upper Chena | D36: Condition | E36: Species composition | F36: Presence/absence, extent of invasive species | G36: High abundance of invasive/non-native species in most habitats | H36: Moderate abundance of invasive/non-native species in most habitats | I36: Low presence of existing invasive/non-native species in most habitats with NO new invasive species | J36: Mimimal to no abundance of invasive/non-native species in most habitats | K36: Good | L36: Good - | M36: =IFERROR(INDEX(Outcomes!F:F,MATCH(A36,Outcomes!H:H,0)),"") -> Good | X36: Tributaries - Upper Chena|Species composition | AA36: =IF(K36=Scoring!$A$45,Scoring!$B$45,IF(K36=Scoring!$A$46,Scoring!$B$46,IF(K36=Scoring!$A$47,Scoring!$B$47,IF(K36=Scoring!$A$48,Scoring!$B$48,IF(K36=Scoring!$A$49,Scoring!$B$49,IF(K36=Scoring!$A$50,Scoring!$B$50)))))) -> 80.03 | AB36: =IF(L36=Scoring!$A$45,Scoring!$B$45,IF(L36=Scoring!$A$46,Scoring!$B$46,IF(L36=Scoring!$A$47,Scoring!$B$47,IF(L36=Scoring!$A$48,Scoring!$B$48,IF(L36=Scoring!$A$49,Scoring!$B$49,IF(L36=Scoring!$A$50,Scoring!$B$50)))))) -> 60.04 | AD36: 19.99 | AE36: =IF(AD36>Scoring!$B$134,Scoring!$A$134,IF(AD36>Scoring!$B$135,Scoring!$A$135,IF(AD36>Scoring!$B$136,Scoring!$A$136,IF(AD36>Scoring!$B$137,Scoring!$A$137,IF(AD36>Scoring!$B$138,Scoring!$A$138,IF(AD36>Scoring!$B$139,Scoring!$A$139,IF(AD36>Scoring!$B$140,Scoring!$A$140,IF(AD36>Scoring!$B$141,Scoring!$A$141,IF(AD36>=Scoring!$B$142,Scoring!$A$142,IF(AD36>Scoring!$B$143,Scoring!$A$143)))))))))) -> Moderate | AF36: 6
A37: 409 | B37: 4 | C37: Tributaries - Upper Chena | D37: Condition | E37: Water quality | F37: Sediment, temperature, DO, toxins, or litter/trash/residues | G37: High % (TBD) not meeting most ADEC's standards | H37: Moderate habitats meet most ADEC’s standards | I37: Most habitats are meeting most ADEC's standards | J37: Majority to all habitats meet most ADEC’s standards | K37: Good | L37: Fair | M37: =IFERROR(INDEX(Outcomes!F:F,MATCH(A37,Outcomes!H:H,0)),"") -> Good | X37: Tributaries - Upper Chena|Water quality | AA37: =IF(K37=Scoring!$A$45,Scoring!$B$45,IF(K37=Scoring!$A$46,Scoring!$B$46,IF(K37=Scoring!$A$47,Scoring!$B$47,IF(K37=Scoring!$A$48,Scoring!$B$48,IF(K37=Scoring!$A$49,Scoring!$B$49,IF(K37=Scoring!$A$50,Scoring!$B$50)))))) -> 80.03 | AB37: =IF(L37=Scoring!$A$45,Scoring!$B$45,IF(L37=Scoring!$A$46,Scoring!$B$46,IF(L37=Scoring!$A$47,Scoring!$B$47,IF(L37=Scoring!$A$48,Scoring!$B$48,IF(L37=Scoring!$A$49,Scoring!$B$49,IF(L37=Scoring!$A$50,Scoring!$B$50)))))) -> 40.04 | AD37: 39.99 | AE37: =IF(AD37>Scoring!$B$134,Scoring!$A$134,IF(AD37>Scoring!$B$135,Scoring!$A$135,IF(AD37>Scoring!$B$136,Scoring!$A$136,IF(AD37>Scoring!$B$137,Scoring!$A$137,IF(AD37>Scoring!$B$138,Scoring!$A$138,IF(AD37>Scoring!$B$139,Scoring!$A$139,IF(AD37>Scoring!$B$140,Scoring!$A$140,IF(AD37>Scoring!$B$141,Scoring!$A$141,IF(AD37>=Scoring!$B$142,Scoring!$A$142,IF(AD37>Scoring!$B$143,Scoring!$A$143)))))))))) -> Very Severe | AF37: 2
A38: 410 | B38: 4 | C38: Tributaries - Upper Chena | D38: Size | E38: Extent of area | F38: Riparian area and river length | G38: Severe, mostly gone | H38: Moderate to substantial loss | I38: Minimal loss | J38: Mother Nature | K38: Good | L38: Good - | M38: =IFERROR(INDEX(Outcomes!F:F,MATCH(A38,Outcomes!H:H,0)),"") ->  | X38: Tributaries - Upper Chena|Extent of area | AA38: =IF(K38=Scoring!$A$45,Scoring!$B$45,IF(K38=Scoring!$A$46,Scoring!$B$46,IF(K38=Scoring!$A$47,Scoring!$B$47,IF(K38=Scoring!$A$48,Scoring!$B$48,IF(K38=Scoring!$A$49,Scoring!$B$49,IF(K38=Scoring!$A$50,Scoring!$B$50)))))) -> 80.03 | AB38: =IF(L38=Scoring!$A$45,Scoring!$B$45,IF(L38=Scoring!$A$46,Scoring!$B$46,IF(L38=Scoring!$A$47,Scoring!$B$47,IF(L38=Scoring!$A$48,Scoring!$B$48,IF(L38=Scoring!$A$49,Scoring!$B$49,IF(L38=Scoring!$A$50,Scoring!$B$50)))))) -> 60.04 | AD38: 19.99 | AE38: =IF(AD38>Scoring!$B$134,Scoring!$A$134,IF(AD38>Scoring!$B$135,Scoring!$A$135,IF(AD38>Scoring!$B$136,Scoring!$A$136,IF(AD38>Scoring!$B$137,Scoring!$A$137,IF(AD38>Scoring!$B$138,Scoring!$A$138,IF(AD38>Scoring!$B$139,Scoring!$A$139,IF(AD38>Scoring!$B$140,Scoring!$A$140,IF(AD38>Scoring!$B$141,Scoring!$A$141,IF(AD38>=Scoring!$B$142,Scoring!$A$142,IF(AD38>Scoring!$B$143,Scoring!$A$143)))))))))) -> Moderate | AF38: 6
A39: 411 | B39: 4 | C39: Tributaries - Upper Chena | M39: =IFERROR(INDEX(Outcomes!F:F,MATCH(A39,Outcomes!H:H,0)),"") ->  | X39: Tributaries - Upper Chena| | AA39: =IF(K39=Scoring!$A$45,Scoring!$B$45,IF(K39=Scoring!$A$46,Scoring!$B$46,IF(K39=Scoring!$A$47,Scoring!$B$47,IF(K39=Scoring!$A$48,Scoring!$B$48,IF(K39=Scoring!$A$49,Scoring!$B$49,IF(K39=Scoring!$A$50,Scoring!$B$50)))))) -> FALSE | AB39: =IF(L39=Scoring!$A$45,Scoring!$B$45,IF(L39=Scoring!$A$46,Scoring!$B$46,IF(L39=Scoring!$A$47,Scoring!$B$47,IF(L39=Scoring!$A$48,Scoring!$B$48,IF(L39=Scoring!$A$49,Scoring!$B$49,IF(L39=Scoring!$A$50,Scoring!$B$50)))))) -> FALSE | AD39: 0 | AE39: =IF(AD39>Scoring!$B$134,Scoring!$A$134,IF(AD39>Scoring!$B$135,Scoring!$A$135,IF(AD39>Scoring!$B$136,Scoring!$A$136,IF(AD39>Scoring!$B$137,Scoring!$A$137,IF(AD39>Scoring!$B$138,Scoring!$A$138,IF(AD39>Scoring!$B$139,Scoring!$A$139,IF(AD39>Scoring!$B$140,Scoring!$A$140,IF(AD39>Scoring!$B$141,Scoring!$A$141,IF(AD39>=Scoring!$B$142,Scoring!$A$142,IF(AD39>Scoring!$B$143,Scoring!$A$143)))))))))) -> None
A40: 412 | B40: 4 | C40: Tributaries - Upper Chena | M40: =IFERROR(INDEX(Outcomes!F:F,MATCH(A40,Outcomes!H:H,0)),"") ->  | X40: Tributaries - Upper Chena| | AA40: =IF(K40=Scoring!$A$45,Scoring!$B$45,IF(K40=Scoring!$A$46,Scoring!$B$46,IF(K40=Scoring!$A$47,Scoring!$B$47,IF(K40=Scoring!$A$48,Scoring!$B$48,IF(K40=Scoring!$A$49,Scoring!$B$49,IF(K40=Scoring!$A$50,Scoring!$B$50)))))) -> FALSE | AB40: =IF(L40=Scoring!$A$45,Scoring!$B$45,IF(L40=Scoring!$A$46,Scoring!$B$46,IF(L40=Scoring!$A$47,Scoring!$B$47,IF(L40=Scoring!$A$48,Scoring!$B$48,IF(L40=Scoring!$A$49,Scoring!$B$49,IF(L40=Scoring!$A$50,Scoring!$B$50)))))) -> FALSE | AD40: 0 | AE40: =IF(AD40>Scoring!$B$134,Scoring!$A$134,IF(AD40>Scoring!$B$135,Scoring!$A$135,IF(AD40>Scoring!$B$136,Scoring!$A$136,IF(AD40>Scoring!$B$137,Scoring!$A$137,IF(AD40>Scoring!$B$138,Scoring!$A$138,IF(AD40>Scoring!$B$139,Scoring!$A$139,IF(AD40>Scoring!$B$140,Scoring!$A$140,IF(AD40>Scoring!$B$141,Scoring!$A$141,IF(AD40>=Scoring!$B$142,Scoring!$A$142,IF(AD40>Scoring!$B$143,Scoring!$A$143)))))))))) -> None
A41: 413 | B41: 4 | C41: Tributaries - Upper Chena | M41: =IFERROR(INDEX(Outcomes!F:F,MATCH(A41,Outcomes!H:H,0)),"") ->  | X41: Tributaries - Upper Chena| | AA41: =IF(K41=Scoring!$A$45,Scoring!$B$45,IF(K41=Scoring!$A$46,Scoring!$B$46,IF(K41=Scoring!$A$47,Scoring!$B$47,IF(K41=Scoring!$A$48,Scoring!$B$48,IF(K41=Scoring!$A$49,Scoring!$B$49,IF(K41=Scoring!$A$50,Scoring!$B$50)))))) -> FALSE | AB41: =IF(L41=Scoring!$A$45,Scoring!$B$45,IF(L41=Scoring!$A$46,Scoring!$B$46,IF(L41=Scoring!$A$47,Scoring!$B$47,IF(L41=Scoring!$A$48,Scoring!$B$48,IF(L41=Scoring!$A$49,Scoring!$B$49,IF(L41=Scoring!$A$50,Scoring!$B$50)))))) -> FALSE | AD41: 0 | AE41: =IF(AD41>Scoring!$B$134,Scoring!$A$134,IF(AD41>Scoring!$B$135,Scoring!$A$135,IF(AD41>Scoring!$B$136,Scoring!$A$136,IF(AD41>Scoring!$B$137,Scoring!$A$137,IF(AD41>Scoring!$B$138,Scoring!$A$138,IF(AD41>Scoring!$B$139,Scoring!$A$139,IF(AD41>Scoring!$B$140,Scoring!$A$140,IF(AD41>Scoring!$B$141,Scoring!$A$141,IF(AD41>=Scoring!$B$142,Scoring!$A$142,IF(AD41>Scoring!$B$143,Scoring!$A$143)))))))))) -> None
A42: 504 | B42: 5 | C42: Tributaries - Lower Chena | D42: Landscape Context | E42: Connectivity to mainstem river and within tributaries | F42: Number, extent, & type of barriers | G42: Many widespread or complete manmade or natural blockages, Where culverts exist % of red barriers based on ADFG fish passage inventory | H42: Some widespread or complete manmade or natural blockages, Where culverts exist % of red barriers based on ADFG fish passage inventory | I42: Few widespread or complete manmade or natural blockages, Where culverts exist % of green barriers based on ADFG fish passage inventory | J42: No widespread or complete manmade or natural blockages, | K42: Fair | L42: Fair - | M42: =IFERROR(INDEX(Outcomes!F:F,MATCH(A42,Outcomes!H:H,0)),"") -> Good - | X42: Tributaries - Lower Chena|Connectivity to mainstem river and within tributaries | AA42: =IF(K42=Scoring!$A$45,Scoring!$B$45,IF(K42=Scoring!$A$46,Scoring!$B$46,IF(K42=Scoring!$A$47,Scoring!$B$47,IF(K42=Scoring!$A$48,Scoring!$B$48,IF(K42=Scoring!$A$49,Scoring!$B$49,IF(K42=Scoring!$A$50,Scoring!$B$50)))))) -> 40.04 | AB42: =IF(L42=Scoring!$A$45,Scoring!$B$45,IF(L42=Scoring!$A$46,Scoring!$B$46,IF(L42=Scoring!$A$47,Scoring!$B$47,IF(L42=Scoring!$A$48,Scoring!$B$48,IF(L42=Scoring!$A$49,Scoring!$B$49,IF(L42=Scoring!$A$50,Scoring!$B$50)))))) -> 20.03 | AD42: 20.01 | AE42: =IF(AD42>Scoring!$B$134,Scoring!$A$134,IF(AD42>Scoring!$B$135,Scoring!$A$135,IF(AD42>Scoring!$B$136,Scoring!$A$136,IF(AD42>Scoring!$B$137,Scoring!$A$137,IF(AD42>Scoring!$B$138,Scoring!$A$138,IF(AD42>Scoring!$B$139,Scoring!$A$139,IF(AD42>Scoring!$B$140,Scoring!$A$140,IF(AD42>Scoring!$B$141,Scoring!$A$141,IF(AD42>=Scoring!$B$142,Scoring!$A$142,IF(AD42>Scoring!$B$143,Scoring!$A$143)))))))))) -> High | AF42: 3
A43: 505 | B43: 5 | C43: Tributaries - Lower Chena | D43: Landscape Context | E43: Hydrologic regime | F43: Natural fluctuations of surface and ground water -amount, frequency, timing, duration | G43: Water levels, flows or fluctuations are too high or too low, not related to the precipitation, and unlikely to maintain nested targets in many habitats within the target area and downstream | H43: Water levels, flows or fluctuations in relationship to precipitation and ground water are likely to maintain nested targets in some habitats within the target and downstream | I43: Water levels, flows or fluctuations in relationship to precipitation and ground water are likely to maintain nested targets in most habitats within the target area and downstream | J43: Water levels, flows or fluctuations in relationship to precipitation and ground water are likely to maintain nested targets in almost all habitats within the target area and downstream | K43: Fair | L43: Fair - | M43: =IFERROR(INDEX(Outcomes!F:F,MATCH(A43,Outcomes!H:H,0)),"") -> Good - | X43: Tributaries - Lower Chena|Hydrologic regime | AA43: =IF(K43=Scoring!$A$45,Scoring!$B$45,IF(K43=Scoring!$A$46,Scoring!$B$46,IF(K43=Scoring!$A$47,Scoring!$B$47,IF(K43=Scoring!$A$48,Scoring!$B$48,IF(K43=Scoring!$A$49,Scoring!$B$49,IF(K43=Scoring!$A$50,Scoring!$B$50)))))) -> 40.04 | AB43: =IF(L43=Scoring!$A$45,Scoring!$B$45,IF(L43=Scoring!$A$46,Scoring!$B$46,IF(L43=Scoring!$A$47,Scoring!$B$47,IF(L43=Scoring!$A$48,Scoring!$B$48,IF(L43=Scoring!$A$49,Scoring!$B$49,IF(L43=Scoring!$A$50,Scoring!$B$50)))))) -> 20.03 | AD43: 20.01 | AE43: =IF(AD43>Scoring!$B$134,Scoring!$A$134,IF(AD43>Scoring!$B$135,Scoring!$A$135,IF(AD43>Scoring!$B$136,Scoring!$A$136,IF(AD43>Scoring!$B$137,Scoring!$A$137,IF(AD43>Scoring!$B$138,Scoring!$A$138,IF(AD43>Scoring!$B$139,Scoring!$A$139,IF(AD43>Scoring!$B$140,Scoring!$A$140,IF(AD43>Scoring!$B$141,Scoring!$A$141,IF(AD43>=Scoring!$B$142,Scoring!$A$142,IF(AD43>Scoring!$B$143,Scoring!$A$143)))))))))) -> High | AF43: 3
A44: 506 | B44: 5 | C44: Tributaries - Lower Chena | D44: Landscape Context | E44: Substrate and banks | F44: Amount, type, size, availability of, & distribution | G44: Low diversity of and abundance of suitable substrates in most habitats | H44: Moderate diversity of abundance of suitable substrates/material in most habitats | I44: Diversity and abundance of suitable substrates/ material in most habitat for aquatic - | J44: High diversity and abundance of suitable substrates/ material in most habitat for aquatic species | K44: Fair | L44: Fair | M44: =IFERROR(INDEX(Outcomes!F:F,MATCH(A44,Outcomes!H:H,0)),"") -> Good | X44: Tributaries - Lower Chena|Substrate and banks | AA44: =IF(K44=Scoring!$A$45,Scoring!$B$45,IF(K44=Scoring!$A$46,Scoring!$B$46,IF(K44=Scoring!$A$47,Scoring!$B$47,IF(K44=Scoring!$A$48,Scoring!$B$48,IF(K44=Scoring!$A$49,Scoring!$B$49,IF(K44=Scoring!$A$50,Scoring!$B$50)))))) -> 40.04 | AB44: =IF(L44=Scoring!$A$45,Scoring!$B$45,IF(L44=Scoring!$A$46,Scoring!$B$46,IF(L44=Scoring!$A$47,Scoring!$B$47,IF(L44=Scoring!$A$48,Scoring!$B$48,IF(L44=Scoring!$A$49,Scoring!$B$49,IF(L44=Scoring!$A$50,Scoring!$B$50)))))) -> 40.04 | AD44: 0 | AE44: =IF(AD44>Scoring!$B$134,Scoring!$A$134,IF(AD44>Scoring!$B$135,Scoring!$A$135,IF(AD44>Scoring!$B$136,Scoring!$A$136,IF(AD44>Scoring!$B$137,Scoring!$A$137,IF(AD44>Scoring!$B$138,Scoring!$A$138,IF(AD44>Scoring!$B$139,Scoring!$A$139,IF(AD44>Scoring!$B$140,Scoring!$A$140,IF(AD44>Scoring!$B$141,Scoring!$A$141,IF(AD44>=Scoring!$B$142,Scoring!$A$142,IF(AD44>Scoring!$B$143,Scoring!$A$143)))))))))) -> None | AF44: 7
A45: 507 | B45: 5 | C45: Tributaries - Lower Chena | D45: Condition | E45: Characteristic native communities | F45: Presence of characteristic native communities within habitats | G45: Few habitats have the characteristic native communities to accom-modate most nested targets in abundance | H45: Some habitats have the characteristic native communities to accom-modate most nested targets in abundance | I45: Most habitats have the characteristic native communities to accom-modate most nested targets in abundance | J45: Almost all habitats have the characteristic native communities to accom­modate almost all nested targets in abundance | K45: Good | L45: Good - | M45: =IFERROR(INDEX(Outcomes!F:F,MATCH(A45,Outcomes!H:H,0)),"") -> Good - | X45: Tributaries - Lower Chena|Characteristic native communities | AA45: =IF(K45=Scoring!$A$45,Scoring!$B$45,IF(K45=Scoring!$A$46,Scoring!$B$46,IF(K45=Scoring!$A$47,Scoring!$B$47,IF(K45=Scoring!$A$48,Scoring!$B$48,IF(K45=Scoring!$A$49,Scoring!$B$49,IF(K45=Scoring!$A$50,Scoring!$B$50)))))) -> 80.03 | AB45: =IF(L45=Scoring!$A$45,Scoring!$B$45,IF(L45=Scoring!$A$46,Scoring!$B$46,IF(L45=Scoring!$A$47,Scoring!$B$47,IF(L45=Scoring!$A$48,Scoring!$B$48,IF(L45=Scoring!$A$49,Scoring!$B$49,IF(L45=Scoring!$A$50,Scoring!$B$50)))))) -> 60.04 | AD45: 19.99 | AE45: =IF(AD45>Scoring!$B$134,Scoring!$A$134,IF(AD45>Scoring!$B$135,Scoring!$A$135,IF(AD45>Scoring!$B$136,Scoring!$A$136,IF(AD45>Scoring!$B$137,Scoring!$A$137,IF(AD45>Scoring!$B$138,Scoring!$A$138,IF(AD45>Scoring!$B$139,Scoring!$A$139,IF(AD45>Scoring!$B$140,Scoring!$A$140,IF(AD45>Scoring!$B$141,Scoring!$A$141,IF(AD45>=Scoring!$B$142,Scoring!$A$142,IF(AD45>Scoring!$B$143,Scoring!$A$143)))))))))) -> Moderate | AF45: 6
A46: 508 | B46: 5 | C46: Tributaries - Lower Chena | D46: Condition | E46: Species composition | F46: Presence/absence, extent of invasive species | G46: High abundance of invasive/non-native species in most habitats | H46: Moderate abundance of invasive/non-native species in most habitats | I46: Low presence of existing invasive/non-native species in most habitats with NO new invasive species | J46: Mimimal to no abundance of invasive/non-native species in most habitats | K46: Good | L46: Good - | M46: =IFERROR(INDEX(Outcomes!F:F,MATCH(A46,Outcomes!H:H,0)),"") -> Good | X46: Tributaries - Lower Chena|Species composition | AA46: =IF(K46=Scoring!$A$45,Scoring!$B$45,IF(K46=Scoring!$A$46,Scoring!$B$46,IF(K46=Scoring!$A$47,Scoring!$B$47,IF(K46=Scoring!$A$48,Scoring!$B$48,IF(K46=Scoring!$A$49,Scoring!$B$49,IF(K46=Scoring!$A$50,Scoring!$B$50)))))) -> 80.03 | AB46: =IF(L46=Scoring!$A$45,Scoring!$B$45,IF(L46=Scoring!$A$46,Scoring!$B$46,IF(L46=Scoring!$A$47,Scoring!$B$47,IF(L46=Scoring!$A$48,Scoring!$B$48,IF(L46=Scoring!$A$49,Scoring!$B$49,IF(L46=Scoring!$A$50,Scoring!$B$50)))))) -> 60.04 | AD46: 19.99 | AE46: =IF(AD46>Scoring!$B$134,Scoring!$A$134,IF(AD46>Scoring!$B$135,Scoring!$A$135,IF(AD46>Scoring!$B$136,Scoring!$A$136,IF(AD46>Scoring!$B$137,Scoring!$A$137,IF(AD46>Scoring!$B$138,Scoring!$A$138,IF(AD46>Scoring!$B$139,Scoring!$A$139,IF(AD46>Scoring!$B$140,Scoring!$A$140,IF(AD46>Scoring!$B$141,Scoring!$A$141,IF(AD46>=Scoring!$B$142,Scoring!$A$142,IF(AD46>Scoring!$B$143,Scoring!$A$143)))))))))) -> Moderate | AF46: 6
A47: 509 | B47: 5 | C47: Tributaries - Lower Chena | D47: Condition | E47: Water quality | F47: Sediment, temperature, DO, toxins, or litter/trash/residues | G47: High % (TBD) not meeting most ADEC's standards | H47: Moderate habitats meet most ADEC’s standards | I47: Most habitats are meeting most ADEC's standards | J47: Majority to all habitats meet most ADEC’s standards | K47: Fair | L47: Fair - | M47: =IFERROR(INDEX(Outcomes!F:F,MATCH(A47,Outcomes!H:H,0)),"") -> Good - | X47: Tributaries - Lower Chena|Water quality | AA47: =IF(K47=Scoring!$A$45,Scoring!$B$45,IF(K47=Scoring!$A$46,Scoring!$B$46,IF(K47=Scoring!$A$47,Scoring!$B$47,IF(K47=Scoring!$A$48,Scoring!$B$48,IF(K47=Scoring!$A$49,Scoring!$B$49,IF(K47=Scoring!$A$50,Scoring!$B$50)))))) -> 40.04 | AB47: =IF(L47=Scoring!$A$45,Scoring!$B$45,IF(L47=Scoring!$A$46,Scoring!$B$46,IF(L47=Scoring!$A$47,Scoring!$B$47,IF(L47=Scoring!$A$48,Scoring!$B$48,IF(L47=Scoring!$A$49,Scoring!$B$49,IF(L47=Scoring!$A$50,Scoring!$B$50)))))) -> 20.03 | AD47: 20.01 | AE47: =IF(AD47>Scoring!$B$134,Scoring!$A$134,IF(AD47>Scoring!$B$135,Scoring!$A$135,IF(AD47>Scoring!$B$136,Scoring!$A$136,IF(AD47>Scoring!$B$137,Scoring!$A$137,IF(AD47>Scoring!$B$138,Scoring!$A$138,IF(AD47>Scoring!$B$139,Scoring!$A$139,IF(AD47>Scoring!$B$140,Scoring!$A$140,IF(AD47>Scoring!$B$141,Scoring!$A$141,IF(AD47>=Scoring!$B$142,Scoring!$A$142,IF(AD47>Scoring!$B$143,Scoring!$A$143)))))))))) -> High | AF47: 3
A48: 510 | B48: 5 | C48: Tributaries - Lower Chena | D48: Size | E48: Extent of area | F48: Riparian area and river length | G48: Severe, mostly gone | H48: Moderate to substantial loss | I48: Minimal loss | J48: Mother Nature | K48: Fair | L48: Fair - | M48: =IFERROR(INDEX(Outcomes!F:F,MATCH(A48,Outcomes!H:H,0)),"") -> Good - | X48: Tributaries - Lower Chena|Extent of area | AA48: =IF(K48=Scoring!$A$45,Scoring!$B$45,IF(K48=Scoring!$A$46,Scoring!$B$46,IF(K48=Scoring!$A$47,Scoring!$B$47,IF(K48=Scoring!$A$48,Scoring!$B$48,IF(K48=Scoring!$A$49,Scoring!$B$49,IF(K48=Scoring!$A$50,Scoring!$B$50)))))) -> 40.04 | AB48: =IF(L48=Scoring!$A$45,Scoring!$B$45,IF(L48=Scoring!$A$46,Scoring!$B$46,IF(L48=Scoring!$A$47,Scoring!$B$47,IF(L48=Scoring!$A$48,Scoring!$B$48,IF(L48=Scoring!$A$49,Scoring!$B$49,IF(L48=Scoring!$A$50,Scoring!$B$50)))))) -> 20.03 | AD48: 20.01 | AE48: =IF(AD48>Scoring!$B$134,Scoring!$A$134,IF(AD48>Scoring!$B$135,Scoring!$A$135,IF(AD48>Scoring!$B$136,Scoring!$A$136,IF(AD48>Scoring!$B$137,Scoring!$A$137,IF(AD48>Scoring!$B$138,Scoring!$A$138,IF(AD48>Scoring!$B$139,Scoring!$A$139,IF(AD48>Scoring!$B$140,Scoring!$A$140,IF(AD48>Scoring!$B$141,Scoring!$A$141,IF(AD48>=Scoring!$B$142,Scoring!$A$142,IF(AD48>Scoring!$B$143,Scoring!$A$143)))))))))) -> High | AF48: 3
A49: 511 | B49: 5 | C49: Tributaries - Lower Chena | M49: =IFERROR(INDEX(Outcomes!F:F,MATCH(A49,Outcomes!H:H,0)),"") ->  | X49: Tributaries - Lower Chena| | AA49: =IF(K49=Scoring!$A$45,Scoring!$B$45,IF(K49=Scoring!$A$46,Scoring!$B$46,IF(K49=Scoring!$A$47,Scoring!$B$47,IF(K49=Scoring!$A$48,Scoring!$B$48,IF(K49=Scoring!$A$49,Scoring!$B$49,IF(K49=Scoring!$A$50,Scoring!$B$50)))))) -> FALSE | AB49: =IF(L49=Scoring!$A$45,Scoring!$B$45,IF(L49=Scoring!$A$46,Scoring!$B$46,IF(L49=Scoring!$A$47,Scoring!$B$47,IF(L49=Scoring!$A$48,Scoring!$B$48,IF(L49=Scoring!$A$49,Scoring!$B$49,IF(L49=Scoring!$A$50,Scoring!$B$50)))))) -> FALSE | AD49: 0 | AE49: =IF(AD49>Scoring!$B$134,Scoring!$A$134,IF(AD49>Scoring!$B$135,Scoring!$A$135,IF(AD49>Scoring!$B$136,Scoring!$A$136,IF(AD49>Scoring!$B$137,Scoring!$A$137,IF(AD49>Scoring!$B$138,Scoring!$A$138,IF(AD49>Scoring!$B$139,Scoring!$A$139,IF(AD49>Scoring!$B$140,Scoring!$A$140,IF(AD49>Scoring!$B$141,Scoring!$A$141,IF(AD49>=Scoring!$B$142,Scoring!$A$142,IF(AD49>Scoring!$B$143,Scoring!$A$143)))))))))) -> None
A50: 512 | B50: 5 | C50: Tributaries - Lower Chena | M50: =IFERROR(INDEX(Outcomes!F:F,MATCH(A50,Outcomes!H:H,0)),"") ->  | X50: Tributaries - Lower Chena| | AA50: =IF(K50=Scoring!$A$45,Scoring!$B$45,IF(K50=Scoring!$A$46,Scoring!$B$46,IF(K50=Scoring!$A$47,Scoring!$B$47,IF(K50=Scoring!$A$48,Scoring!$B$48,IF(K50=Scoring!$A$49,Scoring!$B$49,IF(K50=Scoring!$A$50,Scoring!$B$50)))))) -> FALSE | AB50: =IF(L50=Scoring!$A$45,Scoring!$B$45,IF(L50=Scoring!$A$46,Scoring!$B$46,IF(L50=Scoring!$A$47,Scoring!$B$47,IF(L50=Scoring!$A$48,Scoring!$B$48,IF(L50=Scoring!$A$49,Scoring!$B$49,IF(L50=Scoring!$A$50,Scoring!$B$50)))))) -> FALSE | AD50: 0 | AE50: =IF(AD50>Scoring!$B$134,Scoring!$A$134,IF(AD50>Scoring!$B$135,Scoring!$A$135,IF(AD50>Scoring!$B$136,Scoring!$A$136,IF(AD50>Scoring!$B$137,Scoring!$A$137,IF(AD50>Scoring!$B$138,Scoring!$A$138,IF(AD50>Scoring!$B$139,Scoring!$A$139,IF(AD50>Scoring!$B$140,Scoring!$A$140,IF(AD50>Scoring!$B$141,Scoring!$A$141,IF(AD50>=Scoring!$B$142,Scoring!$A$142,IF(AD50>Scoring!$B$143,Scoring!$A$143)))))))))) -> None
A51: 513 | B51: 5 | C51: Tributaries - Lower Chena | M51: =IFERROR(INDEX(Outcomes!F:F,MATCH(A51,Outcomes!H:H,0)),"") ->  | X51: Tributaries - Lower Chena| | AA51: =IF(K51=Scoring!$A$45,Scoring!$B$45,IF(K51=Scoring!$A$46,Scoring!$B$46,IF(K51=Scoring!$A$47,Scoring!$B$47,IF(K51=Scoring!$A$48,Scoring!$B$48,IF(K51=Scoring!$A$49,Scoring!$B$49,IF(K51=Scoring!$A$50,Scoring!$B$50)))))) -> FALSE | AB51: =IF(L51=Scoring!$A$45,Scoring!$B$45,IF(L51=Scoring!$A$46,Scoring!$B$46,IF(L51=Scoring!$A$47,Scoring!$B$47,IF(L51=Scoring!$A$48,Scoring!$B$48,IF(L51=Scoring!$A$49,Scoring!$B$49,IF(L51=Scoring!$A$50,Scoring!$B$50)))))) -> FALSE | AD51: 0 | AE51: =IF(AD51>Scoring!$B$134,Scoring!$A$134,IF(AD51>Scoring!$B$135,Scoring!$A$135,IF(AD51>Scoring!$B$136,Scoring!$A$136,IF(AD51>Scoring!$B$137,Scoring!$A$137,IF(AD51>Scoring!$B$138,Scoring!$A$138,IF(AD51>Scoring!$B$139,Scoring!$A$139,IF(AD51>Scoring!$B$140,Scoring!$A$140,IF(AD51>Scoring!$B$141,Scoring!$A$141,IF(AD51>=Scoring!$B$142,Scoring!$A$142,IF(AD51>Scoring!$B$143,Scoring!$A$143)))))))))) -> None
A52: 604 | B52: 6 | C52: Sloughs and Wetlands - Upper Chena | D52: Landscape Context | E52: Connectivity to mainstem river and tributaries | F52: Number, extent, & type of barriers | G52: Many widespread or complete manmade or natural blockages, Where culverts exist % of red barriers based on ADFG fish passage inventory | H52: Some widespread or complete manmade or natural blockages, Where culverts exist % of red barriers based on ADFG fish passage inventory | I52: Few widespread or complete manmade or natural blockages, Where culverts exist % of green barriers based on ADFG fish passage inventory | J52: No widespread or complete manmade or natural blockages, | K52: Fair | L52: Fair - | M52: =IFERROR(INDEX(Outcomes!F:F,MATCH(A52,Outcomes!H:H,0)),"") -> Good - | X52: Sloughs and Wetlands - Upper Chena|Connectivity to mainstem river and tributaries | AA52: =IF(K52=Scoring!$A$45,Scoring!$B$45,IF(K52=Scoring!$A$46,Scoring!$B$46,IF(K52=Scoring!$A$47,Scoring!$B$47,IF(K52=Scoring!$A$48,Scoring!$B$48,IF(K52=Scoring!$A$49,Scoring!$B$49,IF(K52=Scoring!$A$50,Scoring!$B$50)))))) -> 40.04 | AB52: =IF(L52=Scoring!$A$45,Scoring!$B$45,IF(L52=Scoring!$A$46,Scoring!$B$46,IF(L52=Scoring!$A$47,Scoring!$B$47,IF(L52=Scoring!$A$48,Scoring!$B$48,IF(L52=Scoring!$A$49,Scoring!$B$49,IF(L52=Scoring!$A$50,Scoring!$B$50)))))) -> 20.03 | AD52: 20.01 | AE52: =IF(AD52>Scoring!$B$134,Scoring!$A$134,IF(AD52>Scoring!$B$135,Scoring!$A$135,IF(AD52>Scoring!$B$136,Scoring!$A$136,IF(AD52>Scoring!$B$137,Scoring!$A$137,IF(AD52>Scoring!$B$138,Scoring!$A$138,IF(AD52>Scoring!$B$139,Scoring!$A$139,IF(AD52>Scoring!$B$140,Scoring!$A$140,IF(AD52>Scoring!$B$141,Scoring!$A$141,IF(AD52>=Scoring!$B$142,Scoring!$A$142,IF(AD52>Scoring!$B$143,Scoring!$A$143)))))))))) -> High | AF52: 3
A53: 605 | B53: 6 | C53: Sloughs and Wetlands - Upper Chena | D53: Landscape Context | E53: Hydrologic regime | F53: Natural fluctuations of surface and ground water -amount, frequency, timing, duration | G53: Water levels, flows or fluctuations are too high or too low, not related to the precipitation, and unlikely to maintain nested targets in many habitats within the target area and downstream | H53: Water levels, flows or fluctuations in relationship to precipitation and ground water are likely to maintain nested targets in some habitats within the target and downstream | I53: Water levels, flows or fluctuations in relationship to precipitation and ground water are likely to maintain nested targets in most habitats within the target area and downstream | J53: Water levels, flows or fluctuations in relationship to precipitation and ground water are likely to maintain nested targets in almost all habitats within the target area and downstream | K53: Good | L53: Good - | M53: =IFERROR(INDEX(Outcomes!F:F,MATCH(A53,Outcomes!H:H,0)),"") -> Good | X53: Sloughs and Wetlands - Upper Chena|Hydrologic regime | AA53: =IF(K53=Scoring!$A$45,Scoring!$B$45,IF(K53=Scoring!$A$46,Scoring!$B$46,IF(K53=Scoring!$A$47,Scoring!$B$47,IF(K53=Scoring!$A$48,Scoring!$B$48,IF(K53=Scoring!$A$49,Scoring!$B$49,IF(K53=Scoring!$A$50,Scoring!$B$50)))))) -> 80.03 | AB53: =IF(L53=Scoring!$A$45,Scoring!$B$45,IF(L53=Scoring!$A$46,Scoring!$B$46,IF(L53=Scoring!$A$47,Scoring!$B$47,IF(L53=Scoring!$A$48,Scoring!$B$48,IF(L53=Scoring!$A$49,Scoring!$B$49,IF(L53=Scoring!$A$50,Scoring!$B$50)))))) -> 60.04 | AD53: 19.99 | AE53: =IF(AD53>Scoring!$B$134,Scoring!$A$134,IF(AD53>Scoring!$B$135,Scoring!$A$135,IF(AD53>Scoring!$B$136,Scoring!$A$136,IF(AD53>Scoring!$B$137,Scoring!$A$137,IF(AD53>Scoring!$B$138,Scoring!$A$138,IF(AD53>Scoring!$B$139,Scoring!$A$139,IF(AD53>Scoring!$B$140,Scoring!$A$140,IF(AD53>Scoring!$B$141,Scoring!$A$141,IF(AD53>=Scoring!$B$142,Scoring!$A$142,IF(AD53>Scoring!$B$143,Scoring!$A$143)))))))))) -> Moderate | AF53: 6
A54: 606 | B54: 6 | C54: Sloughs and Wetlands - Upper Chena | D54: Landscape Context | E54: Substrate and banks | F54: Amount, type, size, availability of, & distribution | G54: Low diversity of and abundance of suitable substrates in most habitats | H54: Moderate diversity of abundance of suitable substrates/material in most habitats | I54: Diversity and abundance of suitable substrates/ material in most habitat for aquatic - | J54: High diversity and abundance of suitable substrates/ material in most habitat for aquatic species | K54: Good | L54: Good - | M54: =IFERROR(INDEX(Outcomes!F:F,MATCH(A54,Outcomes!H:H,0)),"") ->  | X54: Sloughs and Wetlands - Upper Chena|Substrate and banks | AA54: =IF(K54=Scoring!$A$45,Scoring!$B$45,IF(K54=Scoring!$A$46,Scoring!$B$46,IF(K54=Scoring!$A$47,Scoring!$B$47,IF(K54=Scoring!$A$48,Scoring!$B$48,IF(K54=Scoring!$A$49,Scoring!$B$49,IF(K54=Scoring!$A$50,Scoring!$B$50)))))) -> 80.03 | AB54: =IF(L54=Scoring!$A$45,Scoring!$B$45,IF(L54=Scoring!$A$46,Scoring!$B$46,IF(L54=Scoring!$A$47,Scoring!$B$47,IF(L54=Scoring!$A$48,Scoring!$B$48,IF(L54=Scoring!$A$49,Scoring!$B$49,IF(L54=Scoring!$A$50,Scoring!$B$50)))))) -> 60.04 | AD54: 19.99 | AE54: =IF(AD54>Scoring!$B$134,Scoring!$A$134,IF(AD54>Scoring!$B$135,Scoring!$A$135,IF(AD54>Scoring!$B$136,Scoring!$A$136,IF(AD54>Scoring!$B$137,Scoring!$A$137,IF(AD54>Scoring!$B$138,Scoring!$A$138,IF(AD54>Scoring!$B$139,Scoring!$A$139,IF(AD54>Scoring!$B$140,Scoring!$A$140,IF(AD54>Scoring!$B$141,Scoring!$A$141,IF(AD54>=Scoring!$B$142,Scoring!$A$142,IF(AD54>Scoring!$B$143,Scoring!$A$143)))))))))) -> Moderate | AF54: 6
A55: 607 | B55: 6 | C55: Sloughs and Wetlands - Upper Chena | D55: Condition | E55: Characteristic native communities | F55: Presence of characteristic native communities within habitats | G55: Few habitats have the characteristic native communities to accom-modate most nested targets in abundance | H55: Some habitats have the characteristic native communities to accom-modate most nested targets in abundance | I55: Most habitats have the characteristic native communities to accom-modate most nested targets in abundance | J55: Almost all habitats have the characteristic native communities to accom­modate almost all nested targets in abundance | K55: Good | L55: Good - | M55: =IFERROR(INDEX(Outcomes!F:F,MATCH(A55,Outcomes!H:H,0)),"") ->  | X55: Sloughs and Wetlands - Upper Chena|Characteristic native communities | AA55: =IF(K55=Scoring!$A$45,Scoring!$B$45,IF(K55=Scoring!$A$46,Scoring!$B$46,IF(K55=Scoring!$A$47,Scoring!$B$47,IF(K55=Scoring!$A$48,Scoring!$B$48,IF(K55=Scoring!$A$49,Scoring!$B$49,IF(K55=Scoring!$A$50,Scoring!$B$50)))))) -> 80.03 | AB55: =IF(L55=Scoring!$A$45,Scoring!$B$45,IF(L55=Scoring!$A$46,Scoring!$B$46,IF(L55=Scoring!$A$47,Scoring!$B$47,IF(L55=Scoring!$A$48,Scoring!$B$48,IF(L55=Scoring!$A$49,Scoring!$B$49,IF(L55=Scoring!$A$50,Scoring!$B$50)))))) -> 60.04 | AD55: 19.99 | AE55: =IF(AD55>Scoring!$B$134,Scoring!$A$134,IF(AD55>Scoring!$B$135,Scoring!$A$135,IF(AD55>Scoring!$B$136,Scoring!$A$136,IF(AD55>Scoring!$B$137,Scoring!$A$137,IF(AD55>Scoring!$B$138,Scoring!$A$138,IF(AD55>Scoring!$B$139,Scoring!$A$139,IF(AD55>Scoring!$B$140,Scoring!$A$140,IF(AD55>Scoring!$B$141,Scoring!$A$141,IF(AD55>=Scoring!$B$142,Scoring!$A$142,IF(AD55>Scoring!$B$143,Scoring!$A$143)))))))))) -> Moderate | AF55: 6
A56: 608 | B56: 6 | C56: Sloughs and Wetlands - Upper Chena | D56: Condition | E56: Species composition | F56: Presence/absence, extent of invasive species | G56: High abundance of invasive/non-native species in most habitats | H56: Moderate abundance of invasive/non-native species in most habitats | I56: Low presence of existing invasive/non-native species in most habitats with NO new invasive species | J56: Mimimal to no abundance of invasive/non-native species in most habitats | K56: Good | L56: Good - | M56: =IFERROR(INDEX(Outcomes!F:F,MATCH(A56,Outcomes!H:H,0)),"") -> Good | X56: Sloughs and Wetlands - Upper Chena|Species composition | AA56: =IF(K56=Scoring!$A$45,Scoring!$B$45,IF(K56=Scoring!$A$46,Scoring!$B$46,IF(K56=Scoring!$A$47,Scoring!$B$47,IF(K56=Scoring!$A$48,Scoring!$B$48,IF(K56=Scoring!$A$49,Scoring!$B$49,IF(K56=Scoring!$A$50,Scoring!$B$50)))))) -> 80.03 | AB56: =IF(L56=Scoring!$A$45,Scoring!$B$45,IF(L56=Scoring!$A$46,Scoring!$B$46,IF(L56=Scoring!$A$47,Scoring!$B$47,IF(L56=Scoring!$A$48,Scoring!$B$48,IF(L56=Scoring!$A$49,Scoring!$B$49,IF(L56=Scoring!$A$50,Scoring!$B$50)))))) -> 60.04 | AD56: 19.99 | AE56: =IF(AD56>Scoring!$B$134,Scoring!$A$134,IF(AD56>Scoring!$B$135,Scoring!$A$135,IF(AD56>Scoring!$B$136,Scoring!$A$136,IF(AD56>Scoring!$B$137,Scoring!$A$137,IF(AD56>Scoring!$B$138,Scoring!$A$138,IF(AD56>Scoring!$B$139,Scoring!$A$139,IF(AD56>Scoring!$B$140,Scoring!$A$140,IF(AD56>Scoring!$B$141,Scoring!$A$141,IF(AD56>=Scoring!$B$142,Scoring!$A$142,IF(AD56>Scoring!$B$143,Scoring!$A$143)))))))))) -> Moderate | AF56: 6
A57: 609 | B57: 6 | C57: Sloughs and Wetlands - Upper Chena | D57: Condition | E57: Water quality | F57: Temperature, DO, toxins, or litter/trash/residues | G57: High % (TBD) not meeting most ADEC's standards | H57: Moderate habitats meet most ADEC’s standards | I57: Most habitats are meeting most ADEC's standards | J57: Majority to all habitats meet most ADEC’s standards | K57: Good | L57: Good - | M57: =IFERROR(INDEX(Outcomes!F:F,MATCH(A57,Outcomes!H:H,0)),"") -> Good - | X57: Sloughs and Wetlands - Upper Chena|Water quality | AA57: =IF(K57=Scoring!$A$45,Scoring!$B$45,IF(K57=Scoring!$A$46,Scoring!$B$46,IF(K57=Scoring!$A$47,Scoring!$B$47,IF(K57=Scoring!$A$48,Scoring!$B$48,IF(K57=Scoring!$A$49,Scoring!$B$49,IF(K57=Scoring!$A$50,Scoring!$B$50)))))) -> 80.03 | AB57: =IF(L57=Scoring!$A$45,Scoring!$B$45,IF(L57=Scoring!$A$46,Scoring!$B$46,IF(L57=Scoring!$A$47,Scoring!$B$47,IF(L57=Scoring!$A$48,Scoring!$B$48,IF(L57=Scoring!$A$49,Scoring!$B$49,IF(L57=Scoring!$A$50,Scoring!$B$50)))))) -> 60.04 | AD57: 19.99 | AE57: =IF(AD57>Scoring!$B$134,Scoring!$A$134,IF(AD57>Scoring!$B$135,Scoring!$A$135,IF(AD57>Scoring!$B$136,Scoring!$A$136,IF(AD57>Scoring!$B$137,Scoring!$A$137,IF(AD57>Scoring!$B$138,Scoring!$A$138,IF(AD57>Scoring!$B$139,Scoring!$A$139,IF(AD57>Scoring!$B$140,Scoring!$A$140,IF(AD57>Scoring!$B$141,Scoring!$A$141,IF(AD57>=Scoring!$B$142,Scoring!$A$142,IF(AD57>Scoring!$B$143,Scoring!$A$143)))))))))) -> Moderate | AF57: 6
A58: 610 | B58: 6 | C58: Sloughs and Wetlands - Upper Chena | D58: Size | E58: Extent of area | F58: Acres of habitat types | G58: Severe, mostly gone | H58: Moderate to substantial loss | I58: Minimal loss | J58: Mother Nature | K58: Good | L58: Fair | M58: =IFERROR(INDEX(Outcomes!F:F,MATCH(A58,Outcomes!H:H,0)),"") -> Good | X58: Sloughs and Wetlands - Upper Chena|Extent of area | AA58: =IF(K58=Scoring!$A$45,Scoring!$B$45,IF(K58=Scoring!$A$46,Scoring!$B$46,IF(K58=Scoring!$A$47,Scoring!$B$47,IF(K58=Scoring!$A$48,Scoring!$B$48,IF(K58=Scoring!$A$49,Scoring!$B$49,IF(K58=Scoring!$A$50,Scoring!$B$50)))))) -> 80.03 | AB58: =IF(L58=Scoring!$A$45,Scoring!$B$45,IF(L58=Scoring!$A$46,Scoring!$B$46,IF(L58=Scoring!$A$47,Scoring!$B$47,IF(L58=Scoring!$A$48,Scoring!$B$48,IF(L58=Scoring!$A$49,Scoring!$B$49,IF(L58=Scoring!$A$50,Scoring!$B$50)))))) -> 40.04 | AD58: 39.99 | AE58: =IF(AD58>Scoring!$B$134,Scoring!$A$134,IF(AD58>Scoring!$B$135,Scoring!$A$135,IF(AD58>Scoring!$B$136,Scoring!$A$136,IF(AD58>Scoring!$B$137,Scoring!$A$137,IF(AD58>Scoring!$B$138,Scoring!$A$138,IF(AD58>Scoring!$B$139,Scoring!$A$139,IF(AD58>Scoring!$B$140,Scoring!$A$140,IF(AD58>Scoring!$B$141,Scoring!$A$141,IF(AD58>=Scoring!$B$142,Scoring!$A$142,IF(AD58>Scoring!$B$143,Scoring!$A$143)))))))))) -> Very Severe | AF58: 2
A59: 611 | B59: 6 | C59: Sloughs and Wetlands - Upper Chena | M59: =IFERROR(INDEX(Outcomes!F:F,MATCH(A59,Outcomes!H:H,0)),"") ->  | X59: Sloughs and Wetlands - Upper Chena| | AA59: =IF(K59=Scoring!$A$45,Scoring!$B$45,IF(K59=Scoring!$A$46,Scoring!$B$46,IF(K59=Scoring!$A$47,Scoring!$B$47,IF(K59=Scoring!$A$48,Scoring!$B$48,IF(K59=Scoring!$A$49,Scoring!$B$49,IF(K59=Scoring!$A$50,Scoring!$B$50)))))) -> FALSE | AB59: =IF(L59=Scoring!$A$45,Scoring!$B$45,IF(L59=Scoring!$A$46,Scoring!$B$46,IF(L59=Scoring!$A$47,Scoring!$B$47,IF(L59=Scoring!$A$48,Scoring!$B$48,IF(L59=Scoring!$A$49,Scoring!$B$49,IF(L59=Scoring!$A$50,Scoring!$B$50)))))) -> FALSE | AD59: 0 | AE59: =IF(AD59>Scoring!$B$134,Scoring!$A$134,IF(AD59>Scoring!$B$135,Scoring!$A$135,IF(AD59>Scoring!$B$136,Scoring!$A$136,IF(AD59>Scoring!$B$137,Scoring!$A$137,IF(AD59>Scoring!$B$138,Scoring!$A$138,IF(AD59>Scoring!$B$139,Scoring!$A$139,IF(AD59>Scoring!$B$140,Scoring!$A$140,IF(AD59>Scoring!$B$141,Scoring!$A$141,IF(AD59>=Scoring!$B$142,Scoring!$A$142,IF(AD59>Scoring!$B$143,Scoring!$A$143)))))))))) -> None
A60: 612 | B60: 6 | C60: Sloughs and Wetlands - Upper Chena | M60: =IFERROR(INDEX(Outcomes!F:F,MATCH(A60,Outcomes!H:H,0)),"") ->  | X60: Sloughs and Wetlands - Upper Chena| | AA60: =IF(K60=Scoring!$A$45,Scoring!$B$45,IF(K60=Scoring!$A$46,Scoring!$B$46,IF(K60=Scoring!$A$47,Scoring!$B$47,IF(K60=Scoring!$A$48,Scoring!$B$48,IF(K60=Scoring!$A$49,Scoring!$B$49,IF(K60=Scoring!$A$50,Scoring!$B$50)))))) -> FALSE | AB60: =IF(L60=Scoring!$A$45,Scoring!$B$45,IF(L60=Scoring!$A$46,Scoring!$B$46,IF(L60=Scoring!$A$47,Scoring!$B$47,IF(L60=Scoring!$A$48,Scoring!$B$48,IF(L60=Scoring!$A$49,Scoring!$B$49,IF(L60=Scoring!$A$50,Scoring!$B$50)))))) -> FALSE | AD60: 0 | AE60: =IF(AD60>Scoring!$B$134,Scoring!$A$134,IF(AD60>Scoring!$B$135,Scoring!$A$135,IF(AD60>Scoring!$B$136,Scoring!$A$136,IF(AD60>Scoring!$B$137,Scoring!$A$137,IF(AD60>Scoring!$B$138,Scoring!$A$138,IF(AD60>Scoring!$B$139,Scoring!$A$139,IF(AD60>Scoring!$B$140,Scoring!$A$140,IF(AD60>Scoring!$B$141,Scoring!$A$141,IF(AD60>=Scoring!$B$142,Scoring!$A$142,IF(AD60>Scoring!$B$143,Scoring!$A$143)))))))))) -> None
A61: 613 | B61: 6 | C61: Sloughs and Wetlands - Upper Chena | M61: =IFERROR(INDEX(Outcomes!F:F,MATCH(A61,Outcomes!H:H,0)),"") ->  | X61: Sloughs and Wetlands - Upper Chena| | AA61: =IF(K61=Scoring!$A$45,Scoring!$B$45,IF(K61=Scoring!$A$46,Scoring!$B$46,IF(K61=Scoring!$A$47,Scoring!$B$47,IF(K61=Scoring!$A$48,Scoring!$B$48,IF(K61=Scoring!$A$49,Scoring!$B$49,IF(K61=Scoring!$A$50,Scoring!$B$50)))))) -> FALSE | AB61: =IF(L61=Scoring!$A$45,Scoring!$B$45,IF(L61=Scoring!$A$46,Scoring!$B$46,IF(L61=Scoring!$A$47,Scoring!$B$47,IF(L61=Scoring!$A$48,Scoring!$B$48,IF(L61=Scoring!$A$49,Scoring!$B$49,IF(L61=Scoring!$A$50,Scoring!$B$50)))))) -> FALSE | AD61: 0 | AE61: =IF(AD61>Scoring!$B$134,Scoring!$A$134,IF(AD61>Scoring!$B$135,Scoring!$A$135,IF(AD61>Scoring!$B$136,Scoring!$A$136,IF(AD61>Scoring!$B$137,Scoring!$A$137,IF(AD61>Scoring!$B$138,Scoring!$A$138,IF(AD61>Scoring!$B$139,Scoring!$A$139,IF(AD61>Scoring!$B$140,Scoring!$A$140,IF(AD61>Scoring!$B$141,Scoring!$A$141,IF(AD61>=Scoring!$B$142,Scoring!$A$142,IF(AD61>Scoring!$B$143,Scoring!$A$143)))))))))) -> None
A62: 704 | B62: 7 | C62: Sloughs and Wetlands - Lower Chena | D62: Landscape Context | E62: Connectivity to mainstem river and tributaries | F62: Number, extent, & type of barriers | G62: Many widespread or complete manmade or natural blockages, Where culverts exist % of red barriers based on ADFG fish passage inventory | H62: Some widespread or complete manmade or natural blockages, Where culverts exist % of red barriers based on ADFG fish passage inventory | I62: Few widespread or complete manmade or natural blockages, Where culverts exist % of green barriers based on ADFG fish passage inventory | J62: No widespread or complete manmade or natural blockages, | K62: Fair | L62: Fair - | M62: =IFERROR(INDEX(Outcomes!F:F,MATCH(A62,Outcomes!H:H,0)),"") -> Good - | X62: Sloughs and Wetlands - Lower Chena|Connectivity to mainstem river and tributaries | AA62: =IF(K62=Scoring!$A$45,Scoring!$B$45,IF(K62=Scoring!$A$46,Scoring!$B$46,IF(K62=Scoring!$A$47,Scoring!$B$47,IF(K62=Scoring!$A$48,Scoring!$B$48,IF(K62=Scoring!$A$49,Scoring!$B$49,IF(K62=Scoring!$A$50,Scoring!$B$50)))))) -> 40.04 | AB62: =IF(L62=Scoring!$A$45,Scoring!$B$45,IF(L62=Scoring!$A$46,Scoring!$B$46,IF(L62=Scoring!$A$47,Scoring!$B$47,IF(L62=Scoring!$A$48,Scoring!$B$48,IF(L62=Scoring!$A$49,Scoring!$B$49,IF(L62=Scoring!$A$50,Scoring!$B$50)))))) -> 20.03 | AD62: 20.01 | AE62: =IF(AD62>Scoring!$B$134,Scoring!$A$134,IF(AD62>Scoring!$B$135,Scoring!$A$135,IF(AD62>Scoring!$B$136,Scoring!$A$136,IF(AD62>Scoring!$B$137,Scoring!$A$137,IF(AD62>Scoring!$B$138,Scoring!$A$138,IF(AD62>Scoring!$B$139,Scoring!$A$139,IF(AD62>Scoring!$B$140,Scoring!$A$140,IF(AD62>Scoring!$B$141,Scoring!$A$141,IF(AD62>=Scoring!$B$142,Scoring!$A$142,IF(AD62>Scoring!$B$143,Scoring!$A$143)))))))))) -> High | AF62: 3
A63: 705 | B63: 7 | C63: Sloughs and Wetlands - Lower Chena | D63: Landscape Context | E63: Hydrologic regime | F63: Natural fluctuations of surface and ground water -amount, frequency, timing, duration | G63: Water levels, flows or fluctuations are too high or too low, not related to the precipitation, and unlikely to maintain nested targets in many habitats within the target area and downstream | H63: Water levels, flows or fluctuations in relationship to precipitation and ground water are likely to maintain nested targets in some habitats within the target and downstream | I63: Water levels, flows or fluctuations in relationship to precipitation and ground water are likely to maintain nested targets in most habitats within the target area and downstream | J63: Water levels, flows or fluctuations in relationship to precipitation and ground water are likely to maintain nested targets in almost all habitats within the target area and downstream | K63: Fair | L63: Fair - | M63: =IFERROR(INDEX(Outcomes!F:F,MATCH(A63,Outcomes!H:H,0)),"") -> Good - | X63: Sloughs and Wetlands - Lower Chena|Hydrologic regime | AA63: =IF(K63=Scoring!$A$45,Scoring!$B$45,IF(K63=Scoring!$A$46,Scoring!$B$46,IF(K63=Scoring!$A$47,Scoring!$B$47,IF(K63=Scoring!$A$48,Scoring!$B$48,IF(K63=Scoring!$A$49,Scoring!$B$49,IF(K63=Scoring!$A$50,Scoring!$B$50)))))) -> 40.04 | AB63: =IF(L63=Scoring!$A$45,Scoring!$B$45,IF(L63=Scoring!$A$46,Scoring!$B$46,IF(L63=Scoring!$A$47,Scoring!$B$47,IF(L63=Scoring!$A$48,Scoring!$B$48,IF(L63=Scoring!$A$49,Scoring!$B$49,IF(L63=Scoring!$A$50,Scoring!$B$50)))))) -> 20.03 | AD63: 20.01 | AE63: =IF(AD63>Scoring!$B$134,Scoring!$A$134,IF(AD63>Scoring!$B$135,Scoring!$A$135,IF(AD63>Scoring!$B$136,Scoring!$A$136,IF(AD63>Scoring!$B$137,Scoring!$A$137,IF(AD63>Scoring!$B$138,Scoring!$A$138,IF(AD63>Scoring!$B$139,Scoring!$A$139,IF(AD63>Scoring!$B$140,Scoring!$A$140,IF(AD63>Scoring!$B$141,Scoring!$A$141,IF(AD63>=Scoring!$B$142,Scoring!$A$142,IF(AD63>Scoring!$B$143,Scoring!$A$143)))))))))) -> High | AF63: 3
A64: 706 | B64: 7 | C64: Sloughs and Wetlands - Lower Chena | D64: Landscape Context | E64: Substrate and banks | F64: Amount, type, size, availability of, & distribution | G64: Low diversity of and abundance of suitable substrates in most habitats | H64: Moderate diversity of abundance of suitable substrates/material in most habitats | I64: Diversity and abundance of suitable substrates/ material in most habitat for aquatic - | J64: High diversity and abundance of suitable substrates/ material in most habitat for aquatic species | K64: Fair | L64: Fair | M64: =IFERROR(INDEX(Outcomes!F:F,MATCH(A64,Outcomes!H:H,0)),"") -> Good | X64: Sloughs and Wetlands - Lower Chena|Substrate and banks | AA64: =IF(K64=Scoring!$A$45,Scoring!$B$45,IF(K64=Scoring!$A$46,Scoring!$B$46,IF(K64=Scoring!$A$47,Scoring!$B$47,IF(K64=Scoring!$A$48,Scoring!$B$48,IF(K64=Scoring!$A$49,Scoring!$B$49,IF(K64=Scoring!$A$50,Scoring!$B$50)))))) -> 40.04 | AB64: =IF(L64=Scoring!$A$45,Scoring!$B$45,IF(L64=Scoring!$A$46,Scoring!$B$46,IF(L64=Scoring!$A$47,Scoring!$B$47,IF(L64=Scoring!$A$48,Scoring!$B$48,IF(L64=Scoring!$A$49,Scoring!$B$49,IF(L64=Scoring!$A$50,Scoring!$B$50)))))) -> 40.04 | AD64: 0 | AE64: =IF(AD64>Scoring!$B$134,Scoring!$A$134,IF(AD64>Scoring!$B$135,Scoring!$A$135,IF(AD64>Scoring!$B$136,Scoring!$A$136,IF(AD64>Scoring!$B$137,Scoring!$A$137,IF(AD64>Scoring!$B$138,Scoring!$A$138,IF(AD64>Scoring!$B$139,Scoring!$A$139,IF(AD64>Scoring!$B$140,Scoring!$A$140,IF(AD64>Scoring!$B$141,Scoring!$A$141,IF(AD64>=Scoring!$B$142,Scoring!$A$142,IF(AD64>Scoring!$B$143,Scoring!$A$143)))))))))) -> None | AF64: 7
A65: 707 | B65: 7 | C65: Sloughs and Wetlands - Lower Chena | D65: Condition | E65: Characteristic native communities | F65: Presence of characteristic native communities within habitats | G65: Few habitats have the characteristic native communities to accom-modate most nested targets in abundance | H65: Some habitats have the characteristic native communities to accom-modate most nested targets in abundance | I65: Most habitats have the characteristic native communities to accom-modate most nested targets in abundance | J65: Almost all habitats have the characteristic native communities to accom­modate almost all nested targets in abundance | K65: Fair | L65: Fair | M65: =IFERROR(INDEX(Outcomes!F:F,MATCH(A65,Outcomes!H:H,0)),"") -> Good - | X65: Sloughs and Wetlands - Lower Chena|Characteristic native communities | AA65: =IF(K65=Scoring!$A$45,Scoring!$B$45,IF(K65=Scoring!$A$46,Scoring!$B$46,IF(K65=Scoring!$A$47,Scoring!$B$47,IF(K65=Scoring!$A$48,Scoring!$B$48,IF(K65=Scoring!$A$49,Scoring!$B$49,IF(K65=Scoring!$A$50,Scoring!$B$50)))))) -> 40.04 | AB65: =IF(L65=Scoring!$A$45,Scoring!$B$45,IF(L65=Scoring!$A$46,Scoring!$B$46,IF(L65=Scoring!$A$47,Scoring!$B$47,IF(L65=Scoring!$A$48,Scoring!$B$48,IF(L65=Scoring!$A$49,Scoring!$B$49,IF(L65=Scoring!$A$50,Scoring!$B$50)))))) -> 40.04 | AD65: 0 | AE65: =IF(AD65>Scoring!$B$134,Scoring!$A$134,IF(AD65>Scoring!$B$135,Scoring!$A$135,IF(AD65>Scoring!$B$136,Scoring!$A$136,IF(AD65>Scoring!$B$137,Scoring!$A$137,IF(AD65>Scoring!$B$138,Scoring!$A$138,IF(AD65>Scoring!$B$139,Scoring!$A$139,IF(AD65>Scoring!$B$140,Scoring!$A$140,IF(AD65>Scoring!$B$141,Scoring!$A$141,IF(AD65>=Scoring!$B$142,Scoring!$A$142,IF(AD65>Scoring!$B$143,Scoring!$A$143)))))))))) -> None | AF65: 7
A66: 708 | B66: 7 | C66: Sloughs and Wetlands - Lower Chena | D66: Condition | E66: Species composition | F66: Presence/absence, extent of invasive species | G66: High abundance of invasive/non-native species in most habitats | H66: Moderate abundance of invasive/non-native species in most habitats | I66: Low presence of existing invasive/non-native species in most habitats with NO new invasive species | J66: Mimimal to no abundance of invasive/non-native species in most habitats | K66: Fair | L66: Fair - | M66: =IFERROR(INDEX(Outcomes!F:F,MATCH(A66,Outcomes!H:H,0)),"") -> Fair | X66: =C66 & "|" &E66 -> Sloughs and Wetlands - Lower Chena|Species composition | AA66: =IF(K66=Scoring!$A$45,Scoring!$B$45,IF(K66=Scoring!$A$46,Scoring!$B$46,IF(K66=Scoring!$A$47,Scoring!$B$47,IF(K66=Scoring!$A$48,Scoring!$B$48,IF(K66=Scoring!$A$49,Scoring!$B$49,IF(K66=Scoring!$A$50,Scoring!$B$50)))))) -> 40.04 | AB66: =IF(L66=Scoring!$A$45,Scoring!$B$45,IF(L66=Scoring!$A$46,Scoring!$B$46,IF(L66=Scoring!$A$47,Scoring!$B$47,IF(L66=Scoring!$A$48,Scoring!$B$48,IF(L66=Scoring!$A$49,Scoring!$B$49,IF(L66=Scoring!$A$50,Scoring!$B$50)))))) -> 20.03 | AD66: =AA66-AB66 -> 20.01 | AE66: =IF(AD66>Scoring!$B$134,Scoring!$A$134,IF(AD66>Scoring!$B$135,Scoring!$A$135,IF(AD66>Scoring!$B$136,Scoring!$A$136,IF(AD66>Scoring!$B$137,Scoring!$A$137,IF(AD66>Scoring!$B$138,Scoring!$A$138,IF(AD66>Scoring!$B$139,Scoring!$A$139,IF(AD66>Scoring!$B$140,Scoring!$A$140,IF(AD66>Scoring!$B$141,Scoring!$A$141,IF(AD66>=Scoring!$B$142,Scoring!$A$142,IF(AD66>Scoring!$B$143,Scoring!$A$143)))))))))) -> High | AF66: =IFERROR(INDEX(StrategicActionMatrix,MATCH(K66,Rating,0),MATCH(AE66,Change,0)),"") -> 3
A67: 709 | B67: 7 | C67: Sloughs and Wetlands - Lower Chena | D67: Condition | E67: Water quality | F67: Temperature, DO, toxins, or litter/trash/residues | G67: High % (TBD) not meeting most ADEC's standards | H67: Moderate habitats meet most ADEC’s standards | I67: Most habitats are meeting most ADEC's standards | J67: Majority to all habitats meet most ADEC’s standards | K67: Fair | L67: Fair | M67: =IFERROR(INDEX(Outcomes!F:F,MATCH(A67,Outcomes!H:H,0)),"") -> Good - | X67: Sloughs and Wetlands - Lower Chena|Water quality | AA67: =IF(K67=Scoring!$A$45,Scoring!$B$45,IF(K67=Scoring!$A$46,Scoring!$B$46,IF(K67=Scoring!$A$47,Scoring!$B$47,IF(K67=Scoring!$A$48,Scoring!$B$48,IF(K67=Scoring!$A$49,Scoring!$B$49,IF(K67=Scoring!$A$50,Scoring!$B$50)))))) -> 40.04 | AB67: =IF(L67=Scoring!$A$45,Scoring!$B$45,IF(L67=Scoring!$A$46,Scoring!$B$46,IF(L67=Scoring!$A$47,Scoring!$B$47,IF(L67=Scoring!$A$48,Scoring!$B$48,IF(L67=Scoring!$A$49,Scoring!$B$49,IF(L67=Scoring!$A$50,Scoring!$B$50)))))) -> 40.04 | AD67: 0 | AE67: =IF(AD67>Scoring!$B$134,Scoring!$A$134,IF(AD67>Scoring!$B$135,Scoring!$A$135,IF(AD67>Scoring!$B$136,Scoring!$A$136,IF(AD67>Scoring!$B$137,Scoring!$A$137,IF(AD67>Scoring!$B$138,Scoring!$A$138,IF(AD67>Scoring!$B$139,Scoring!$A$139,IF(AD67>Scoring!$B$140,Scoring!$A$140,IF(AD67>Scoring!$B$141,Scoring!$A$141,IF(AD67>=Scoring!$B$142,Scoring!$A$142,IF(AD67>Scoring!$B$143,Scoring!$A$143)))))))))) -> None | AF67: 7
A68: 710 | B68: 7 | C68: Sloughs and Wetlands - Lower Chena | D68: Size | E68: Extent of area | F68: Acres of habitat types | G68: Severe, mostly gone | H68: Moderate to substantial loss | I68: Minimal loss | J68: Mother Nature | K68: Fair | L68: Fair | M68: =IFERROR(INDEX(Outcomes!F:F,MATCH(A68,Outcomes!H:H,0)),"") -> Good - | X68: Sloughs and Wetlands - Lower Chena|Extent of area | AA68: =IF(K68=Scoring!$A$45,Scoring!$B$45,IF(K68=Scoring!$A$46,Scoring!$B$46,IF(K68=Scoring!$A$47,Scoring!$B$47,IF(K68=Scoring!$A$48,Scoring!$B$48,IF(K68=Scoring!$A$49,Scoring!$B$49,IF(K68=Scoring!$A$50,Scoring!$B$50)))))) -> 40.04 | AB68: =IF(L68=Scoring!$A$45,Scoring!$B$45,IF(L68=Scoring!$A$46,Scoring!$B$46,IF(L68=Scoring!$A$47,Scoring!$B$47,IF(L68=Scoring!$A$48,Scoring!$B$48,IF(L68=Scoring!$A$49,Scoring!$B$49,IF(L68=Scoring!$A$50,Scoring!$B$50)))))) -> 40.04 | AD68: 0 | AE68: =IF(AD68>Scoring!$B$134,Scoring!$A$134,IF(AD68>Scoring!$B$135,Scoring!$A$135,IF(AD68>Scoring!$B$136,Scoring!$A$136,IF(AD68>Scoring!$B$137,Scoring!$A$137,IF(AD68>Scoring!$B$138,Scoring!$A$138,IF(AD68>Scoring!$B$139,Scoring!$A$139,IF(AD68>Scoring!$B$140,Scoring!$A$140,IF(AD68>Scoring!$B$141,Scoring!$A$141,IF(AD68>=Scoring!$B$142,Scoring!$A$142,IF(AD68>Scoring!$B$143,Scoring!$A$143)))))))))) -> None | AF68: 7
A69: 711 | B69: 7 | C69: Sloughs and Wetlands - Lower Chena | M69: =IFERROR(INDEX(Outcomes!F:F,MATCH(A69,Outcomes!H:H,0)),"") ->  | X69: Sloughs and Wetlands - Lower Chena| | AA69: =IF(K69=Scoring!$A$45,Scoring!$B$45,IF(K69=Scoring!$A$46,Scoring!$B$46,IF(K69=Scoring!$A$47,Scoring!$B$47,IF(K69=Scoring!$A$48,Scoring!$B$48,IF(K69=Scoring!$A$49,Scoring!$B$49,IF(K69=Scoring!$A$50,Scoring!$B$50)))))) -> FALSE | AB69: =IF(L69=Scoring!$A$45,Scoring!$B$45,IF(L69=Scoring!$A$46,Scoring!$B$46,IF(L69=Scoring!$A$47,Scoring!$B$47,IF(L69=Scoring!$A$48,Scoring!$B$48,IF(L69=Scoring!$A$49,Scoring!$B$49,IF(L69=Scoring!$A$50,Scoring!$B$50)))))) -> FALSE | AD69: 0 | AE69: =IF(AD69>Scoring!$B$134,Scoring!$A$134,IF(AD69>Scoring!$B$135,Scoring!$A$135,IF(AD69>Scoring!$B$136,Scoring!$A$136,IF(AD69>Scoring!$B$137,Scoring!$A$137,IF(AD69>Scoring!$B$138,Scoring!$A$138,IF(AD69>Scoring!$B$139,Scoring!$A$139,IF(AD69>Scoring!$B$140,Scoring!$A$140,IF(AD69>Scoring!$B$141,Scoring!$A$141,IF(AD69>=Scoring!$B$142,Scoring!$A$142,IF(AD69>Scoring!$B$143,Scoring!$A$143)))))))))) -> None
A70: 712 | B70: 7 | C70: Sloughs and Wetlands - Lower Chena | M70: =IFERROR(INDEX(Outcomes!F:F,MATCH(A70,Outcomes!H:H,0)),"") ->  | X70: Sloughs and Wetlands - Lower Chena| | AA70: =IF(K70=Scoring!$A$45,Scoring!$B$45,IF(K70=Scoring!$A$46,Scoring!$B$46,IF(K70=Scoring!$A$47,Scoring!$B$47,IF(K70=Scoring!$A$48,Scoring!$B$48,IF(K70=Scoring!$A$49,Scoring!$B$49,IF(K70=Scoring!$A$50,Scoring!$B$50)))))) -> FALSE | AB70: =IF(L70=Scoring!$A$45,Scoring!$B$45,IF(L70=Scoring!$A$46,Scoring!$B$46,IF(L70=Scoring!$A$47,Scoring!$B$47,IF(L70=Scoring!$A$48,Scoring!$B$48,IF(L70=Scoring!$A$49,Scoring!$B$49,IF(L70=Scoring!$A$50,Scoring!$B$50)))))) -> FALSE | AD70: 0 | AE70: =IF(AD70>Scoring!$B$134,Scoring!$A$134,IF(AD70>Scoring!$B$135,Scoring!$A$135,IF(AD70>Scoring!$B$136,Scoring!$A$136,IF(AD70>Scoring!$B$137,Scoring!$A$137,IF(AD70>Scoring!$B$138,Scoring!$A$138,IF(AD70>Scoring!$B$139,Scoring!$A$139,IF(AD70>Scoring!$B$140,Scoring!$A$140,IF(AD70>Scoring!$B$141,Scoring!$A$141,IF(AD70>=Scoring!$B$142,Scoring!$A$142,IF(AD70>Scoring!$B$143,Scoring!$A$143)))))))))) -> None
A71: 713 | B71: 7 | C71: Sloughs and Wetlands - Lower Chena | M71: =IFERROR(INDEX(Outcomes!F:F,MATCH(A71,Outcomes!H:H,0)),"") ->  | X71: Sloughs and Wetlands - Lower Chena| | AA71: =IF(K71=Scoring!$A$45,Scoring!$B$45,IF(K71=Scoring!$A$46,Scoring!$B$46,IF(K71=Scoring!$A$47,Scoring!$B$47,IF(K71=Scoring!$A$48,Scoring!$B$48,IF(K71=Scoring!$A$49,Scoring!$B$49,IF(K71=Scoring!$A$50,Scoring!$B$50)))))) -> FALSE | AB71: =IF(L71=Scoring!$A$45,Scoring!$B$45,IF(L71=Scoring!$A$46,Scoring!$B$46,IF(L71=Scoring!$A$47,Scoring!$B$47,IF(L71=Scoring!$A$48,Scoring!$B$48,IF(L71=Scoring!$A$49,Scoring!$B$49,IF(L71=Scoring!$A$50,Scoring!$B$50)))))) -> FALSE | AD71: 0 | AE71: =IF(AD71>Scoring!$B$134,Scoring!$A$134,IF(AD71>Scoring!$B$135,Scoring!$A$135,IF(AD71>Scoring!$B$136,Scoring!$A$136,IF(AD71>Scoring!$B$137,Scoring!$A$137,IF(AD71>Scoring!$B$138,Scoring!$A$138,IF(AD71>Scoring!$B$139,Scoring!$A$139,IF(AD71>Scoring!$B$140,Scoring!$A$140,IF(AD71>Scoring!$B$141,Scoring!$A$141,IF(AD71>=Scoring!$B$142,Scoring!$A$142,IF(AD71>Scoring!$B$143,Scoring!$A$143)))))))))) -> None
A72: 804 | B72: 8 | C72: Mainstem River & Major Forks - Upper Chena | D72: Landscape Context | E72: Connectivity to tributaries and within mainstem | F72: Number, extent, & type of barriers | G72: Many widespread or complete manmade or natural blockages, Where culverts exist % of red barriers based on ADFG fish passage inventory | H72: Some widespread or complete manmade or natural blockages, Where culverts exist % of red barriers based on ADFG fish passage inventory | I72: Few widespread or complete manmade or natural blockages, Where culverts exist % of green barriers based on ADFG fish passage inventory | J72: No widespread or complete manmade or natural blockages, | K72: Good | L72: Good - | M72: =IFERROR(INDEX(Outcomes!F:F,MATCH(A72,Outcomes!H:H,0)),"") ->  | X72: Mainstem River & Major Forks - Upper Chena|Connectivity to tributaries and within mainstem | AA72: =IF(K72=Scoring!$A$45,Scoring!$B$45,IF(K72=Scoring!$A$46,Scoring!$B$46,IF(K72=Scoring!$A$47,Scoring!$B$47,IF(K72=Scoring!$A$48,Scoring!$B$48,IF(K72=Scoring!$A$49,Scoring!$B$49,IF(K72=Scoring!$A$50,Scoring!$B$50)))))) -> 80.03 | AB72: =IF(L72=Scoring!$A$45,Scoring!$B$45,IF(L72=Scoring!$A$46,Scoring!$B$46,IF(L72=Scoring!$A$47,Scoring!$B$47,IF(L72=Scoring!$A$48,Scoring!$B$48,IF(L72=Scoring!$A$49,Scoring!$B$49,IF(L72=Scoring!$A$50,Scoring!$B$50)))))) -> 60.04 | AD72: 19.99 | AE72: =IF(AD72>Scoring!$B$134,Scoring!$A$134,IF(AD72>Scoring!$B$135,Scoring!$A$135,IF(AD72>Scoring!$B$136,Scoring!$A$136,IF(AD72>Scoring!$B$137,Scoring!$A$137,IF(AD72>Scoring!$B$138,Scoring!$A$138,IF(AD72>Scoring!$B$139,Scoring!$A$139,IF(AD72>Scoring!$B$140,Scoring!$A$140,IF(AD72>Scoring!$B$141,Scoring!$A$141,IF(AD72>=Scoring!$B$142,Scoring!$A$142,IF(AD72>Scoring!$B$143,Scoring!$A$143)))))))))) -> Moderate | AF72: 6
A73: 805 | B73: 8 | C73: Mainstem River & Major Forks - Upper Chena | D73: Landscape Context | E73: Hydrologic regime | F73: Natural fluctuations of surface and ground water -amount, frequency, timing, duration | G73: Water levels, flows or fluctuations are too high or too low, not related to the precipitation, and unlikely to maintain nested targets in many habitats within the target area and downstream | H73: Water levels, flows or fluctuations in relationship to precipitation and ground water are likely to maintain nested targets in some habitats within the target and downstream | I73: Water levels, flows or fluctuations in relationship to precipitation and ground water are likely to maintain nested targets in most habitats within the target area and downstream | J73: Water levels, flows or fluctuations in relationship to precipitation and ground water are likely to maintain nested targets in almost all habitats within the target area and downstream | K73: Very Good | L73: Very Good | M73: =IFERROR(INDEX(Outcomes!F:F,MATCH(A73,Outcomes!H:H,0)),"") ->  | X73: Mainstem River & Major Forks - Upper Chena|Hydrologic regime | AA73: =IF(K73=Scoring!$A$45,Scoring!$B$45,IF(K73=Scoring!$A$46,Scoring!$B$46,IF(K73=Scoring!$A$47,Scoring!$B$47,IF(K73=Scoring!$A$48,Scoring!$B$48,IF(K73=Scoring!$A$49,Scoring!$B$49,IF(K73=Scoring!$A$50,Scoring!$B$50)))))) -> 100 | AB73: =IF(L73=Scoring!$A$45,Scoring!$B$45,IF(L73=Scoring!$A$46,Scoring!$B$46,IF(L73=Scoring!$A$47,Scoring!$B$47,IF(L73=Scoring!$A$48,Scoring!$B$48,IF(L73=Scoring!$A$49,Scoring!$B$49,IF(L73=Scoring!$A$50,Scoring!$B$50)))))) -> 100 | AD73: 0 | AE73: =IF(AD73>Scoring!$B$134,Scoring!$A$134,IF(AD73>Scoring!$B$135,Scoring!$A$135,IF(AD73>Scoring!$B$136,Scoring!$A$136,IF(AD73>Scoring!$B$137,Scoring!$A$137,IF(AD73>Scoring!$B$138,Scoring!$A$138,IF(AD73>Scoring!$B$139,Scoring!$A$139,IF(AD73>Scoring!$B$140,Scoring!$A$140,IF(AD73>Scoring!$B$141,Scoring!$A$141,IF(AD73>=Scoring!$B$142,Scoring!$A$142,IF(AD73>Scoring!$B$143,Scoring!$A$143)))))))))) -> None | AF73: 10
A74: 806 | B74: 8 | C74: Mainstem River & Major Forks - Upper Chena | D74: Landscape Context | E74: Substrate and banks (in channel habitat?) | F74: Amount, type, size, availability of, & distribution, including woody debris | G74: Low diversity of and abundance of suitable substrates and woody material in most habitats | H74: Moderate diversity of and abundance of suitable substrates and woody material in most habitats | I74: Diversity and abundance of suitable substrates and woody debrus material in most habitat | J74: High diversity and abundance of suitable substrates and woody debrus material in most habitat | K74: Good - | L74: Fair | M74: =IFERROR(INDEX(Outcomes!F:F,MATCH(A74,Outcomes!H:H,0)),"") ->  | X74: Mainstem River & Major Forks - Upper Chena|Substrate and banks (in channel habitat?) | AA74: =IF(K74=Scoring!$A$45,Scoring!$B$45,IF(K74=Scoring!$A$46,Scoring!$B$46,IF(K74=Scoring!$A$47,Scoring!$B$47,IF(K74=Scoring!$A$48,Scoring!$B$48,IF(K74=Scoring!$A$49,Scoring!$B$49,IF(K74=Scoring!$A$50,Scoring!$B$50)))))) -> 60.04 | AB74: =IF(L74=Scoring!$A$45,Scoring!$B$45,IF(L74=Scoring!$A$46,Scoring!$B$46,IF(L74=Scoring!$A$47,Scoring!$B$47,IF(L74=Scoring!$A$48,Scoring!$B$48,IF(L74=Scoring!$A$49,Scoring!$B$49,IF(L74=Scoring!$A$50,Scoring!$B$50)))))) -> 40.04 | AD74: 20 | AE74: =IF(AD74>Scoring!$B$134,Scoring!$A$134,IF(AD74>Scoring!$B$135,Scoring!$A$135,IF(AD74>Scoring!$B$136,Scoring!$A$136,IF(AD74>Scoring!$B$137,Scoring!$A$137,IF(AD74>Scoring!$B$138,Scoring!$A$138,IF(AD74>Scoring!$B$139,Scoring!$A$139,IF(AD74>Scoring!$B$140,Scoring!$A$140,IF(AD74>Scoring!$B$141,Scoring!$A$141,IF(AD74>=Scoring!$B$142,Scoring!$A$142,IF(AD74>Scoring!$B$143,Scoring!$A$143)))))))))) -> Moderate | AF74: 6
A75: 807 | B75: 8 | C75: Mainstem River & Major Forks - Upper Chena | D75: Condition | E75: Characteristic native communities | F75: Presence of characteristic native communities within habitats | G75: Few habitats have the characteristic native communities to accom-modate most nested targets in abundance | H75: Some habitats have the characteristic native communities to accom-modate most nested targets in abundance | I75: Most habitats have the characteristic native communities to accom-modate most nested targets in abundance | J75: Almost all habitats have the characteristic native communities to accom­modate almost all nested targets in abundance | K75: Very Good | L75: Very Good | M75: =IFERROR(INDEX(Outcomes!F:F,MATCH(A75,Outcomes!H:H,0)),"") ->  | X75: Mainstem River & Major Forks - Upper Chena|Characteristic native communities | AA75: =IF(K75=Scoring!$A$45,Scoring!$B$45,IF(K75=Scoring!$A$46,Scoring!$B$46,IF(K75=Scoring!$A$47,Scoring!$B$47,IF(K75=Scoring!$A$48,Scoring!$B$48,IF(K75=Scoring!$A$49,Scoring!$B$49,IF(K75=Scoring!$A$50,Scoring!$B$50)))))) -> 100 | AB75: =IF(L75=Scoring!$A$45,Scoring!$B$45,IF(L75=Scoring!$A$46,Scoring!$B$46,IF(L75=Scoring!$A$47,Scoring!$B$47,IF(L75=Scoring!$A$48,Scoring!$B$48,IF(L75=Scoring!$A$49,Scoring!$B$49,IF(L75=Scoring!$A$50,Scoring!$B$50)))))) -> 100 | AD75: 0 | AE75: =IF(AD75>Scoring!$B$134,Scoring!$A$134,IF(AD75>Scoring!$B$135,Scoring!$A$135,IF(AD75>Scoring!$B$136,Scoring!$A$136,IF(AD75>Scoring!$B$137,Scoring!$A$137,IF(AD75>Scoring!$B$138,Scoring!$A$138,IF(AD75>Scoring!$B$139,Scoring!$A$139,IF(AD75>Scoring!$B$140,Scoring!$A$140,IF(AD75>Scoring!$B$141,Scoring!$A$141,IF(AD75>=Scoring!$B$142,Scoring!$A$142,IF(AD75>Scoring!$B$143,Scoring!$A$143)))))))))) -> None | AF75: 10
A76: 808 | B76: 8 | C76: Mainstem River & Major Forks - Upper Chena | D76: Condition | E76: Species composition | F76: Presence/absence, extent of invasive species | G76: High abundance of invasive/non-native species in most habitats | H76: Moderate abundance of invasive/non-native species in most habitats | I76: Low presence of existing invasive/non-native species in most habitats with NO new invasive species | J76: Mimimal to no abundance of invasive/non-native species in most habitats | K76: Good | L76: Good - | M76: =IFERROR(INDEX(Outcomes!F:F,MATCH(A76,Outcomes!H:H,0)),"") -> Good | X76: Mainstem River & Major Forks - Upper Chena|Species composition | AA76: =IF(K76=Scoring!$A$45,Scoring!$B$45,IF(K76=Scoring!$A$46,Scoring!$B$46,IF(K76=Scoring!$A$47,Scoring!$B$47,IF(K76=Scoring!$A$48,Scoring!$B$48,IF(K76=Scoring!$A$49,Scoring!$B$49,IF(K76=Scoring!$A$50,Scoring!$B$50)))))) -> 80.03 | AB76: =IF(L76=Scoring!$A$45,Scoring!$B$45,IF(L76=Scoring!$A$46,Scoring!$B$46,IF(L76=Scoring!$A$47,Scoring!$B$47,IF(L76=Scoring!$A$48,Scoring!$B$48,IF(L76=Scoring!$A$49,Scoring!$B$49,IF(L76=Scoring!$A$50,Scoring!$B$50)))))) -> 60.04 | AD76: 19.99 | AE76: =IF(AD76>Scoring!$B$134,Scoring!$A$134,IF(AD76>Scoring!$B$135,Scoring!$A$135,IF(AD76>Scoring!$B$136,Scoring!$A$136,IF(AD76>Scoring!$B$137,Scoring!$A$137,IF(AD76>Scoring!$B$138,Scoring!$A$138,IF(AD76>Scoring!$B$139,Scoring!$A$139,IF(AD76>Scoring!$B$140,Scoring!$A$140,IF(AD76>Scoring!$B$141,Scoring!$A$141,IF(AD76>=Scoring!$B$142,Scoring!$A$142,IF(AD76>Scoring!$B$143,Scoring!$A$143)))))))))) -> Moderate | AF76: 6
A77: 809 | B77: 8 | C77: Mainstem River & Major Forks - Upper Chena | D77: Condition | E77: Water quality | F77: Sediment, temperature, DO, toxins, or litter/trash/residues | G77: High % (TBD) not meeting most ADEC's standards | H77: Moderate habitats meet most ADEC’s standards | I77: Most habitats are meeting most ADEC's standards | J77: Majority to all habitats meet most ADEC’s standards | K77: Good | L77: Good | M77: =IFERROR(INDEX(Outcomes!F:F,MATCH(A77,Outcomes!H:H,0)),"") ->  | X77: Mainstem River & Major Forks - Upper Chena|Water quality | AA77: =IF(K77=Scoring!$A$45,Scoring!$B$45,IF(K77=Scoring!$A$46,Scoring!$B$46,IF(K77=Scoring!$A$47,Scoring!$B$47,IF(K77=Scoring!$A$48,Scoring!$B$48,IF(K77=Scoring!$A$49,Scoring!$B$49,IF(K77=Scoring!$A$50,Scoring!$B$50)))))) -> 80.03 | AB77: =IF(L77=Scoring!$A$45,Scoring!$B$45,IF(L77=Scoring!$A$46,Scoring!$B$46,IF(L77=Scoring!$A$47,Scoring!$B$47,IF(L77=Scoring!$A$48,Scoring!$B$48,IF(L77=Scoring!$A$49,Scoring!$B$49,IF(L77=Scoring!$A$50,Scoring!$B$50)))))) -> 80.03 | AD77: 0 | AE77: =IF(AD77>Scoring!$B$134,Scoring!$A$134,IF(AD77>Scoring!$B$135,Scoring!$A$135,IF(AD77>Scoring!$B$136,Scoring!$A$136,IF(AD77>Scoring!$B$137,Scoring!$A$137,IF(AD77>Scoring!$B$138,Scoring!$A$138,IF(AD77>Scoring!$B$139,Scoring!$A$139,IF(AD77>Scoring!$B$140,Scoring!$A$140,IF(AD77>Scoring!$B$141,Scoring!$A$141,IF(AD77>=Scoring!$B$142,Scoring!$A$142,IF(AD77>Scoring!$B$143,Scoring!$A$143)))))))))) -> None | AF77: 10
A78: 810 | B78: 8 | C78: Mainstem River & Major Forks - Upper Chena | D78: Size | E78: Extent of area | F78: Riparian area and river length | G78: Severe, mostly gone | H78: Moderate to substantial loss | I78: Minimal loss | J78: Mother Nature | K78: Good | L78: Good | M78: =IFERROR(INDEX(Outcomes!F:F,MATCH(A78,Outcomes!H:H,0)),"") ->  | X78: Mainstem River & Major Forks - Upper Chena|Extent of area | AA78: =IF(K78=Scoring!$A$45,Scoring!$B$45,IF(K78=Scoring!$A$46,Scoring!$B$46,IF(K78=Scoring!$A$47,Scoring!$B$47,IF(K78=Scoring!$A$48,Scoring!$B$48,IF(K78=Scoring!$A$49,Scoring!$B$49,IF(K78=Scoring!$A$50,Scoring!$B$50)))))) -> 80.03 | AB78: =IF(L78=Scoring!$A$45,Scoring!$B$45,IF(L78=Scoring!$A$46,Scoring!$B$46,IF(L78=Scoring!$A$47,Scoring!$B$47,IF(L78=Scoring!$A$48,Scoring!$B$48,IF(L78=Scoring!$A$49,Scoring!$B$49,IF(L78=Scoring!$A$50,Scoring!$B$50)))))) -> 80.03 | AD78: 0 | AE78: =IF(AD78>Scoring!$B$134,Scoring!$A$134,IF(AD78>Scoring!$B$135,Scoring!$A$135,IF(AD78>Scoring!$B$136,Scoring!$A$136,IF(AD78>Scoring!$B$137,Scoring!$A$137,IF(AD78>Scoring!$B$138,Scoring!$A$138,IF(AD78>Scoring!$B$139,Scoring!$A$139,IF(AD78>Scoring!$B$140,Scoring!$A$140,IF(AD78>Scoring!$B$141,Scoring!$A$141,IF(AD78>=Scoring!$B$142,Scoring!$A$142,IF(AD78>Scoring!$B$143,Scoring!$A$143)))))))))) -> None | AF78: 10
A79: 811 | B79: 8 | C79: Mainstem River & Major Forks - Upper Chena | M79: =IFERROR(INDEX(Outcomes!F:F,MATCH(A79,Outcomes!H:H,0)),"") ->  | X79: Mainstem River & Major Forks - Upper Chena| | AA79: =IF(K79=Scoring!$A$45,Scoring!$B$45,IF(K79=Scoring!$A$46,Scoring!$B$46,IF(K79=Scoring!$A$47,Scoring!$B$47,IF(K79=Scoring!$A$48,Scoring!$B$48,IF(K79=Scoring!$A$49,Scoring!$B$49,IF(K79=Scoring!$A$50,Scoring!$B$50)))))) -> FALSE | AB79: =IF(L79=Scoring!$A$45,Scoring!$B$45,IF(L79=Scoring!$A$46,Scoring!$B$46,IF(L79=Scoring!$A$47,Scoring!$B$47,IF(L79=Scoring!$A$48,Scoring!$B$48,IF(L79=Scoring!$A$49,Scoring!$B$49,IF(L79=Scoring!$A$50,Scoring!$B$50)))))) -> FALSE | AD79: 0 | AE79: =IF(AD79>Scoring!$B$134,Scoring!$A$134,IF(AD79>Scoring!$B$135,Scoring!$A$135,IF(AD79>Scoring!$B$136,Scoring!$A$136,IF(AD79>Scoring!$B$137,Scoring!$A$137,IF(AD79>Scoring!$B$138,Scoring!$A$138,IF(AD79>Scoring!$B$139,Scoring!$A$139,IF(AD79>Scoring!$B$140,Scoring!$A$140,IF(AD79>Scoring!$B$141,Scoring!$A$141,IF(AD79>=Scoring!$B$142,Scoring!$A$142,IF(AD79>Scoring!$B$143,Scoring!$A$143)))))))))) -> None
A80: 812 | B80: 8 | C80: Mainstem River & Major Forks - Upper Chena | M80: =IFERROR(INDEX(Outcomes!F:F,MATCH(A80,Outcomes!H:H,0)),"") ->  | X80: Mainstem River & Major Forks - Upper Chena| | AA80: =IF(K80=Scoring!$A$45,Scoring!$B$45,IF(K80=Scoring!$A$46,Scoring!$B$46,IF(K80=Scoring!$A$47,Scoring!$B$47,IF(K80=Scoring!$A$48,Scoring!$B$48,IF(K80=Scoring!$A$49,Scoring!$B$49,IF(K80=Scoring!$A$50,Scoring!$B$50)))))) -> FALSE | AB80: =IF(L80=Scoring!$A$45,Scoring!$B$45,IF(L80=Scoring!$A$46,Scoring!$B$46,IF(L80=Scoring!$A$47,Scoring!$B$47,IF(L80=Scoring!$A$48,Scoring!$B$48,IF(L80=Scoring!$A$49,Scoring!$B$49,IF(L80=Scoring!$A$50,Scoring!$B$50)))))) -> FALSE | AD80: 0 | AE80: =IF(AD80>Scoring!$B$134,Scoring!$A$134,IF(AD80>Scoring!$B$135,Scoring!$A$135,IF(AD80>Scoring!$B$136,Scoring!$A$136,IF(AD80>Scoring!$B$137,Scoring!$A$137,IF(AD80>Scoring!$B$138,Scoring!$A$138,IF(AD80>Scoring!$B$139,Scoring!$A$139,IF(AD80>Scoring!$B$140,Scoring!$A$140,IF(AD80>Scoring!$B$141,Scoring!$A$141,IF(AD80>=Scoring!$B$142,Scoring!$A$142,IF(AD80>Scoring!$B$143,Scoring!$A$143)))))))))) -> None
A81: 813 | B81: 8 | C81: Mainstem River & Major Forks - Upper Chena | M81: =IFERROR(INDEX(Outcomes!F:F,MATCH(A81,Outcomes!H:H,0)),"") ->  | X81: Mainstem River & Major Forks - Upper Chena| | AA81: =IF(K81=Scoring!$A$45,Scoring!$B$45,IF(K81=Scoring!$A$46,Scoring!$B$46,IF(K81=Scoring!$A$47,Scoring!$B$47,IF(K81=Scoring!$A$48,Scoring!$B$48,IF(K81=Scoring!$A$49,Scoring!$B$49,IF(K81=Scoring!$A$50,Scoring!$B$50)))))) -> FALSE | AB81: =IF(L81=Scoring!$A$45,Scoring!$B$45,IF(L81=Scoring!$A$46,Scoring!$B$46,IF(L81=Scoring!$A$47,Scoring!$B$47,IF(L81=Scoring!$A$48,Scoring!$B$48,IF(L81=Scoring!$A$49,Scoring!$B$49,IF(L81=Scoring!$A$50,Scoring!$B$50)))))) -> FALSE | AD81: 0 | AE81: =IF(AD81>Scoring!$B$134,Scoring!$A$134,IF(AD81>Scoring!$B$135,Scoring!$A$135,IF(AD81>Scoring!$B$136,Scoring!$A$136,IF(AD81>Scoring!$B$137,Scoring!$A$137,IF(AD81>Scoring!$B$138,Scoring!$A$138,IF(AD81>Scoring!$B$139,Scoring!$A$139,IF(AD81>Scoring!$B$140,Scoring!$A$140,IF(AD81>Scoring!$B$141,Scoring!$A$141,IF(AD81>=Scoring!$B$142,Scoring!$A$142,IF(AD81>Scoring!$B$143,Scoring!$A$143)))))))))) -> None
A82: 904 | B82: 9 | C82: Mainstem River & Major Forks - Lower Chena | D82: Landscape Context | E82: Connectivity to tributaries and within mainstem | F82: Number, extent, & type of barriers | G82: Many widespread or complete manmade or natural blockages, Where culverts exist % of red barriers based on ADFG fish passage inventory | H82: Some widespread or complete manmade or natural blockages, Where culverts exist % of red barriers based on ADFG fish passage inventory | I82: Few widespread or complete manmade or natural blockages, Where culverts exist % of green barriers based on ADFG fish passage inventory | J82: No widespread or complete manmade or natural blockages, | K82: Good | L82: Good | M82: =IFERROR(INDEX(Outcomes!F:F,MATCH(A82,Outcomes!H:H,0)),"") ->  | X82: Mainstem River & Major Forks - Lower Chena|Connectivity to tributaries and within mainstem | AA82: =IF(K82=Scoring!$A$45,Scoring!$B$45,IF(K82=Scoring!$A$46,Scoring!$B$46,IF(K82=Scoring!$A$47,Scoring!$B$47,IF(K82=Scoring!$A$48,Scoring!$B$48,IF(K82=Scoring!$A$49,Scoring!$B$49,IF(K82=Scoring!$A$50,Scoring!$B$50)))))) -> 80.03 | AB82: =IF(L82=Scoring!$A$45,Scoring!$B$45,IF(L82=Scoring!$A$46,Scoring!$B$46,IF(L82=Scoring!$A$47,Scoring!$B$47,IF(L82=Scoring!$A$48,Scoring!$B$48,IF(L82=Scoring!$A$49,Scoring!$B$49,IF(L82=Scoring!$A$50,Scoring!$B$50)))))) -> 80.03 | AD82: 0 | AE82: =IF(AD82>Scoring!$B$134,Scoring!$A$134,IF(AD82>Scoring!$B$135,Scoring!$A$135,IF(AD82>Scoring!$B$136,Scoring!$A$136,IF(AD82>Scoring!$B$137,Scoring!$A$137,IF(AD82>Scoring!$B$138,Scoring!$A$138,IF(AD82>Scoring!$B$139,Scoring!$A$139,IF(AD82>Scoring!$B$140,Scoring!$A$140,IF(AD82>Scoring!$B$141,Scoring!$A$141,IF(AD82>=Scoring!$B$142,Scoring!$A$142,IF(AD82>Scoring!$B$143,Scoring!$A$143)))))))))) -> None | AF82: 10
A83: 905 | B83: 9 | C83: Mainstem River & Major Forks - Lower Chena | D83: Landscape Context | E83: Hydrologic regime | F83: Natural fluctuations of surface and ground water -amount, frequency, timing, duration | G83: Water levels, flows or fluctuations are too high or too low, not related to the precipitation, and unlikely to maintain nested targets in many habitats within the target area and downstream | H83: Water levels, flows or fluctuations in relationship to precipitation and ground water are likely to maintain nested targets in some habitats within the target and downstream | I83: Water levels, flows or fluctuations in relationship to precipitation and ground water are likely to maintain nested targets in most habitats within the target area and downstream | J83: Water levels, flows or fluctuations in relationship to precipitation and ground water are likely to maintain nested targets in almost all habitats within the target area and downstream | K83: Good | L83: Good | M83: =IFERROR(INDEX(Outcomes!F:F,MATCH(A83,Outcomes!H:H,0)),"") ->  | X83: Mainstem River & Major Forks - Lower Chena|Hydrologic regime | AA83: =IF(K83=Scoring!$A$45,Scoring!$B$45,IF(K83=Scoring!$A$46,Scoring!$B$46,IF(K83=Scoring!$A$47,Scoring!$B$47,IF(K83=Scoring!$A$48,Scoring!$B$48,IF(K83=Scoring!$A$49,Scoring!$B$49,IF(K83=Scoring!$A$50,Scoring!$B$50)))))) -> 80.03 | AB83: =IF(L83=Scoring!$A$45,Scoring!$B$45,IF(L83=Scoring!$A$46,Scoring!$B$46,IF(L83=Scoring!$A$47,Scoring!$B$47,IF(L83=Scoring!$A$48,Scoring!$B$48,IF(L83=Scoring!$A$49,Scoring!$B$49,IF(L83=Scoring!$A$50,Scoring!$B$50)))))) -> 80.03 | AD83: 0 | AE83: =IF(AD83>Scoring!$B$134,Scoring!$A$134,IF(AD83>Scoring!$B$135,Scoring!$A$135,IF(AD83>Scoring!$B$136,Scoring!$A$136,IF(AD83>Scoring!$B$137,Scoring!$A$137,IF(AD83>Scoring!$B$138,Scoring!$A$138,IF(AD83>Scoring!$B$139,Scoring!$A$139,IF(AD83>Scoring!$B$140,Scoring!$A$140,IF(AD83>Scoring!$B$141,Scoring!$A$141,IF(AD83>=Scoring!$B$142,Scoring!$A$142,IF(AD83>Scoring!$B$143,Scoring!$A$143)))))))))) -> None | AF83: 10
A84: 906 | B84: 9 | C84: Mainstem River & Major Forks - Lower Chena | D84: Landscape Context | E84: Substrate and banks (in channel habitat?) | F84: Amount, type, size, availability of, & distribution, including woody debris | G84: Low diversity of and abundance of suitable substrates and woody material in most habitats | H84: Moderate diversity of and abundance of suitable substrates and woody material in most habitats | I84: Diversity and abundance of suitable substrates and woody debrus material in most habitat | J84: High diversity and abundance of suitable substrates and woody debrus material in most habitat | K84: Good - | L84: Fair | M84: =IFERROR(INDEX(Outcomes!F:F,MATCH(A84,Outcomes!H:H,0)),"") -> Good - | X84: Mainstem River & Major Forks - Lower Chena|Substrate and banks (in channel habitat?) | AA84: =IF(K84=Scoring!$A$45,Scoring!$B$45,IF(K84=Scoring!$A$46,Scoring!$B$46,IF(K84=Scoring!$A$47,Scoring!$B$47,IF(K84=Scoring!$A$48,Scoring!$B$48,IF(K84=Scoring!$A$49,Scoring!$B$49,IF(K84=Scoring!$A$50,Scoring!$B$50)))))) -> 60.04 | AB84: =IF(L84=Scoring!$A$45,Scoring!$B$45,IF(L84=Scoring!$A$46,Scoring!$B$46,IF(L84=Scoring!$A$47,Scoring!$B$47,IF(L84=Scoring!$A$48,Scoring!$B$48,IF(L84=Scoring!$A$49,Scoring!$B$49,IF(L84=Scoring!$A$50,Scoring!$B$50)))))) -> 40.04 | AD84: 20 | AE84: =IF(AD84>Scoring!$B$134,Scoring!$A$134,IF(AD84>Scoring!$B$135,Scoring!$A$135,IF(AD84>Scoring!$B$136,Scoring!$A$136,IF(AD84>Scoring!$B$137,Scoring!$A$137,IF(AD84>Scoring!$B$138,Scoring!$A$138,IF(AD84>Scoring!$B$139,Scoring!$A$139,IF(AD84>Scoring!$B$140,Scoring!$A$140,IF(AD84>Scoring!$B$141,Scoring!$A$141,IF(AD84>=Scoring!$B$142,Scoring!$A$142,IF(AD84>Scoring!$B$143,Scoring!$A$143)))))))))) -> Moderate | AF84: 6
A85: 907 | B85: 9 | C85: Mainstem River & Major Forks - Lower Chena | D85: Condition | E85: Characteristic native communities | F85: Presence of characteristic native communities within habitats | G85: Few habitats have the characteristic native communities to accom-modate most nested targets in abundance | H85: Some habitats have the characteristic native communities to accom-modate most nested targets in abundance | I85: Most habitats have the characteristic native communities to accom-modate most nested targets in abundance | J85: Almost all habitats have the characteristic native communities to accom­modate almost all nested targets in abundance | K85: Good - | L85: Fair | M85: =IFERROR(INDEX(Outcomes!F:F,MATCH(A85,Outcomes!H:H,0)),"") -> Good - | X85: Mainstem River & Major Forks - Lower Chena|Characteristic native communities | AA85: =IF(K85=Scoring!$A$45,Scoring!$B$45,IF(K85=Scoring!$A$46,Scoring!$B$46,IF(K85=Scoring!$A$47,Scoring!$B$47,IF(K85=Scoring!$A$48,Scoring!$B$48,IF(K85=Scoring!$A$49,Scoring!$B$49,IF(K85=Scoring!$A$50,Scoring!$B$50)))))) -> 60.04 | AB85: =IF(L85=Scoring!$A$45,Scoring!$B$45,IF(L85=Scoring!$A$46,Scoring!$B$46,IF(L85=Scoring!$A$47,Scoring!$B$47,IF(L85=Scoring!$A$48,Scoring!$B$48,IF(L85=Scoring!$A$49,Scoring!$B$49,IF(L85=Scoring!$A$50,Scoring!$B$50)))))) -> 40.04 | AD85: 20 | AE85: =IF(AD85>Scoring!$B$134,Scoring!$A$134,IF(AD85>Scoring!$B$135,Scoring!$A$135,IF(AD85>Scoring!$B$136,Scoring!$A$136,IF(AD85>Scoring!$B$137,Scoring!$A$137,IF(AD85>Scoring!$B$138,Scoring!$A$138,IF(AD85>Scoring!$B$139,Scoring!$A$139,IF(AD85>Scoring!$B$140,Scoring!$A$140,IF(AD85>Scoring!$B$141,Scoring!$A$141,IF(AD85>=Scoring!$B$142,Scoring!$A$142,IF(AD85>Scoring!$B$143,Scoring!$A$143)))))))))) -> Moderate | AF85: 6
A86: 908 | B86: 9 | C86: Mainstem River & Major Forks - Lower Chena | D86: Condition | E86: Species composition | F86: Presence/absence, extent of invasive species | G86: High abundance of invasive/non-native species in most habitats | H86: Moderate abundance of invasive/non-native species in most habitats | I86: Low presence of existing invasive/non-native species in most habitats with NO new invasive species | J86: Mimimal to no abundance of invasive/non-native species in most habitats | K86: Good - | L86: Fair - | M86: =IFERROR(INDEX(Outcomes!F:F,MATCH(A86,Outcomes!H:H,0)),"") -> Good - | X86: Mainstem River & Major Forks - Lower Chena|Species composition | AA86: =IF(K86=Scoring!$A$45,Scoring!$B$45,IF(K86=Scoring!$A$46,Scoring!$B$46,IF(K86=Scoring!$A$47,Scoring!$B$47,IF(K86=Scoring!$A$48,Scoring!$B$48,IF(K86=Scoring!$A$49,Scoring!$B$49,IF(K86=Scoring!$A$50,Scoring!$B$50)))))) -> 60.04 | AB86: =IF(L86=Scoring!$A$45,Scoring!$B$45,IF(L86=Scoring!$A$46,Scoring!$B$46,IF(L86=Scoring!$A$47,Scoring!$B$47,IF(L86=Scoring!$A$48,Scoring!$B$48,IF(L86=Scoring!$A$49,Scoring!$B$49,IF(L86=Scoring!$A$50,Scoring!$B$50)))))) -> 20.03 | AD86: 40.01 | AE86: =IF(AD86>Scoring!$B$134,Scoring!$A$134,IF(AD86>Scoring!$B$135,Scoring!$A$135,IF(AD86>Scoring!$B$136,Scoring!$A$136,IF(AD86>Scoring!$B$137,Scoring!$A$137,IF(AD86>Scoring!$B$138,Scoring!$A$138,IF(AD86>Scoring!$B$139,Scoring!$A$139,IF(AD86>Scoring!$B$140,Scoring!$A$140,IF(AD86>Scoring!$B$141,Scoring!$A$141,IF(AD86>=Scoring!$B$142,Scoring!$A$142,IF(AD86>Scoring!$B$143,Scoring!$A$143)))))))))) -> Extreme | AF86: 2
A87: 909 | B87: 9 | C87: Mainstem River & Major Forks - Lower Chena | D87: Condition | E87: Water quality | F87: Sediment, temperature, DO, toxins, or litter/trash/residues | G87: High % (TBD) not meeting most ADEC's standards | H87: Moderate habitats meet most ADEC’s standards | I87: Most habitats are meeting most ADEC's standards | J87: Majority to all habitats meet most ADEC’s standards | K87: Fair | L87: Fair - | M87: =IFERROR(INDEX(Outcomes!F:F,MATCH(A87,Outcomes!H:H,0)),"") -> Good - | X87: Mainstem River & Major Forks - Lower Chena|Water quality | AA87: =IF(K87=Scoring!$A$45,Scoring!$B$45,IF(K87=Scoring!$A$46,Scoring!$B$46,IF(K87=Scoring!$A$47,Scoring!$B$47,IF(K87=Scoring!$A$48,Scoring!$B$48,IF(K87=Scoring!$A$49,Scoring!$B$49,IF(K87=Scoring!$A$50,Scoring!$B$50)))))) -> 40.04 | AB87: =IF(L87=Scoring!$A$45,Scoring!$B$45,IF(L87=Scoring!$A$46,Scoring!$B$46,IF(L87=Scoring!$A$47,Scoring!$B$47,IF(L87=Scoring!$A$48,Scoring!$B$48,IF(L87=Scoring!$A$49,Scoring!$B$49,IF(L87=Scoring!$A$50,Scoring!$B$50)))))) -> 20.03 | AD87: 20.01 | AE87: =IF(AD87>Scoring!$B$134,Scoring!$A$134,IF(AD87>Scoring!$B$135,Scoring!$A$135,IF(AD87>Scoring!$B$136,Scoring!$A$136,IF(AD87>Scoring!$B$137,Scoring!$A$137,IF(AD87>Scoring!$B$138,Scoring!$A$138,IF(AD87>Scoring!$B$139,Scoring!$A$139,IF(AD87>Scoring!$B$140,Scoring!$A$140,IF(AD87>Scoring!$B$141,Scoring!$A$141,IF(AD87>=Scoring!$B$142,Scoring!$A$142,IF(AD87>Scoring!$B$143,Scoring!$A$143)))))))))) -> High | AF87: 3
A88: 910 | B88: 9 | C88: Mainstem River & Major Forks - Lower Chena | D88: Size | E88: Extent of area | F88: Riparian area and river length | G88: Severe, mostly gone | H88: Moderate to substantial loss | I88: Minimal loss | J88: Mother Nature | K88: Fair | L88: Fair - | M88: =IFERROR(INDEX(Outcomes!F:F,MATCH(A88,Outcomes!H:H,0)),"") -> Good - | X88: Mainstem River & Major Forks - Lower Chena|Extent of area | AA88: =IF(K88=Scoring!$A$45,Scoring!$B$45,IF(K88=Scoring!$A$46,Scoring!$B$46,IF(K88=Scoring!$A$47,Scoring!$B$47,IF(K88=Scoring!$A$48,Scoring!$B$48,IF(K88=Scoring!$A$49,Scoring!$B$49,IF(K88=Scoring!$A$50,Scoring!$B$50)))))) -> 40.04 | AB88: =IF(L88=Scoring!$A$45,Scoring!$B$45,IF(L88=Scoring!$A$46,Scoring!$B$46,IF(L88=Scoring!$A$47,Scoring!$B$47,IF(L88=Scoring!$A$48,Scoring!$B$48,IF(L88=Scoring!$A$49,Scoring!$B$49,IF(L88=Scoring!$A$50,Scoring!$B$50)))))) -> 20.03 | AD88: 20.01 | AE88: =IF(AD88>Scoring!$B$134,Scoring!$A$134,IF(AD88>Scoring!$B$135,Scoring!$A$135,IF(AD88>Scoring!$B$136,Scoring!$A$136,IF(AD88>Scoring!$B$137,Scoring!$A$137,IF(AD88>Scoring!$B$138,Scoring!$A$138,IF(AD88>Scoring!$B$139,Scoring!$A$139,IF(AD88>Scoring!$B$140,Scoring!$A$140,IF(AD88>Scoring!$B$141,Scoring!$A$141,IF(AD88>=Scoring!$B$142,Scoring!$A$142,IF(AD88>Scoring!$B$143,Scoring!$A$143)))))))))) -> High | AF88: 3
A89: 911 | B89: 9 | C89: Mainstem River & Major Forks - Lower Chena | M89: =IFERROR(INDEX(Outcomes!F:F,MATCH(A89,Outcomes!H:H,0)),"") ->  | X89: Mainstem River & Major Forks - Lower Chena| | AA89: =IF(K89=Scoring!$A$45,Scoring!$B$45,IF(K89=Scoring!$A$46,Scoring!$B$46,IF(K89=Scoring!$A$47,Scoring!$B$47,IF(K89=Scoring!$A$48,Scoring!$B$48,IF(K89=Scoring!$A$49,Scoring!$B$49,IF(K89=Scoring!$A$50,Scoring!$B$50)))))) -> FALSE | AB89: =IF(L89=Scoring!$A$45,Scoring!$B$45,IF(L89=Scoring!$A$46,Scoring!$B$46,IF(L89=Scoring!$A$47,Scoring!$B$47,IF(L89=Scoring!$A$48,Scoring!$B$48,IF(L89=Scoring!$A$49,Scoring!$B$49,IF(L89=Scoring!$A$50,Scoring!$B$50)))))) -> FALSE | AD89: 0 | AE89: =IF(AD89>Scoring!$B$134,Scoring!$A$134,IF(AD89>Scoring!$B$135,Scoring!$A$135,IF(AD89>Scoring!$B$136,Scoring!$A$136,IF(AD89>Scoring!$B$137,Scoring!$A$137,IF(AD89>Scoring!$B$138,Scoring!$A$138,IF(AD89>Scoring!$B$139,Scoring!$A$139,IF(AD89>Scoring!$B$140,Scoring!$A$140,IF(AD89>Scoring!$B$141,Scoring!$A$141,IF(AD89>=Scoring!$B$142,Scoring!$A$142,IF(AD89>Scoring!$B$143,Scoring!$A$143)))))))))) -> None
A90: 912 | B90: 9 | C90: Mainstem River & Major Forks - Lower Chena | M90: =IFERROR(INDEX(Outcomes!F:F,MATCH(A90,Outcomes!H:H,0)),"") ->  | X90: Mainstem River & Major Forks - Lower Chena| | AA90: =IF(K90=Scoring!$A$45,Scoring!$B$45,IF(K90=Scoring!$A$46,Scoring!$B$46,IF(K90=Scoring!$A$47,Scoring!$B$47,IF(K90=Scoring!$A$48,Scoring!$B$48,IF(K90=Scoring!$A$49,Scoring!$B$49,IF(K90=Scoring!$A$50,Scoring!$B$50)))))) -> FALSE | AB90: =IF(L90=Scoring!$A$45,Scoring!$B$45,IF(L90=Scoring!$A$46,Scoring!$B$46,IF(L90=Scoring!$A$47,Scoring!$B$47,IF(L90=Scoring!$A$48,Scoring!$B$48,IF(L90=Scoring!$A$49,Scoring!$B$49,IF(L90=Scoring!$A$50,Scoring!$B$50)))))) -> FALSE | AD90: 0 | AE90: =IF(AD90>Scoring!$B$134,Scoring!$A$134,IF(AD90>Scoring!$B$135,Scoring!$A$135,IF(AD90>Scoring!$B$136,Scoring!$A$136,IF(AD90>Scoring!$B$137,Scoring!$A$137,IF(AD90>Scoring!$B$138,Scoring!$A$138,IF(AD90>Scoring!$B$139,Scoring!$A$139,IF(AD90>Scoring!$B$140,Scoring!$A$140,IF(AD90>Scoring!$B$141,Scoring!$A$141,IF(AD90>=Scoring!$B$142,Scoring!$A$142,IF(AD90>Scoring!$B$143,Scoring!$A$143)))))))))) -> None
A91: 913 | B91: 9 | C91: Mainstem River & Major Forks - Lower Chena | M91: =IFERROR(INDEX(Outcomes!F:F,MATCH(A91,Outcomes!H:H,0)),"") ->  | X91: Mainstem River & Major Forks - Lower Chena| | AA91: =IF(K91=Scoring!$A$45,Scoring!$B$45,IF(K91=Scoring!$A$46,Scoring!$B$46,IF(K91=Scoring!$A$47,Scoring!$B$47,IF(K91=Scoring!$A$48,Scoring!$B$48,IF(K91=Scoring!$A$49,Scoring!$B$49,IF(K91=Scoring!$A$50,Scoring!$B$50)))))) -> FALSE | AB91: =IF(L91=Scoring!$A$45,Scoring!$B$45,IF(L91=Scoring!$A$46,Scoring!$B$46,IF(L91=Scoring!$A$47,Scoring!$B$47,IF(L91=Scoring!$A$48,Scoring!$B$48,IF(L91=Scoring!$A$49,Scoring!$B$49,IF(L91=Scoring!$A$50,Scoring!$B$50)))))) -> FALSE | AD91: 0 | AE91: =IF(AD91>Scoring!$B$134,Scoring!$A$134,IF(AD91>Scoring!$B$135,Scoring!$A$135,IF(AD91>Scoring!$B$136,Scoring!$A$136,IF(AD91>Scoring!$B$137,Scoring!$A$137,IF(AD91>Scoring!$B$138,Scoring!$A$138,IF(AD91>Scoring!$B$139,Scoring!$A$139,IF(AD91>Scoring!$B$140,Scoring!$A$140,IF(AD91>Scoring!$B$141,Scoring!$A$141,IF(AD91>=Scoring!$B$142,Scoring!$A$142,IF(AD91>Scoring!$B$143,Scoring!$A$143)))))))))) -> None
A92: 1004 | B92: 10 | C92: Confluence with Tanana | D92: Landscape Context | E92: Delta dynamics | F92: Natural channel complexity | G92: Confined | Unnatural Restricted Channel | H92: Some channels are confined or restricted | I92: Unrestricted channel(s) | J92: Some channels are confined or restricted | K92: Good | L92: Good | M92: =IFERROR(INDEX(Outcomes!F:F,MATCH(A92,Outcomes!H:H,0)),"") ->  | X92: Confluence with Tanana|Delta dynamics | AA92: =IF(K92=Scoring!$A$45,Scoring!$B$45,IF(K92=Scoring!$A$46,Scoring!$B$46,IF(K92=Scoring!$A$47,Scoring!$B$47,IF(K92=Scoring!$A$48,Scoring!$B$48,IF(K92=Scoring!$A$49,Scoring!$B$49,IF(K92=Scoring!$A$50,Scoring!$B$50)))))) -> 80.03 | AB92: =IF(L92=Scoring!$A$45,Scoring!$B$45,IF(L92=Scoring!$A$46,Scoring!$B$46,IF(L92=Scoring!$A$47,Scoring!$B$47,IF(L92=Scoring!$A$48,Scoring!$B$48,IF(L92=Scoring!$A$49,Scoring!$B$49,IF(L92=Scoring!$A$50,Scoring!$B$50)))))) -> 80.03 | AD92: 0 | AE92: =IF(AD92>Scoring!$B$134,Scoring!$A$134,IF(AD92>Scoring!$B$135,Scoring!$A$135,IF(AD92>Scoring!$B$136,Scoring!$A$136,IF(AD92>Scoring!$B$137,Scoring!$A$137,IF(AD92>Scoring!$B$138,Scoring!$A$138,IF(AD92>Scoring!$B$139,Scoring!$A$139,IF(AD92>Scoring!$B$140,Scoring!$A$140,IF(AD92>Scoring!$B$141,Scoring!$A$141,IF(AD92>=Scoring!$B$142,Scoring!$A$142,IF(AD92>Scoring!$B$143,Scoring!$A$143)))))))))) -> None | AF92: 10
A93: 1005 | B93: 10 | C93: Confluence with Tanana | D93: Landscape Context | E93: In channel habitat | F93: Amount, type, size, availability of, distribution, dynamic equilibrium (in)stability, large woody debris, substrate and banks | G93: Low diversity of and abundance of suitable substrates/ material in most habitats | H93: Moderate diversity of abundance of suitable substrates/material in most habitats | I93: Diversity and abundance of suitable substrates/ material in most habitat for aquatic - | J93: High diversity and abundance of suitable substrates/ material in most habitat for aquatic species | K93: Good | L93: Good | M93: =IFERROR(INDEX(Outcomes!F:F,MATCH(A93,Outcomes!H:H,0)),"") ->  | X93: Confluence with Tanana|In channel habitat | AA93: =IF(K93=Scoring!$A$45,Scoring!$B$45,IF(K93=Scoring!$A$46,Scoring!$B$46,IF(K93=Scoring!$A$47,Scoring!$B$47,IF(K93=Scoring!$A$48,Scoring!$B$48,IF(K93=Scoring!$A$49,Scoring!$B$49,IF(K93=Scoring!$A$50,Scoring!$B$50)))))) -> 80.03 | AB93: =IF(L93=Scoring!$A$45,Scoring!$B$45,IF(L93=Scoring!$A$46,Scoring!$B$46,IF(L93=Scoring!$A$47,Scoring!$B$47,IF(L93=Scoring!$A$48,Scoring!$B$48,IF(L93=Scoring!$A$49,Scoring!$B$49,IF(L93=Scoring!$A$50,Scoring!$B$50)))))) -> 80.03 | AD93: 0 | AE93: =IF(AD93>Scoring!$B$134,Scoring!$A$134,IF(AD93>Scoring!$B$135,Scoring!$A$135,IF(AD93>Scoring!$B$136,Scoring!$A$136,IF(AD93>Scoring!$B$137,Scoring!$A$137,IF(AD93>Scoring!$B$138,Scoring!$A$138,IF(AD93>Scoring!$B$139,Scoring!$A$139,IF(AD93>Scoring!$B$140,Scoring!$A$140,IF(AD93>Scoring!$B$141,Scoring!$A$141,IF(AD93>=Scoring!$B$142,Scoring!$A$142,IF(AD93>Scoring!$B$143,Scoring!$A$143)))))))))) -> None | AF93: 10
A94: 1006 | B94: 10 | C94: Confluence with Tanana | D94: Condition | E94: Charactersitic native community | F94: Presence of characteristic native communities within habitats | G94: Few habitats have the characteristic native communities to accom-modate most nested targets in abundance | H94: Some habitats have the characteristic native communities to accom-modate most nested targets in abundance | I94: Most habitats have the characteristic native communities to accom-modate most nested targets in abundance | J94: Almost all habitats have the characteristic native communities to accom­modate almost all nested targets in abundance | K94: Good | L94: Good - | M94: =IFERROR(INDEX(Outcomes!F:F,MATCH(A94,Outcomes!H:H,0)),"") ->  | X94: Confluence with Tanana|Charactersitic native community | AA94: =IF(K94=Scoring!$A$45,Scoring!$B$45,IF(K94=Scoring!$A$46,Scoring!$B$46,IF(K94=Scoring!$A$47,Scoring!$B$47,IF(K94=Scoring!$A$48,Scoring!$B$48,IF(K94=Scoring!$A$49,Scoring!$B$49,IF(K94=Scoring!$A$50,Scoring!$B$50)))))) -> 80.03 | AB94: =IF(L94=Scoring!$A$45,Scoring!$B$45,IF(L94=Scoring!$A$46,Scoring!$B$46,IF(L94=Scoring!$A$47,Scoring!$B$47,IF(L94=Scoring!$A$48,Scoring!$B$48,IF(L94=Scoring!$A$49,Scoring!$B$49,IF(L94=Scoring!$A$50,Scoring!$B$50)))))) -> 60.04 | AD94: 19.99 | AE94: =IF(AD94>Scoring!$B$134,Scoring!$A$134,IF(AD94>Scoring!$B$135,Scoring!$A$135,IF(AD94>Scoring!$B$136,Scoring!$A$136,IF(AD94>Scoring!$B$137,Scoring!$A$137,IF(AD94>Scoring!$B$138,Scoring!$A$138,IF(AD94>Scoring!$B$139,Scoring!$A$139,IF(AD94>Scoring!$B$140,Scoring!$A$140,IF(AD94>Scoring!$B$141,Scoring!$A$141,IF(AD94>=Scoring!$B$142,Scoring!$A$142,IF(AD94>Scoring!$B$143,Scoring!$A$143)))))))))) -> Moderate | AF94: 6
A95: 1007 | B95: 10 | C95: Confluence with Tanana | D95: Condition | E95: Species composition | F95: Presence/absence, extent of invasive species | G95: High abundance of invasive/non-native species in most habitats | H95: Moderate abundance of invasive/non-native species in most habitats | I95: Low presence of existing invasive/non-native species in most habitats with NO new invasive species | J95: Mimimal to no abundance of invasive/non-native species in most habitats | K95: Good | L95: Good - | M95: =IFERROR(INDEX(Outcomes!F:F,MATCH(A95,Outcomes!H:H,0)),"") -> Good | X95: Confluence with Tanana|Species composition | AA95: =IF(K95=Scoring!$A$45,Scoring!$B$45,IF(K95=Scoring!$A$46,Scoring!$B$46,IF(K95=Scoring!$A$47,Scoring!$B$47,IF(K95=Scoring!$A$48,Scoring!$B$48,IF(K95=Scoring!$A$49,Scoring!$B$49,IF(K95=Scoring!$A$50,Scoring!$B$50)))))) -> 80.03 | AB95: =IF(L95=Scoring!$A$45,Scoring!$B$45,IF(L95=Scoring!$A$46,Scoring!$B$46,IF(L95=Scoring!$A$47,Scoring!$B$47,IF(L95=Scoring!$A$48,Scoring!$B$48,IF(L95=Scoring!$A$49,Scoring!$B$49,IF(L95=Scoring!$A$50,Scoring!$B$50)))))) -> 60.04 | AD95: 19.99 | AE95: =IF(AD95>Scoring!$B$134,Scoring!$A$134,IF(AD95>Scoring!$B$135,Scoring!$A$135,IF(AD95>Scoring!$B$136,Scoring!$A$136,IF(AD95>Scoring!$B$137,Scoring!$A$137,IF(AD95>Scoring!$B$138,Scoring!$A$138,IF(AD95>Scoring!$B$139,Scoring!$A$139,IF(AD95>Scoring!$B$140,Scoring!$A$140,IF(AD95>Scoring!$B$141,Scoring!$A$141,IF(AD95>=Scoring!$B$142,Scoring!$A$142,IF(AD95>Scoring!$B$143,Scoring!$A$143)))))))))) -> Moderate | AF95: 6
A96: 1008 | B96: 10 | C96: Confluence with Tanana | D96: Condition | E96: Water quality | F96: Temperature, DO, toxins, or litter/trash/residues | G96: High TBD% not meeting most ADEC’s standards | H96: Moderate habitats meet most ADEC’s standards | I96: Most habitats are meeting most ADEC's standards | J96: Majority to all habitats meet most ADEC’s standards | K96: Good | L96: Good - | M96: =IFERROR(INDEX(Outcomes!F:F,MATCH(A96,Outcomes!H:H,0)),"") ->  | X96: Confluence with Tanana|Water quality | AA96: =IF(K96=Scoring!$A$45,Scoring!$B$45,IF(K96=Scoring!$A$46,Scoring!$B$46,IF(K96=Scoring!$A$47,Scoring!$B$47,IF(K96=Scoring!$A$48,Scoring!$B$48,IF(K96=Scoring!$A$49,Scoring!$B$49,IF(K96=Scoring!$A$50,Scoring!$B$50)))))) -> 80.03 | AB96: =IF(L96=Scoring!$A$45,Scoring!$B$45,IF(L96=Scoring!$A$46,Scoring!$B$46,IF(L96=Scoring!$A$47,Scoring!$B$47,IF(L96=Scoring!$A$48,Scoring!$B$48,IF(L96=Scoring!$A$49,Scoring!$B$49,IF(L96=Scoring!$A$50,Scoring!$B$50)))))) -> 60.04 | AD96: 19.99 | AE96: =IF(AD96>Scoring!$B$134,Scoring!$A$134,IF(AD96>Scoring!$B$135,Scoring!$A$135,IF(AD96>Scoring!$B$136,Scoring!$A$136,IF(AD96>Scoring!$B$137,Scoring!$A$137,IF(AD96>Scoring!$B$138,Scoring!$A$138,IF(AD96>Scoring!$B$139,Scoring!$A$139,IF(AD96>Scoring!$B$140,Scoring!$A$140,IF(AD96>Scoring!$B$141,Scoring!$A$141,IF(AD96>=Scoring!$B$142,Scoring!$A$142,IF(AD96>Scoring!$B$143,Scoring!$A$143)))))))))) -> Moderate | AF96: 6
A97: 1009 | B97: 10 | C97: Confluence with Tanana | D97: Size | E97: Extent includes floodplain/riparian and river area | F97: Acres | G97: Severe loss | H97: Moderate to substantial loss | I97: Minimal loss | J97: Mother Nature | K97: Good | L97: Good - | M97: =IFERROR(INDEX(Outcomes!F:F,MATCH(A97,Outcomes!H:H,0)),"") ->  | X97: Confluence with Tanana|Extent includes floodplain/riparian and river area | AA97: =IF(K97=Scoring!$A$45,Scoring!$B$45,IF(K97=Scoring!$A$46,Scoring!$B$46,IF(K97=Scoring!$A$47,Scoring!$B$47,IF(K97=Scoring!$A$48,Scoring!$B$48,IF(K97=Scoring!$A$49,Scoring!$B$49,IF(K97=Scoring!$A$50,Scoring!$B$50)))))) -> 80.03 | AB97: =IF(L97=Scoring!$A$45,Scoring!$B$45,IF(L97=Scoring!$A$46,Scoring!$B$46,IF(L97=Scoring!$A$47,Scoring!$B$47,IF(L97=Scoring!$A$48,Scoring!$B$48,IF(L97=Scoring!$A$49,Scoring!$B$49,IF(L97=Scoring!$A$50,Scoring!$B$50)))))) -> 60.04 | AD97: 19.99 | AE97: =IF(AD97>Scoring!$B$134,Scoring!$A$134,IF(AD97>Scoring!$B$135,Scoring!$A$135,IF(AD97>Scoring!$B$136,Scoring!$A$136,IF(AD97>Scoring!$B$137,Scoring!$A$137,IF(AD97>Scoring!$B$138,Scoring!$A$138,IF(AD97>Scoring!$B$139,Scoring!$A$139,IF(AD97>Scoring!$B$140,Scoring!$A$140,IF(AD97>Scoring!$B$141,Scoring!$A$141,IF(AD97>=Scoring!$B$142,Scoring!$A$142,IF(AD97>Scoring!$B$143,Scoring!$A$143)))))))))) -> Moderate | AF97: 6
A98: 1010 | B98: 10 | C98: Confluence with Tanana | M98: =IFERROR(INDEX(Outcomes!F:F,MATCH(A98,Outcomes!H:H,0)),"") ->  | X98: =C98 & "|" &E98 -> Confluence with Tanana| | AA98: =IF(K98=Scoring!$A$45,Scoring!$B$45,IF(K98=Scoring!$A$46,Scoring!$B$46,IF(K98=Scoring!$A$47,Scoring!$B$47,IF(K98=Scoring!$A$48,Scoring!$B$48,IF(K98=Scoring!$A$49,Scoring!$B$49,IF(K98=Scoring!$A$50,Scoring!$B$50)))))) -> FALSE | AB98: =IF(L98=Scoring!$A$45,Scoring!$B$45,IF(L98=Scoring!$A$46,Scoring!$B$46,IF(L98=Scoring!$A$47,Scoring!$B$47,IF(L98=Scoring!$A$48,Scoring!$B$48,IF(L98=Scoring!$A$49,Scoring!$B$49,IF(L98=Scoring!$A$50,Scoring!$B$50)))))) -> FALSE | AD98: =AA98-AB98 -> 0 | AE98: =IF(AD98>Scoring!$B$134,Scoring!$A$134,IF(AD98>Scoring!$B$135,Scoring!$A$135,IF(AD98>Scoring!$B$136,Scoring!$A$136,IF(AD98>Scoring!$B$137,Scoring!$A$137,IF(AD98>Scoring!$B$138,Scoring!$A$138,IF(AD98>Scoring!$B$139,Scoring!$A$139,IF(AD98>Scoring!$B$140,Scoring!$A$140,IF(AD98>Scoring!$B$141,Scoring!$A$141,IF(AD98>=Scoring!$B$142,Scoring!$A$142,IF(AD98>Scoring!$B$143,Scoring!$A$143)))))))))) -> None | AF98: =IFERROR(INDEX(StrategicActionMatrix,MATCH(K98,Rating,0),MATCH(AE98,Change,0)),"") -> 
A99: 1011 | B99: 10 | C99: Confluence with Tanana | M99: =IFERROR(INDEX(Outcomes!F:F,MATCH(A99,Outcomes!H:H,0)),"") ->  | X99: Confluence with Tanana| | AA99: =IF(K99=Scoring!$A$45,Scoring!$B$45,IF(K99=Scoring!$A$46,Scoring!$B$46,IF(K99=Scoring!$A$47,Scoring!$B$47,IF(K99=Scoring!$A$48,Scoring!$B$48,IF(K99=Scoring!$A$49,Scoring!$B$49,IF(K99=Scoring!$A$50,Scoring!$B$50)))))) -> FALSE | AB99: =IF(L99=Scoring!$A$45,Scoring!$B$45,IF(L99=Scoring!$A$46,Scoring!$B$46,IF(L99=Scoring!$A$47,Scoring!$B$47,IF(L99=Scoring!$A$48,Scoring!$B$48,IF(L99=Scoring!$A$49,Scoring!$B$49,IF(L99=Scoring!$A$50,Scoring!$B$50)))))) -> FALSE | AD99: 0 | AE99: =IF(AD99>Scoring!$B$134,Scoring!$A$134,IF(AD99>Scoring!$B$135,Scoring!$A$135,IF(AD99>Scoring!$B$136,Scoring!$A$136,IF(AD99>Scoring!$B$137,Scoring!$A$137,IF(AD99>Scoring!$B$138,Scoring!$A$138,IF(AD99>Scoring!$B$139,Scoring!$A$139,IF(AD99>Scoring!$B$140,Scoring!$A$140,IF(AD99>Scoring!$B$141,Scoring!$A$141,IF(AD99>=Scoring!$B$142,Scoring!$A$142,IF(AD99>Scoring!$B$143,Scoring!$A$143)))))))))) -> None
A100: 1012 | B100: 10 | C100: Confluence with Tanana | M100: =IFERROR(INDEX(Outcomes!F:F,MATCH(A100,Outcomes!H:H,0)),"") ->  | X100: Confluence with Tanana| | AA100: =IF(K100=Scoring!$A$45,Scoring!$B$45,IF(K100=Scoring!$A$46,Scoring!$B$46,IF(K100=Scoring!$A$47,Scoring!$B$47,IF(K100=Scoring!$A$48,Scoring!$B$48,IF(K100=Scoring!$A$49,Scoring!$B$49,IF(K100=Scoring!$A$50,Scoring!$B$50)))))) -> FALSE | AB100: =IF(L100=Scoring!$A$45,Scoring!$B$45,IF(L100=Scoring!$A$46,Scoring!$B$46,IF(L100=Scoring!$A$47,Scoring!$B$47,IF(L100=Scoring!$A$48,Scoring!$B$48,IF(L100=Scoring!$A$49,Scoring!$B$49,IF(L100=Scoring!$A$50,Scoring!$B$50)))))) -> FALSE | AD100: 0 | AE100: =IF(AD100>Scoring!$B$134,Scoring!$A$134,IF(AD100>Scoring!$B$135,Scoring!$A$135,IF(AD100>Scoring!$B$136,Scoring!$A$136,IF(AD100>Scoring!$B$137,Scoring!$A$137,IF(AD100>Scoring!$B$138,Scoring!$A$138,IF(AD100>Scoring!$B$139,Scoring!$A$139,IF(AD100>Scoring!$B$140,Scoring!$A$140,IF(AD100>Scoring!$B$141,Scoring!$A$141,IF(AD100>=Scoring!$B$142,Scoring!$A$142,IF(AD100>Scoring!$B$143,Scoring!$A$143)))))))))) -> None
A101: 1013 | B101: 10 | C101: Confluence with Tanana | M101: =IFERROR(INDEX(Outcomes!F:F,MATCH(A101,Outcomes!H:H,0)),"") ->  | X101: Confluence with Tanana| | AA101: =IF(K101=Scoring!$A$45,Scoring!$B$45,IF(K101=Scoring!$A$46,Scoring!$B$46,IF(K101=Scoring!$A$47,Scoring!$B$47,IF(K101=Scoring!$A$48,Scoring!$B$48,IF(K101=Scoring!$A$49,Scoring!$B$49,IF(K101=Scoring!$A$50,Scoring!$B$50)))))) -> FALSE | AB101: =IF(L101=Scoring!$A$45,Scoring!$B$45,IF(L101=Scoring!$A$46,Scoring!$B$46,IF(L101=Scoring!$A$47,Scoring!$B$47,IF(L101=Scoring!$A$48,Scoring!$B$48,IF(L101=Scoring!$A$49,Scoring!$B$49,IF(L101=Scoring!$A$50,Scoring!$B$50)))))) -> FALSE | AD101: 0 | AE101: =IF(AD101>Scoring!$B$134,Scoring!$A$134,IF(AD101>Scoring!$B$135,Scoring!$A$135,IF(AD101>Scoring!$B$136,Scoring!$A$136,IF(AD101>Scoring!$B$137,Scoring!$A$137,IF(AD101>Scoring!$B$138,Scoring!$A$138,IF(AD101>Scoring!$B$139,Scoring!$A$139,IF(AD101>Scoring!$B$140,Scoring!$A$140,IF(AD101>Scoring!$B$141,Scoring!$A$141,IF(AD101>=Scoring!$B$142,Scoring!$A$142,IF(AD101>Scoring!$B$143,Scoring!$A$143)))))))))) -> None
A102: 1104 | B102: 11 | M102: =IFERROR(INDEX(Outcomes!F:F,MATCH(A102,Outcomes!H:H,0)),"") ->  | X102: | | AA102: =IF(K102=Scoring!$A$45,Scoring!$B$45,IF(K102=Scoring!$A$46,Scoring!$B$46,IF(K102=Scoring!$A$47,Scoring!$B$47,IF(K102=Scoring!$A$48,Scoring!$B$48,IF(K102=Scoring!$A$49,Scoring!$B$49,IF(K102=Scoring!$A$50,Scoring!$B$50)))))) -> FALSE | AB102: =IF(L102=Scoring!$A$45,Scoring!$B$45,IF(L102=Scoring!$A$46,Scoring!$B$46,IF(L102=Scoring!$A$47,Scoring!$B$47,IF(L102=Scoring!$A$48,Scoring!$B$48,IF(L102=Scoring!$A$49,Scoring!$B$49,IF(L102=Scoring!$A$50,Scoring!$B$50)))))) -> FALSE | AD102: 0 | AE102: =IF(AD102>Scoring!$B$134,Scoring!$A$134,IF(AD102>Scoring!$B$135,Scoring!$A$135,IF(AD102>Scoring!$B$136,Scoring!$A$136,IF(AD102>Scoring!$B$137,Scoring!$A$137,IF(AD102>Scoring!$B$138,Scoring!$A$138,IF(AD102>Scoring!$B$139,Scoring!$A$139,IF(AD102>Scoring!$B$140,Scoring!$A$140,IF(AD102>Scoring!$B$141,Scoring!$A$141,IF(AD102>=Scoring!$B$142,Scoring!$A$142,IF(AD102>Scoring!$B$143,Scoring!$A$143)))))))))) -> None
A103: 1105 | B103: 11 | M103: =IFERROR(INDEX(Outcomes!F:F,MATCH(A103,Outcomes!H:H,0)),"") ->  | X103: | | AA103: =IF(K103=Scoring!$A$45,Scoring!$B$45,IF(K103=Scoring!$A$46,Scoring!$B$46,IF(K103=Scoring!$A$47,Scoring!$B$47,IF(K103=Scoring!$A$48,Scoring!$B$48,IF(K103=Scoring!$A$49,Scoring!$B$49,IF(K103=Scoring!$A$50,Scoring!$B$50)))))) -> FALSE | AB103: =IF(L103=Scoring!$A$45,Scoring!$B$45,IF(L103=Scoring!$A$46,Scoring!$B$46,IF(L103=Scoring!$A$47,Scoring!$B$47,IF(L103=Scoring!$A$48,Scoring!$B$48,IF(L103=Scoring!$A$49,Scoring!$B$49,IF(L103=Scoring!$A$50,Scoring!$B$50)))))) -> FALSE | AD103: 0 | AE103: =IF(AD103>Scoring!$B$134,Scoring!$A$134,IF(AD103>Scoring!$B$135,Scoring!$A$135,IF(AD103>Scoring!$B$136,Scoring!$A$136,IF(AD103>Scoring!$B$137,Scoring!$A$137,IF(AD103>Scoring!$B$138,Scoring!$A$138,IF(AD103>Scoring!$B$139,Scoring!$A$139,IF(AD103>Scoring!$B$140,Scoring!$A$140,IF(AD103>Scoring!$B$141,Scoring!$A$141,IF(AD103>=Scoring!$B$142,Scoring!$A$142,IF(AD103>Scoring!$B$143,Scoring!$A$143)))))))))) -> None
A104: 1106 | B104: 11 | M104: =IFERROR(INDEX(Outcomes!F:F,MATCH(A104,Outcomes!H:H,0)),"") ->  | X104: | | AA104: =IF(K104=Scoring!$A$45,Scoring!$B$45,IF(K104=Scoring!$A$46,Scoring!$B$46,IF(K104=Scoring!$A$47,Scoring!$B$47,IF(K104=Scoring!$A$48,Scoring!$B$48,IF(K104=Scoring!$A$49,Scoring!$B$49,IF(K104=Scoring!$A$50,Scoring!$B$50)))))) -> FALSE | AB104: =IF(L104=Scoring!$A$45,Scoring!$B$45,IF(L104=Scoring!$A$46,Scoring!$B$46,IF(L104=Scoring!$A$47,Scoring!$B$47,IF(L104=Scoring!$A$48,Scoring!$B$48,IF(L104=Scoring!$A$49,Scoring!$B$49,IF(L104=Scoring!$A$50,Scoring!$B$50)))))) -> FALSE | AD104: 0 | AE104: =IF(AD104>Scoring!$B$134,Scoring!$A$134,IF(AD104>Scoring!$B$135,Scoring!$A$135,IF(AD104>Scoring!$B$136,Scoring!$A$136,IF(AD104>Scoring!$B$137,Scoring!$A$137,IF(AD104>Scoring!$B$138,Scoring!$A$138,IF(AD104>Scoring!$B$139,Scoring!$A$139,IF(AD104>Scoring!$B$140,Scoring!$A$140,IF(AD104>Scoring!$B$141,Scoring!$A$141,IF(AD104>=Scoring!$B$142,Scoring!$A$142,IF(AD104>Scoring!$B$143,Scoring!$A$143)))))))))) -> None
A105: 1107 | B105: 11 | M105: =IFERROR(INDEX(Outcomes!F:F,MATCH(A105,Outcomes!H:H,0)),"") ->  | X105: | | AA105: =IF(K105=Scoring!$A$45,Scoring!$B$45,IF(K105=Scoring!$A$46,Scoring!$B$46,IF(K105=Scoring!$A$47,Scoring!$B$47,IF(K105=Scoring!$A$48,Scoring!$B$48,IF(K105=Scoring!$A$49,Scoring!$B$49,IF(K105=Scoring!$A$50,Scoring!$B$50)))))) -> FALSE | AB105: =IF(L105=Scoring!$A$45,Scoring!$B$45,IF(L105=Scoring!$A$46,Scoring!$B$46,IF(L105=Scoring!$A$47,Scoring!$B$47,IF(L105=Scoring!$A$48,Scoring!$B$48,IF(L105=Scoring!$A$49,Scoring!$B$49,IF(L105=Scoring!$A$50,Scoring!$B$50)))))) -> FALSE | AD105: 0 | AE105: =IF(AD105>Scoring!$B$134,Scoring!$A$134,IF(AD105>Scoring!$B$135,Scoring!$A$135,IF(AD105>Scoring!$B$136,Scoring!$A$136,IF(AD105>Scoring!$B$137,Scoring!$A$137,IF(AD105>Scoring!$B$138,Scoring!$A$138,IF(AD105>Scoring!$B$139,Scoring!$A$139,IF(AD105>Scoring!$B$140,Scoring!$A$140,IF(AD105>Scoring!$B$141,Scoring!$A$141,IF(AD105>=Scoring!$B$142,Scoring!$A$142,IF(AD105>Scoring!$B$143,Scoring!$A$143)))))))))) -> None
A106: 1108 | B106: 11 | M106: =IFERROR(INDEX(Outcomes!F:F,MATCH(A106,Outcomes!H:H,0)),"") ->  | X106: | | AA106: =IF(K106=Scoring!$A$45,Scoring!$B$45,IF(K106=Scoring!$A$46,Scoring!$B$46,IF(K106=Scoring!$A$47,Scoring!$B$47,IF(K106=Scoring!$A$48,Scoring!$B$48,IF(K106=Scoring!$A$49,Scoring!$B$49,IF(K106=Scoring!$A$50,Scoring!$B$50)))))) -> FALSE | AB106: =IF(L106=Scoring!$A$45,Scoring!$B$45,IF(L106=Scoring!$A$46,Scoring!$B$46,IF(L106=Scoring!$A$47,Scoring!$B$47,IF(L106=Scoring!$A$48,Scoring!$B$48,IF(L106=Scoring!$A$49,Scoring!$B$49,IF(L106=Scoring!$A$50,Scoring!$B$50)))))) -> FALSE | AD106: 0 | AE106: =IF(AD106>Scoring!$B$134,Scoring!$A$134,IF(AD106>Scoring!$B$135,Scoring!$A$135,IF(AD106>Scoring!$B$136,Scoring!$A$136,IF(AD106>Scoring!$B$137,Scoring!$A$137,IF(AD106>Scoring!$B$138,Scoring!$A$138,IF(AD106>Scoring!$B$139,Scoring!$A$139,IF(AD106>Scoring!$B$140,Scoring!$A$140,IF(AD106>Scoring!$B$141,Scoring!$A$141,IF(AD106>=Scoring!$B$142,Scoring!$A$142,IF(AD106>Scoring!$B$143,Scoring!$A$143)))))))))) -> None
A107: 1109 | B107: 11 | M107: =IFERROR(INDEX(Outcomes!F:F,MATCH(A107,Outcomes!H:H,0)),"") ->  | X107: | | AA107: =IF(K107=Scoring!$A$45,Scoring!$B$45,IF(K107=Scoring!$A$46,Scoring!$B$46,IF(K107=Scoring!$A$47,Scoring!$B$47,IF(K107=Scoring!$A$48,Scoring!$B$48,IF(K107=Scoring!$A$49,Scoring!$B$49,IF(K107=Scoring!$A$50,Scoring!$B$50)))))) -> FALSE | AB107: =IF(L107=Scoring!$A$45,Scoring!$B$45,IF(L107=Scoring!$A$46,Scoring!$B$46,IF(L107=Scoring!$A$47,Scoring!$B$47,IF(L107=Scoring!$A$48,Scoring!$B$48,IF(L107=Scoring!$A$49,Scoring!$B$49,IF(L107=Scoring!$A$50,Scoring!$B$50)))))) -> FALSE | AD107: 0 | AE107: =IF(AD107>Scoring!$B$134,Scoring!$A$134,IF(AD107>Scoring!$B$135,Scoring!$A$135,IF(AD107>Scoring!$B$136,Scoring!$A$136,IF(AD107>Scoring!$B$137,Scoring!$A$137,IF(AD107>Scoring!$B$138,Scoring!$A$138,IF(AD107>Scoring!$B$139,Scoring!$A$139,IF(AD107>Scoring!$B$140,Scoring!$A$140,IF(AD107>Scoring!$B$141,Scoring!$A$141,IF(AD107>=Scoring!$B$142,Scoring!$A$142,IF(AD107>Scoring!$B$143,Scoring!$A$143)))))))))) -> None
A108: 1110 | B108: 11 | M108: =IFERROR(INDEX(Outcomes!F:F,MATCH(A108,Outcomes!H:H,0)),"") ->  | X108: | | AA108: =IF(K108=Scoring!$A$45,Scoring!$B$45,IF(K108=Scoring!$A$46,Scoring!$B$46,IF(K108=Scoring!$A$47,Scoring!$B$47,IF(K108=Scoring!$A$48,Scoring!$B$48,IF(K108=Scoring!$A$49,Scoring!$B$49,IF(K108=Scoring!$A$50,Scoring!$B$50)))))) -> FALSE | AB108: =IF(L108=Scoring!$A$45,Scoring!$B$45,IF(L108=Scoring!$A$46,Scoring!$B$46,IF(L108=Scoring!$A$47,Scoring!$B$47,IF(L108=Scoring!$A$48,Scoring!$B$48,IF(L108=Scoring!$A$49,Scoring!$B$49,IF(L108=Scoring!$A$50,Scoring!$B$50)))))) -> FALSE | AD108: 0 | AE108: =IF(AD108>Scoring!$B$134,Scoring!$A$134,IF(AD108>Scoring!$B$135,Scoring!$A$135,IF(AD108>Scoring!$B$136,Scoring!$A$136,IF(AD108>Scoring!$B$137,Scoring!$A$137,IF(AD108>Scoring!$B$138,Scoring!$A$138,IF(AD108>Scoring!$B$139,Scoring!$A$139,IF(AD108>Scoring!$B$140,Scoring!$A$140,IF(AD108>Scoring!$B$141,Scoring!$A$141,IF(AD108>=Scoring!$B$142,Scoring!$A$142,IF(AD108>Scoring!$B$143,Scoring!$A$143)))))))))) -> None
A109: 1111 | B109: 11 | M109: =IFERROR(INDEX(Outcomes!F:F,MATCH(A109,Outcomes!H:H,0)),"") ->  | X109: | | AA109: =IF(K109=Scoring!$A$45,Scoring!$B$45,IF(K109=Scoring!$A$46,Scoring!$B$46,IF(K109=Scoring!$A$47,Scoring!$B$47,IF(K109=Scoring!$A$48,Scoring!$B$48,IF(K109=Scoring!$A$49,Scoring!$B$49,IF(K109=Scoring!$A$50,Scoring!$B$50)))))) -> FALSE | AB109: =IF(L109=Scoring!$A$45,Scoring!$B$45,IF(L109=Scoring!$A$46,Scoring!$B$46,IF(L109=Scoring!$A$47,Scoring!$B$47,IF(L109=Scoring!$A$48,Scoring!$B$48,IF(L109=Scoring!$A$49,Scoring!$B$49,IF(L109=Scoring!$A$50,Scoring!$B$50)))))) -> FALSE | AD109: 0 | AE109: =IF(AD109>Scoring!$B$134,Scoring!$A$134,IF(AD109>Scoring!$B$135,Scoring!$A$135,IF(AD109>Scoring!$B$136,Scoring!$A$136,IF(AD109>Scoring!$B$137,Scoring!$A$137,IF(AD109>Scoring!$B$138,Scoring!$A$138,IF(AD109>Scoring!$B$139,Scoring!$A$139,IF(AD109>Scoring!$B$140,Scoring!$A$140,IF(AD109>Scoring!$B$141,Scoring!$A$141,IF(AD109>=Scoring!$B$142,Scoring!$A$142,IF(AD109>Scoring!$B$143,Scoring!$A$143)))))))))) -> None
A110: 1112 | B110: 11 | M110: =IFERROR(INDEX(Outcomes!F:F,MATCH(A110,Outcomes!H:H,0)),"") ->  | X110: | | AA110: =IF(K110=Scoring!$A$45,Scoring!$B$45,IF(K110=Scoring!$A$46,Scoring!$B$46,IF(K110=Scoring!$A$47,Scoring!$B$47,IF(K110=Scoring!$A$48,Scoring!$B$48,IF(K110=Scoring!$A$49,Scoring!$B$49,IF(K110=Scoring!$A$50,Scoring!$B$50)))))) -> FALSE | AB110: =IF(L110=Scoring!$A$45,Scoring!$B$45,IF(L110=Scoring!$A$46,Scoring!$B$46,IF(L110=Scoring!$A$47,Scoring!$B$47,IF(L110=Scoring!$A$48,Scoring!$B$48,IF(L110=Scoring!$A$49,Scoring!$B$49,IF(L110=Scoring!$A$50,Scoring!$B$50)))))) -> FALSE | AD110: 0 | AE110: =IF(AD110>Scoring!$B$134,Scoring!$A$134,IF(AD110>Scoring!$B$135,Scoring!$A$135,IF(AD110>Scoring!$B$136,Scoring!$A$136,IF(AD110>Scoring!$B$137,Scoring!$A$137,IF(AD110>Scoring!$B$138,Scoring!$A$138,IF(AD110>Scoring!$B$139,Scoring!$A$139,IF(AD110>Scoring!$B$140,Scoring!$A$140,IF(AD110>Scoring!$B$141,Scoring!$A$141,IF(AD110>=Scoring!$B$142,Scoring!$A$142,IF(AD110>Scoring!$B$143,Scoring!$A$143)))))))))) -> None
A111: 1113 | B111: 11 | M111: =IFERROR(INDEX(Outcomes!F:F,MATCH(A111,Outcomes!H:H,0)),"") ->  | X111: | | AA111: =IF(K111=Scoring!$A$45,Scoring!$B$45,IF(K111=Scoring!$A$46,Scoring!$B$46,IF(K111=Scoring!$A$47,Scoring!$B$47,IF(K111=Scoring!$A$48,Scoring!$B$48,IF(K111=Scoring!$A$49,Scoring!$B$49,IF(K111=Scoring!$A$50,Scoring!$B$50)))))) -> FALSE | AB111: =IF(L111=Scoring!$A$45,Scoring!$B$45,IF(L111=Scoring!$A$46,Scoring!$B$46,IF(L111=Scoring!$A$47,Scoring!$B$47,IF(L111=Scoring!$A$48,Scoring!$B$48,IF(L111=Scoring!$A$49,Scoring!$B$49,IF(L111=Scoring!$A$50,Scoring!$B$50)))))) -> FALSE | AD111: 0 | AE111: =IF(AD111>Scoring!$B$134,Scoring!$A$134,IF(AD111>Scoring!$B$135,Scoring!$A$135,IF(AD111>Scoring!$B$136,Scoring!$A$136,IF(AD111>Scoring!$B$137,Scoring!$A$137,IF(AD111>Scoring!$B$138,Scoring!$A$138,IF(AD111>Scoring!$B$139,Scoring!$A$139,IF(AD111>Scoring!$B$140,Scoring!$A$140,IF(AD111>Scoring!$B$141,Scoring!$A$141,IF(AD111>=Scoring!$B$142,Scoring!$A$142,IF(AD111>Scoring!$B$143,Scoring!$A$143)))))))))) -> None
A112: 1204 | B112: 12 | M112: =IFERROR(INDEX(Outcomes!F:F,MATCH(A112,Outcomes!H:H,0)),"") ->  | X112: | | AA112: =IF(K112=Scoring!$A$45,Scoring!$B$45,IF(K112=Scoring!$A$46,Scoring!$B$46,IF(K112=Scoring!$A$47,Scoring!$B$47,IF(K112=Scoring!$A$48,Scoring!$B$48,IF(K112=Scoring!$A$49,Scoring!$B$49,IF(K112=Scoring!$A$50,Scoring!$B$50)))))) -> FALSE | AB112: =IF(L112=Scoring!$A$45,Scoring!$B$45,IF(L112=Scoring!$A$46,Scoring!$B$46,IF(L112=Scoring!$A$47,Scoring!$B$47,IF(L112=Scoring!$A$48,Scoring!$B$48,IF(L112=Scoring!$A$49,Scoring!$B$49,IF(L112=Scoring!$A$50,Scoring!$B$50)))))) -> FALSE | AD112: 0 | AE112: =IF(AD112>Scoring!$B$134,Scoring!$A$134,IF(AD112>Scoring!$B$135,Scoring!$A$135,IF(AD112>Scoring!$B$136,Scoring!$A$136,IF(AD112>Scoring!$B$137,Scoring!$A$137,IF(AD112>Scoring!$B$138,Scoring!$A$138,IF(AD112>Scoring!$B$139,Scoring!$A$139,IF(AD112>Scoring!$B$140,Scoring!$A$140,IF(AD112>Scoring!$B$141,Scoring!$A$141,IF(AD112>=Scoring!$B$142,Scoring!$A$142,IF(AD112>Scoring!$B$143,Scoring!$A$143)))))))))) -> None
A113: 1205 | B113: 12 | M113: =IFERROR(INDEX(Outcomes!F:F,MATCH(A113,Outcomes!H:H,0)),"") ->  | X113: | | AA113: =IF(K113=Scoring!$A$45,Scoring!$B$45,IF(K113=Scoring!$A$46,Scoring!$B$46,IF(K113=Scoring!$A$47,Scoring!$B$47,IF(K113=Scoring!$A$48,Scoring!$B$48,IF(K113=Scoring!$A$49,Scoring!$B$49,IF(K113=Scoring!$A$50,Scoring!$B$50)))))) -> FALSE | AB113: =IF(L113=Scoring!$A$45,Scoring!$B$45,IF(L113=Scoring!$A$46,Scoring!$B$46,IF(L113=Scoring!$A$47,Scoring!$B$47,IF(L113=Scoring!$A$48,Scoring!$B$48,IF(L113=Scoring!$A$49,Scoring!$B$49,IF(L113=Scoring!$A$50,Scoring!$B$50)))))) -> FALSE | AD113: 0 | AE113: =IF(AD113>Scoring!$B$134,Scoring!$A$134,IF(AD113>Scoring!$B$135,Scoring!$A$135,IF(AD113>Scoring!$B$136,Scoring!$A$136,IF(AD113>Scoring!$B$137,Scoring!$A$137,IF(AD113>Scoring!$B$138,Scoring!$A$138,IF(AD113>Scoring!$B$139,Scoring!$A$139,IF(AD113>Scoring!$B$140,Scoring!$A$140,IF(AD113>Scoring!$B$141,Scoring!$A$141,IF(AD113>=Scoring!$B$142,Scoring!$A$142,IF(AD113>Scoring!$B$143,Scoring!$A$143)))))))))) -> None
A114: 1206 | B114: 12 | M114: =IFERROR(INDEX(Outcomes!F:F,MATCH(A114,Outcomes!H:H,0)),"") ->  | X114: | | AA114: =IF(K114=Scoring!$A$45,Scoring!$B$45,IF(K114=Scoring!$A$46,Scoring!$B$46,IF(K114=Scoring!$A$47,Scoring!$B$47,IF(K114=Scoring!$A$48,Scoring!$B$48,IF(K114=Scoring!$A$49,Scoring!$B$49,IF(K114=Scoring!$A$50,Scoring!$B$50)))))) -> FALSE | AB114: =IF(L114=Scoring!$A$45,Scoring!$B$45,IF(L114=Scoring!$A$46,Scoring!$B$46,IF(L114=Scoring!$A$47,Scoring!$B$47,IF(L114=Scoring!$A$48,Scoring!$B$48,IF(L114=Scoring!$A$49,Scoring!$B$49,IF(L114=Scoring!$A$50,Scoring!$B$50)))))) -> FALSE | AD114: 0 | AE114: =IF(AD114>Scoring!$B$134,Scoring!$A$134,IF(AD114>Scoring!$B$135,Scoring!$A$135,IF(AD114>Scoring!$B$136,Scoring!$A$136,IF(AD114>Scoring!$B$137,Scoring!$A$137,IF(AD114>Scoring!$B$138,Scoring!$A$138,IF(AD114>Scoring!$B$139,Scoring!$A$139,IF(AD114>Scoring!$B$140,Scoring!$A$140,IF(AD114>Scoring!$B$141,Scoring!$A$141,IF(AD114>=Scoring!$B$142,Scoring!$A$142,IF(AD114>Scoring!$B$143,Scoring!$A$143)))))))))) -> None
A115: 1207 | B115: 12 | M115: =IFERROR(INDEX(Outcomes!F:F,MATCH(A115,Outcomes!H:H,0)),"") ->  | X115: | | AA115: =IF(K115=Scoring!$A$45,Scoring!$B$45,IF(K115=Scoring!$A$46,Scoring!$B$46,IF(K115=Scoring!$A$47,Scoring!$B$47,IF(K115=Scoring!$A$48,Scoring!$B$48,IF(K115=Scoring!$A$49,Scoring!$B$49,IF(K115=Scoring!$A$50,Scoring!$B$50)))))) -> FALSE | AB115: =IF(L115=Scoring!$A$45,Scoring!$B$45,IF(L115=Scoring!$A$46,Scoring!$B$46,IF(L115=Scoring!$A$47,Scoring!$B$47,IF(L115=Scoring!$A$48,Scoring!$B$48,IF(L115=Scoring!$A$49,Scoring!$B$49,IF(L115=Scoring!$A$50,Scoring!$B$50)))))) -> FALSE | AD115: 0 | AE115: =IF(AD115>Scoring!$B$134,Scoring!$A$134,IF(AD115>Scoring!$B$135,Scoring!$A$135,IF(AD115>Scoring!$B$136,Scoring!$A$136,IF(AD115>Scoring!$B$137,Scoring!$A$137,IF(AD115>Scoring!$B$138,Scoring!$A$138,IF(AD115>Scoring!$B$139,Scoring!$A$139,IF(AD115>Scoring!$B$140,Scoring!$A$140,IF(AD115>Scoring!$B$141,Scoring!$A$141,IF(AD115>=Scoring!$B$142,Scoring!$A$142,IF(AD115>Scoring!$B$143,Scoring!$A$143)))))))))) -> None
A116: 1208 | B116: 12 | M116: =IFERROR(INDEX(Outcomes!F:F,MATCH(A116,Outcomes!H:H,0)),"") ->  | X116: | | AA116: =IF(K116=Scoring!$A$45,Scoring!$B$45,IF(K116=Scoring!$A$46,Scoring!$B$46,IF(K116=Scoring!$A$47,Scoring!$B$47,IF(K116=Scoring!$A$48,Scoring!$B$48,IF(K116=Scoring!$A$49,Scoring!$B$49,IF(K116=Scoring!$A$50,Scoring!$B$50)))))) -> FALSE | AB116: =IF(L116=Scoring!$A$45,Scoring!$B$45,IF(L116=Scoring!$A$46,Scoring!$B$46,IF(L116=Scoring!$A$47,Scoring!$B$47,IF(L116=Scoring!$A$48,Scoring!$B$48,IF(L116=Scoring!$A$49,Scoring!$B$49,IF(L116=Scoring!$A$50,Scoring!$B$50)))))) -> FALSE | AD116: 0 | AE116: =IF(AD116>Scoring!$B$134,Scoring!$A$134,IF(AD116>Scoring!$B$135,Scoring!$A$135,IF(AD116>Scoring!$B$136,Scoring!$A$136,IF(AD116>Scoring!$B$137,Scoring!$A$137,IF(AD116>Scoring!$B$138,Scoring!$A$138,IF(AD116>Scoring!$B$139,Scoring!$A$139,IF(AD116>Scoring!$B$140,Scoring!$A$140,IF(AD116>Scoring!$B$141,Scoring!$A$141,IF(AD116>=Scoring!$B$142,Scoring!$A$142,IF(AD116>Scoring!$B$143,Scoring!$A$143)))))))))) -> None
A117: 1209 | B117: 12 | M117: =IFERROR(INDEX(Outcomes!F:F,MATCH(A117,Outcomes!H:H,0)),"") ->  | X117: | | AA117: =IF(K117=Scoring!$A$45,Scoring!$B$45,IF(K117=Scoring!$A$46,Scoring!$B$46,IF(K117=Scoring!$A$47,Scoring!$B$47,IF(K117=Scoring!$A$48,Scoring!$B$48,IF(K117=Scoring!$A$49,Scoring!$B$49,IF(K117=Scoring!$A$50,Scoring!$B$50)))))) -> FALSE | AB117: =IF(L117=Scoring!$A$45,Scoring!$B$45,IF(L117=Scoring!$A$46,Scoring!$B$46,IF(L117=Scoring!$A$47,Scoring!$B$47,IF(L117=Scoring!$A$48,Scoring!$B$48,IF(L117=Scoring!$A$49,Scoring!$B$49,IF(L117=Scoring!$A$50,Scoring!$B$50)))))) -> FALSE | AD117: 0 | AE117: =IF(AD117>Scoring!$B$134,Scoring!$A$134,IF(AD117>Scoring!$B$135,Scoring!$A$135,IF(AD117>Scoring!$B$136,Scoring!$A$136,IF(AD117>Scoring!$B$137,Scoring!$A$137,IF(AD117>Scoring!$B$138,Scoring!$A$138,IF(AD117>Scoring!$B$139,Scoring!$A$139,IF(AD117>Scoring!$B$140,Scoring!$A$140,IF(AD117>Scoring!$B$141,Scoring!$A$141,IF(AD117>=Scoring!$B$142,Scoring!$A$142,IF(AD117>Scoring!$B$143,Scoring!$A$143)))))))))) -> None
A118: 1210 | B118: 12 | M118: =IFERROR(INDEX(Outcomes!F:F,MATCH(A118,Outcomes!H:H,0)),"") ->  | X118: | | AA118: =IF(K118=Scoring!$A$45,Scoring!$B$45,IF(K118=Scoring!$A$46,Scoring!$B$46,IF(K118=Scoring!$A$47,Scoring!$B$47,IF(K118=Scoring!$A$48,Scoring!$B$48,IF(K118=Scoring!$A$49,Scoring!$B$49,IF(K118=Scoring!$A$50,Scoring!$B$50)))))) -> FALSE | AB118: =IF(L118=Scoring!$A$45,Scoring!$B$45,IF(L118=Scoring!$A$46,Scoring!$B$46,IF(L118=Scoring!$A$47,Scoring!$B$47,IF(L118=Scoring!$A$48,Scoring!$B$48,IF(L118=Scoring!$A$49,Scoring!$B$49,IF(L118=Scoring!$A$50,Scoring!$B$50)))))) -> FALSE | AD118: 0 | AE118: =IF(AD118>Scoring!$B$134,Scoring!$A$134,IF(AD118>Scoring!$B$135,Scoring!$A$135,IF(AD118>Scoring!$B$136,Scoring!$A$136,IF(AD118>Scoring!$B$137,Scoring!$A$137,IF(AD118>Scoring!$B$138,Scoring!$A$138,IF(AD118>Scoring!$B$139,Scoring!$A$139,IF(AD118>Scoring!$B$140,Scoring!$A$140,IF(AD118>Scoring!$B$141,Scoring!$A$141,IF(AD118>=Scoring!$B$142,Scoring!$A$142,IF(AD118>Scoring!$B$143,Scoring!$A$143)))))))))) -> None
A119: 1211 | B119: 12 | M119: =IFERROR(INDEX(Outcomes!F:F,MATCH(A119,Outcomes!H:H,0)),"") ->  | X119: | | AA119: =IF(K119=Scoring!$A$45,Scoring!$B$45,IF(K119=Scoring!$A$46,Scoring!$B$46,IF(K119=Scoring!$A$47,Scoring!$B$47,IF(K119=Scoring!$A$48,Scoring!$B$48,IF(K119=Scoring!$A$49,Scoring!$B$49,IF(K119=Scoring!$A$50,Scoring!$B$50)))))) -> FALSE | AB119: =IF(L119=Scoring!$A$45,Scoring!$B$45,IF(L119=Scoring!$A$46,Scoring!$B$46,IF(L119=Scoring!$A$47,Scoring!$B$47,IF(L119=Scoring!$A$48,Scoring!$B$48,IF(L119=Scoring!$A$49,Scoring!$B$49,IF(L119=Scoring!$A$50,Scoring!$B$50)))))) -> FALSE | AD119: 0 | AE119: =IF(AD119>Scoring!$B$134,Scoring!$A$134,IF(AD119>Scoring!$B$135,Scoring!$A$135,IF(AD119>Scoring!$B$136,Scoring!$A$136,IF(AD119>Scoring!$B$137,Scoring!$A$137,IF(AD119>Scoring!$B$138,Scoring!$A$138,IF(AD119>Scoring!$B$139,Scoring!$A$139,IF(AD119>Scoring!$B$140,Scoring!$A$140,IF(AD119>Scoring!$B$141,Scoring!$A$141,IF(AD119>=Scoring!$B$142,Scoring!$A$142,IF(AD119>Scoring!$B$143,Scoring!$A$143)))))))))) -> None
A120: 1212 | B120: 12 | M120: =IFERROR(INDEX(Outcomes!F:F,MATCH(A120,Outcomes!H:H,0)),"") ->  | X120: | | AA120: =IF(K120=Scoring!$A$45,Scoring!$B$45,IF(K120=Scoring!$A$46,Scoring!$B$46,IF(K120=Scoring!$A$47,Scoring!$B$47,IF(K120=Scoring!$A$48,Scoring!$B$48,IF(K120=Scoring!$A$49,Scoring!$B$49,IF(K120=Scoring!$A$50,Scoring!$B$50)))))) -> FALSE | AB120: =IF(L120=Scoring!$A$45,Scoring!$B$45,IF(L120=Scoring!$A$46,Scoring!$B$46,IF(L120=Scoring!$A$47,Scoring!$B$47,IF(L120=Scoring!$A$48,Scoring!$B$48,IF(L120=Scoring!$A$49,Scoring!$B$49,IF(L120=Scoring!$A$50,Scoring!$B$50)))))) -> FALSE | AD120: 0 | AE120: =IF(AD120>Scoring!$B$134,Scoring!$A$134,IF(AD120>Scoring!$B$135,Scoring!$A$135,IF(AD120>Scoring!$B$136,Scoring!$A$136,IF(AD120>Scoring!$B$137,Scoring!$A$137,IF(AD120>Scoring!$B$138,Scoring!$A$138,IF(AD120>Scoring!$B$139,Scoring!$A$139,IF(AD120>Scoring!$B$140,Scoring!$A$140,IF(AD120>Scoring!$B$141,Scoring!$A$141,IF(AD120>=Scoring!$B$142,Scoring!$A$142,IF(AD120>Scoring!$B$143,Scoring!$A$143)))))))))) -> None
A121: 1213 | B121: 12 | M121: =IFERROR(INDEX(Outcomes!F:F,MATCH(A121,Outcomes!H:H,0)),"") ->  | X121: | | AA121: =IF(K121=Scoring!$A$45,Scoring!$B$45,IF(K121=Scoring!$A$46,Scoring!$B$46,IF(K121=Scoring!$A$47,Scoring!$B$47,IF(K121=Scoring!$A$48,Scoring!$B$48,IF(K121=Scoring!$A$49,Scoring!$B$49,IF(K121=Scoring!$A$50,Scoring!$B$50)))))) -> FALSE | AB121: =IF(L121=Scoring!$A$45,Scoring!$B$45,IF(L121=Scoring!$A$46,Scoring!$B$46,IF(L121=Scoring!$A$47,Scoring!$B$47,IF(L121=Scoring!$A$48,Scoring!$B$48,IF(L121=Scoring!$A$49,Scoring!$B$49,IF(L121=Scoring!$A$50,Scoring!$B$50)))))) -> FALSE | AD121: 0 | AE121: =IF(AD121>Scoring!$B$134,Scoring!$A$134,IF(AD121>Scoring!$B$135,Scoring!$A$135,IF(AD121>Scoring!$B$136,Scoring!$A$136,IF(AD121>Scoring!$B$137,Scoring!$A$137,IF(AD121>Scoring!$B$138,Scoring!$A$138,IF(AD121>Scoring!$B$139,Scoring!$A$139,IF(AD121>Scoring!$B$140,Scoring!$A$140,IF(AD121>Scoring!$B$141,Scoring!$A$141,IF(AD121>=Scoring!$B$142,Scoring!$A$142,IF(AD121>Scoring!$B$143,Scoring!$A$143)))))))))) -> None

Sheet HealthSum
C1: Summary of Health
F2: 1
B3: # | C3: Conservation Target | D3: Current Rating | E3: Projected Future Rating With No Action | F3: Projected Future Rating With Strategies | I3: Strategic Action Required | X3: Current | Y3: Future | Z3: Threat Delta % | AA3: Threat Delta Points | AB3: Strategy Delta | AD3: Current Status | AE3: Future Status | AF3: Change | AG3: Change Level Ave. Pts/% | AH3: Strategic Action Score | AI3: Strategic Action
B4: 1 | C4: =IF(Targets!$C3=0,"",Targets!$C3) -> Alpine Tundra - Upper Chena | D4: ='1'!$K$14 -> 89.20540541 | E4: ='1'!$L$14 -> 78.97017544 | F4: =IF($F$2=2,"",IF('1'!$T$14=0,"",'1'!$T$14)) -> 78.97017544 | I4: =AI4 -> Abate any High threats; consider addressing Medium threats or improving Fair attributes if low hanging fruit | J4: x | X4: =D4 -> 89.20540541 | Y4: =E4 -> 78.97017544 | Z4: =IFERROR(AA4/X4*100,"") -> 11.47377776 | AA4: =IFERROR(D4-E4,"") -> 10.23522997 | AB4: =IFERROR(F4-E4,"") -> 0 | AD4: =IF(X4="","",IF(X4>Scoring!$F$45,Scoring!$A$45,IF(X4>Scoring!$F$46,Scoring!$A$46,IF(X4>Scoring!$F$47,Scoring!$A$47,IF(X4>Scoring!$F$48,Scoring!$A$48,IF(X4>Scoring!$F$49,Scoring!$A$49,IF(X4>Scoring!$F$50,Scoring!$A$50))))))) -> Good | AE4: =IF(Y4="","",IF(Y4>Scoring!$F$45,Scoring!$A$45,IF(Y4>Scoring!$F$46,Scoring!$A$46,IF(Y4>Scoring!$F$47,Scoring!$A$47,IF(Y4>Scoring!$F$48,Scoring!$A$48,IF(Y4>Scoring!$F$49,Scoring!$A$49,IF(Y4>=Scoring!$F$50,Scoring!$A$50))))))) -> Good | AF4: =IF(AG4="","",IF(AG4>Scoring!$B$134,Scoring!$A$134,IF(AG4>Scoring!$B$135,Scoring!$A$135,IF(AG4>Scoring!$B$136,Scoring!$A$136,IF(AG4>Scoring!$B$137,Scoring!$A$137,IF(AG4>Scoring!$B$138,Scoring!$A$138,IF(AG4>Scoring!$B$139,Scoring!$A$139,IF(AG4>Scoring!$B$140,Scoring!$A$140,IF(AG4>Scoring!$B$141,Scoring!$A$141,IF(AG4>=Scoring!$B$142,Scoring!$A$142,IF(AG4>Scoring!$B$143,Scoring!$A$143))))))))))) -> Low-Moderate | AG4: =(Z4+AA4)/2 -> 10.85450386 | AH4: =IFERROR(INDEX(StrategicActionMatrix,MATCH(AD4,Rating,0),MATCH(AF4,Change,0)),"") -> 6 | AI4: =IFERROR(VLOOKUP(AH4,Scoring!$A$158:$B$167,2),"") -> Abate any High threats; consider addressing Medium threats or improving Fair attributes if low hanging fruit
B5: 2 | C5: =IF(Targets!$C9=0,"",Targets!$C9) -> Boreal Forests - Upper Chena | D5: ='2'!$K$14 -> 80.03 | E5: ='2'!$L$14 -> 56.70666667 | F5: =IF($F$2=2,"",IF('2'!$T$14=0,"",'2'!$T$14)) -> 60.03833333 | I5: Abate any High threats | X5: 80.03 | Y5: 56.70666667 | Z5: 29.14323795 | AA5: 23.32333333 | AB5: 3.331666667 | AD5: =IF(X5="","",IF(X5>Scoring!$F$45,Scoring!$A$45,IF(X5>Scoring!$F$46,Scoring!$A$46,IF(X5>Scoring!$F$47,Scoring!$A$47,IF(X5>Scoring!$F$48,Scoring!$A$48,IF(X5>Scoring!$F$49,Scoring!$A$49,IF(X5>Scoring!$F$50,Scoring!$A$50))))))) -> Good | AE5: =IF(Y5="","",IF(Y5>Scoring!$F$45,Scoring!$A$45,IF(Y5>Scoring!$F$46,Scoring!$A$46,IF(Y5>Scoring!$F$47,Scoring!$A$47,IF(Y5>Scoring!$F$48,Scoring!$A$48,IF(Y5>Scoring!$F$49,Scoring!$A$49,IF(Y5>=Scoring!$F$50,Scoring!$A$50))))))) -> Good - | AF5: =IF(AG5="","",IF(AG5>Scoring!$B$134,Scoring!$A$134,IF(AG5>Scoring!$B$135,Scoring!$A$135,IF(AG5>Scoring!$B$136,Scoring!$A$136,IF(AG5>Scoring!$B$137,Scoring!$A$137,IF(AG5>Scoring!$B$138,Scoring!$A$138,IF(AG5>Scoring!$B$139,Scoring!$A$139,IF(AG5>Scoring!$B$140,Scoring!$A$140,IF(AG5>Scoring!$B$141,Scoring!$A$141,IF(AG5>=Scoring!$B$142,Scoring!$A$142,IF(AG5>Scoring!$B$143,Scoring!$A$143))))))))))) -> Very High | AG5: 26.23328564 | AH5: 5 | AI5: =IFERROR(VLOOKUP(AH5,Scoring!$A$158:$B$167,2),"") -> Abate any High threats
B6: 3 | C6: =IF(Targets!$C15=0,"",Targets!$C15) -> Boreal Forests - Lower Chena | D6: ='3'!$K$14 -> 53.37 | E6: ='3'!$L$14 -> 36.70166667 | F6: =IF($F$2=2,"",IF('3'!$T$14=0,"",'3'!$T$14)) -> 46.70333333 | I6: Abate High threats; improve any currently Poor or Fair- attributes | X6: 53.37 | Y6: 36.70166667 | Z6: 31.23165324 | AA6: 16.66833333 | AB6: 10.00166667 | AD6: =IF(X6="","",IF(X6>Scoring!$F$45,Scoring!$A$45,IF(X6>Scoring!$F$46,Scoring!$A$46,IF(X6>Scoring!$F$47,Scoring!$A$47,IF(X6>Scoring!$F$48,Scoring!$A$48,IF(X6>Scoring!$F$49,Scoring!$A$49,IF(X6>Scoring!$F$50,Scoring!$A$50))))))) -> Fair | AE6: =IF(Y6="","",IF(Y6>Scoring!$F$45,Scoring!$A$45,IF(Y6>Scoring!$F$46,Scoring!$A$46,IF(Y6>Scoring!$F$47,Scoring!$A$47,IF(Y6>Scoring!$F$48,Scoring!$A$48,IF(Y6>Scoring!$F$49,Scoring!$A$49,IF(Y6>=Scoring!$F$50,Scoring!$A$50))))))) -> Fair | AF6: =IF(AG6="","",IF(AG6>Scoring!$B$134,Scoring!$A$134,IF(AG6>Scoring!$B$135,Scoring!$A$135,IF(AG6>Scoring!$B$136,Scoring!$A$136,IF(AG6>Scoring!$B$137,Scoring!$A$137,IF(AG6>Scoring!$B$138,Scoring!$A$138,IF(AG6>Scoring!$B$139,Scoring!$A$139,IF(AG6>Scoring!$B$140,Scoring!$A$140,IF(AG6>Scoring!$B$141,Scoring!$A$141,IF(AG6>=Scoring!$B$142,Scoring!$A$142,IF(AG6>Scoring!$B$143,Scoring!$A$143))))))))))) -> High | AG6: 23.94999329 | AH6: 3 | AI6: =IFERROR(VLOOKUP(AH6,Scoring!$A$158:$B$167,2),"") -> Abate High threats; improve any currently Poor or Fair- attributes
B7: 4 | C7: =IF(Targets!$C19=0,"",Targets!$C19) -> Tributaries - Upper Chena | D7: ='4'!$K$14 -> 80.03 | E7: ='4'!$L$14 -> 54.32571429 | F7: =IF($F$2=2,"",IF('4'!$T$14=0,"",'4'!$T$14)) -> 74.31857143 | I7: Abate any High threats | X7: 80.03 | Y7: 54.32571429 | Z7: 32.11831278 | AA7: 25.70428571 | AB7: 19.99285714 | AD7: =IF(X7="","",IF(X7>Scoring!$F$45,Scoring!$A$45,IF(X7>Scoring!$F$46,Scoring!$A$46,IF(X7>Scoring!$F$47,Scoring!$A$47,IF(X7>Scoring!$F$48,Scoring!$A$48,IF(X7>Scoring!$F$49,Scoring!$A$49,IF(X7>Scoring!$F$50,Scoring!$A$50))))))) -> Good | AE7: =IF(Y7="","",IF(Y7>Scoring!$F$45,Scoring!$A$45,IF(Y7>Scoring!$F$46,Scoring!$A$46,IF(Y7>Scoring!$F$47,Scoring!$A$47,IF(Y7>Scoring!$F$48,Scoring!$A$48,IF(Y7>Scoring!$F$49,Scoring!$A$49,IF(Y7>=Scoring!$F$50,Scoring!$A$50))))))) -> Good - | AF7: =IF(AG7="","",IF(AG7>Scoring!$B$134,Scoring!$A$134,IF(AG7>Scoring!$B$135,Scoring!$A$135,IF(AG7>Scoring!$B$136,Scoring!$A$136,IF(AG7>Scoring!$B$137,Scoring!$A$137,IF(AG7>Scoring!$B$138,Scoring!$A$138,IF(AG7>Scoring!$B$139,Scoring!$A$139,IF(AG7>Scoring!$B$140,Scoring!$A$140,IF(AG7>Scoring!$B$141,Scoring!$A$141,IF(AG7>=Scoring!$B$142,Scoring!$A$142,IF(AG7>Scoring!$B$143,Scoring!$A$143))))))))))) -> Very High | AG7: 28.91129924 | AH7: 5 | AI7: =IFERROR(VLOOKUP(AH7,Scoring!$A$158:$B$167,2),"") -> Abate any High threats
B8: 5 | C8: =IF(Targets!$C26=0,"",Targets!$C26) -> Tributaries - Lower Chena | D8: ='5'!$K$14 -> 51.46571429 | E8: ='5'!$L$14 -> 34.32 | F8: =IF($F$2=2,"",IF('5'!$T$14=0,"",'5'!$T$14)) -> 65.75142857 | I8: Abate High threats; improve any currently Poor or Fair- attributes | X8: 51.46571429 | Y8: 34.32 | Z8: 33.31482818 | AA8: 17.14571429 | AB8: 31.43142857 | AD8: =IF(X8="","",IF(X8>Scoring!$F$45,Scoring!$A$45,IF(X8>Scoring!$F$46,Scoring!$A$46,IF(X8>Scoring!$F$47,Scoring!$A$47,IF(X8>Scoring!$F$48,Scoring!$A$48,IF(X8>Scoring!$F$49,Scoring!$A$49,IF(X8>Scoring!$F$50,Scoring!$A$50))))))) -> Fair | AE8: =IF(Y8="","",IF(Y8>Scoring!$F$45,Scoring!$A$45,IF(Y8>Scoring!$F$46,Scoring!$A$46,IF(Y8>Scoring!$F$47,Scoring!$A$47,IF(Y8>Scoring!$F$48,Scoring!$A$48,IF(Y8>Scoring!$F$49,Scoring!$A$49,IF(Y8>=Scoring!$F$50,Scoring!$A$50))))))) -> Fair - | AF8: =IF(AG8="","",IF(AG8>Scoring!$B$134,Scoring!$A$134,IF(AG8>Scoring!$B$135,Scoring!$A$135,IF(AG8>Scoring!$B$136,Scoring!$A$136,IF(AG8>Scoring!$B$137,Scoring!$A$137,IF(AG8>Scoring!$B$138,Scoring!$A$138,IF(AG8>Scoring!$B$139,Scoring!$A$139,IF(AG8>Scoring!$B$140,Scoring!$A$140,IF(AG8>Scoring!$B$141,Scoring!$A$141,IF(AG8>=Scoring!$B$142,Scoring!$A$142,IF(AG8>Scoring!$B$143,Scoring!$A$143))))))))))) -> Very High | AG8: 25.23027123 | AH8: 3 | AI8: =IFERROR(VLOOKUP(AH8,Scoring!$A$158:$B$167,2),"") -> Abate High threats; improve any currently Poor or Fair- attributes
B9: 6 | C9: =IF(Targets!$C31=0,"",Targets!$C31) -> Sloughs and Wetlands - Upper Chena | D9: ='6'!$K$14 -> 74.31714286 | E9: ='6'!$L$14 -> 51.46714286 | F9: =IF($F$2=2,"",IF('6'!$T$14=0,"",'6'!$T$14)) -> 68.60714286 | I9: Abate any High threats | X9: 74.31714286 | Y9: 51.46714286 | Z9: 30.7466072 | AA9: 22.85 | AB9: 17.14 | AD9: =IF(X9="","",IF(X9>Scoring!$F$45,Scoring!$A$45,IF(X9>Scoring!$F$46,Scoring!$A$46,IF(X9>Scoring!$F$47,Scoring!$A$47,IF(X9>Scoring!$F$48,Scoring!$A$48,IF(X9>Scoring!$F$49,Scoring!$A$49,IF(X9>Scoring!$F$50,Scoring!$A$50))))))) -> Good | AE9: =IF(Y9="","",IF(Y9>Scoring!$F$45,Scoring!$A$45,IF(Y9>Scoring!$F$46,Scoring!$A$46,IF(Y9>Scoring!$F$47,Scoring!$A$47,IF(Y9>Scoring!$F$48,Scoring!$A$48,IF(Y9>Scoring!$F$49,Scoring!$A$49,IF(Y9>=Scoring!$F$50,Scoring!$A$50))))))) -> Fair | AF9: =IF(AG9="","",IF(AG9>Scoring!$B$134,Scoring!$A$134,IF(AG9>Scoring!$B$135,Scoring!$A$135,IF(AG9>Scoring!$B$136,Scoring!$A$136,IF(AG9>Scoring!$B$137,Scoring!$A$137,IF(AG9>Scoring!$B$138,Scoring!$A$138,IF(AG9>Scoring!$B$139,Scoring!$A$139,IF(AG9>Scoring!$B$140,Scoring!$A$140,IF(AG9>Scoring!$B$141,Scoring!$A$141,IF(AG9>=Scoring!$B$142,Scoring!$A$142,IF(AG9>Scoring!$B$143,Scoring!$A$143))))))))))) -> Very High | AG9: 26.7983036 | AH9: 5 | AI9: =IFERROR(VLOOKUP(AH9,Scoring!$A$158:$B$167,2),"") -> Abate any High threats
B10: 7 | C10: =IF(Targets!$C38=0,"",Targets!$C38) -> Sloughs and Wetlands - Lower Chena | D10: ='7'!$K$14 -> 40.04 | E10: ='7'!$L$14 -> 31.46428571 | F10: =IF($F$2=2,"",IF('7'!$T$14=0,"",'7'!$T$14)) -> 60.03857143 | I10: Abate High threats; improve any currently Poor or Fair- attributes | X10: 40.04 | Y10: 31.46428571 | Z10: 21.41786785 | AA10: 8.575714286 | AB10: 28.57428571 | AD10: =IF(X10="","",IF(X10>Scoring!$F$45,Scoring!$A$45,IF(X10>Scoring!$F$46,Scoring!$A$46,IF(X10>Scoring!$F$47,Scoring!$A$47,IF(X10>Scoring!$F$48,Scoring!$A$48,IF(X10>Scoring!$F$49,Scoring!$A$49,IF(X10>Scoring!$F$50,Scoring!$A$50))))))) -> Fair | AE10: =IF(Y10="","",IF(Y10>Scoring!$F$45,Scoring!$A$45,IF(Y10>Scoring!$F$46,Scoring!$A$46,IF(Y10>Scoring!$F$47,Scoring!$A$47,IF(Y10>Scoring!$F$48,Scoring!$A$48,IF(Y10>Scoring!$F$49,Scoring!$A$49,IF(Y10>=Scoring!$F$50,Scoring!$A$50))))))) -> Fair - | AF10: =IF(AG10="","",IF(AG10>Scoring!$B$134,Scoring!$A$134,IF(AG10>Scoring!$B$135,Scoring!$A$135,IF(AG10>Scoring!$B$136,Scoring!$A$136,IF(AG10>Scoring!$B$137,Scoring!$A$137,IF(AG10>Scoring!$B$138,Scoring!$A$138,IF(AG10>Scoring!$B$139,Scoring!$A$139,IF(AG10>Scoring!$B$140,Scoring!$A$140,IF(AG10>Scoring!$B$141,Scoring!$A$141,IF(AG10>=Scoring!$B$142,Scoring!$A$142,IF(AG10>Scoring!$B$143,Scoring!$A$143))))))))))) -> Low-Moderate | AG10: 14.99679107 | AH10: 3 | AI10: =IFERROR(VLOOKUP(AH10,Scoring!$A$158:$B$167,2),"") -> Abate High threats; improve any currently Poor or Fair- attributes
B11: 8 | C11: =IF(Targets!$C43=0,"",Targets!$C43) -> Mainstem River & Major Forks - Upper Chena | D11: ='8'!$K$14 -> 82.11343284 | E11: ='8'!$L$14 -> 73.16119403 | F11: =IF($F$2=2,"",IF('8'!$T$14=0,"",'8'!$T$14)) -> 76.14477612 | I11: Consider addressing Medium threats if low hanging fruit | X11: 82.11343284 | Y11: 73.16119403 | Z11: 10.90228297 | AA11: 8.952238806 | AB11: 2.98358209 | AD11: =IF(X11="","",IF(X11>Scoring!$F$45,Scoring!$A$45,IF(X11>Scoring!$F$46,Scoring!$A$46,IF(X11>Scoring!$F$47,Scoring!$A$47,IF(X11>Scoring!$F$48,Scoring!$A$48,IF(X11>Scoring!$F$49,Scoring!$A$49,IF(X11>Scoring!$F$50,Scoring!$A$50))))))) -> Good | AE11: =IF(Y11="","",IF(Y11>Scoring!$F$45,Scoring!$A$45,IF(Y11>Scoring!$F$46,Scoring!$A$46,IF(Y11>Scoring!$F$47,Scoring!$A$47,IF(Y11>Scoring!$F$48,Scoring!$A$48,IF(Y11>Scoring!$F$49,Scoring!$A$49,IF(Y11>=Scoring!$F$50,Scoring!$A$50))))))) -> Good | AF11: =IF(AG11="","",IF(AG11>Scoring!$B$134,Scoring!$A$134,IF(AG11>Scoring!$B$135,Scoring!$A$135,IF(AG11>Scoring!$B$136,Scoring!$A$136,IF(AG11>Scoring!$B$137,Scoring!$A$137,IF(AG11>Scoring!$B$138,Scoring!$A$138,IF(AG11>Scoring!$B$139,Scoring!$A$139,IF(AG11>Scoring!$B$140,Scoring!$A$140,IF(AG11>Scoring!$B$141,Scoring!$A$141,IF(AG11>=Scoring!$B$142,Scoring!$A$142,IF(AG11>Scoring!$B$143,Scoring!$A$143))))))))))) -> Low | AG11: 9.927260889 | AH11: 9 | AI11: =IFERROR(VLOOKUP(AH11,Scoring!$A$158:$B$167,2),"") -> Consider addressing Medium threats if low hanging fruit
B12: 9 | C12: =IF(Targets!$C50=0,"",Targets!$C50) -> Mainstem River & Major Forks - Lower Chena | D12: ='9'!$K$14 -> 60.03714286 | E12: ='9'!$L$14 -> 42.89 | F12: =IF($F$2=2,"",IF('9'!$T$14=0,"",'9'!$T$14)) -> 65.75142857 | I12: Abate any High threats | X12: 60.03714286 | Y12: 42.89 | Z12: 28.56089088 | AA12: 17.14714286 | AB12: 22.86142857 | AD12: =IF(X12="","",IF(X12>Scoring!$F$45,Scoring!$A$45,IF(X12>Scoring!$F$46,Scoring!$A$46,IF(X12>Scoring!$F$47,Scoring!$A$47,IF(X12>Scoring!$F$48,Scoring!$A$48,IF(X12>Scoring!$F$49,Scoring!$A$49,IF(X12>Scoring!$F$50,Scoring!$A$50))))))) -> Good - | AE12: =IF(Y12="","",IF(Y12>Scoring!$F$45,Scoring!$A$45,IF(Y12>Scoring!$F$46,Scoring!$A$46,IF(Y12>Scoring!$F$47,Scoring!$A$47,IF(Y12>Scoring!$F$48,Scoring!$A$48,IF(Y12>Scoring!$F$49,Scoring!$A$49,IF(Y12>=Scoring!$F$50,Scoring!$A$50))))))) -> Fair | AF12: =IF(AG12="","",IF(AG12>Scoring!$B$134,Scoring!$A$134,IF(AG12>Scoring!$B$135,Scoring!$A$135,IF(AG12>Scoring!$B$136,Scoring!$A$136,IF(AG12>Scoring!$B$137,Scoring!$A$137,IF(AG12>Scoring!$B$138,Scoring!$A$138,IF(AG12>Scoring!$B$139,Scoring!$A$139,IF(AG12>Scoring!$B$140,Scoring!$A$140,IF(AG12>Scoring!$B$141,Scoring!$A$141,IF(AG12>=Scoring!$B$142,Scoring!$A$142,IF(AG12>Scoring!$B$143,Scoring!$A$143))))))))))) -> High | AG12: 22.85401687 | AH12: 5 | AI12: =IFERROR(VLOOKUP(AH12,Scoring!$A$158:$B$167,2),"") -> Abate any High threats
B13: 10 | C13: =IF(Targets!$C55=0,"",Targets!$C55) -> Confluence with Tanana | D13: ='10'!$K$14 -> 80.03 | E13: ='10'!$L$14 -> 66.70333333 | F13: =IF($F$2=2,"",IF('10'!$T$14=0,"",'10'!$T$14)) -> 70.035 | I13: Abate any High threats; consider addressing Medium threats or improving Fair attributes if low hanging fruit | X13: 80.03 | Y13: 66.70333333 | Z13: 16.6520888 | AA13: 13.32666667 | AB13: 3.331666667 | AD13: =IF(X13="","",IF(X13>Scoring!$F$45,Scoring!$A$45,IF(X13>Scoring!$F$46,Scoring!$A$46,IF(X13>Scoring!$F$47,Scoring!$A$47,IF(X13>Scoring!$F$48,Scoring!$A$48,IF(X13>Scoring!$F$49,Scoring!$A$49,IF(X13>Scoring!$F$50,Scoring!$A$50))))))) -> Good | AE13: =IF(Y13="","",IF(Y13>Scoring!$F$45,Scoring!$A$45,IF(Y13>Scoring!$F$46,Scoring!$A$46,IF(Y13>Scoring!$F$47,Scoring!$A$47,IF(Y13>Scoring!$F$48,Scoring!$A$48,IF(Y13>Scoring!$F$49,Scoring!$A$49,IF(Y13>=Scoring!$F$50,Scoring!$A$50))))))) -> Good - | AF13: =IF(AG13="","",IF(AG13>Scoring!$B$134,Scoring!$A$134,IF(AG13>Scoring!$B$135,Scoring!$A$135,IF(AG13>Scoring!$B$136,Scoring!$A$136,IF(AG13>Scoring!$B$137,Scoring!$A$137,IF(AG13>Scoring!$B$138,Scoring!$A$138,IF(AG13>Scoring!$B$139,Scoring!$A$139,IF(AG13>Scoring!$B$140,Scoring!$A$140,IF(AG13>Scoring!$B$141,Scoring!$A$141,IF(AG13>=Scoring!$B$142,Scoring!$A$142,IF(AG13>Scoring!$B$143,Scoring!$A$143))))))))))) -> Low-Moderate | AG13: 14.98937773 | AH13: 6 | AI13: =IFERROR(VLOOKUP(AH13,Scoring!$A$158:$B$167,2),"") -> Abate any High threats; consider addressing Medium threats or improving Fair attributes if low hanging fruit
B14: 11 | C14: =IF(Targets!$C60=0,"",Targets!$C60) ->  | D14: ='11'!$K$14 ->  | E14: ='11'!$L$14 ->  | F14: =IF($F$2=2,"",IF('11'!$T$14=0,"",'11'!$T$14)) ->  | I14: =AI14 ->  | X14: =D14 ->  | Y14: =E14 ->  | Z14: =IFERROR(AA14/X14*100,"") ->  | AA14: =IFERROR(D14-E14,"") ->  | AB14: =IFERROR(F14-E14,"") ->  | AD14: =IF(X14="","",IF(X14>Scoring!$F$45,Scoring!$A$45,IF(X14>Scoring!$F$46,Scoring!$A$46,IF(X14>Scoring!$F$47,Scoring!$A$47,IF(X14>Scoring!$F$48,Scoring!$A$48,IF(X14>Scoring!$F$49,Scoring!$A$49,IF(X14>Scoring!$F$50,Scoring!$A$50))))))) ->  | AE14: =IF(Y14="","",IF(Y14>Scoring!$F$45,Scoring!$A$45,IF(Y14>Scoring!$F$46,Scoring!$A$46,IF(Y14>Scoring!$F$47,Scoring!$A$47,IF(Y14>Scoring!$F$48,Scoring!$A$48,IF(Y14>Scoring!$F$49,Scoring!$A$49,IF(Y14>=Scoring!$F$50,Scoring!$A$50))))))) ->  | AF14: =IF(AG14="","",IF(AG14>Scoring!$B$134,Scoring!$A$134,IF(AG14>Scoring!$B$135,Scoring!$A$135,IF(AG14>Scoring!$B$136,Scoring!$A$136,IF(AG14>Scoring!$B$137,Scoring!$A$137,IF(AG14>Scoring!$B$138,Scoring!$A$138,IF(AG14>Scoring!$B$139,Scoring!$A$139,IF(AG14>Scoring!$B$140,Scoring!$A$140,IF(AG14>Scoring!$B$141,Scoring!$A$141,IF(AG14>=Scoring!$B$142,Scoring!$A$142,IF(AG14>Scoring!$B$143,Scoring!$A$143))))))))))) ->  | AG14: =(Z14+AA14)/2 ->  | AH14: =IFERROR(INDEX(StrategicActionMatrix,MATCH(AD14,Rating,0),MATCH(AF14,Change,0)),"") ->  | AI14: =IFERROR(VLOOKUP(AH14,Scoring!$A$158:$B$167,2),"") -> 
B15: 12 | C15: =IF(Targets!$C61=0,"",Targets!$C61) ->  | D15: ='12'!$K$14 ->  | E15: ='12'!$L$14 ->  | F15: =IF($F$2=2,"",IF('12'!$T$14=0,"",'12'!$T$14)) ->  | AD15: =IF(X15="","",IF(X15>Scoring!$F$45,Scoring!$A$45,IF(X15>Scoring!$F$46,Scoring!$A$46,IF(X15>Scoring!$F$47,Scoring!$A$47,IF(X15>Scoring!$F$48,Scoring!$A$48,IF(X15>Scoring!$F$49,Scoring!$A$49,IF(X15>Scoring!$F$50,Scoring!$A$50))))))) ->  | AE15: =IF(Y15="","",IF(Y15>Scoring!$F$45,Scoring!$A$45,IF(Y15>Scoring!$F$46,Scoring!$A$46,IF(Y15>Scoring!$F$47,Scoring!$A$47,IF(Y15>Scoring!$F$48,Scoring!$A$48,IF(Y15>Scoring!$F$49,Scoring!$A$49,IF(Y15>=Scoring!$F$50,Scoring!$A$50))))))) ->  | AF15: =IF(AG15="","",IF(AG15>Scoring!$B$134,Scoring!$A$134,IF(AG15>Scoring!$B$135,Scoring!$A$135,IF(AG15>Scoring!$B$136,Scoring!$A$136,IF(AG15>Scoring!$B$137,Scoring!$A$137,IF(AG15>Scoring!$B$138,Scoring!$A$138,IF(AG15>Scoring!$B$139,Scoring!$A$139,IF(AG15>Scoring!$B$140,Scoring!$A$140,IF(AG15>Scoring!$B$141,Scoring!$A$141,IF(AG15>=Scoring!$B$142,Scoring!$A$142,IF(AG15>Scoring!$B$143,Scoring!$A$143))))))))))) ->  | AI15: =IFERROR(VLOOKUP(AH15,Scoring!$A$158:$B$167,2),"") -> 
AH17: =MIN(AH4:AH15) -> 3 | AI17: MIN
AH18: =MAX(AH4:AH15) -> 9 | AI18: MAX
AH19: =AVERAGE(AH4:AH15) -> 5 | AI19: AVE
AH20: =IF(AH19>5,AH19,5) -> 5 | AI20: Higher of AVE or 5

Sheet ThreatSum
B1: Summary of Threats | C1: =IF(Home!B4=0,"",Home!B4) -> Chena River Watershed
B3: Threats Across Targets | C3: =IF(C4="","",IF('1'!D1=0,"",'1'!D1)) -> Alpine Tundra - Upper Chena | D3: =IF(D4="","",IF('2'!D1=0,"",'2'!D1)) -> Boreal Forests - Upper Chena | E3: =IF(E4="","",IF('3'!D1=0,"",'3'!D1)) -> Boreal Forests - Lower Chena | F3: =IF(F4="","",IF('4'!D1=0,"",'4'!D1)) -> Tributaries - Upper Chena | G3: =IF(G4="","",IF('5'!D1=0,"",'5'!D1)) -> Tributaries - Lower Chena | H3: =IF(H4="","",IF('6'!D1=0,"",'6'!D1)) -> Sloughs and Wetlands - Upper Chena | I3: =IF(I4="","",IF('7'!D1=0,"",'7'!D1)) -> Sloughs and Wetlands - Lower Chena | J3: =IF(J4="","",IF('8'!D1=0,"",'8'!D1)) -> Mainstem River & Major Forks - Upper Chena | K3: =IF(K4="","",IF('9'!D1=0,"",'9'!D1)) -> Mainstem River & Major Forks - Lower Chena | L3: =IF(L4="","",IF('10'!D1=0,"",'10'!D1)) -> Confluence with Tanana | M3: =IF(M4="","",IF('11'!D1=0,"",'11'!D1)) ->  | N3: =IF(N4="","",IF('12'!D1=0,"",'12'!D1)) ->  | P3: Overall Threat Rank
C4: =IF(PivotRank!B1=0,"",PivotRank!B1) -> 1 | D4: =IF(PivotRank!C1=0,"",PivotRank!C1) -> 2 | E4: =IF(PivotRank!D1=0,"",PivotRank!D1) -> 3 | F4: =IF(PivotRank!E1=0,"",PivotRank!E1) -> 4 | G4: =IF(PivotRank!F1=0,"",PivotRank!F1) -> 5 | H4: =IF(PivotRank!G1=0,"",PivotRank!G1) -> 6 | I4: =IF(PivotRank!H1=0,"",PivotRank!H1) -> 7 | J4: =IF(PivotRank!I1=0,"",PivotRank!I1) -> 8 | K4: =IF(PivotRank!J1=0,"",PivotRank!J1) -> 9 | L4: =IF(PivotRank!K1=0,"",PivotRank!K1) -> 10 | M4: =IF(PivotRank!L1=0,"",PivotRank!L1) -> 11 | N4: =IF(PivotRank!M1=0,"",PivotRank!M1) -> 12 | Q4: Overall Threat Score
B5: =IF(PivotRank!A2=0,"",PivotRank!A2) -> Residential / commercial development | C5: =IF(PivotRank!B2=0,"",PivotRank!B2) ->  | D5: =IF(PivotRank!C2=0,"",PivotRank!C2) -> Low | E5: =IF(PivotRank!D2=0,"",PivotRank!D2) -> Very High | F5: =IF(PivotRank!E2=0,"",PivotRank!E2) -> Medium | G5: =IF(PivotRank!F2=0,"",PivotRank!F2) -> High | H5: =IF(PivotRank!G2=0,"",PivotRank!G2) -> High | I5: =IF(PivotRank!H2=0,"",PivotRank!H2) -> High | J5: =IF(PivotRank!I2=0,"",PivotRank!I2) ->  | K5: =IF(PivotRank!J2=0,"",PivotRank!J2) -> High | L5: =IF(PivotRank!K2=0,"",PivotRank!K2) -> Low | M5: =IF(PivotRank!L2=0,"",PivotRank!L2) ->  | N5: =IF(PivotRank!M2=0,"",PivotRank!M2) ->  | P5: ='ThreatAdd '!A2 -> Very High | Q5: ='ThreatAdd '!B2 -> 254
B6: =IF(PivotRank!A3=0,"",PivotRank!A3) -> Incompatible road design / maintenance | C6: =IF(PivotRank!B3=0,"",PivotRank!B3) -> Medium | D6: =IF(PivotRank!C3=0,"",PivotRank!C3) -> Medium | E6: =IF(PivotRank!D3=0,"",PivotRank!D3) -> High | F6: =IF(PivotRank!E3=0,"",PivotRank!E3) -> Medium | G6: =IF(PivotRank!F3=0,"",PivotRank!F3) -> Medium | H6: =IF(PivotRank!G3=0,"",PivotRank!G3) -> High | I6: =IF(PivotRank!H3=0,"",PivotRank!H3) -> High | J6: =IF(PivotRank!I3=0,"",PivotRank!I3) -> Medium | K6: =IF(PivotRank!J3=0,"",PivotRank!J3) -> High | L6: =IF(PivotRank!K3=0,"",PivotRank!K3) -> Low | M6: =IF(PivotRank!L3=0,"",PivotRank!L3) ->  | N6: =IF(PivotRank!M3=0,"",PivotRank!M3) ->  | P6: ='ThreatAdd '!A3 -> High | Q6: ='ThreatAdd '!B3 -> 176
B7: =IF(PivotRank!A4=0,"",PivotRank!A4) -> Filling in sloughs or wetlands | C7: =IF(PivotRank!B4=0,"",PivotRank!B4) ->  | D7: =IF(PivotRank!C4=0,"",PivotRank!C4) ->  | E7: =IF(PivotRank!D4=0,"",PivotRank!D4) ->  | F7: =IF(PivotRank!E4=0,"",PivotRank!E4) ->  | G7: =IF(PivotRank!F4=0,"",PivotRank!F4) ->  | H7: =IF(PivotRank!G4=0,"",PivotRank!G4) -> High | I7: =IF(PivotRank!H4=0,"",PivotRank!H4) -> Very High | J7: =IF(PivotRank!I4=0,"",PivotRank!I4) ->  | K7: =IF(PivotRank!J4=0,"",PivotRank!J4) ->  | L7: =IF(PivotRank!K4=0,"",PivotRank!K4) ->  | M7: =IF(PivotRank!L4=0,"",PivotRank!L4) ->  | N7: =IF(PivotRank!M4=0,"",PivotRank!M4) ->  | P7: ='ThreatAdd '!A4 -> High | Q7: ='ThreatAdd '!B4 -> 140
B8: =IF(PivotRank!A5=0,"",PivotRank!A5) -> Removal of native vegetation from riparian zone | C8: =IF(PivotRank!B5=0,"",PivotRank!B5) ->  | D8: =IF(PivotRank!C5=0,"",PivotRank!C5) ->  | E8: =IF(PivotRank!D5=0,"",PivotRank!D5) ->  | F8: =IF(PivotRank!E5=0,"",PivotRank!E5) -> Medium | G8: =IF(PivotRank!F5=0,"",PivotRank!F5) -> High | H8: =IF(PivotRank!G5=0,"",PivotRank!G5) ->  | I8: =IF(PivotRank!H5=0,"",PivotRank!H5) -> High | J8: =IF(PivotRank!I5=0,"",PivotRank!I5) ->  | K8: =IF(PivotRank!J5=0,"",PivotRank!J5) -> High | L8: =IF(PivotRank!K5=0,"",PivotRank!K5) -> Low | M8: =IF(PivotRank!L5=0,"",PivotRank!L5) ->  | N8: =IF(PivotRank!M5=0,"",PivotRank!M5) ->  | P8: ='ThreatAdd '!A5 -> High | Q8: ='ThreatAdd '!B5 -> 113
B9: =IF(PivotRank!A6=0,"",PivotRank!A6) -> Invasive terrestrial species/pests/pathogens | C9: =IF(PivotRank!B6=0,"",PivotRank!B6) ->  | D9: =IF(PivotRank!C6=0,"",PivotRank!C6) -> Medium | E9: =IF(PivotRank!D6=0,"",PivotRank!D6) -> Low | F9: =IF(PivotRank!E6=0,"",PivotRank!E6) ->  | G9: =IF(PivotRank!F6=0,"",PivotRank!F6) -> Medium | H9: =IF(PivotRank!G6=0,"",PivotRank!G6) ->  | I9: =IF(PivotRank!H6=0,"",PivotRank!H6) -> High | J9: =IF(PivotRank!I6=0,"",PivotRank!I6) -> Low | K9: =IF(PivotRank!J6=0,"",PivotRank!J6) -> High | L9: =IF(PivotRank!K6=0,"",PivotRank!K6) -> Low | M9: =IF(PivotRank!L6=0,"",PivotRank!L6) ->  | N9: =IF(PivotRank!M6=0,"",PivotRank!M6) ->  | P9: ='ThreatAdd '!A6 -> High | Q9: ='ThreatAdd '!B6 -> 87
B10: =IF(PivotRank!A7=0,"",PivotRank!A7) -> Warmer climate with more frequent weather extremes | C10: =IF(PivotRank!B7=0,"",PivotRank!B7) -> High | D10: =IF(PivotRank!C7=0,"",PivotRank!C7) -> High | E10: =IF(PivotRank!D7=0,"",PivotRank!D7) -> Low | F10: =IF(PivotRank!E7=0,"",PivotRank!E7) ->  | G10: =IF(PivotRank!F7=0,"",PivotRank!F7) ->  | H10: =IF(PivotRank!G7=0,"",PivotRank!G7) ->  | I10: =IF(PivotRank!H7=0,"",PivotRank!H7) ->  | J10: =IF(PivotRank!I7=0,"",PivotRank!I7) ->  | K10: =IF(PivotRank!J7=0,"",PivotRank!J7) ->  | L10: =IF(PivotRank!K7=0,"",PivotRank!K7) ->  | M10: =IF(PivotRank!L7=0,"",PivotRank!L7) ->  | N10: =IF(PivotRank!M7=0,"",PivotRank!M7) ->  | P10: ='ThreatAdd '!A7 -> High | Q10: ='ThreatAdd '!B7 -> 71
B11: =IF(PivotRank!A8=0,"",PivotRank!A8) -> Hardening stream banks with rip rap, channelization, etc. | C11: =IF(PivotRank!B8=0,"",PivotRank!B8) ->  | D11: =IF(PivotRank!C8=0,"",PivotRank!C8) ->  | E11: =IF(PivotRank!D8=0,"",PivotRank!D8) ->  | F11: =IF(PivotRank!E8=0,"",PivotRank!E8) -> Low | G11: =IF(PivotRank!F8=0,"",PivotRank!F8) -> Medium | H11: =IF(PivotRank!G8=0,"",PivotRank!G8) -> Medium | I11: =IF(PivotRank!H8=0,"",PivotRank!H8) -> Medium | J11: =IF(PivotRank!I8=0,"",PivotRank!I8) -> Low | K11: =IF(PivotRank!J8=0,"",PivotRank!J8) -> High | L11: =IF(PivotRank!K8=0,"",PivotRank!K8) -> Medium | M11: =IF(PivotRank!L8=0,"",PivotRank!L8) ->  | N11: =IF(PivotRank!M8=0,"",PivotRank!M8) ->  | P11: ='ThreatAdd '!A8 -> Medium | Q11: ='ThreatAdd '!B8 -> 65
B12: =IF(PivotRank!A9=0,"",PivotRank!A9) -> Fire suppression | C12: =IF(PivotRank!B9=0,"",PivotRank!B9) -> Medium | D12: =IF(PivotRank!C9=0,"",PivotRank!C9) -> High | E12: =IF(PivotRank!D9=0,"",PivotRank!D9) ->  | F12: =IF(PivotRank!E9=0,"",PivotRank!E9) -> Medium | G12: =IF(PivotRank!F9=0,"",PivotRank!F9) ->  | H12: =IF(PivotRank!G9=0,"",PivotRank!G9) -> Low | I12: =IF(PivotRank!H9=0,"",PivotRank!H9) ->  | J12: =IF(PivotRank!I9=0,"",PivotRank!I9) ->  | K12: =IF(PivotRank!J9=0,"",PivotRank!J9) ->  | L12: =IF(PivotRank!K9=0,"",PivotRank!K9) ->  | M12: =IF(PivotRank!L9=0,"",PivotRank!L9) ->  | N12: =IF(PivotRank!M9=0,"",PivotRank!M9) ->  | P12: ='ThreatAdd '!A9 -> Medium | Q12: ='ThreatAdd '!B9 -> 50
B13: =IF(PivotRank!A10=0,"",PivotRank!A10) -> Invasive aquatic species/pests/pathogens | C13: =IF(PivotRank!B10=0,"",PivotRank!B10) ->  | D13: =IF(PivotRank!C10=0,"",PivotRank!C10) ->  | E13: =IF(PivotRank!D10=0,"",PivotRank!D10) ->  | F13: =IF(PivotRank!E10=0,"",PivotRank!E10) ->  | G13: =IF(PivotRank!F10=0,"",PivotRank!F10) -> Low | H13: =IF(PivotRank!G10=0,"",PivotRank!G10) ->  | I13: =IF(PivotRank!H10=0,"",PivotRank!H10) -> High | J13: =IF(PivotRank!I10=0,"",PivotRank!I10) ->  | K13: =IF(PivotRank!J10=0,"",PivotRank!J10) -> Medium | L13: =IF(PivotRank!K10=0,"",PivotRank!K10) -> Medium | M13: =IF(PivotRank!L10=0,"",PivotRank!L10) ->  | N13: =IF(PivotRank!M10=0,"",PivotRank!M10) ->  | P13: ='ThreatAdd '!A10 -> Medium | Q13: ='ThreatAdd '!B10 -> 50
B14: =IF(PivotRank!A11=0,"",PivotRank!A11) -> Incompatible motorized vehicle use off-roads/ATV/bulldozers (e.g. pioneering, etc.) | C14: =IF(PivotRank!B11=0,"",PivotRank!B11) -> High | D14: =IF(PivotRank!C11=0,"",PivotRank!C11) -> Low | E14: =IF(PivotRank!D11=0,"",PivotRank!D11) ->  | F14: =IF(PivotRank!E11=0,"",PivotRank!E11) -> Medium | G14: =IF(PivotRank!F11=0,"",PivotRank!F11) ->  | H14: =IF(PivotRank!G11=0,"",PivotRank!G11) -> Low | I14: =IF(PivotRank!H11=0,"",PivotRank!H11) ->  | J14: =IF(PivotRank!I11=0,"",PivotRank!I11) -> Low | K14: =IF(PivotRank!J11=0,"",PivotRank!J11) ->  | L14: =IF(PivotRank!K11=0,"",PivotRank!K11) ->  | M14: =IF(PivotRank!L11=0,"",PivotRank!L11) ->  | N14: =IF(PivotRank!M11=0,"",PivotRank!M11) ->  | P14: ='ThreatAdd '!A11 -> Medium | Q14: ='ThreatAdd '!B11 -> 45
B15: =IF(PivotRank!A12=0,"",PivotRank!A12) -> Culverts that impede fish passage | C15: =IF(PivotRank!B12=0,"",PivotRank!B12) ->  | D15: =IF(PivotRank!C12=0,"",PivotRank!C12) ->  | E15: =IF(PivotRank!D12=0,"",PivotRank!D12) ->  | F15: =IF(PivotRank!E12=0,"",PivotRank!E12) -> Low | G15: =IF(PivotRank!F12=0,"",PivotRank!F12) -> Medium | H15: =IF(PivotRank!G12=0,"",PivotRank!G12) -> High | I15: =IF(PivotRank!H12=0,"",PivotRank!H12) ->  | J15: =IF(PivotRank!I12=0,"",PivotRank!I12) ->  | K15: =IF(PivotRank!J12=0,"",PivotRank!J12) ->  | L15: =IF(PivotRank!K12=0,"",PivotRank!K12) ->  | M15: =IF(PivotRank!L12=0,"",PivotRank!L12) ->  | N15: =IF(PivotRank!M12=0,"",PivotRank!M12) ->  | P15: ='ThreatAdd '!A12 -> Medium | Q15: ='ThreatAdd '!B12 -> 43
B16: =IF(PivotRank!A13=0,"",PivotRank!A13) -> Construction of ditches, dikes, drainage, dredging | C16: =IF(PivotRank!B13=0,"",PivotRank!B13) ->  | D16: =IF(PivotRank!C13=0,"",PivotRank!C13) ->  | E16: =IF(PivotRank!D13=0,"",PivotRank!D13) ->  | F16: =IF(PivotRank!E13=0,"",PivotRank!E13) ->  | G16: =IF(PivotRank!F13=0,"",PivotRank!F13) -> High | H16: =IF(PivotRank!G13=0,"",PivotRank!G13) -> Medium | I16: =IF(PivotRank!H13=0,"",PivotRank!H13) ->  | J16: =IF(PivotRank!I13=0,"",PivotRank!I13) ->  | K16: =IF(PivotRank!J13=0,"",PivotRank!J13) ->  | L16: =IF(PivotRank!K13=0,"",PivotRank!K13) -> Low | M16: =IF(PivotRank!L13=0,"",PivotRank!L13) ->  | N16: =IF(PivotRank!M13=0,"",PivotRank!M13) ->  | P16: ='ThreatAdd '!A13 -> Medium | Q16: ='ThreatAdd '!B13 -> 43
B17: =IF(PivotRank!A14=0,"",PivotRank!A14) -> Incompatible mining (excluding roads) | C17: =IF(PivotRank!B14=0,"",PivotRank!B14) -> Low | D17: =IF(PivotRank!C14=0,"",PivotRank!C14) -> Low | E17: =IF(PivotRank!D14=0,"",PivotRank!D14) ->  | F17: =IF(PivotRank!E14=0,"",PivotRank!E14) -> High | G17: =IF(PivotRank!F14=0,"",PivotRank!F14) ->  | H17: =IF(PivotRank!G14=0,"",PivotRank!G14) -> Low | I17: =IF(PivotRank!H14=0,"",PivotRank!H14) ->  | J17: =IF(PivotRank!I14=0,"",PivotRank!I14) -> Low | K17: =IF(PivotRank!J14=0,"",PivotRank!J14) ->  | L17: =IF(PivotRank!K14=0,"",PivotRank!K14) ->  | M17: =IF(PivotRank!L14=0,"",PivotRank!L14) ->  | N17: =IF(PivotRank!M14=0,"",PivotRank!M14) ->  | P17: ='ThreatAdd '!A14 -> Medium | Q17: ='ThreatAdd '!B14 -> 39
B18: =IF(PivotRank!A15=0,"",PivotRank!A15) -> Stormwater | C18: =IF(PivotRank!B15=0,"",PivotRank!B15) ->  | D18: =IF(PivotRank!C15=0,"",PivotRank!C15) ->  | E18: =IF(PivotRank!D15=0,"",PivotRank!D15) ->  | F18: =IF(PivotRank!E15=0,"",PivotRank!E15) ->  | G18: =IF(PivotRank!F15=0,"",PivotRank!F15) ->  | H18: =IF(PivotRank!G15=0,"",PivotRank!G15) -> Low | I18: =IF(PivotRank!H15=0,"",PivotRank!H15) ->  | J18: =IF(PivotRank!I15=0,"",PivotRank!I15) -> Low | K18: =IF(PivotRank!J15=0,"",PivotRank!J15) -> High | L18: =IF(PivotRank!K15=0,"",PivotRank!K15) ->  | M18: =IF(PivotRank!L15=0,"",PivotRank!L15) ->  | N18: =IF(PivotRank!M15=0,"",PivotRank!M15) ->  | P18: ='ThreatAdd '!A15 -> Medium | Q18: ='ThreatAdd '!B15 -> 37
B19: =IF(PivotRank!A16=0,"",PivotRank!A16) -> Incompatible boating | C19: =IF(PivotRank!B16=0,"",PivotRank!B16) ->  | D19: =IF(PivotRank!C16=0,"",PivotRank!C16) ->  | E19: =IF(PivotRank!D16=0,"",PivotRank!D16) ->  | F19: =IF(PivotRank!E16=0,"",PivotRank!E16) -> Medium | G19: =IF(PivotRank!F16=0,"",PivotRank!F16) ->  | H19: =IF(PivotRank!G16=0,"",PivotRank!G16) ->  | I19: =IF(PivotRank!H16=0,"",PivotRank!H16) ->  | J19: =IF(PivotRank!I16=0,"",PivotRank!I16) -> Medium | K19: =IF(PivotRank!J16=0,"",PivotRank!J16) -> Medium | L19: =IF(PivotRank!K16=0,"",PivotRank!K16) -> Low | M19: =IF(PivotRank!L16=0,"",PivotRank!L16) ->  | N19: =IF(PivotRank!M16=0,"",PivotRank!M16) ->  | P19: ='ThreatAdd '!A16 -> Medium | Q19: ='ThreatAdd '!B16 -> 22
B20: =IF(PivotRank!A17=0,"",PivotRank!A17) -> Dumping of trash, debris, etc. | C20: =IF(PivotRank!B17=0,"",PivotRank!B17) ->  | D20: =IF(PivotRank!C17=0,"",PivotRank!C17) -> Low | E20: =IF(PivotRank!D17=0,"",PivotRank!D17) ->  | F20: =IF(PivotRank!E17=0,"",PivotRank!E17) -> Low | G20: =IF(PivotRank!F17=0,"",PivotRank!F17) ->  | H20: =IF(PivotRank!G17=0,"",PivotRank!G17) -> Low | I20: =IF(PivotRank!H17=0,"",PivotRank!H17) -> Medium | J20: =IF(PivotRank!I17=0,"",PivotRank!I17) ->  | K20: =IF(PivotRank!J17=0,"",PivotRank!J17) -> Medium | L20: =IF(PivotRank!K17=0,"",PivotRank!K17) -> Low | M20: =IF(PivotRank!L17=0,"",PivotRank!L17) ->  | N20: =IF(PivotRank!M17=0,"",PivotRank!M17) ->  | P20: ='ThreatAdd '!A17 -> Medium | Q20: ='ThreatAdd '!B17 -> 18
B21: =IF(PivotRank!A18=0,"",PivotRank!A18) -> Incompatible timber management practices | C21: =IF(PivotRank!B18=0,"",PivotRank!B18) ->  | D21: =IF(PivotRank!C18=0,"",PivotRank!C18) -> Medium | E21: =IF(PivotRank!D18=0,"",PivotRank!D18) ->  | F21: =IF(PivotRank!E18=0,"",PivotRank!E18) -> Low | G21: =IF(PivotRank!F18=0,"",PivotRank!F18) ->  | H21: =IF(PivotRank!G18=0,"",PivotRank!G18) -> Low | I21: =IF(PivotRank!H18=0,"",PivotRank!H18) ->  | J21: =IF(PivotRank!I18=0,"",PivotRank!I18) ->  | K21: =IF(PivotRank!J18=0,"",PivotRank!J18) ->  | L21: =IF(PivotRank!K18=0,"",PivotRank!K18) ->  | M21: =IF(PivotRank!L18=0,"",PivotRank!L18) ->  | N21: =IF(PivotRank!M18=0,"",PivotRank!M18) ->  | P21: ='ThreatAdd '!A18 -> Low | Q21: ='ThreatAdd '!B18 -> 9
B22: =IF(PivotRank!A19=0,"",PivotRank!A19) -> Industrial discharge | C22: =IF(PivotRank!B19=0,"",PivotRank!B19) ->  | D22: =IF(PivotRank!C19=0,"",PivotRank!C19) ->  | E22: =IF(PivotRank!D19=0,"",PivotRank!D19) ->  | F22: =IF(PivotRank!E19=0,"",PivotRank!E19) ->  | G22: =IF(PivotRank!F19=0,"",PivotRank!F19) ->  | H22: =IF(PivotRank!G19=0,"",PivotRank!G19) ->  | I22: =IF(PivotRank!H19=0,"",PivotRank!H19) ->  | J22: =IF(PivotRank!I19=0,"",PivotRank!I19) ->  | K22: =IF(PivotRank!J19=0,"",PivotRank!J19) -> Medium | L22: =IF(PivotRank!K19=0,"",PivotRank!K19) ->  | M22: =IF(PivotRank!L19=0,"",PivotRank!L19) ->  | N22: =IF(PivotRank!M19=0,"",PivotRank!M19) ->  | P22: ='ThreatAdd '!A19 -> Low | Q22: ='ThreatAdd '!B19 -> 7
B23: =IF(PivotRank!A20=0,"",PivotRank!A20) ->  | C23: =IF(PivotRank!B20=0,"",PivotRank!B20) ->  | D23: =IF(PivotRank!C20=0,"",PivotRank!C20) ->  | E23: =IF(PivotRank!D20=0,"",PivotRank!D20) ->  | F23: =IF(PivotRank!E20=0,"",PivotRank!E20) ->  | G23: =IF(PivotRank!F20=0,"",PivotRank!F20) ->  | H23: =IF(PivotRank!G20=0,"",PivotRank!G20) ->  | I23: =IF(PivotRank!H20=0,"",PivotRank!H20) ->  | J23: =IF(PivotRank!I20=0,"",PivotRank!I20) ->  | K23: =IF(PivotRank!J20=0,"",PivotRank!J20) ->  | L23: =IF(PivotRank!K20=0,"",PivotRank!K20) ->  | M23: =IF(PivotRank!L20=0,"",PivotRank!L20) ->  | N23: =IF(PivotRank!M20=0,"",PivotRank!M20) ->  | P23: ='ThreatAdd '!A20 ->  | Q23: ='ThreatAdd '!B20 -> 0
B24: =IF(PivotRank!A21=0,"",PivotRank!A21) ->  | C24: =IF(PivotRank!B21=0,"",PivotRank!B21) ->  | D24: =IF(PivotRank!C21=0,"",PivotRank!C21) ->  | E24: =IF(PivotRank!D21=0,"",PivotRank!D21) ->  | F24: =IF(PivotRank!E21=0,"",PivotRank!E21) ->  | G24: =IF(PivotRank!F21=0,"",PivotRank!F21) ->  | H24: =IF(PivotRank!G21=0,"",PivotRank!G21) ->  | I24: =IF(PivotRank!H21=0,"",PivotRank!H21) ->  | J24: =IF(PivotRank!I21=0,"",PivotRank!I21) ->  | K24: =IF(PivotRank!J21=0,"",PivotRank!J21) ->  | L24: =IF(PivotRank!K21=0,"",PivotRank!K21) ->  | M24: =IF(PivotRank!L21=0,"",PivotRank!L21) ->  | N24: =IF(PivotRank!M21=0,"",PivotRank!M21) ->  | P24: ='ThreatAdd '!A21 ->  | Q24: ='ThreatAdd '!B21 -> 0
B25: =IF(PivotRank!A22=0,"",PivotRank!A22) ->  | C25: =IF(PivotRank!B22=0,"",PivotRank!B22) ->  | D25: =IF(PivotRank!C22=0,"",PivotRank!C22) ->  | E25: =IF(PivotRank!D22=0,"",PivotRank!D22) ->  | F25: =IF(PivotRank!E22=0,"",PivotRank!E22) ->  | G25: =IF(PivotRank!F22=0,"",PivotRank!F22) ->  | H25: =IF(PivotRank!G22=0,"",PivotRank!G22) ->  | I25: =IF(PivotRank!H22=0,"",PivotRank!H22) ->  | J25: =IF(PivotRank!I22=0,"",PivotRank!I22) ->  | K25: =IF(PivotRank!J22=0,"",PivotRank!J22) ->  | L25: =IF(PivotRank!K22=0,"",PivotRank!K22) ->  | M25: =IF(PivotRank!L22=0,"",PivotRank!L22) ->  | N25: =IF(PivotRank!M22=0,"",PivotRank!M22) ->  | P25: ='ThreatAdd '!A22 ->  | Q25: ='ThreatAdd '!B22 -> 0
B26: =IF(PivotRank!A23=0,"",PivotRank!A23) ->  | C26: =IF(PivotRank!B23=0,"",PivotRank!B23) ->  | D26: =IF(PivotRank!C23=0,"",PivotRank!C23) ->  | E26: =IF(PivotRank!D23=0,"",PivotRank!D23) ->  | F26: =IF(PivotRank!E23=0,"",PivotRank!E23) ->  | G26: =IF(PivotRank!F23=0,"",PivotRank!F23) ->  | H26: =IF(PivotRank!G23=0,"",PivotRank!G23) ->  | I26: =IF(PivotRank!H23=0,"",PivotRank!H23) ->  | J26: =IF(PivotRank!I23=0,"",PivotRank!I23) ->  | K26: =IF(PivotRank!J23=0,"",PivotRank!J23) ->  | L26: =IF(PivotRank!K23=0,"",PivotRank!K23) ->  | M26: =IF(PivotRank!L23=0,"",PivotRank!L23) ->  | N26: =IF(PivotRank!M23=0,"",PivotRank!M23) ->  | P26: ='ThreatAdd '!A23 ->  | Q26: ='ThreatAdd '!B23 -> 0
B27: =IF(PivotRank!A24=0,"",PivotRank!A24) ->  | C27: =IF(PivotRank!B24=0,"",PivotRank!B24) ->  | D27: =IF(PivotRank!C24=0,"",PivotRank!C24) ->  | E27: =IF(PivotRank!D24=0,"",PivotRank!D24) ->  | F27: =IF(PivotRank!E24=0,"",PivotRank!E24) ->  | G27: =IF(PivotRank!F24=0,"",PivotRank!F24) ->  | H27: =IF(PivotRank!G24=0,"",PivotRank!G24) ->  | I27: =IF(PivotRank!H24=0,"",PivotRank!H24) ->  | J27: =IF(PivotRank!I24=0,"",PivotRank!I24) ->  | K27: =IF(PivotRank!J24=0,"",PivotRank!J24) ->  | L27: =IF(PivotRank!K24=0,"",PivotRank!K24) ->  | M27: =IF(PivotRank!L24=0,"",PivotRank!L24) ->  | N27: =IF(PivotRank!M24=0,"",PivotRank!M24) ->  | P27: ='ThreatAdd '!A24 ->  | Q27: ='ThreatAdd '!B24 -> 0
B28: =IF(PivotRank!A25=0,"",PivotRank!A25) ->  | C28: =IF(PivotRank!B25=0,"",PivotRank!B25) ->  | D28: =IF(PivotRank!C25=0,"",PivotRank!C25) ->  | E28: =IF(PivotRank!D25=0,"",PivotRank!D25) ->  | F28: =IF(PivotRank!E25=0,"",PivotRank!E25) ->  | G28: =IF(PivotRank!F25=0,"",PivotRank!F25) ->  | H28: =IF(PivotRank!G25=0,"",PivotRank!G25) ->  | I28: =IF(PivotRank!H25=0,"",PivotRank!H25) ->  | J28: =IF(PivotRank!I25=0,"",PivotRank!I25) ->  | K28: =IF(PivotRank!J25=0,"",PivotRank!J25) ->  | L28: =IF(PivotRank!K25=0,"",PivotRank!K25) ->  | M28: =IF(PivotRank!L25=0,"",PivotRank!L25) ->  | N28: =IF(PivotRank!M25=0,"",PivotRank!M25) ->  | P28: ='ThreatAdd '!A25 ->  | Q28: ='ThreatAdd '!B25 -> 0
B29: =IF(PivotRank!A26=0,"",PivotRank!A26) ->  | C29: =IF(PivotRank!B26=0,"",PivotRank!B26) ->  | D29: =IF(PivotRank!C26=0,"",PivotRank!C26) ->  | E29: =IF(PivotRank!D26=0,"",PivotRank!D26) ->  | F29: =IF(PivotRank!E26=0,"",PivotRank!E26) ->  | G29: =IF(PivotRank!F26=0,"",PivotRank!F26) ->  | H29: =IF(PivotRank!G26=0,"",PivotRank!G26) ->  | I29: =IF(PivotRank!H26=0,"",PivotRank!H26) ->  | J29: =IF(PivotRank!I26=0,"",PivotRank!I26) ->  | K29: =IF(PivotRank!J26=0,"",PivotRank!J26) ->  | L29: =IF(PivotRank!K26=0,"",PivotRank!K26) ->  | M29: =IF(PivotRank!L26=0,"",PivotRank!L26) ->  | N29: =IF(PivotRank!M26=0,"",PivotRank!M26) ->  | P29: ='ThreatAdd '!A26 ->  | Q29: ='ThreatAdd '!B26 -> 0
B30: =IF(PivotRank!A27=0,"",PivotRank!A27) ->  | C30: =IF(PivotRank!B27=0,"",PivotRank!B27) ->  | D30: =IF(PivotRank!C27=0,"",PivotRank!C27) ->  | E30: =IF(PivotRank!D27=0,"",PivotRank!D27) ->  | F30: =IF(PivotRank!E27=0,"",PivotRank!E27) ->  | G30: =IF(PivotRank!F27=0,"",PivotRank!F27) ->  | H30: =IF(PivotRank!G27=0,"",PivotRank!G27) ->  | I30: =IF(PivotRank!H27=0,"",PivotRank!H27) ->  | J30: =IF(PivotRank!I27=0,"",PivotRank!I27) ->  | K30: =IF(PivotRank!J27=0,"",PivotRank!J27) ->  | L30: =IF(PivotRank!K27=0,"",PivotRank!K27) ->  | M30: =IF(PivotRank!L27=0,"",PivotRank!L27) ->  | N30: =IF(PivotRank!M27=0,"",PivotRank!M27) ->  | P30: ='ThreatAdd '!A27 ->  | Q30: ='ThreatAdd '!B27 -> 0
B31: =IF(PivotRank!A28=0,"",PivotRank!A28) ->  | C31: =IF(PivotRank!B28=0,"",PivotRank!B28) ->  | D31: =IF(PivotRank!C28=0,"",PivotRank!C28) ->  | E31: =IF(PivotRank!D28=0,"",PivotRank!D28) ->  | F31: =IF(PivotRank!E28=0,"",PivotRank!E28) ->  | G31: =IF(PivotRank!F28=0,"",PivotRank!F28) ->  | H31: =IF(PivotRank!G28=0,"",PivotRank!G28) ->  | I31: =IF(PivotRank!H28=0,"",PivotRank!H28) ->  | J31: =IF(PivotRank!I28=0,"",PivotRank!I28) ->  | K31: =IF(PivotRank!J28=0,"",PivotRank!J28) ->  | L31: =IF(PivotRank!K28=0,"",PivotRank!K28) ->  | M31: =IF(PivotRank!L28=0,"",PivotRank!L28) ->  | N31: =IF(PivotRank!M28=0,"",PivotRank!M28) ->  | P31: ='ThreatAdd '!A28 ->  | Q31: ='ThreatAdd '!B28 -> 0
B32: =IF(PivotRank!A29=0,"",PivotRank!A29) ->  | C32: =IF(PivotRank!B29=0,"",PivotRank!B29) ->  | D32: =IF(PivotRank!C29=0,"",PivotRank!C29) ->  | E32: =IF(PivotRank!D29=0,"",PivotRank!D29) ->  | F32: =IF(PivotRank!E29=0,"",PivotRank!E29) ->  | G32: =IF(PivotRank!F29=0,"",PivotRank!F29) ->  | H32: =IF(PivotRank!G29=0,"",PivotRank!G29) ->  | I32: =IF(PivotRank!H29=0,"",PivotRank!H29) ->  | J32: =IF(PivotRank!I29=0,"",PivotRank!I29) ->  | K32: =IF(PivotRank!J29=0,"",PivotRank!J29) ->  | L32: =IF(PivotRank!K29=0,"",PivotRank!K29) ->  | M32: =IF(PivotRank!L29=0,"",PivotRank!L29) ->  | N32: =IF(PivotRank!M29=0,"",PivotRank!M29) ->  | P32: ='ThreatAdd '!A29 ->  | Q32: ='ThreatAdd '!B29 -> 0
B33: =IF(PivotRank!A30=0,"",PivotRank!A30) ->  | C33: =IF(PivotRank!B30=0,"",PivotRank!B30) ->  | D33: =IF(PivotRank!C30=0,"",PivotRank!C30) ->  | E33: =IF(PivotRank!D30=0,"",PivotRank!D30) ->  | F33: =IF(PivotRank!E30=0,"",PivotRank!E30) ->  | G33: =IF(PivotRank!F30=0,"",PivotRank!F30) ->  | H33: =IF(PivotRank!G30=0,"",PivotRank!G30) ->  | I33: =IF(PivotRank!H30=0,"",PivotRank!H30) ->  | J33: =IF(PivotRank!I30=0,"",PivotRank!I30) ->  | K33: =IF(PivotRank!J30=0,"",PivotRank!J30) ->  | L33: =IF(PivotRank!K30=0,"",PivotRank!K30) ->  | M33: =IF(PivotRank!L30=0,"",PivotRank!L30) ->  | N33: =IF(PivotRank!M30=0,"",PivotRank!M30) ->  | P33: ='ThreatAdd '!A30 ->  | Q33: ='ThreatAdd '!B30 -> 0
B34: =IF(PivotRank!A31=0,"",PivotRank!A31) ->  | C34: =IF(PivotRank!B31=0,"",PivotRank!B31) ->  | D34: =IF(PivotRank!C31=0,"",PivotRank!C31) ->  | E34: =IF(PivotRank!D31=0,"",PivotRank!D31) ->  | F34: =IF(PivotRank!E31=0,"",PivotRank!E31) ->  | G34: =IF(PivotRank!F31=0,"",PivotRank!F31) ->  | H34: =IF(PivotRank!G31=0,"",PivotRank!G31) ->  | I34: =IF(PivotRank!H31=0,"",PivotRank!H31) ->  | J34: =IF(PivotRank!I31=0,"",PivotRank!I31) ->  | K34: =IF(PivotRank!J31=0,"",PivotRank!J31) ->  | L34: =IF(PivotRank!K31=0,"",PivotRank!K31) ->  | M34: =IF(PivotRank!L31=0,"",PivotRank!L31) ->  | N34: =IF(PivotRank!M31=0,"",PivotRank!M31) ->  | P34: ='ThreatAdd '!A31 ->  | Q34: ='ThreatAdd '!B31 -> 0
B35: =IF(PivotRank!A32=0,"",PivotRank!A32) ->  | C35: =IF(PivotRank!B32=0,"",PivotRank!B32) ->  | D35: =IF(PivotRank!C32=0,"",PivotRank!C32) ->  | E35: =IF(PivotRank!D32=0,"",PivotRank!D32) ->  | F35: =IF(PivotRank!E32=0,"",PivotRank!E32) ->  | G35: =IF(PivotRank!F32=0,"",PivotRank!F32) ->  | H35: =IF(PivotRank!G32=0,"",PivotRank!G32) ->  | I35: =IF(PivotRank!H32=0,"",PivotRank!H32) ->  | J35: =IF(PivotRank!I32=0,"",PivotRank!I32) ->  | K35: =IF(PivotRank!J32=0,"",PivotRank!J32) ->  | L35: =IF(PivotRank!K32=0,"",PivotRank!K32) ->  | M35: =IF(PivotRank!L32=0,"",PivotRank!L32) ->  | N35: =IF(PivotRank!M32=0,"",PivotRank!M32) ->  | P35: ='ThreatAdd '!A32 ->  | Q35: ='ThreatAdd '!B32 -> 0
B36: =IF(PivotRank!A33=0,"",PivotRank!A33) ->  | C36: =IF(PivotRank!B33=0,"",PivotRank!B33) ->  | D36: =IF(PivotRank!C33=0,"",PivotRank!C33) ->  | E36: =IF(PivotRank!D33=0,"",PivotRank!D33) ->  | F36: =IF(PivotRank!E33=0,"",PivotRank!E33) ->  | G36: =IF(PivotRank!F33=0,"",PivotRank!F33) ->  | H36: =IF(PivotRank!G33=0,"",PivotRank!G33) ->  | I36: =IF(PivotRank!H33=0,"",PivotRank!H33) ->  | J36: =IF(PivotRank!I33=0,"",PivotRank!I33) ->  | K36: =IF(PivotRank!J33=0,"",PivotRank!J33) ->  | L36: =IF(PivotRank!K33=0,"",PivotRank!K33) ->  | M36: =IF(PivotRank!L33=0,"",PivotRank!L33) ->  | N36: =IF(PivotRank!M33=0,"",PivotRank!M33) ->  | P36: ='ThreatAdd '!A33 ->  | Q36: ='ThreatAdd '!B33 -> 0
B37: =IF(PivotRank!A34=0,"",PivotRank!A34) ->  | C37: =IF(PivotRank!B34=0,"",PivotRank!B34) ->  | D37: =IF(PivotRank!C34=0,"",PivotRank!C34) ->  | E37: =IF(PivotRank!D34=0,"",PivotRank!D34) ->  | F37: =IF(PivotRank!E34=0,"",PivotRank!E34) ->  | G37: =IF(PivotRank!F34=0,"",PivotRank!F34) ->  | H37: =IF(PivotRank!G34=0,"",PivotRank!G34) ->  | I37: =IF(PivotRank!H34=0,"",PivotRank!H34) ->  | J37: =IF(PivotRank!I34=0,"",PivotRank!I34) ->  | K37: =IF(PivotRank!J34=0,"",PivotRank!J34) ->  | L37: =IF(PivotRank!K34=0,"",PivotRank!K34) ->  | M37: =IF(PivotRank!L34=0,"",PivotRank!L34) ->  | N37: =IF(PivotRank!M34=0,"",PivotRank!M34) ->  | P37: ='ThreatAdd '!A34 ->  | Q37: ='ThreatAdd '!B34 -> 0
B38: =IF(PivotRank!A35=0,"",PivotRank!A35) ->  | C38: =IF(PivotRank!B35=0,"",PivotRank!B35) ->  | D38: =IF(PivotRank!C35=0,"",PivotRank!C35) ->  | E38: =IF(PivotRank!D35=0,"",PivotRank!D35) ->  | F38: =IF(PivotRank!E35=0,"",PivotRank!E35) ->  | G38: =IF(PivotRank!F35=0,"",PivotRank!F35) ->  | H38: =IF(PivotRank!G35=0,"",PivotRank!G35) ->  | I38: =IF(PivotRank!H35=0,"",PivotRank!H35) ->  | J38: =IF(PivotRank!I35=0,"",PivotRank!I35) ->  | K38: =IF(PivotRank!J35=0,"",PivotRank!J35) ->  | L38: =IF(PivotRank!K35=0,"",PivotRank!K35) ->  | M38: =IF(PivotRank!L35=0,"",PivotRank!L35) ->  | N38: =IF(PivotRank!M35=0,"",PivotRank!M35) ->  | P38: ='ThreatAdd '!A35 ->  | Q38: ='ThreatAdd '!B35 -> 0
B39: =IF(PivotRank!A36=0,"",PivotRank!A36) ->  | C39: =IF(PivotRank!B36=0,"",PivotRank!B36) ->  | D39: =IF(PivotRank!C36=0,"",PivotRank!C36) ->  | E39: =IF(PivotRank!D36=0,"",PivotRank!D36) ->  | F39: =IF(PivotRank!E36=0,"",PivotRank!E36) ->  | G39: =IF(PivotRank!F36=0,"",PivotRank!F36) ->  | H39: =IF(PivotRank!G36=0,"",PivotRank!G36) ->  | I39: =IF(PivotRank!H36=0,"",PivotRank!H36) ->  | J39: =IF(PivotRank!I36=0,"",PivotRank!I36) ->  | K39: =IF(PivotRank!J36=0,"",PivotRank!J36) ->  | L39: =IF(PivotRank!K36=0,"",PivotRank!K36) ->  | M39: =IF(PivotRank!L36=0,"",PivotRank!L36) ->  | N39: =IF(PivotRank!M36=0,"",PivotRank!M36) ->  | P39: ='ThreatAdd '!A36 ->  | Q39: ='ThreatAdd '!B36 -> 0
B40: =IF(PivotRank!A37=0,"",PivotRank!A37) ->  | C40: =IF(PivotRank!B37=0,"",PivotRank!B37) ->  | D40: =IF(PivotRank!C37=0,"",PivotRank!C37) ->  | E40: =IF(PivotRank!D37=0,"",PivotRank!D37) ->  | F40: =IF(PivotRank!E37=0,"",PivotRank!E37) ->  | G40: =IF(PivotRank!F37=0,"",PivotRank!F37) ->  | H40: =IF(PivotRank!G37=0,"",PivotRank!G37) ->  | I40: =IF(PivotRank!H37=0,"",PivotRank!H37) ->  | J40: =IF(PivotRank!I37=0,"",PivotRank!I37) ->  | K40: =IF(PivotRank!J37=0,"",PivotRank!J37) ->  | L40: =IF(PivotRank!K37=0,"",PivotRank!K37) ->  | M40: =IF(PivotRank!L37=0,"",PivotRank!L37) ->  | N40: =IF(PivotRank!M37=0,"",PivotRank!M37) ->  | P40: ='ThreatAdd '!A37 ->  | Q40: ='ThreatAdd '!B37 -> 0
B41: =IF(PivotRank!A38=0,"",PivotRank!A38) ->  | C41: =IF(PivotRank!B38=0,"",PivotRank!B38) ->  | D41: =IF(PivotRank!C38=0,"",PivotRank!C38) ->  | E41: =IF(PivotRank!D38=0,"",PivotRank!D38) ->  | F41: =IF(PivotRank!E38=0,"",PivotRank!E38) ->  | G41: =IF(PivotRank!F38=0,"",PivotRank!F38) ->  | H41: =IF(PivotRank!G38=0,"",PivotRank!G38) ->  | I41: =IF(PivotRank!H38=0,"",PivotRank!H38) ->  | J41: =IF(PivotRank!I38=0,"",PivotRank!I38) ->  | K41: =IF(PivotRank!J38=0,"",PivotRank!J38) ->  | L41: =IF(PivotRank!K38=0,"",PivotRank!K38) ->  | M41: =IF(PivotRank!L38=0,"",PivotRank!L38) ->  | N41: =IF(PivotRank!M38=0,"",PivotRank!M38) ->  | P41: ='ThreatAdd '!A38 ->  | Q41: ='ThreatAdd '!B38 -> 0
B42: =IF(PivotRank!A39=0,"",PivotRank!A39) ->  | C42: =IF(PivotRank!B39=0,"",PivotRank!B39) ->  | D42: =IF(PivotRank!C39=0,"",PivotRank!C39) ->  | E42: =IF(PivotRank!D39=0,"",PivotRank!D39) ->  | F42: =IF(PivotRank!E39=0,"",PivotRank!E39) ->  | G42: =IF(PivotRank!F39=0,"",PivotRank!F39) ->  | H42: =IF(PivotRank!G39=0,"",PivotRank!G39) ->  | I42: =IF(PivotRank!H39=0,"",PivotRank!H39) ->  | J42: =IF(PivotRank!I39=0,"",PivotRank!I39) ->  | K42: =IF(PivotRank!J39=0,"",PivotRank!J39) ->  | L42: =IF(PivotRank!K39=0,"",PivotRank!K39) ->  | M42: =IF(PivotRank!L39=0,"",PivotRank!L39) ->  | N42: =IF(PivotRank!M39=0,"",PivotRank!M39) ->  | P42: ='ThreatAdd '!A39 ->  | Q42: ='ThreatAdd '!B39 -> 0
B43: =IF(PivotRank!A40=0,"",PivotRank!A40) ->  | C43: =IF(PivotRank!B40=0,"",PivotRank!B40) ->  | D43: =IF(PivotRank!C40=0,"",PivotRank!C40) ->  | E43: =IF(PivotRank!D40=0,"",PivotRank!D40) ->  | F43: =IF(PivotRank!E40=0,"",PivotRank!E40) ->  | G43: =IF(PivotRank!F40=0,"",PivotRank!F40) ->  | H43: =IF(PivotRank!G40=0,"",PivotRank!G40) ->  | I43: =IF(PivotRank!H40=0,"",PivotRank!H40) ->  | J43: =IF(PivotRank!I40=0,"",PivotRank!I40) ->  | K43: =IF(PivotRank!J40=0,"",PivotRank!J40) ->  | L43: =IF(PivotRank!K40=0,"",PivotRank!K40) ->  | M43: =IF(PivotRank!L40=0,"",PivotRank!L40) ->  | N43: =IF(PivotRank!M40=0,"",PivotRank!M40) -> 
M44: =IF(PivotRank!L41=0,"",PivotRank!L41) ->  | N44: =IF(PivotRank!M41=0,"",PivotRank!M41) -> 
C46: ='ThreatAdd '!C42 -> 85 | D46: ='ThreatAdd '!D42 -> 95 | E46: ='ThreatAdd '!E42 -> 142 | F46: ='ThreatAdd '!F42 -> 81 | G46: ='ThreatAdd '!G42 -> 134 | H46: ='ThreatAdd '!H42 -> 160 | I46: ='ThreatAdd '!I42 -> 294 | J46: ='ThreatAdd '!J42 -> 19 | K46: ='ThreatAdd '!K42 -> 238 | L46: ='ThreatAdd '!L42 -> 21

Sheet 1
D1: =IF(Targets!C3=0,"",Targets!C3) -> Alpine Tundra - Upper Chena | E1: =IF(Targets!C9=0,"",Targets!C9) -> Boreal Forests - Upper Chena | F1: Key Attributes & Future Threats | T1: Display this later?
F2: Place cursor over cells with red triangles in top corner for hint
A3: KEA ID | B3: Target ID | C3: Target Name | D3: Category | E3: Key Attribute | F3: Indicator | G3: Poor | H3: Fair | I3: Good | J3: Very Good | K3: Current Rating | L3: Projected Future Rating w No Action | M3: Stress Ranking (calculated) | N3: Stress Ranking (User Override) | T3: Projected Future Rating w Strategies | U3: New Stress Ranking (calculated) | V3: New Stress Ranking (User Override) | AA3: Target # | AB3: Current Score | AC3: Score w No Action | AD3: Score w Strategies | AE3: Current Weight | AF3: Future Weight No Action | AG3: Future Weight w Action | AH3: Current Weighted Score | AI3: Future No Action Weighted Score | AJ3: Future Action Weighted Score | AK3: Current Weighted Average | AL3: Future No Action Weighted Average | AM3: Future Action Weighted Average
A4: =ROW()+100 -> 104 | B4: 1 | C4: =$D$1 -> Alpine Tundra - Upper Chena | D4: Landscape Context | E4: Fire regime | F4: Frequency, size, type of fires, severity | G4: Highly altered regime | H4: Moderately altered regime | I4: Mostly natural regime | J4: Mother Nature | K4: Good | L4: Good | M4: =IF(K4=0,"",IF(L4=0,"",INDEX(StressRankMatrix,MATCH(K4,Rating,0),MATCH(L4,Rating,0)))) -> - | T4: =IF(L4="","",IFERROR(INDEX(Outcomes!$F:$F, MATCH(A4,Outcomes!$H:$H,0)),L4)) -> Good | U4: =IF(K4="","",IF(T4=0,"",INDEX(StressRankMatrix,MATCH(K4,Rating,0),MATCH(T4,Rating,0)))) -> - | AA4: =IF(E4="","",IF(E4>0,$B$4,"error")) -> 1 | AB4: =IF(K4="Poor",Scoring!$B$50,IF(K4="Fair -",Scoring!$B$49,IF(K4="Fair",Scoring!$B$48,IF(K4="Good -",Scoring!$B$47,IF(K4="Good",Scoring!$B$46,IF(K4="Very Good",Scoring!$B$45,IF(K4="",0))))))) -> 80.03 | AC4: =IF(L4="Poor",Scoring!$B$50,IF(L4="Fair -",Scoring!$B$49,IF(L4="Fair",Scoring!$B$48,IF(L4="Good -",Scoring!$B$47,IF(L4="Good",Scoring!$B$46,IF(L4="Very Good",Scoring!$B$45,IF(L4="",0))))))) -> 80.03 | AD4: =IF(T4="Poor",Scoring!$B$50,IF(T4="Fair -",Scoring!$B$49,IF(T4="Fair",Scoring!$B$48,IF(T4="Good -",Scoring!$B$47,IF(T4="Good",Scoring!$B$46,IF(T4="Very Good",Scoring!$B$45,IF(T4="",0))))))) -> 80.03 | AE4: =IF(K4="Poor",Scoring!$C$50,IF(K4="Fair -",Scoring!$C$49,IF(K4="Fair",Scoring!$C$48,IF(K4="Good -",Scoring!$C$47,IF(K4="Good",Scoring!$C$46,IF(K4="Very Good",Scoring!$C$45,IF(K4="",0))))))) -> 1 | AF4: =IF(L4="Poor",Scoring!$C$50,IF(L4="Fair -",Scoring!$C$49,IF(L4="Fair",Scoring!$C$48,IF(L4="Good -",Scoring!$C$47,IF(L4="Good",Scoring!$C$46,IF(L4="Very Good",Scoring!$C$45,IF(L4="",0))))))) -> 1 | AG4: =IF(T4="Poor",Scoring!$C$50,IF(T4="Fair -",Scoring!$C$49,IF(T4="Fair",Scoring!$C$48,IF(T4="Good -",Scoring!$C$47,IF(T4="Good",Scoring!$C$46,IF(T4="Very Good",Scoring!$C$45,IF(T4="",0))))))) -> 1 | AH4: =AB4*AE4 -> 80.03 | AI4: =AC4*AF4 -> 80.03 | AJ4: =AD4*AG4 -> 80.03
A5: =ROW()+100 -> 105 | B5: 1 | C5: =$D$1 -> Alpine Tundra - Upper Chena | D5: Landscape Context | E5: Habitat connectivity | F5: Movement of species | G5: Most species are isolated | H5: Some species are isolated | I5: Most species are mostly able to move freely among most habitats | J5: Mother Nature | K5: Very Good | L5: Very Good | M5: - | T5: =IF(L5="","",IFERROR(INDEX(Outcomes!$F:$F, MATCH(A5,Outcomes!$H:$H,0)),L5)) -> Very Good | U5: - | AA5: =IF(E5="","",IF(E5>0,$B$4,"error")) -> 1 | AB5: =IF(K5="Poor",Scoring!$B$50,IF(K5="Fair -",Scoring!$B$49,IF(K5="Fair",Scoring!$B$48,IF(K5="Good -",Scoring!$B$47,IF(K5="Good",Scoring!$B$46,IF(K5="Very Good",Scoring!$B$45,IF(K5="",0))))))) -> 100 | AC5: =IF(L5="Poor",Scoring!$B$50,IF(L5="Fair -",Scoring!$B$49,IF(L5="Fair",Scoring!$B$48,IF(L5="Good -",Scoring!$B$47,IF(L5="Good",Scoring!$B$46,IF(L5="Very Good",Scoring!$B$45,IF(L5="",0))))))) -> 100 | AD5: =IF(T5="Poor",Scoring!$B$50,IF(T5="Fair -",Scoring!$B$49,IF(T5="Fair",Scoring!$B$48,IF(T5="Good -",Scoring!$B$47,IF(T5="Good",Scoring!$B$46,IF(T5="Very Good",Scoring!$B$45,IF(T5="",0))))))) -> 100 | AE5: =IF(K5="Poor",Scoring!$C$50,IF(K5="Fair -",Scoring!$C$49,IF(K5="Fair",Scoring!$C$48,IF(K5="Good -",Scoring!$C$47,IF(K5="Good",Scoring!$C$46,IF(K5="Very Good",Scoring!$C$45,IF(K5="",0))))))) -> 0.85 | AF5: =IF(L5="Poor",Scoring!$C$50,IF(L5="Fair -",Scoring!$C$49,IF(L5="Fair",Scoring!$C$48,IF(L5="Good -",Scoring!$C$47,IF(L5="Good",Scoring!$C$46,IF(L5="Very Good",Scoring!$C$45,IF(L5="",0))))))) -> 0.85 | AG5: =IF(T5="Poor",Scoring!$C$50,IF(T5="Fair -",Scoring!$C$49,IF(T5="Fair",Scoring!$C$48,IF(T5="Good -",Scoring!$C$47,IF(T5="Good",Scoring!$C$46,IF(T5="Very Good",Scoring!$C$45,IF(T5="",0))))))) -> 0.85 | AH5: =AB5*AE5 -> 85 | AI5: =AC5*AF5 -> 85 | AJ5: =AD5*AG5 -> 85
A6: 106 | B6: 1 | C6: Alpine Tundra - Upper Chena | D6: Landscape Context | E6: Hydrologic regime | F6: Natural fluctuations of surface and ground water -amount, frequency, timing, duration | G6: Water levels, flows or fluctuations are too high or too low, not related to the precipitation, and unlikely to maintain nested targets in many habitats within the target area and downstream | H6: Water levels, flows or fluctuations in relationship to precipitation and ground water are likely to maintain nested targets in some habitats within the target and downstream | I6: Water levels, flows or fluctuations in relationship to precipitation and ground water are likely to maintain nested targets in most habitats within the target area and downstream | J6: Water levels, flows or fluctuations in relationship to precipitation and ground water are likely to maintain nested targets in almost all habitats within the target area and downstream | K6: Very Good | L6: Very Good | M6: - | T6: =IF(L6="","",IFERROR(INDEX(Outcomes!$F:$F, MATCH(A6,Outcomes!$H:$H,0)),L6)) -> Very Good | U6: - | AA6: 1 | AB6: =IF(K6="Poor",Scoring!$B$50,IF(K6="Fair -",Scoring!$B$49,IF(K6="Fair",Scoring!$B$48,IF(K6="Good -",Scoring!$B$47,IF(K6="Good",Scoring!$B$46,IF(K6="Very Good",Scoring!$B$45,IF(K6="",0))))))) -> 100 | AC6: =IF(L6="Poor",Scoring!$B$50,IF(L6="Fair -",Scoring!$B$49,IF(L6="Fair",Scoring!$B$48,IF(L6="Good -",Scoring!$B$47,IF(L6="Good",Scoring!$B$46,IF(L6="Very Good",Scoring!$B$45,IF(L6="",0))))))) -> 100 | AD6: =IF(T6="Poor",Scoring!$B$50,IF(T6="Fair -",Scoring!$B$49,IF(T6="Fair",Scoring!$B$48,IF(T6="Good -",Scoring!$B$47,IF(T6="Good",Scoring!$B$46,IF(T6="Very Good",Scoring!$B$45,IF(T6="",0))))))) -> 100 | AE6: =IF(K6="Poor",Scoring!$C$50,IF(K6="Fair -",Scoring!$C$49,IF(K6="Fair",Scoring!$C$48,IF(K6="Good -",Scoring!$C$47,IF(K6="Good",Scoring!$C$46,IF(K6="Very Good",Scoring!$C$45,IF(K6="",0))))))) -> 0.85 | AF6: =IF(L6="Poor",Scoring!$C$50,IF(L6="Fair -",Scoring!$C$49,IF(L6="Fair",Scoring!$C$48,IF(L6="Good -",Scoring!$C$47,IF(L6="Good",Scoring!$C$46,IF(L6="Very Good",Scoring!$C$45,IF(L6="",0))))))) -> 0.85 | AG6: =IF(T6="Poor",Scoring!$C$50,IF(T6="Fair -",Scoring!$C$49,IF(T6="Fair",Scoring!$C$48,IF(T6="Good -",Scoring!$C$47,IF(T6="Good",Scoring!$C$46,IF(T6="Very Good",Scoring!$C$45,IF(T6="",0))))))) -> 0.85 | AH6: 85 | AI6: 85 | AJ6: 85
A7: 107 | B7: 1 | C7: Alpine Tundra - Upper Chena | D7: Condition | E7: Characteristic native community | F7: Presence of characteristic native communities within habitats | G7: Few habitats have the characteristic native communities to accom-modate most nested targets in abundance | H7: Some habitats have the characteristic native communities to accom-modate most nested targets in abundance | I7: Most habitats have the characteristic native communities to accom-modate most nested targets in abundance | J7: Almost all habitats have the characteristic native communities to accom­modate almost all nested targets in abundance | K7: Good | L7: Fair | M7: High | T7: =IF(L7="","",IFERROR(INDEX(Outcomes!$F:$F, MATCH(A7,Outcomes!$H:$H,0)),L7)) -> Fair | U7: High | AA7: 1 | AB7: =IF(K7="Poor",Scoring!$B$50,IF(K7="Fair -",Scoring!$B$49,IF(K7="Fair",Scoring!$B$48,IF(K7="Good -",Scoring!$B$47,IF(K7="Good",Scoring!$B$46,IF(K7="Very Good",Scoring!$B$45,IF(K7="",0))))))) -> 80.03 | AC7: =IF(L7="Poor",Scoring!$B$50,IF(L7="Fair -",Scoring!$B$49,IF(L7="Fair",Scoring!$B$48,IF(L7="Good -",Scoring!$B$47,IF(L7="Good",Scoring!$B$46,IF(L7="Very Good",Scoring!$B$45,IF(L7="",0))))))) -> 40.04 | AD7: =IF(T7="Poor",Scoring!$B$50,IF(T7="Fair -",Scoring!$B$49,IF(T7="Fair",Scoring!$B$48,IF(T7="Good -",Scoring!$B$47,IF(T7="Good",Scoring!$B$46,IF(T7="Very Good",Scoring!$B$45,IF(T7="",0))))))) -> 40.04 | AE7: =IF(K7="Poor",Scoring!$C$50,IF(K7="Fair -",Scoring!$C$49,IF(K7="Fair",Scoring!$C$48,IF(K7="Good -",Scoring!$C$47,IF(K7="Good",Scoring!$C$46,IF(K7="Very Good",Scoring!$C$45,IF(K7="",0))))))) -> 1 | AF7: =IF(L7="Poor",Scoring!$C$50,IF(L7="Fair -",Scoring!$C$49,IF(L7="Fair",Scoring!$C$48,IF(L7="Good -",Scoring!$C$47,IF(L7="Good",Scoring!$C$46,IF(L7="Very Good",Scoring!$C$45,IF(L7="",0))))))) -> 1 | AG7: =IF(T7="Poor",Scoring!$C$50,IF(T7="Fair -",Scoring!$C$49,IF(T7="Fair",Scoring!$C$48,IF(T7="Good -",Scoring!$C$47,IF(T7="Good",Scoring!$C$46,IF(T7="Very Good",Scoring!$C$45,IF(T7="",0))))))) -> 1 | AH7: 80.03 | AI7: 40.04 | AJ7: 40.04
A8: 108 | B8: 1 | C8: Alpine Tundra - Upper Chena | D8: Condition | E8: Vegetation composition & structure - mosaic | F8: Diversity of species and age classes | G8: Low diversity of species and age classes | H8: Moderate diversity of species and age classes | I8: Good diversity of species and age classes | J8: High diversity of species and age class | K8: Good | L8: Good | M8: - | T8: =IF(L8="","",IFERROR(INDEX(Outcomes!$F:$F, MATCH(A8,Outcomes!$H:$H,0)),L8)) -> Good | U8: - | AA8: 1 | AB8: =IF(K8="Poor",Scoring!$B$50,IF(K8="Fair -",Scoring!$B$49,IF(K8="Fair",Scoring!$B$48,IF(K8="Good -",Scoring!$B$47,IF(K8="Good",Scoring!$B$46,IF(K8="Very Good",Scoring!$B$45,IF(K8="",0))))))) -> 80.03 | AC8: =IF(L8="Poor",Scoring!$B$50,IF(L8="Fair -",Scoring!$B$49,IF(L8="Fair",Scoring!$B$48,IF(L8="Good -",Scoring!$B$47,IF(L8="Good",Scoring!$B$46,IF(L8="Very Good",Scoring!$B$45,IF(L8="",0))))))) -> 80.03 | AD8: =IF(T8="Poor",Scoring!$B$50,IF(T8="Fair -",Scoring!$B$49,IF(T8="Fair",Scoring!$B$48,IF(T8="Good -",Scoring!$B$47,IF(T8="Good",Scoring!$B$46,IF(T8="Very Good",Scoring!$B$45,IF(T8="",0))))))) -> 80.03 | AE8: =IF(K8="Poor",Scoring!$C$50,IF(K8="Fair -",Scoring!$C$49,IF(K8="Fair",Scoring!$C$48,IF(K8="Good -",Scoring!$C$47,IF(K8="Good",Scoring!$C$46,IF(K8="Very Good",Scoring!$C$45,IF(K8="",0))))))) -> 1 | AF8: =IF(L8="Poor",Scoring!$C$50,IF(L8="Fair -",Scoring!$C$49,IF(L8="Fair",Scoring!$C$48,IF(L8="Good -",Scoring!$C$47,IF(L8="Good",Scoring!$C$46,IF(L8="Very Good",Scoring!$C$45,IF(L8="",0))))))) -> 1 | AG8: =IF(T8="Poor",Scoring!$C$50,IF(T8="Fair -",Scoring!$C$49,IF(T8="Fair",Scoring!$C$48,IF(T8="Good -",Scoring!$C$47,IF(T8="Good",Scoring!$C$46,IF(T8="Very Good",Scoring!$C$45,IF(T8="",0))))))) -> 1 | AH8: 80.03 | AI8: 80.03 | AJ8: 80.03
A9: 109 | B9: 1 | C9: Alpine Tundra - Upper Chena | D9: Size | E9: Extent of area | F9: Extent, patch size, and/or distribution | G9: Severe, mostly gone | H9: Moderate to substantial loss | I9: Minimal loss | J9: Mother Nature | K9: Very Good | L9: Good | M9: Medium | T9: =IF(L9="","",IFERROR(INDEX(Outcomes!$F:$F, MATCH(A9,Outcomes!$H:$H,0)),L9)) -> Good | U9: Medium | AA9: 1 | AB9: =IF(K9="Poor",Scoring!$B$50,IF(K9="Fair -",Scoring!$B$49,IF(K9="Fair",Scoring!$B$48,IF(K9="Good -",Scoring!$B$47,IF(K9="Good",Scoring!$B$46,IF(K9="Very Good",Scoring!$B$45,IF(K9="",0))))))) -> 100 | AC9: =IF(L9="Poor",Scoring!$B$50,IF(L9="Fair -",Scoring!$B$49,IF(L9="Fair",Scoring!$B$48,IF(L9="Good -",Scoring!$B$47,IF(L9="Good",Scoring!$B$46,IF(L9="Very Good",Scoring!$B$45,IF(L9="",0))))))) -> 80.03 | AD9: =IF(T9="Poor",Scoring!$B$50,IF(T9="Fair -",Scoring!$B$49,IF(T9="Fair",Scoring!$B$48,IF(T9="Good -",Scoring!$B$47,IF(T9="Good",Scoring!$B$46,IF(T9="Very Good",Scoring!$B$45,IF(T9="",0))))))) -> 80.03 | AE9: =IF(K9="Poor",Scoring!$C$50,IF(K9="Fair -",Scoring!$C$49,IF(K9="Fair",Scoring!$C$48,IF(K9="Good -",Scoring!$C$47,IF(K9="Good",Scoring!$C$46,IF(K9="Very Good",Scoring!$C$45,IF(K9="",0))))))) -> 0.85 | AF9: =IF(L9="Poor",Scoring!$C$50,IF(L9="Fair -",Scoring!$C$49,IF(L9="Fair",Scoring!$C$48,IF(L9="Good -",Scoring!$C$47,IF(L9="Good",Scoring!$C$46,IF(L9="Very Good",Scoring!$C$45,IF(L9="",0))))))) -> 1 | AG9: =IF(T9="Poor",Scoring!$C$50,IF(T9="Fair -",Scoring!$C$49,IF(T9="Fair",Scoring!$C$48,IF(T9="Good -",Scoring!$C$47,IF(T9="Good",Scoring!$C$46,IF(T9="Very Good",Scoring!$C$45,IF(T9="",0))))))) -> 1 | AH9: 85 | AI9: 80.03 | AJ9: 80.03
A10: =ROW()+100 -> 110 | B10: 1 | C10: Alpine Tundra - Upper Chena | T10: =IF(L10="","",IFERROR(INDEX(Outcomes!$F:$F, MATCH(A10,Outcomes!$H:$H,0)),L10)) ->  | AB10: =IF(K10="Poor",Scoring!$B$50,IF(K10="Fair -",Scoring!$B$49,IF(K10="Fair",Scoring!$B$48,IF(K10="Good -",Scoring!$B$47,IF(K10="Good",Scoring!$B$46,IF(K10="Very Good",Scoring!$B$45,IF(K10="",0))))))) -> 0 | AC10: =IF(L10="Poor",Scoring!$B$50,IF(L10="Fair -",Scoring!$B$49,IF(L10="Fair",Scoring!$B$48,IF(L10="Good -",Scoring!$B$47,IF(L10="Good",Scoring!$B$46,IF(L10="Very Good",Scoring!$B$45,IF(L10="",0))))))) -> 0 | AD10: =IF(T10="Poor",Scoring!$B$50,IF(T10="Fair -",Scoring!$B$49,IF(T10="Fair",Scoring!$B$48,IF(T10="Good -",Scoring!$B$47,IF(T10="Good",Scoring!$B$46,IF(T10="Very Good",Scoring!$B$45,IF(T10="",0))))))) -> 0 | AE10: =IF(K10="Poor",Scoring!$C$50,IF(K10="Fair -",Scoring!$C$49,IF(K10="Fair",Scoring!$C$48,IF(K10="Good -",Scoring!$C$47,IF(K10="Good",Scoring!$C$46,IF(K10="Very Good",Scoring!$C$45,IF(K10="",0))))))) -> 0 | AF10: =IF(L10="Poor",Scoring!$C$50,IF(L10="Fair -",Scoring!$C$49,IF(L10="Fair",Scoring!$C$48,IF(L10="Good -",Scoring!$C$47,IF(L10="Good",Scoring!$C$46,IF(L10="Very Good",Scoring!$C$45,IF(L10="",0))))))) -> 0 | AG10: =IF(T10="Poor",Scoring!$C$50,IF(T10="Fair -",Scoring!$C$49,IF(T10="Fair",Scoring!$C$48,IF(T10="Good -",Scoring!$C$47,IF(T10="Good",Scoring!$C$46,IF(T10="Very Good",Scoring!$C$45,IF(T10="",0))))))) -> 0 | AH10: 0 | AI10: 0 | AJ10: 0
A11: =ROW()+100 -> 111 | B11: 1 | C11: Alpine Tundra - Upper Chena | T11: =IF(L11="","",IFERROR(INDEX(Outcomes!$F:$F, MATCH(A11,Outcomes!$H:$H,0)),L11)) ->  | AB11: =IF(K11="Poor",Scoring!$B$50,IF(K11="Fair -",Scoring!$B$49,IF(K11="Fair",Scoring!$B$48,IF(K11="Good -",Scoring!$B$47,IF(K11="Good",Scoring!$B$46,IF(K11="Very Good",Scoring!$B$45,IF(K11="",0))))))) -> 0 | AC11: =IF(L11="Poor",Scoring!$B$50,IF(L11="Fair -",Scoring!$B$49,IF(L11="Fair",Scoring!$B$48,IF(L11="Good -",Scoring!$B$47,IF(L11="Good",Scoring!$B$46,IF(L11="Very Good",Scoring!$B$45,IF(L11="",0))))))) -> 0 | AD11: =IF(T11="Poor",Scoring!$B$50,IF(T11="Fair -",Scoring!$B$49,IF(T11="Fair",Scoring!$B$48,IF(T11="Good -",Scoring!$B$47,IF(T11="Good",Scoring!$B$46,IF(T11="Very Good",Scoring!$B$45,IF(T11="",0))))))) -> 0 | AE11: =IF(K11="Poor",Scoring!$C$50,IF(K11="Fair -",Scoring!$C$49,IF(K11="Fair",Scoring!$C$48,IF(K11="Good -",Scoring!$C$47,IF(K11="Good",Scoring!$C$46,IF(K11="Very Good",Scoring!$C$45,IF(K11="",0))))))) -> 0 | AF11: =IF(L11="Poor",Scoring!$C$50,IF(L11="Fair -",Scoring!$C$49,IF(L11="Fair",Scoring!$C$48,IF(L11="Good -",Scoring!$C$47,IF(L11="Good",Scoring!$C$46,IF(L11="Very Good",Scoring!$C$45,IF(L11="",0))))))) -> 0 | AG11: =IF(T11="Poor",Scoring!$C$50,IF(T11="Fair -",Scoring!$C$49,IF(T11="Fair",Scoring!$C$48,IF(T11="Good -",Scoring!$C$47,IF(T11="Good",Scoring!$C$46,IF(T11="Very Good",Scoring!$C$45,IF(T11="",0))))))) -> 0 | AH11: 0 | AI11: 0 | AJ11: 0
A12: 112 | B12: 1 | C12: Alpine Tundra - Upper Chena | T12: =IF(L12="","",IFERROR(INDEX(Outcomes!$F:$F, MATCH(A12,Outcomes!$H:$H,0)),L12)) ->  | AB12: =IF(K12="Poor",Scoring!$B$50,IF(K12="Fair -",Scoring!$B$49,IF(K12="Fair",Scoring!$B$48,IF(K12="Good -",Scoring!$B$47,IF(K12="Good",Scoring!$B$46,IF(K12="Very Good",Scoring!$B$45,IF(K12="",0))))))) -> 0 | AC12: =IF(L12="Poor",Scoring!$B$50,IF(L12="Fair -",Scoring!$B$49,IF(L12="Fair",Scoring!$B$48,IF(L12="Good -",Scoring!$B$47,IF(L12="Good",Scoring!$B$46,IF(L12="Very Good",Scoring!$B$45,IF(L12="",0))))))) -> 0 | AD12: =IF(T12="Poor",Scoring!$B$50,IF(T12="Fair -",Scoring!$B$49,IF(T12="Fair",Scoring!$B$48,IF(T12="Good -",Scoring!$B$47,IF(T12="Good",Scoring!$B$46,IF(T12="Very Good",Scoring!$B$45,IF(T12="",0))))))) -> 0 | AE12: =IF(K12="Poor",Scoring!$C$50,IF(K12="Fair -",Scoring!$C$49,IF(K12="Fair",Scoring!$C$48,IF(K12="Good -",Scoring!$C$47,IF(K12="Good",Scoring!$C$46,IF(K12="Very Good",Scoring!$C$45,IF(K12="",0))))))) -> 0 | AF12: =IF(L12="Poor",Scoring!$C$50,IF(L12="Fair -",Scoring!$C$49,IF(L12="Fair",Scoring!$C$48,IF(L12="Good -",Scoring!$C$47,IF(L12="Good",Scoring!$C$46,IF(L12="Very Good",Scoring!$C$45,IF(L12="",0))))))) -> 0 | AG12: =IF(T12="Poor",Scoring!$C$50,IF(T12="Fair -",Scoring!$C$49,IF(T12="Fair",Scoring!$C$48,IF(T12="Good -",Scoring!$C$47,IF(T12="Good",Scoring!$C$46,IF(T12="Very Good",Scoring!$C$45,IF(T12="",0))))))) -> 0 | AH12: 0 | AI12: 0 | AJ12: 0
A13: 113 | B13: 1 | C13: Alpine Tundra - Upper Chena | T13: =IF(L13="","",IFERROR(INDEX(Outcomes!$F:$F, MATCH(A13,Outcomes!$H:$H,0)),L13)) ->  | U13: =IF(K13=0,"",IF(T13=0,"",INDEX(StressRankMatrix,MATCH(K13,Rating,0),MATCH(T13,Rating,0)))) ->  | Y13: =IFERROR(INDEX(#REF!,MATCH(A13,#REF!,0)),"") ->  | AB13: =IF(K13="Poor",Scoring!$B$50,IF(K13="Fair -",Scoring!$B$49,IF(K13="Fair",Scoring!$B$48,IF(K13="Good -",Scoring!$B$47,IF(K13="Good",Scoring!$B$46,IF(K13="Very Good",Scoring!$B$45,IF(K13="",0))))))) -> 0 | AC13: =IF(L13="Poor",Scoring!$B$50,IF(L13="Fair -",Scoring!$B$49,IF(L13="Fair",Scoring!$B$48,IF(L13="Good -",Scoring!$B$47,IF(L13="Good",Scoring!$B$46,IF(L13="Very Good",Scoring!$B$45,IF(L13="",0))))))) -> 0 | AD13: =IF(T13="Poor",Scoring!$B$50,IF(T13="Fair -",Scoring!$B$49,IF(T13="Fair",Scoring!$B$48,IF(T13="Good -",Scoring!$B$47,IF(T13="Good",Scoring!$B$46,IF(T13="Very Good",Scoring!$B$45,IF(T13="",0))))))) -> 0 | AE13: =IF(K13="Poor",Scoring!$C$50,IF(K13="Fair -",Scoring!$C$49,IF(K13="Fair",Scoring!$C$48,IF(K13="Good -",Scoring!$C$47,IF(K13="Good",Scoring!$C$46,IF(K13="Very Good",Scoring!$C$45,IF(K13="",0))))))) -> 0 | AF13: =IF(L13="Poor",Scoring!$C$50,IF(L13="Fair -",Scoring!$C$49,IF(L13="Fair",Scoring!$C$48,IF(L13="Good -",Scoring!$C$47,IF(L13="Good",Scoring!$C$46,IF(L13="Very Good",Scoring!$C$45,IF(L13="",0))))))) -> 0 | AG13: =IF(T13="Poor",Scoring!$C$50,IF(T13="Fair -",Scoring!$C$49,IF(T13="Fair",Scoring!$C$48,IF(T13="Good -",Scoring!$C$47,IF(T13="Good",Scoring!$C$46,IF(T13="Very Good",Scoring!$C$45,IF(T13="",0))))))) -> 0 | AH13: 0 | AI13: 0 | AJ13: 0
D14: Overall Target Health Score (0 = Poor - 100 = Very Good) | K14: =AK14 -> 89.20540541 | L14: =AL14 -> 78.97017544 | T14: =AM14 -> 78.97017544 | AE14: =SUM(AE4:AE13) -> 5.55 | AF14: 5.7 | AG14: 5.7 | AH14: 495.09 | AI14: 450.13 | AJ14: 450.13 | AK14: =IF(AH14=0,"",AH14/AE14) -> 89.20540541 | AL14: =IF(AI14=0,"",AI14/AF14) -> 78.97017544 | AM14: =IF(AJ14=0,"",AJ14/AG14) -> 78.97017544
E16: Threats (Sources of Stress) List Sources of stress below (max of 12 per target). Enter Contribution of each source where applicable. | F16: Key Attribute > | G16: =IF(E4=0,"",E4) -> Fire regime | H16: =IF(E5=0,"",E5) -> Habitat connectivity | I16: =IF(E6=0,"",E6) -> Hydrologic regime | J16: =IF(E7=0,"",E7) -> Characteristic native community | K16: =IF(E8=0,"",E8) -> Vegetation composition & structure - mosaic | L16: =IF(E9=0,"",E9) -> Extent of area | M16: =IF(E10=0,"",E10) ->  | N16: =IF(E11=0,"",E11) ->  | O16: =IF(E12=0,"",E12) ->  | P16: =IF(E13=0,"",E13) ->  | Q16: Threat to Target Rank
F17: Stress Rank> | G17: =IF(M4="","", IF(N4=0,M4,N4)) -> - | H17: =IF(M5="","", IF(N5=0,M5,N5)) -> - | I17: =IF(M6="","", IF(N6=0,M6,N6)) -> - | J17: =IF(M7="","", IF(N7=0,M7,N7)) -> High | K17: =IF(M8="","", IF(N8=0,M8,N8)) -> - | L17: =IF(M9="","", IF(N9=0,M9,N9)) -> Medium | M17: =IF(M10="","", IF(N10=0,M10,N10)) ->  | N17: =IF(M11="","", IF(N11=0,M11,N11)) ->  | O17: =IF(M12="","", IF(N12=0,M12,N12)) ->  | P17: =IF(M13="","", IF(N13=0,M13,N13)) -> 
E18: Warmer climate with more frequent weather extremes | F18: Contribution | J18: High | L18: High | Q18: =IF(AF19>=Scoring!$B$24,"Very High",IF(AF19>=Scoring!$B$25,"High",IF(AF19>=Scoring!$B$26,"Medium",IF(AF19>=Scoring!$B$27,"Low","-")))) -> High
F19: Threat Rank | G19: =IF(G18=0,"",INDEX(ThreatRankMatrix,MATCH($G$17,Rank,0),MATCH(G18,Rank,0))) ->  | H19: =IF(H18=0,"",INDEX(ThreatRankMatrix,MATCH($H$17,Rank,0),MATCH(H18,Rank,0))) ->  | I19: =IF(I18=0,"",INDEX(ThreatRankMatrix,MATCH($I$17,Rank,0),MATCH(I18,Rank,0))) ->  | J19: =IF(J18=0,"",INDEX(ThreatRankMatrix,MATCH($J$17,Rank,0),MATCH(J18,Rank,0))) -> High | K19: =IF(K18=0,"",INDEX(ThreatRankMatrix,MATCH($K$17,Rank,0),MATCH(K18,Rank,0))) ->  | L19: =IF(L18=0,"",INDEX(ThreatRankMatrix,MATCH($L$17,Rank,0),MATCH(L18,Rank,0))) -> Medium | M19: =IF(M18=0,"",INDEX(ThreatRankMatrix,MATCH($M$17,Rank,0),MATCH(M18,Rank,0))) ->  | N19: =IF(N18=0,"",INDEX(ThreatRankMatrix,MATCH($N$17,Rank,0),MATCH(N18,Rank,0))) ->  | O19: =IF(O18=0,"",INDEX(ThreatRankMatrix,MATCH($O$17,Rank,0),MATCH(O18,Rank,0))) ->  | P19: =IF(P18=0,"",INDEX(ThreatRankMatrix,MATCH($P$17,Rank,0),MATCH(P18,Rank,0))) ->  | AF19: =SUM(AG19:AP19) -> 42 | AG19: =IF(G$17="",0,(IF(G18=0,0,IF(G19=0,0,INDEX(ThreatScore,MATCH(G19,Rank,0)))))) -> 0 | AH19: 0 | AI19: 0 | AJ19: 35 | AK19: 0 | AL19: 7 | AM19: 0 | AN19: 0 | AO19: 0 | AP19: 0
E20: Incompatible mining (excluding roads) | F20: Contribution | J20: Low | L20: Medium | Q20: =IF(AF21>=Scoring!$B$24,"Very High",IF(AF21>=Scoring!$B$25,"High",IF(AF21>=Scoring!$B$26,"Medium",IF(AF21>=Scoring!$B$27,"Low","-")))) -> Low
F21: Threat Rank | G21: =IF(G20=0,"",INDEX(ThreatRankMatrix,MATCH($G$17,Rank,0),MATCH(G20,Rank,0))) ->  | H21: =IF(H20=0,"",INDEX(ThreatRankMatrix,MATCH($H$17,Rank,0),MATCH(H20,Rank,0))) ->  | I21: =IF(I20=0,"",INDEX(ThreatRankMatrix,MATCH($I$17,Rank,0),MATCH(I20,Rank,0))) ->  | J21: =IF(J20=0,"",INDEX(ThreatRankMatrix,MATCH($J$17,Rank,0),MATCH(J20,Rank,0))) -> Low | K21: =IF(K20=0,"",INDEX(ThreatRankMatrix,MATCH($K$17,Rank,0),MATCH(K20,Rank,0))) ->  | L21: =IF(L20=0,"",INDEX(ThreatRankMatrix,MATCH($L$17,Rank,0),MATCH(L20,Rank,0))) -> Low | M21: =IF(M20=0,"",INDEX(ThreatRankMatrix,MATCH($M$17,Rank,0),MATCH(M20,Rank,0))) ->  | N21: =IF(N20=0,"",INDEX(ThreatRankMatrix,MATCH($N$17,Rank,0),MATCH(N20,Rank,0))) ->  | O21: =IF(O20=0,"",INDEX(ThreatRankMatrix,MATCH($O$17,Rank,0),MATCH(O20,Rank,0))) ->  | P21: =IF(P20=0,"",INDEX(ThreatRankMatrix,MATCH($P$17,Rank,0),MATCH(P20,Rank,0))) ->  | AF21: =SUM(AG21:AP21) -> 2 | AG21: =IF(G$17="",0,(IF(G20=0,0,IF(G21=0,0,INDEX(ThreatScore,MATCH(G21,Rank,0)))))) -> 0 | AH21: 0 | AI21: 0 | AJ21: 1 | AK21: 0 | AL21: 1 | AM21: 0 | AN21: 0 | AO21: 0 | AP21: 0
E22: Incompatible road design / maintenance | F22: Contribution | J22: Medium | L22: Low | Q22: =IF(AF23>=Scoring!$B$24,"Very High",IF(AF23>=Scoring!$B$25,"High",IF(AF23>=Scoring!$B$26,"Medium",IF(AF23>=Scoring!$B$27,"Low","-")))) -> Medium
F23: Threat Rank | G23: =IF(G22=0,"",INDEX(ThreatRankMatrix,MATCH($G$17,Rank,0),MATCH(G22,Rank,0))) ->  | H23: =IF(H22=0,"",INDEX(ThreatRankMatrix,MATCH($H$17,Rank,0),MATCH(H22,Rank,0))) ->  | I23: =IF(I22=0,"",INDEX(ThreatRankMatrix,MATCH($I$17,Rank,0),MATCH(I22,Rank,0))) ->  | J23: =IF(J22=0,"",INDEX(ThreatRankMatrix,MATCH($J$17,Rank,0),MATCH(J22,Rank,0))) -> Medium | K23: =IF(K22=0,"",INDEX(ThreatRankMatrix,MATCH($K$17,Rank,0),MATCH(K22,Rank,0))) ->  | L23: =IF(L22=0,"",INDEX(ThreatRankMatrix,MATCH($L$17,Rank,0),MATCH(L22,Rank,0))) -> Low | M23: =IF(M22=0,"",INDEX(ThreatRankMatrix,MATCH($M$17,Rank,0),MATCH(M22,Rank,0))) ->  | N23: =IF(N22=0,"",INDEX(ThreatRankMatrix,MATCH($N$17,Rank,0),MATCH(N22,Rank,0))) ->  | O23: =IF(O22=0,"",INDEX(ThreatRankMatrix,MATCH($O$17,Rank,0),MATCH(O22,Rank,0))) ->  | P23: =IF(P22=0,"",INDEX(ThreatRankMatrix,MATCH($P$17,Rank,0),MATCH(P22,Rank,0))) ->  | AF23: =SUM(AG23:AP23) -> 8 | AG23: =IF(G$17="",0,(IF(G22=0,0,IF(G23=0,0,INDEX(ThreatScore,MATCH(G23,Rank,0)))))) -> 0 | AH23: 0 | AI23: 0 | AJ23: 7 | AK23: 0 | AL23: 1 | AM23: 0 | AN23: 0 | AO23: 0 | AP23: 0
E24: Incompatible motorized vehicle use off-roads/ATV/bulldozers (e.g. pioneering, etc.) | F24: Contribution | J24: High | Q24: =IF(AF25>=Scoring!$B$24,"Very High",IF(AF25>=Scoring!$B$25,"High",IF(AF25>=Scoring!$B$26,"Medium",IF(AF25>=Scoring!$B$27,"Low","-")))) -> High
F25: Threat Rank | G25: =IF(G24=0,"",INDEX(ThreatRankMatrix,MATCH($G$17,Rank,0),MATCH(G24,Rank,0))) ->  | H25: =IF(H24=0,"",INDEX(ThreatRankMatrix,MATCH($H$17,Rank,0),MATCH(H24,Rank,0))) ->  | I25: =IF(I24=0,"",INDEX(ThreatRankMatrix,MATCH($I$17,Rank,0),MATCH(I24,Rank,0))) ->  | J25: =IF(J24=0,"",INDEX(ThreatRankMatrix,MATCH($J$17,Rank,0),MATCH(J24,Rank,0))) -> High | K25: =IF(K24=0,"",INDEX(ThreatRankMatrix,MATCH($K$17,Rank,0),MATCH(K24,Rank,0))) ->  | L25: =IF(L24=0,"",INDEX(ThreatRankMatrix,MATCH($L$17,Rank,0),MATCH(L24,Rank,0))) ->  | M25: =IF(M24=0,"",INDEX(ThreatRankMatrix,MATCH($M$17,Rank,0),MATCH(M24,Rank,0))) ->  | N25: =IF(N24=0,"",INDEX(ThreatRankMatrix,MATCH($N$17,Rank,0),MATCH(N24,Rank,0))) ->  | O25: =IF(O24=0,"",INDEX(ThreatRankMatrix,MATCH($O$17,Rank,0),MATCH(O24,Rank,0))) ->  | P25: =IF(P24=0,"",INDEX(ThreatRankMatrix,MATCH($P$17,Rank,0),MATCH(P24,Rank,0))) ->  | AF25: =SUM(AG25:AP25) -> 35 | AG25: =IF(G$17="",0,(IF(G24=0,0,IF(G25=0,0,INDEX(ThreatScore,MATCH(G25,Rank,0)))))) -> 0 | AH25: 0 | AI25: 0 | AJ25: 35 | AK25: 0 | AL25: 0 | AM25: 0 | AN25: 0 | AO25: 0 | AP25: 0
E26: Dumping of trash, debris, etc. | F26: Contribution | K26: Low | Q26: =IF(AF27>=Scoring!$B$24,"Very High",IF(AF27>=Scoring!$B$25,"High",IF(AF27>=Scoring!$B$26,"Medium",IF(AF27>=Scoring!$B$27,"Low","-")))) -> -
F27: Threat Rank | G27: =IF(G26=0,"",INDEX(ThreatRankMatrix,MATCH($G$17,Rank,0),MATCH(G26,Rank,0))) ->  | H27: =IF(H26=0,"",INDEX(ThreatRankMatrix,MATCH($H$17,Rank,0),MATCH(H26,Rank,0))) ->  | I27: =IF(I26=0,"",INDEX(ThreatRankMatrix,MATCH($I$17,Rank,0),MATCH(I26,Rank,0))) ->  | J27: =IF(J26=0,"",INDEX(ThreatRankMatrix,MATCH($J$17,Rank,0),MATCH(J26,Rank,0))) ->  | K27: =IF(K26=0,"",INDEX(ThreatRankMatrix,MATCH($K$17,Rank,0),MATCH(K26,Rank,0))) -> - | L27: =IF(L26=0,"",INDEX(ThreatRankMatrix,MATCH($L$17,Rank,0),MATCH(L26,Rank,0))) ->  | M27: =IF(M26=0,"",INDEX(ThreatRankMatrix,MATCH($M$17,Rank,0),MATCH(M26,Rank,0))) ->  | N27: =IF(N26=0,"",INDEX(ThreatRankMatrix,MATCH($N$17,Rank,0),MATCH(N26,Rank,0))) ->  | O27: =IF(O26=0,"",INDEX(ThreatRankMatrix,MATCH($O$17,Rank,0),MATCH(O26,Rank,0))) ->  | P27: =IF(P26=0,"",INDEX(ThreatRankMatrix,MATCH($P$17,Rank,0),MATCH(P26,Rank,0))) ->  | AF27: =SUM(AG27:AP27) -> 0 | AG27: =IF(G$17="",0,(IF(G26=0,0,IF(G27=0,0,INDEX(ThreatScore,MATCH(G27,Rank,0)))))) -> 0 | AH27: 0 | AI27: 0 | AJ27: 0 | AK27: 0 | AL27: 0 | AM27: 0 | AN27: 0 | AO27: 0 | AP27: 0
E28: Fire suppression | F28: Contribution | G28: Medium | J28: Medium | Q28: =IF(AF29>=Scoring!$B$24,"Very High",IF(AF29>=Scoring!$B$25,"High",IF(AF29>=Scoring!$B$26,"Medium",IF(AF29>=Scoring!$B$27,"Low","-")))) -> Medium
F29: Threat Rank | G29: =IF(G28=0,"",INDEX(ThreatRankMatrix,MATCH($G$17,Rank,0),MATCH(G28,Rank,0))) -> - | H29: =IF(H28=0,"",INDEX(ThreatRankMatrix,MATCH($H$17,Rank,0),MATCH(H28,Rank,0))) ->  | I29: =IF(I28=0,"",INDEX(ThreatRankMatrix,MATCH($I$17,Rank,0),MATCH(I28,Rank,0))) ->  | J29: =IF(J28=0,"",INDEX(ThreatRankMatrix,MATCH($J$17,Rank,0),MATCH(J28,Rank,0))) -> Medium | K29: =IF(K28=0,"",INDEX(ThreatRankMatrix,MATCH($K$17,Rank,0),MATCH(K28,Rank,0))) ->  | L29: =IF(L28=0,"",INDEX(ThreatRankMatrix,MATCH($L$17,Rank,0),MATCH(L28,Rank,0))) ->  | M29: =IF(M28=0,"",INDEX(ThreatRankMatrix,MATCH($M$17,Rank,0),MATCH(M28,Rank,0))) ->  | N29: =IF(N28=0,"",INDEX(ThreatRankMatrix,MATCH($N$17,Rank,0),MATCH(N28,Rank,0))) ->  | O29: =IF(O28=0,"",INDEX(ThreatRankMatrix,MATCH($O$17,Rank,0),MATCH(O28,Rank,0))) ->  | P29: =IF(P28=0,"",INDEX(ThreatRankMatrix,MATCH($P$17,Rank,0),MATCH(P28,Rank,0))) ->  | AF29: =SUM(AG29:AP29) -> 7 | AG29: =IF(G$17="",0,(IF(G28=0,0,IF(G29=0,0,INDEX(ThreatScore,MATCH(G29,Rank,0)))))) -> 0 | AH29: 0 | AI29: 0 | AJ29: 7 | AK29: 0 | AL29: 0 | AM29: 0 | AN29: 0 | AO29: 0 | AP29: 0
F30: Contribution | Q30: =IF(AF31>=Scoring!$B$24,"Very High",IF(AF31>=Scoring!$B$25,"High",IF(AF31>=Scoring!$B$26,"Medium",IF(AF31>=Scoring!$B$27,"Low","-")))) -> -
F31: Threat Rank | G31: =IF(G30=0,"",INDEX(ThreatRankMatrix,MATCH($G$17,Rank,0),MATCH(G30,Rank,0))) ->  | H31: =IF(H30=0,"",INDEX(ThreatRankMatrix,MATCH($H$17,Rank,0),MATCH(H30,Rank,0))) ->  | I31: =IF(I30=0,"",INDEX(ThreatRankMatrix,MATCH($I$17,Rank,0),MATCH(I30,Rank,0))) ->  | J31: =IF(J30=0,"",INDEX(ThreatRankMatrix,MATCH($J$17,Rank,0),MATCH(J30,Rank,0))) ->  | K31: =IF(K30=0,"",INDEX(ThreatRankMatrix,MATCH($K$17,Rank,0),MATCH(K30,Rank,0))) ->  | L31: =IF(L30=0,"",INDEX(ThreatRankMatrix,MATCH($L$17,Rank,0),MATCH(L30,Rank,0))) ->  | M31: =IF(M30=0,"",INDEX(ThreatRankMatrix,MATCH($M$17,Rank,0),MATCH(M30,Rank,0))) ->  | N31: =IF(N30=0,"",INDEX(ThreatRankMatrix,MATCH($N$17,Rank,0),MATCH(N30,Rank,0))) ->  | O31: =IF(O30=0,"",INDEX(ThreatRankMatrix,MATCH($O$17,Rank,0),MATCH(O30,Rank,0))) ->  | P31: =IF(P30=0,"",INDEX(ThreatRankMatrix,MATCH($P$17,Rank,0),MATCH(P30,Rank,0))) ->  | AF31: =SUM(AG31:AP31) -> 0 | AG31: =IF(G$17="",0,(IF(G30=0,0,IF(G31=0,0,INDEX(ThreatScore,MATCH(G31,Rank,0)))))) -> 0 | AH31: 0 | AI31: 0 | AJ31: 0 | AK31: 0 | AL31: 0 | AM31: 0 | AN31: 0 | AO31: 0 | AP31: 0
F32: Contribution | Q32: =IF(AF33>=Scoring!$B$24,"Very High",IF(AF33>=Scoring!$B$25,"High",IF(AF33>=Scoring!$B$26,"Medium",IF(AF33>=Scoring!$B$27,"Low","-")))) -> -
F33: Threat Rank | G33: =IF(G32=0,"",INDEX(ThreatRankMatrix,MATCH($G$17,Rank,0),MATCH(G32,Rank,0))) ->  | H33: =IF(H32=0,"",INDEX(ThreatRankMatrix,MATCH($H$17,Rank,0),MATCH(H32,Rank,0))) ->  | I33: =IF(I32=0,"",INDEX(ThreatRankMatrix,MATCH($I$17,Rank,0),MATCH(I32,Rank,0))) ->  | J33: =IF(J32=0,"",INDEX(ThreatRankMatrix,MATCH($J$17,Rank,0),MATCH(J32,Rank,0))) ->  | K33: =IF(K32=0,"",INDEX(ThreatRankMatrix,MATCH($K$17,Rank,0),MATCH(K32,Rank,0))) ->  | L33: =IF(L32=0,"",INDEX(ThreatRankMatrix,MATCH($L$17,Rank,0),MATCH(L32,Rank,0))) ->  | M33: =IF(M32=0,"",INDEX(ThreatRankMatrix,MATCH($M$17,Rank,0),MATCH(M32,Rank,0))) ->  | N33: =IF(N32=0,"",INDEX(ThreatRankMatrix,MATCH($N$17,Rank,0),MATCH(N32,Rank,0))) ->  | O33: =IF(O32=0,"",INDEX(ThreatRankMatrix,MATCH($O$17,Rank,0),MATCH(O32,Rank,0))) ->  | P33: =IF(P32=0,"",INDEX(ThreatRankMatrix,MATCH($P$17,Rank,0),MATCH(P32,Rank,0))) ->  | AF33: =SUM(AG33:AP33) -> 0 | AG33: =IF(G$17="",0,(IF(G32=0,0,IF(G33=0,0,INDEX(ThreatScore,MATCH(G33,Rank,0)))))) -> 0 | AH33: 0 | AI33: 0 | AJ33: 0 | AK33: 0 | AL33: 0 | AM33: 0 | AN33: 0 | AO33: 0 | AP33: 0
F34: Contribution | Q34: =IF(AF35>=Scoring!$B$24,"Very High",IF(AF35>=Scoring!$B$25,"High",IF(AF35>=Scoring!$B$26,"Medium",IF(AF35>=Scoring!$B$27,"Low","-")))) -> -
F35: Threat Rank | G35: =IF(G34=0,"",INDEX(ThreatRankMatrix,MATCH($G$17,Rank,0),MATCH(G34,Rank,0))) ->  | H35: =IF(H34=0,"",INDEX(ThreatRankMatrix,MATCH($H$17,Rank,0),MATCH(H34,Rank,0))) ->  | I35: =IF(I34=0,"",INDEX(ThreatRankMatrix,MATCH($I$17,Rank,0),MATCH(I34,Rank,0))) ->  | J35: =IF(J34=0,"",INDEX(ThreatRankMatrix,MATCH($J$17,Rank,0),MATCH(J34,Rank,0))) ->  | K35: =IF(K34=0,"",INDEX(ThreatRankMatrix,MATCH($K$17,Rank,0),MATCH(K34,Rank,0))) ->  | L35: =IF(L34=0,"",INDEX(ThreatRankMatrix,MATCH($L$17,Rank,0),MATCH(L34,Rank,0))) ->  | M35: =IF(M34=0,"",INDEX(ThreatRankMatrix,MATCH($M$17,Rank,0),MATCH(M34,Rank,0))) ->  | N35: =IF(N34=0,"",INDEX(ThreatRankMatrix,MATCH($N$17,Rank,0),MATCH(N34,Rank,0))) ->  | O35: =IF(O34=0,"",INDEX(ThreatRankMatrix,MATCH($O$17,Rank,0),MATCH(O34,Rank,0))) ->  | P35: =IF(P34=0,"",INDEX(ThreatRankMatrix,MATCH($P$17,Rank,0),MATCH(P34,Rank,0))) ->  | AF35: =SUM(AG35:AP35) -> 0 | AG35: =IF(G$17="",0,(IF(G34=0,0,IF(G35=0,0,INDEX(ThreatScore,MATCH(G35,Rank,0)))))) -> 0 | AH35: 0 | AI35: 0 | AJ35: 0 | AK35: 0 | AL35: 0 | AM35: 0 | AN35: 0 | AO35: 0 | AP35: 0
F36: Contribution | Q36: =IF(AF37>=Scoring!$B$24,"Very High",IF(AF37>=Scoring!$B$25,"High",IF(AF37>=Scoring!$B$26,"Medium",IF(AF37>=Scoring!$B$27,"Low","-")))) -> -
F37: Threat Rank | G37: =IF(G36=0,"",INDEX(ThreatRankMatrix,MATCH($G$17,Rank,0),MATCH(G36,Rank,0))) ->  | H37: =IF(H36=0,"",INDEX(ThreatRankMatrix,MATCH($H$17,Rank,0),MATCH(H36,Rank,0))) ->  | I37: =IF(I36=0,"",INDEX(ThreatRankMatrix,MATCH($I$17,Rank,0),MATCH(I36,Rank,0))) ->  | J37: =IF(J36=0,"",INDEX(ThreatRankMatrix,MATCH($J$17,Rank,0),MATCH(J36,Rank,0))) ->  | K37: =IF(K36=0,"",INDEX(ThreatRankMatrix,MATCH($K$17,Rank,0),MATCH(K36,Rank,0))) ->  | L37: =IF(L36=0,"",INDEX(ThreatRankMatrix,MATCH($L$17,Rank,0),MATCH(L36,Rank,0))) ->  | M37: =IF(M36=0,"",INDEX(ThreatRankMatrix,MATCH($M$17,Rank,0),MATCH(M36,Rank,0))) ->  | N37: =IF(N36=0,"",INDEX(ThreatRankMatrix,MATCH($N$17,Rank,0),MATCH(N36,Rank,0))) ->  | O37: =IF(O36=0,"",INDEX(ThreatRankMatrix,MATCH($O$17,Rank,0),MATCH(O36,Rank,0))) ->  | P37: =IF(P36=0,"",INDEX(ThreatRankMatrix,MATCH($P$17,Rank,0),MATCH(P36,Rank,0))) ->  | AF37: =SUM(AG37:AP37) -> 0 | AG37: =IF(G$17="",0,(IF(G36=0,0,IF(G37=0,0,INDEX(ThreatScore,MATCH(G37,Rank,0)))))) -> 0 | AH37: 0 | AI37: 0 | AJ37: 0 | AK37: 0 | AL37: 0 | AM37: 0 | AN37: 0 | AO37: 0 | AP37: 0
F38: Contribution | Q38: =IF(AF39>=Scoring!$B$24,"Very High",IF(AF39>=Scoring!$B$25,"High",IF(AF39>=Scoring!$B$26,"Medium",IF(AF39>=Scoring!$B$27,"Low","-")))) -> -
F39: Threat Rank | G39: =IF(G38=0,"",INDEX(ThreatRankMatrix,MATCH($G$17,Rank,0),MATCH(G38,Rank,0))) ->  | H39: =IF(H38=0,"",INDEX(ThreatRankMatrix,MATCH($H$17,Rank,0),MATCH(H38,Rank,0))) ->  | I39: =IF(I38=0,"",INDEX(ThreatRankMatrix,MATCH($I$17,Rank,0),MATCH(I38,Rank,0))) ->  | J39: =IF(J38=0,"",INDEX(ThreatRankMatrix,MATCH($J$17,Rank,0),MATCH(J38,Rank,0))) ->  | K39: =IF(K38=0,"",INDEX(ThreatRankMatrix,MATCH($K$17,Rank,0),MATCH(K38,Rank,0))) ->  | L39: =IF(L38=0,"",INDEX(ThreatRankMatrix,MATCH($L$17,Rank,0),MATCH(L38,Rank,0))) ->  | M39: =IF(M38=0,"",INDEX(ThreatRankMatrix,MATCH($M$17,Rank,0),MATCH(M38,Rank,0))) ->  | N39: =IF(N38=0,"",INDEX(ThreatRankMatrix,MATCH($N$17,Rank,0),MATCH(N38,Rank,0))) ->  | O39: =IF(O38=0,"",INDEX(ThreatRankMatrix,MATCH($O$17,Rank,0),MATCH(O38,Rank,0))) ->  | P39: =IF(P38=0,"",INDEX(ThreatRankMatrix,MATCH($P$17,Rank,0),MATCH(P38,Rank,0))) ->  | AF39: =SUM(AG39:AP39) -> 0 | AG39: =IF(G$17="",0,(IF(G38=0,0,IF(G39=0,0,INDEX(ThreatScore,MATCH(G39,Rank,0)))))) -> 0 | AH39: 0 | AI39: 0 | AJ39: 0 | AK39: 0 | AL39: 0 | AM39: 0 | AN39: 0 | AO39: 0 | AP39: 0
F40: Contribution | Q40: =IF(AF41>=Scoring!$B$24,"Very High",IF(AF41>=Scoring!$B$25,"High",IF(AF41>=Scoring!$B$26,"Medium",IF(AF41>=Scoring!$B$27,"Low","-")))) -> -
F41: Threat Rank | G41: =IF(G40=0,"",INDEX(ThreatRankMatrix,MATCH($G$17,Rank,0),MATCH(G40,Rank,0))) ->  | H41: =IF(H40=0,"",INDEX(ThreatRankMatrix,MATCH($H$17,Rank,0),MATCH(H40,Rank,0))) ->  | I41: =IF(I40=0,"",INDEX(ThreatRankMatrix,MATCH($I$17,Rank,0),MATCH(I40,Rank,0))) ->  | J41: =IF(J40=0,"",INDEX(ThreatRankMatrix,MATCH($J$17,Rank,0),MATCH(J40,Rank,0))) ->  | K41: =IF(K40=0,"",INDEX(ThreatRankMatrix,MATCH($K$17,Rank,0),MATCH(K40,Rank,0))) ->  | L41: =IF(L40=0,"",INDEX(ThreatRankMatrix,MATCH($L$17,Rank,0),MATCH(L40,Rank,0))) ->  | M41: =IF(M40=0,"",INDEX(ThreatRankMatrix,MATCH($M$17,Rank,0),MATCH(M40,Rank,0))) ->  | N41: =IF(N40=0,"",INDEX(ThreatRankMatrix,MATCH($N$17,Rank,0),MATCH(N40,Rank,0))) ->  | O41: =IF(O40=0,"",INDEX(ThreatRankMatrix,MATCH($O$17,Rank,0),MATCH(O40,Rank,0))) ->  | P41: =IF(P40=0,"",INDEX(ThreatRankMatrix,MATCH($P$17,Rank,0),MATCH(P40,Rank,0))) ->  | AF41: =SUM(AG41:AP41) -> 0 | AG41: =IF(G$17="",0,(IF(G40=0,0,IF(G41=0,0,INDEX(ThreatScore,MATCH(G41,Rank,0)))))) -> 0 | AH41: 0 | AI41: 0 | AJ41: 0 | AK41: 0 | AL41: 0 | AM41: 0 | AN41: 0 | AO41: 0 | AP41: 0
E52: Revised Threat Ranking - If Objectives are Achieved
E53: First enter Projected Future KEA ratings if Objectives are achieved
E54: Threats (Sources of Stress) List Sources of stress below (max of 10 per target). Enter Contribution of each source where applicable. | F54: Key Attribute > | G54: =IF(E4=0,"",E4) -> Fire regime | H54: =IF(E5=0,"",E5) -> Habitat connectivity | I54: =IF(E6=0,"",E6) -> Hydrologic regime | J54: =IF(E7=0,"",E7) -> Characteristic native community | K54: =IF(E8=0,"",E8) -> Vegetation composition & structure - mosaic | L54: =IF(E9=0,"",E9) -> Extent of area | M54: =IF(E10=0,"",E10) ->  | N54: =IF(E11=0,"",E11) ->  | O54: =IF(E12=0,"",E12) ->  | P54: =IF(E13=0,"",E13) ->  | Q54: Threat to Target Rank
F55: Stress Rank> | G55: =IF(U4="","", IF(V4=0,U4,V4)) -> - | H55: =IF(U5="","", IF(V5=0,U5,V5)) -> - | I55: =IF(U6="","", IF(V6=0,U6,V6)) -> - | J55: =IF(U7="","", IF(V7=0,U7,V7)) -> High | K55: =IF(U8="","", IF(V8=0,U8,V8)) -> - | L55: =IF(U9="","", IF(V9=0,U9,V9)) -> Medium | M55: =IF(U10="","", IF(V10=0,U10,V10)) ->  | N55: =IF(U11="","", IF(V11=0,U11,V11)) ->  | O55: =IF(U12="","", IF(V12=0,U12,V12)) ->  | P55: =IF(U13="","", IF(V13=0,U13,V13)) -> 
E56: Invasive/alien species | F56: Contribution | I56: Very High | Q56: =IF(AH57>=Scoring!$B$24,"Very High",IF(AH57>=Scoring!$B$25,"High",IF(AH57>=Scoring!$B$26,"Medium",IF(AH57>=Scoring!$B$27,"Low","-")))) -> -
F57: Threat Rank | G57: =IF(G56=0,"",INDEX(ThreatRankMatrix,MATCH($G$55,Rank,0),MATCH(G56,Rank,0))) ->  | H57: =IF(H56=0,"",INDEX(ThreatRankMatrix,MATCH($H$55,Rank,0),MATCH(H56,Rank,0))) ->  | I57: =IF(I56=0,"",INDEX(ThreatRankMatrix,MATCH($I$55,Rank,0),MATCH(I56,Rank,0))) -> - | J57: =IF(J56=0,"",INDEX(ThreatRankMatrix,MATCH($J$55,Rank,0),MATCH(J56,Rank,0))) ->  | K57: =IF(K56=0,"",INDEX(ThreatRankMatrix,MATCH($K$55,Rank,0),MATCH(K56,Rank,0))) ->  | L57: =IF(L56=0,"",INDEX(ThreatRankMatrix,MATCH($L$55,Rank,0),MATCH(L56,Rank,0))) ->  | M57: =IF(M56=0,"",INDEX(ThreatRankMatrix,MATCH($M$55,Rank,0),MATCH(M56,Rank,0))) ->  | N57: =IF(N56=0,"",INDEX(ThreatRankMatrix,MATCH($N$55,Rank,0),MATCH(N56,Rank,0))) ->  | O57: =IF(O56=0,"",INDEX(ThreatRankMatrix,MATCH($O$55,Rank,0),MATCH(O56,Rank,0))) ->  | P57: =IF(P56=0,"",INDEX(ThreatRankMatrix,MATCH($P$55,Rank,0),MATCH(P56,Rank,0))) ->  | AH57: =SUM(AI57:AP57) -> 0 | AI57: =IF(G$55="",0,(IF(G56=0,0,IF(G57=0,0,INDEX(ThreatScore,MATCH(G57,Rank,0)))))) -> 0 | AK57: =IF(H$55="",0,(IF(H56=0,0,IF(H57=0,0,INDEX(ThreatScore,MATCH(H57,Rank,0)))))) -> 0 | AL57: 0 | AM57: 0 | AN57: 0 | AO57: 0 | AP57: 0
E58: Development of roads or utilities | F58: Contribution | I58: Low | L58: Low | Q58: =IF(AH59>=Scoring!$B$24,"Very High",IF(AH59>=Scoring!$B$25,"High",IF(AH59>=Scoring!$B$26,"Medium",IF(AH59>=Scoring!$B$27,"Low","-")))) -> Low
F59: Threat Rank | G59: =IF(G58=0,"",INDEX(ThreatRankMatrix,MATCH($G$55,Rank,0),MATCH(G58,Rank,0))) ->  | H59: =IF(H58=0,"",INDEX(ThreatRankMatrix,MATCH($H$55,Rank,0),MATCH(H58,Rank,0))) ->  | I59: =IF(I58=0,"",INDEX(ThreatRankMatrix,MATCH($I$55,Rank,0),MATCH(I58,Rank,0))) -> - | J59: =IF(J58=0,"",INDEX(ThreatRankMatrix,MATCH($J$55,Rank,0),MATCH(J58,Rank,0))) ->  | K59: =IF(K58=0,"",INDEX(ThreatRankMatrix,MATCH($K$55,Rank,0),MATCH(K58,Rank,0))) ->  | L59: =IF(L58=0,"",INDEX(ThreatRankMatrix,MATCH($L$55,Rank,0),MATCH(L58,Rank,0))) -> Low | M59: =IF(M58=0,"",INDEX(ThreatRankMatrix,MATCH($M$55,Rank,0),MATCH(M58,Rank,0))) ->  | N59: =IF(N58=0,"",INDEX(ThreatRankMatrix,MATCH($N$55,Rank,0),MATCH(N58,Rank,0))) ->  | O59: =IF(O58=0,"",INDEX(ThreatRankMatrix,MATCH($O$55,Rank,0),MATCH(O58,Rank,0))) ->  | P59: =IF(P58=0,"",INDEX(ThreatRankMatrix,MATCH($P$55,Rank,0),MATCH(P58,Rank,0))) ->  | AH59: =SUM(AI59:AP59) -> 1 | AI59: =IF(G$55="",0,(IF(G58=0,0,IF(G59=0,0,INDEX(ThreatScore,MATCH(G59,Rank,0)))))) -> 0 | AK59: =IF(H$55="",0,(IF(H58=0,0,IF(H59=0,0,INDEX(ThreatScore,MATCH(H59,Rank,0)))))) -> 0 | AL59: 0 | AM59: 0 | AN59: 0 | AO59: 1 | AP59: 0
E60: Primary home development | F60: Contribution | L60: Medium | Q60: =IF(AH61>=Scoring!$B$24,"Very High",IF(AH61>=Scoring!$B$25,"High",IF(AH61>=Scoring!$B$26,"Medium",IF(AH61>=Scoring!$B$27,"Low","-")))) -> Low
F61: Threat Rank | G61: =IF(G60=0,"",INDEX(ThreatRankMatrix,MATCH($G$55,Rank,0),MATCH(G60,Rank,0))) ->  | H61: =IF(H60=0,"",INDEX(ThreatRankMatrix,MATCH($H$55,Rank,0),MATCH(H60,Rank,0))) ->  | I61: =IF(I60=0,"",INDEX(ThreatRankMatrix,MATCH($I$55,Rank,0),MATCH(I60,Rank,0))) ->  | J61: =IF(J60=0,"",INDEX(ThreatRankMatrix,MATCH($J$55,Rank,0),MATCH(J60,Rank,0))) ->  | K61: =IF(K60=0,"",INDEX(ThreatRankMatrix,MATCH($K$55,Rank,0),MATCH(K60,Rank,0))) ->  | L61: =IF(L60=0,"",INDEX(ThreatRankMatrix,MATCH($L$55,Rank,0),MATCH(L60,Rank,0))) -> Low | M61: =IF(M60=0,"",INDEX(ThreatRankMatrix,MATCH($M$55,Rank,0),MATCH(M60,Rank,0))) ->  | N61: =IF(N60=0,"",INDEX(ThreatRankMatrix,MATCH($N$55,Rank,0),MATCH(N60,Rank,0))) ->  | O61: =IF(O60=0,"",INDEX(ThreatRankMatrix,MATCH($O$55,Rank,0),MATCH(O60,Rank,0))) ->  | P61: =IF(P60=0,"",INDEX(ThreatRankMatrix,MATCH($P$55,Rank,0),MATCH(P60,Rank,0))) ->  | AH61: =SUM(AI61:AP61) -> 1 | AI61: =IF(G$55="",0,(IF(G60=0,0,IF(G61=0,0,INDEX(ThreatScore,MATCH(G61,Rank,0)))))) -> 0 | AK61: =IF(H$55="",0,(IF(H60=0,0,IF(H61=0,0,INDEX(ThreatScore,MATCH(H61,Rank,0)))))) -> 0 | AL61: 0 | AM61: 0 | AN61: 0 | AO61: 1 | AP61: 0
E62: SWSI - new warer projects | F62: Contribution | G62: High | Q62: =IF(AH63>=Scoring!$B$24,"Very High",IF(AH63>=Scoring!$B$25,"High",IF(AH63>=Scoring!$B$26,"Medium",IF(AH63>=Scoring!$B$27,"Low","-")))) -> -
F63: Threat Rank | G63: =IF(G62=0,"",INDEX(ThreatRankMatrix,MATCH($G$55,Rank,0),MATCH(G62,Rank,0))) -> - | H63: =IF(H62=0,"",INDEX(ThreatRankMatrix,MATCH($H$55,Rank,0),MATCH(H62,Rank,0))) ->  | I63: =IF(I62=0,"",INDEX(ThreatRankMatrix,MATCH($I$55,Rank,0),MATCH(I62,Rank,0))) ->  | J63: =IF(J62=0,"",INDEX(ThreatRankMatrix,MATCH($J$55,Rank,0),MATCH(J62,Rank,0))) ->  | K63: =IF(K62=0,"",INDEX(ThreatRankMatrix,MATCH($K$55,Rank,0),MATCH(K62,Rank,0))) ->  | L63: =IF(L62=0,"",INDEX(ThreatRankMatrix,MATCH($L$55,Rank,0),MATCH(L62,Rank,0))) ->  | M63: =IF(M62=0,"",INDEX(ThreatRankMatrix,MATCH($M$55,Rank,0),MATCH(M62,Rank,0))) ->  | N63: =IF(N62=0,"",INDEX(ThreatRankMatrix,MATCH($N$55,Rank,0),MATCH(N62,Rank,0))) ->  | O63: =IF(O62=0,"",INDEX(ThreatRankMatrix,MATCH($O$55,Rank,0),MATCH(O62,Rank,0))) ->  | P63: =IF(P62=0,"",INDEX(ThreatRankMatrix,MATCH($P$55,Rank,0),MATCH(P62,Rank,0))) ->  | AH63: =SUM(AI63:AP63) -> 0 | AI63: =IF(G$55="",0,(IF(G62=0,0,IF(G63=0,0,INDEX(ThreatScore,MATCH(G63,Rank,0)))))) -> 0 | AK63: =IF(H$55="",0,(IF(H62=0,0,IF(H63=0,0,INDEX(ThreatScore,MATCH(H63,Rank,0)))))) -> 0 | AL63: 0 | AM63: 0 | AN63: 0 | AO63: 0 | AP63: 0
E64: Operation of drainage or diversion systems | F64: Contribution | G64: Very High | Q64: =IF(AH65>=Scoring!$B$24,"Very High",IF(AH65>=Scoring!$B$25,"High",IF(AH65>=Scoring!$B$26,"Medium",IF(AH65>=Scoring!$B$27,"Low","-")))) -> -
F65: Threat Rank | G65: =IF(G64=0,"",INDEX(ThreatRankMatrix,MATCH($G$55,Rank,0),MATCH(G64,Rank,0))) -> - | H65: =IF(H64=0,"",INDEX(ThreatRankMatrix,MATCH($H$55,Rank,0),MATCH(H64,Rank,0))) ->  | I65: =IF(I64=0,"",INDEX(ThreatRankMatrix,MATCH($I$55,Rank,0),MATCH(I64,Rank,0))) ->  | J65: =IF(J64=0,"",INDEX(ThreatRankMatrix,MATCH($J$55,Rank,0),MATCH(J64,Rank,0))) ->  | K65: =IF(K64=0,"",INDEX(ThreatRankMatrix,MATCH($K$55,Rank,0),MATCH(K64,Rank,0))) ->  | L65: =IF(L64=0,"",INDEX(ThreatRankMatrix,MATCH($L$55,Rank,0),MATCH(L64,Rank,0))) ->  | M65: =IF(M64=0,"",INDEX(ThreatRankMatrix,MATCH($M$55,Rank,0),MATCH(M64,Rank,0))) ->  | N65: =IF(N64=0,"",INDEX(ThreatRankMatrix,MATCH($N$55,Rank,0),MATCH(N64,Rank,0))) ->  | O65: =IF(O64=0,"",INDEX(ThreatRankMatrix,MATCH($O$55,Rank,0),MATCH(O64,Rank,0))) ->  | P65: =IF(P64=0,"",INDEX(ThreatRankMatrix,MATCH($P$55,Rank,0),MATCH(P64,Rank,0))) ->  | AH65: =SUM(AI65:AP65) -> 0 | AI65: =IF(G$55="",0,(IF(G64=0,0,IF(G65=0,0,INDEX(ThreatScore,MATCH(G65,Rank,0)))))) -> 0 | AK65: =IF(H$55="",0,(IF(H64=0,0,IF(H65=0,0,INDEX(ThreatScore,MATCH(H65,Rank,0)))))) -> 0 | AL65: 0 | AM65: 0 | AN65: 0 | AO65: 0 | AP65: 0
F66: Contribution | Q66: =IF(AH67>=Scoring!$B$24,"Very High",IF(AH67>=Scoring!$B$25,"High",IF(AH67>=Scoring!$B$26,"Medium",IF(AH67>=Scoring!$B$27,"Low","-")))) -> -
F67: Threat Rank | G67: =IF(G66=0,"",INDEX(ThreatRankMatrix,MATCH($G$55,Rank,0),MATCH(G66,Rank,0))) ->  | H67: =IF(H66=0,"",INDEX(ThreatRankMatrix,MATCH($H$55,Rank,0),MATCH(H66,Rank,0))) ->  | I67: =IF(I66=0,"",INDEX(ThreatRankMatrix,MATCH($I$55,Rank,0),MATCH(I66,Rank,0))) ->  | J67: =IF(J66=0,"",INDEX(ThreatRankMatrix,MATCH($J$55,Rank,0),MATCH(J66,Rank,0))) ->  | K67: =IF(K66=0,"",INDEX(ThreatRankMatrix,MATCH($K$55,Rank,0),MATCH(K66,Rank,0))) ->  | L67: =IF(L66=0,"",INDEX(ThreatRankMatrix,MATCH($L$55,Rank,0),MATCH(L66,Rank,0))) ->  | M67: =IF(M66=0,"",INDEX(ThreatRankMatrix,MATCH($M$55,Rank,0),MATCH(M66,Rank,0))) ->  | N67: =IF(N66=0,"",INDEX(ThreatRankMatrix,MATCH($N$55,Rank,0),MATCH(N66,Rank,0))) ->  | O67: =IF(O66=0,"",INDEX(ThreatRankMatrix,MATCH($O$55,Rank,0),MATCH(O66,Rank,0))) ->  | P67: =IF(P66=0,"",INDEX(ThreatRankMatrix,MATCH($P$55,Rank,0),MATCH(P66,Rank,0))) ->  | AH67: =SUM(AI67:AP67) -> 0 | AI67: =IF(G$55="",0,(IF(G66=0,0,IF(G67=0,0,INDEX(ThreatScore,MATCH(G67,Rank,0)))))) -> 0 | AK67: =IF(H$55="",0,(IF(H66=0,0,IF(H67=0,0,INDEX(ThreatScore,MATCH(H67,Rank,0)))))) -> 0 | AL67: 0 | AM67: 0 | AN67: 0 | AO67: 0 | AP67: 0
F68: Contribution | Q68: =IF(AH69>=Scoring!$B$24,"Very High",IF(AH69>=Scoring!$B$25,"High",IF(AH69>=Scoring!$B$26,"Medium",IF(AH69>=Scoring!$B$27,"Low","-")))) -> -
F69: Threat Rank | G69: =IF(G68=0,"",INDEX(ThreatRankMatrix,MATCH($G$55,Rank,0),MATCH(G68,Rank,0))) ->  | H69: =IF(H68=0,"",INDEX(ThreatRankMatrix,MATCH($H$55,Rank,0),MATCH(H68,Rank,0))) ->  | I69: =IF(I68=0,"",INDEX(ThreatRankMatrix,MATCH($I$55,Rank,0),MATCH(I68,Rank,0))) ->  | J69: =IF(J68=0,"",INDEX(ThreatRankMatrix,MATCH($J$55,Rank,0),MATCH(J68,Rank,0))) ->  | K69: =IF(K68=0,"",INDEX(ThreatRankMatrix,MATCH($K$55,Rank,0),MATCH(K68,Rank,0))) ->  | L69: =IF(L68=0,"",INDEX(ThreatRankMatrix,MATCH($L$55,Rank,0),MATCH(L68,Rank,0))) ->  | M69: =IF(M68=0,"",INDEX(ThreatRankMatrix,MATCH($M$55,Rank,0),MATCH(M68,Rank,0))) ->  | N69: =IF(N68=0,"",INDEX(ThreatRankMatrix,MATCH($N$55,Rank,0),MATCH(N68,Rank,0))) ->  | O69: =IF(O68=0,"",INDEX(ThreatRankMatrix,MATCH($O$55,Rank,0),MATCH(O68,Rank,0))) ->  | P69: =IF(P68=0,"",INDEX(ThreatRankMatrix,MATCH($P$55,Rank,0),MATCH(P68,Rank,0))) ->  | AH69: =SUM(AI69:AP69) -> 0 | AI69: =IF(G$55="",0,(IF(G68=0,0,IF(G69=0,0,INDEX(ThreatScore,MATCH(G69,Rank,0)))))) -> 0 | AK69: =IF(H$55="",0,(IF(H68=0,0,IF(H69=0,0,INDEX(ThreatScore,MATCH(H69,Rank,0)))))) -> 0 | AL69: 0 | AM69: 0 | AN69: 0 | AO69: 0 | AP69: 0
F70: Contribution | Q70: =IF(AH71>=Scoring!$B$24,"Very High",IF(AH71>=Scoring!$B$25,"High",IF(AH71>=Scoring!$B$26,"Medium",IF(AH71>=Scoring!$B$27,"Low","-")))) -> -
F71: Threat Rank | G71: =IF(G70=0,"",INDEX(ThreatRankMatrix,MATCH($G$55,Rank,0),MATCH(G70,Rank,0))) ->  | H71: =IF(H70=0,"",INDEX(ThreatRankMatrix,MATCH($H$55,Rank,0),MATCH(H70,Rank,0))) ->  | I71: =IF(I70=0,"",INDEX(ThreatRankMatrix,MATCH($I$55,Rank,0),MATCH(I70,Rank,0))) ->  | J71: =IF(J70=0,"",INDEX(ThreatRankMatrix,MATCH($J$55,Rank,0),MATCH(J70,Rank,0))) ->  | K71: =IF(K70=0,"",INDEX(ThreatRankMatrix,MATCH($K$55,Rank,0),MATCH(K70,Rank,0))) ->  | L71: =IF(L70=0,"",INDEX(ThreatRankMatrix,MATCH($L$55,Rank,0),MATCH(L70,Rank,0))) ->  | M71: =IF(M70=0,"",INDEX(ThreatRankMatrix,MATCH($M$55,Rank,0),MATCH(M70,Rank,0))) ->  | N71: =IF(N70=0,"",INDEX(ThreatRankMatrix,MATCH($N$55,Rank,0),MATCH(N70,Rank,0))) ->  | O71: =IF(O70=0,"",INDEX(ThreatRankMatrix,MATCH($O$55,Rank,0),MATCH(O70,Rank,0))) ->  | P71: =IF(P70=0,"",INDEX(ThreatRankMatrix,MATCH($P$55,Rank,0),MATCH(P70,Rank,0))) ->  | AH71: =SUM(AI71:AP71) -> 0 | AI71: =IF(G$55="",0,(IF(G70=0,0,IF(G71=0,0,INDEX(ThreatScore,MATCH(G71,Rank,0)))))) -> 0 | AK71: =IF(H$55="",0,(IF(H70=0,0,IF(H71=0,0,INDEX(ThreatScore,MATCH(H71,Rank,0)))))) -> 0 | AL71: 0 | AM71: 0 | AN71: 0 | AO71: 0 | AP71: 0
F72: Contribution | Q72: =IF(AH73>=Scoring!$B$24,"Very High",IF(AH73>=Scoring!$B$25,"High",IF(AH73>=Scoring!$B$26,"Medium",IF(AH73>=Scoring!$B$27,"Low","-")))) -> -
F73: Threat Rank | G73: =IF(G72=0,"",INDEX(ThreatRankMatrix,MATCH($G$55,Rank,0),MATCH(G72,Rank,0))) ->  | H73: =IF(H72=0,"",INDEX(ThreatRankMatrix,MATCH($H$55,Rank,0),MATCH(H72,Rank,0))) ->  | I73: =IF(I72=0,"",INDEX(ThreatRankMatrix,MATCH($I$55,Rank,0),MATCH(I72,Rank,0))) ->  | J73: =IF(J72=0,"",INDEX(ThreatRankMatrix,MATCH($J$55,Rank,0),MATCH(J72,Rank,0))) ->  | K73: =IF(K72=0,"",INDEX(ThreatRankMatrix,MATCH($K$55,Rank,0),MATCH(K72,Rank,0))) ->  | L73: =IF(L72=0,"",INDEX(ThreatRankMatrix,MATCH($L$55,Rank,0),MATCH(L72,Rank,0))) ->  | M73: =IF(M72=0,"",INDEX(ThreatRankMatrix,MATCH($M$55,Rank,0),MATCH(M72,Rank,0))) ->  | N73: =IF(N72=0,"",INDEX(ThreatRankMatrix,MATCH($N$55,Rank,0),MATCH(N72,Rank,0))) ->  | O73: =IF(O72=0,"",INDEX(ThreatRankMatrix,MATCH($O$55,Rank,0),MATCH(O72,Rank,0))) ->  | P73: =IF(P72=0,"",INDEX(ThreatRankMatrix,MATCH($P$55,Rank,0),MATCH(P72,Rank,0))) ->  | AH73: =SUM(AI73:AP73) -> 0 | AI73: =IF(G$55="",0,(IF(G72=0,0,IF(G73=0,0,INDEX(ThreatScore,MATCH(G73,Rank,0)))))) -> 0 | AK73: =IF(H$55="",0,(IF(H72=0,0,IF(H73=0,0,INDEX(ThreatScore,MATCH(H73,Rank,0)))))) -> 0 | AL73: 0 | AM73: 0 | AN73: 0 | AO73: 0 | AP73: 0
F74: Contribution | Q74: =IF(AH75>=Scoring!$B$24,"Very High",IF(AH75>=Scoring!$B$25,"High",IF(AH75>=Scoring!$B$26,"Medium",IF(AH75>=Scoring!$B$27,"Low","-")))) -> -
F75: Threat Rank | G75: =IF(G74=0,"",INDEX(ThreatRankMatrix,MATCH($G$55,Rank,0),MATCH(G74,Rank,0))) ->  | H75: =IF(H74=0,"",INDEX(ThreatRankMatrix,MATCH($H$55,Rank,0),MATCH(H74,Rank,0))) ->  | I75: =IF(I74=0,"",INDEX(ThreatRankMatrix,MATCH($I$55,Rank,0),MATCH(I74,Rank,0))) ->  | J75: =IF(J74=0,"",INDEX(ThreatRankMatrix,MATCH($J$55,Rank,0),MATCH(J74,Rank,0))) ->  | K75: =IF(K74=0,"",INDEX(ThreatRankMatrix,MATCH($K$55,Rank,0),MATCH(K74,Rank,0))) ->  | L75: =IF(L74=0,"",INDEX(ThreatRankMatrix,MATCH($L$55,Rank,0),MATCH(L74,Rank,0))) ->  | M75: =IF(M74=0,"",INDEX(ThreatRankMatrix,MATCH($M$55,Rank,0),MATCH(M74,Rank,0))) ->  | N75: =IF(N74=0,"",INDEX(ThreatRankMatrix,MATCH($N$55,Rank,0),MATCH(N74,Rank,0))) ->  | O75: =IF(O74=0,"",INDEX(ThreatRankMatrix,MATCH($O$55,Rank,0),MATCH(O74,Rank,0))) ->  | P75: =IF(P74=0,"",INDEX(ThreatRankMatrix,MATCH($P$55,Rank,0),MATCH(P74,Rank,0))) ->  | AH75: =SUM(AI75:AP75) -> 0 | AI75: =IF(G$55="",0,(IF(G74=0,0,IF(G75=0,0,INDEX(ThreatScore,MATCH(G75,Rank,0)))))) -> 0 | AK75: =IF(H$55="",0,(IF(H74=0,0,IF(H75=0,0,INDEX(ThreatScore,MATCH(H75,Rank,0)))))) -> 0 | AL75: 0 | AM75: 0 | AN75: 0 | AO75: 0 | AP75: 0

Sheet 2
D1: =IF(Targets!C9=0,"",Targets!C9) -> Boreal Forests - Upper Chena | E1: =IF(Targets!C9=0,"",Targets!C9) -> Boreal Forests - Upper Chena | F1: Key Attributes & Future Threats
F2: Place cursor over cells with red triangles in top corner for hint
A3: KEA ID | B3: Target ID | C3: Target Name | D3: Category | E3: Key Attribute | F3: Indicator | G3: Poor | H3: Fair | I3: Good | J3: Very Good | K3: Current Rating | L3: Projected Future Rating w No Action | M3: Stress Ranking (calculated) | N3: Stress Ranking (User Override) | T3: Projected Future Rating w Strategies | U3: New Stress Ranking (calculated) | V3: New Stress Ranking (User Override) | Y3: Temp Indicator ID | AA3: Target # | AB3: Current Score | AC3: Score w No Action | AD3: Score w Strategies | AE3: Current Weight | AF3: Future Weight No Action | AG3: Future Weight w Action | AH3: Current Weighted Score | AI3: Future No Action Weighted Score | AJ3: Future Action Weighted Score | AK3: Current Weighted Average | AL3: Future No Action Weighted Average | AM3: Future Action Weighted Average
A4: =ROW()+200 -> 204 | B4: 2 | C4: =$D$1 -> Boreal Forests - Upper Chena | D4: Landscape Context | E4: Fire regime | F4: Frequency, size, type of fires, severity | G4: Highly altered regime | H4: Moderately altered regime | I4: Mostly natural regime | J4: Mother Nature | K4: Good | L4: Fair | M4: =IF(K4=0,"",IF(L4=0,"",INDEX(StressRankMatrix,MATCH(K4,Rating,0),MATCH(L4,Rating,0)))) -> High | T4: =IF(L4="","",IFERROR(INDEX(Outcomes!$F:$F, MATCH(A4,Outcomes!$H:$H,0)),L4)) -> Fair | U4: =IF(K4="","",IF(T4=0,"",INDEX(StressRankMatrix,MATCH(K4,Rating,0),MATCH(T4,Rating,0)))) -> High | Y4: =IFERROR(INDEX(#REF!,MATCH(A4,#REF!,0)),"") ->  | AA4: =IF(E4="","",IF(E4>0,$B$4,"error")) -> 2 | AB4: =IF(K4="Poor",Scoring!$B$50,IF(K4="Fair -",Scoring!$B$49,IF(K4="Fair",Scoring!$B$48,IF(K4="Good -",Scoring!$B$47,IF(K4="Good",Scoring!$B$46,IF(K4="Very Good",Scoring!$B$45,IF(K4="",0))))))) -> 80.03 | AC4: =IF(L4="Poor",Scoring!$B$50,IF(L4="Fair -",Scoring!$B$49,IF(L4="Fair",Scoring!$B$48,IF(L4="Good -",Scoring!$B$47,IF(L4="Good",Scoring!$B$46,IF(L4="Very Good",Scoring!$B$45,IF(L4="",0))))))) -> 40.04 | AD4: =IF(T4="Poor",Scoring!$B$50,IF(T4="Fair -",Scoring!$B$49,IF(T4="Fair",Scoring!$B$48,IF(T4="Good -",Scoring!$B$47,IF(T4="Good",Scoring!$B$46,IF(T4="Very Good",Scoring!$B$45,IF(T4="",0))))))) -> 40.04 | AE4: =IF(K4="Poor",Scoring!$C$50,IF(K4="Fair -",Scoring!$C$49,IF(K4="Fair",Scoring!$C$48,IF(K4="Good -",Scoring!$C$47,IF(K4="Good",Scoring!$C$46,IF(K4="Very Good",Scoring!$C$45,IF(K4="",0))))))) -> 1 | AF4: =IF(L4="Poor",Scoring!$C$50,IF(L4="Fair -",Scoring!$C$49,IF(L4="Fair",Scoring!$C$48,IF(L4="Good -",Scoring!$C$47,IF(L4="Good",Scoring!$C$46,IF(L4="Very Good",Scoring!$C$45,IF(L4="",0))))))) -> 1 | AG4: =IF(T4="Poor",Scoring!$C$50,IF(T4="Fair -",Scoring!$C$49,IF(T4="Fair",Scoring!$C$48,IF(T4="Good -",Scoring!$C$47,IF(T4="Good",Scoring!$C$46,IF(T4="Very Good",Scoring!$C$45,IF(T4="",0))))))) -> 1 | AH4: =AB4*AE4 -> 80.03 | AI4: =AC4*AF4 -> 40.04 | AJ4: =AD4*AG4 -> 40.04
A5: =ROW()+200 -> 205 | B5: 2 | C5: =$D$1 -> Boreal Forests - Upper Chena | D5: Landscape Context | E5: Habitat connectivity | F5: Movement of species | G5: Most species are isolated | H5: Some species are isolated | I5: Most species are mostly able to move freely among most habitats | J5: Mother Nature | K5: Good | L5: Good - | M5: Medium | T5: =IF(L5="","",IFERROR(INDEX(Outcomes!$F:$F, MATCH(A5,Outcomes!$H:$H,0)),L5)) -> Good - | U5: Medium | Y5: =IFERROR(INDEX(#REF!,MATCH(A5,#REF!,0)),"") ->  | AA5: 2 | AB5: =IF(K5="Poor",Scoring!$B$50,IF(K5="Fair -",Scoring!$B$49,IF(K5="Fair",Scoring!$B$48,IF(K5="Good -",Scoring!$B$47,IF(K5="Good",Scoring!$B$46,IF(K5="Very Good",Scoring!$B$45,IF(K5="",0))))))) -> 80.03 | AC5: =IF(L5="Poor",Scoring!$B$50,IF(L5="Fair -",Scoring!$B$49,IF(L5="Fair",Scoring!$B$48,IF(L5="Good -",Scoring!$B$47,IF(L5="Good",Scoring!$B$46,IF(L5="Very Good",Scoring!$B$45,IF(L5="",0))))))) -> 60.04 | AD5: =IF(T5="Poor",Scoring!$B$50,IF(T5="Fair -",Scoring!$B$49,IF(T5="Fair",Scoring!$B$48,IF(T5="Good -",Scoring!$B$47,IF(T5="Good",Scoring!$B$46,IF(T5="Very Good",Scoring!$B$45,IF(T5="",0))))))) -> 60.04 | AE5: =IF(K5="Poor",Scoring!$C$50,IF(K5="Fair -",Scoring!$C$49,IF(K5="Fair",Scoring!$C$48,IF(K5="Good -",Scoring!$C$47,IF(K5="Good",Scoring!$C$46,IF(K5="Very Good",Scoring!$C$45,IF(K5="",0))))))) -> 1 | AF5: =IF(L5="Poor",Scoring!$C$50,IF(L5="Fair -",Scoring!$C$49,IF(L5="Fair",Scoring!$C$48,IF(L5="Good -",Scoring!$C$47,IF(L5="Good",Scoring!$C$46,IF(L5="Very Good",Scoring!$C$45,IF(L5="",0))))))) -> 1 | AG5: =IF(T5="Poor",Scoring!$C$50,IF(T5="Fair -",Scoring!$C$49,IF(T5="Fair",Scoring!$C$48,IF(T5="Good -",Scoring!$C$47,IF(T5="Good",Scoring!$C$46,IF(T5="Very Good",Scoring!$C$45,IF(T5="",0))))))) -> 1 | AH5: =AB5*AE5 -> 80.03 | AI5: 60.04 | AJ5: 60.04
A6: 206 | B6: 2 | C6: Boreal Forests - Upper Chena | D6: Landscape Context | E6: Hydrologic regime | F6: Natural fluctuations of surface and ground water -amount, frequency, timing, duration | G6: Water levels, flows or fluctuations are too high or too low, not related to the precipitation, and unlikely to maintain nested targets in many habitats within the target area and downstream | H6: Water levels, flows or fluctuations in relationship to precipitation and ground water are likely to maintain nested targets in some habitats within the target and downstream | I6: Water levels, flows or fluctuations in relationship to precipitation and ground water are likely to maintain nested targets in most habitats within the target area and downstream | J6: Water levels, flows or fluctuations in relationship to precipitation and ground water are likely to maintain nested targets in almost all habitats within the target area and downstream | K6: Good | L6: Good - | M6: Medium | T6: =IF(L6="","",IFERROR(INDEX(Outcomes!$F:$F, MATCH(A6,Outcomes!$H:$H,0)),L6)) -> Good - | U6: Medium | Y6: =IFERROR(INDEX(#REF!,MATCH(A6,#REF!,0)),"") ->  | AA6: 2 | AB6: =IF(K6="Poor",Scoring!$B$50,IF(K6="Fair -",Scoring!$B$49,IF(K6="Fair",Scoring!$B$48,IF(K6="Good -",Scoring!$B$47,IF(K6="Good",Scoring!$B$46,IF(K6="Very Good",Scoring!$B$45,IF(K6="",0))))))) -> 80.03 | AC6: =IF(L6="Poor",Scoring!$B$50,IF(L6="Fair -",Scoring!$B$49,IF(L6="Fair",Scoring!$B$48,IF(L6="Good -",Scoring!$B$47,IF(L6="Good",Scoring!$B$46,IF(L6="Very Good",Scoring!$B$45,IF(L6="",0))))))) -> 60.04 | AD6: =IF(T6="Poor",Scoring!$B$50,IF(T6="Fair -",Scoring!$B$49,IF(T6="Fair",Scoring!$B$48,IF(T6="Good -",Scoring!$B$47,IF(T6="Good",Scoring!$B$46,IF(T6="Very Good",Scoring!$B$45,IF(T6="",0))))))) -> 60.04 | AE6: =IF(K6="Poor",Scoring!$C$50,IF(K6="Fair -",Scoring!$C$49,IF(K6="Fair",Scoring!$C$48,IF(K6="Good -",Scoring!$C$47,IF(K6="Good",Scoring!$C$46,IF(K6="Very Good",Scoring!$C$45,IF(K6="",0))))))) -> 1 | AF6: =IF(L6="Poor",Scoring!$C$50,IF(L6="Fair -",Scoring!$C$49,IF(L6="Fair",Scoring!$C$48,IF(L6="Good -",Scoring!$C$47,IF(L6="Good",Scoring!$C$46,IF(L6="Very Good",Scoring!$C$45,IF(L6="",0))))))) -> 1 | AG6: =IF(T6="Poor",Scoring!$C$50,IF(T6="Fair -",Scoring!$C$49,IF(T6="Fair",Scoring!$C$48,IF(T6="Good -",Scoring!$C$47,IF(T6="Good",Scoring!$C$46,IF(T6="Very Good",Scoring!$C$45,IF(T6="",0))))))) -> 1 | AH6: 80.03 | AI6: 60.04 | AJ6: 60.04
A7: 207 | B7: 2 | C7: Boreal Forests - Upper Chena | D7: Condition | E7: Characteristic native community | F7: Presence of characteristic native communities within habitats | G7: Few habitats have the characteristic native communities to accom-modate most nested targets in abundance | H7: Some habitats have the characteristic native communities to accom-modate most nested targets in abundance | I7: Most habitats have the characteristic native communities to accom-modate most nested targets in abundance | J7: Almost all habitats have the characteristic native communities to accom­modate almost all nested targets in abundance | K7: Good | L7: Good - | M7: Medium | T7: =IF(L7="","",IFERROR(INDEX(Outcomes!$F:$F, MATCH(A7,Outcomes!$H:$H,0)),L7)) -> Good - | U7: Medium | Y7: =IFERROR(INDEX(#REF!,MATCH(A7,#REF!,0)),"") ->  | AA7: 2 | AB7: =IF(K7="Poor",Scoring!$B$50,IF(K7="Fair -",Scoring!$B$49,IF(K7="Fair",Scoring!$B$48,IF(K7="Good -",Scoring!$B$47,IF(K7="Good",Scoring!$B$46,IF(K7="Very Good",Scoring!$B$45,IF(K7="",0))))))) -> 80.03 | AC7: =IF(L7="Poor",Scoring!$B$50,IF(L7="Fair -",Scoring!$B$49,IF(L7="Fair",Scoring!$B$48,IF(L7="Good -",Scoring!$B$47,IF(L7="Good",Scoring!$B$46,IF(L7="Very Good",Scoring!$B$45,IF(L7="",0))))))) -> 60.04 | AD7: =IF(T7="Poor",Scoring!$B$50,IF(T7="Fair -",Scoring!$B$49,IF(T7="Fair",Scoring!$B$48,IF(T7="Good -",Scoring!$B$47,IF(T7="Good",Scoring!$B$46,IF(T7="Very Good",Scoring!$B$45,IF(T7="",0))))))) -> 60.04 | AE7: =IF(K7="Poor",Scoring!$C$50,IF(K7="Fair -",Scoring!$C$49,IF(K7="Fair",Scoring!$C$48,IF(K7="Good -",Scoring!$C$47,IF(K7="Good",Scoring!$C$46,IF(K7="Very Good",Scoring!$C$45,IF(K7="",0))))))) -> 1 | AF7: =IF(L7="Poor",Scoring!$C$50,IF(L7="Fair -",Scoring!$C$49,IF(L7="Fair",Scoring!$C$48,IF(L7="Good -",Scoring!$C$47,IF(L7="Good",Scoring!$C$46,IF(L7="Very Good",Scoring!$C$45,IF(L7="",0))))))) -> 1 | AG7: =IF(T7="Poor",Scoring!$C$50,IF(T7="Fair -",Scoring!$C$49,IF(T7="Fair",Scoring!$C$48,IF(T7="Good -",Scoring!$C$47,IF(T7="Good",Scoring!$C$46,IF(T7="Very Good",Scoring!$C$45,IF(T7="",0))))))) -> 1 | AH7: 80.03 | AI7: 60.04 | AJ7: 60.04
A8: 208 | B8: 2 | C8: Boreal Forests - Upper Chena | D8: Condition | E8: Vegetation composition & structure - mosaic | F8: Diversity of species and age classes | G8: Low diversity of species and age classes | H8: Moderate diversity of species and age classes | I8: Good diversity of species and age classes | J8: High diversity of species and age class | K8: Good | L8: Good - | M8: Medium | T8: =IF(L8="","",IFERROR(INDEX(Outcomes!$F:$F, MATCH(A8,Outcomes!$H:$H,0)),L8)) -> Good | U8: - | Y8: =IFERROR(INDEX(#REF!,MATCH(A8,#REF!,0)),"") ->  | AA8: 2 | AB8: =IF(K8="Poor",Scoring!$B$50,IF(K8="Fair -",Scoring!$B$49,IF(K8="Fair",Scoring!$B$48,IF(K8="Good -",Scoring!$B$47,IF(K8="Good",Scoring!$B$46,IF(K8="Very Good",Scoring!$B$45,IF(K8="",0))))))) -> 80.03 | AC8: =IF(L8="Poor",Scoring!$B$50,IF(L8="Fair -",Scoring!$B$49,IF(L8="Fair",Scoring!$B$48,IF(L8="Good -",Scoring!$B$47,IF(L8="Good",Scoring!$B$46,IF(L8="Very Good",Scoring!$B$45,IF(L8="",0))))))) -> 60.04 | AD8: =IF(T8="Poor",Scoring!$B$50,IF(T8="Fair -",Scoring!$B$49,IF(T8="Fair",Scoring!$B$48,IF(T8="Good -",Scoring!$B$47,IF(T8="Good",Scoring!$B$46,IF(T8="Very Good",Scoring!$B$45,IF(T8="",0))))))) -> 80.03 | AE8: =IF(K8="Poor",Scoring!$C$50,IF(K8="Fair -",Scoring!$C$49,IF(K8="Fair",Scoring!$C$48,IF(K8="Good -",Scoring!$C$47,IF(K8="Good",Scoring!$C$46,IF(K8="Very Good",Scoring!$C$45,IF(K8="",0))))))) -> 1 | AF8: =IF(L8="Poor",Scoring!$C$50,IF(L8="Fair -",Scoring!$C$49,IF(L8="Fair",Scoring!$C$48,IF(L8="Good -",Scoring!$C$47,IF(L8="Good",Scoring!$C$46,IF(L8="Very Good",Scoring!$C$45,IF(L8="",0))))))) -> 1 | AG8: =IF(T8="Poor",Scoring!$C$50,IF(T8="Fair -",Scoring!$C$49,IF(T8="Fair",Scoring!$C$48,IF(T8="Good -",Scoring!$C$47,IF(T8="Good",Scoring!$C$46,IF(T8="Very Good",Scoring!$C$45,IF(T8="",0))))))) -> 1 | AH8: 80.03 | AI8: 60.04 | AJ8: 80.03
A9: 209 | B9: 2 | C9: Boreal Forests - Upper Chena | D9: Size | E9: Extent of area | F9: Extent, patch size, and/or distribution | G9: Severe, mostly gone | H9: Moderate to substantial loss | I9: Minimal loss | J9: Mother Nature | K9: Good | L9: Good - | M9: Medium | T9: =IF(L9="","",IFERROR(INDEX(Outcomes!$F:$F, MATCH(A9,Outcomes!$H:$H,0)),L9)) -> Good - | U9: Medium | Y9: =IFERROR(INDEX(#REF!,MATCH(A9,#REF!,0)),"") ->  | AA9: 2 | AB9: =IF(K9="Poor",Scoring!$B$50,IF(K9="Fair -",Scoring!$B$49,IF(K9="Fair",Scoring!$B$48,IF(K9="Good -",Scoring!$B$47,IF(K9="Good",Scoring!$B$46,IF(K9="Very Good",Scoring!$B$45,IF(K9="",0))))))) -> 80.03 | AC9: =IF(L9="Poor",Scoring!$B$50,IF(L9="Fair -",Scoring!$B$49,IF(L9="Fair",Scoring!$B$48,IF(L9="Good -",Scoring!$B$47,IF(L9="Good",Scoring!$B$46,IF(L9="Very Good",Scoring!$B$45,IF(L9="",0))))))) -> 60.04 | AD9: =IF(T9="Poor",Scoring!$B$50,IF(T9="Fair -",Scoring!$B$49,IF(T9="Fair",Scoring!$B$48,IF(T9="Good -",Scoring!$B$47,IF(T9="Good",Scoring!$B$46,IF(T9="Very Good",Scoring!$B$45,IF(T9="",0))))))) -> 60.04 | AE9: =IF(K9="Poor",Scoring!$C$50,IF(K9="Fair -",Scoring!$C$49,IF(K9="Fair",Scoring!$C$48,IF(K9="Good -",Scoring!$C$47,IF(K9="Good",Scoring!$C$46,IF(K9="Very Good",Scoring!$C$45,IF(K9="",0))))))) -> 1 | AF9: =IF(L9="Poor",Scoring!$C$50,IF(L9="Fair -",Scoring!$C$49,IF(L9="Fair",Scoring!$C$48,IF(L9="Good -",Scoring!$C$47,IF(L9="Good",Scoring!$C$46,IF(L9="Very Good",Scoring!$C$45,IF(L9="",0))))))) -> 1 | AG9: =IF(T9="Poor",Scoring!$C$50,IF(T9="Fair -",Scoring!$C$49,IF(T9="Fair",Scoring!$C$48,IF(T9="Good -",Scoring!$C$47,IF(T9="Good",Scoring!$C$46,IF(T9="Very Good",Scoring!$C$45,IF(T9="",0))))))) -> 1 | AH9: 80.03 | AI9: 60.04 | AJ9: 60.04
A10: 210 | B10: 2 | C10: Boreal Forests - Upper Chena | T10: =IF(L10="","",IFERROR(INDEX(Outcomes!$F:$F, MATCH(A10,Outcomes!$H:$H,0)),L10)) ->  | Y10: =IFERROR(INDEX(#REF!,MATCH(A10,#REF!,0)),"") ->  | AB10: =IF(K10="Poor",Scoring!$B$50,IF(K10="Fair -",Scoring!$B$49,IF(K10="Fair",Scoring!$B$48,IF(K10="Good -",Scoring!$B$47,IF(K10="Good",Scoring!$B$46,IF(K10="Very Good",Scoring!$B$45,IF(K10="",0))))))) -> 0 | AC10: =IF(L10="Poor",Scoring!$B$50,IF(L10="Fair -",Scoring!$B$49,IF(L10="Fair",Scoring!$B$48,IF(L10="Good -",Scoring!$B$47,IF(L10="Good",Scoring!$B$46,IF(L10="Very Good",Scoring!$B$45,IF(L10="",0))))))) -> 0 | AD10: =IF(T10="Poor",Scoring!$B$50,IF(T10="Fair -",Scoring!$B$49,IF(T10="Fair",Scoring!$B$48,IF(T10="Good -",Scoring!$B$47,IF(T10="Good",Scoring!$B$46,IF(T10="Very Good",Scoring!$B$45,IF(T10="",0))))))) -> 0 | AE10: =IF(K10="Poor",Scoring!$C$50,IF(K10="Fair -",Scoring!$C$49,IF(K10="Fair",Scoring!$C$48,IF(K10="Good -",Scoring!$C$47,IF(K10="Good",Scoring!$C$46,IF(K10="Very Good",Scoring!$C$45,IF(K10="",0))))))) -> 0 | AF10: =IF(L10="Poor",Scoring!$C$50,IF(L10="Fair -",Scoring!$C$49,IF(L10="Fair",Scoring!$C$48,IF(L10="Good -",Scoring!$C$47,IF(L10="Good",Scoring!$C$46,IF(L10="Very Good",Scoring!$C$45,IF(L10="",0))))))) -> 0 | AG10: =IF(T10="Poor",Scoring!$C$50,IF(T10="Fair -",Scoring!$C$49,IF(T10="Fair",Scoring!$C$48,IF(T10="Good -",Scoring!$C$47,IF(T10="Good",Scoring!$C$46,IF(T10="Very Good",Scoring!$C$45,IF(T10="",0))))))) -> 0 | AH10: 0 | AI10: 0 | AJ10: 0
A11: 211 | B11: 2 | C11: Boreal Forests - Upper Chena | T11: =IF(L11="","",IFERROR(INDEX(Outcomes!$F:$F, MATCH(A11,Outcomes!$H:$H,0)),L11)) ->  | Y11: =IFERROR(INDEX(#REF!,MATCH(A11,#REF!,0)),"") ->  | AB11: =IF(K11="Poor",Scoring!$B$50,IF(K11="Fair -",Scoring!$B$49,IF(K11="Fair",Scoring!$B$48,IF(K11="Good -",Scoring!$B$47,IF(K11="Good",Scoring!$B$46,IF(K11="Very Good",Scoring!$B$45,IF(K11="",0))))))) -> 0 | AC11: =IF(L11="Poor",Scoring!$B$50,IF(L11="Fair -",Scoring!$B$49,IF(L11="Fair",Scoring!$B$48,IF(L11="Good -",Scoring!$B$47,IF(L11="Good",Scoring!$B$46,IF(L11="Very Good",Scoring!$B$45,IF(L11="",0))))))) -> 0 | AD11: =IF(T11="Poor",Scoring!$B$50,IF(T11="Fair -",Scoring!$B$49,IF(T11="Fair",Scoring!$B$48,IF(T11="Good -",Scoring!$B$47,IF(T11="Good",Scoring!$B$46,IF(T11="Very Good",Scoring!$B$45,IF(T11="",0))))))) -> 0 | AE11: =IF(K11="Poor",Scoring!$C$50,IF(K11="Fair -",Scoring!$C$49,IF(K11="Fair",Scoring!$C$48,IF(K11="Good -",Scoring!$C$47,IF(K11="Good",Scoring!$C$46,IF(K11="Very Good",Scoring!$C$45,IF(K11="",0))))))) -> 0 | AF11: =IF(L11="Poor",Scoring!$C$50,IF(L11="Fair -",Scoring!$C$49,IF(L11="Fair",Scoring!$C$48,IF(L11="Good -",Scoring!$C$47,IF(L11="Good",Scoring!$C$46,IF(L11="Very Good",Scoring!$C$45,IF(L11="",0))))))) -> 0 | AG11: =IF(T11="Poor",Scoring!$C$50,IF(T11="Fair -",Scoring!$C$49,IF(T11="Fair",Scoring!$C$48,IF(T11="Good -",Scoring!$C$47,IF(T11="Good",Scoring!$C$46,IF(T11="Very Good",Scoring!$C$45,IF(T11="",0))))))) -> 0 | AH11: 0 | AI11: 0 | AJ11: 0
A12: 212 | B12: 2 | C12: Boreal Forests - Upper Chena | T12: =IF(L12="","",IFERROR(INDEX(Outcomes!$F:$F, MATCH(A12,Outcomes!$H:$H,0)),L12)) ->  | Y12: =IFERROR(INDEX(#REF!,MATCH(A12,#REF!,0)),"") ->  | AB12: =IF(K12="Poor",Scoring!$B$50,IF(K12="Fair -",Scoring!$B$49,IF(K12="Fair",Scoring!$B$48,IF(K12="Good -",Scoring!$B$47,IF(K12="Good",Scoring!$B$46,IF(K12="Very Good",Scoring!$B$45,IF(K12="",0))))))) -> 0 | AC12: =IF(L12="Poor",Scoring!$B$50,IF(L12="Fair -",Scoring!$B$49,IF(L12="Fair",Scoring!$B$48,IF(L12="Good -",Scoring!$B$47,IF(L12="Good",Scoring!$B$46,IF(L12="Very Good",Scoring!$B$45,IF(L12="",0))))))) -> 0 | AD12: =IF(T12="Poor",Scoring!$B$50,IF(T12="Fair -",Scoring!$B$49,IF(T12="Fair",Scoring!$B$48,IF(T12="Good -",Scoring!$B$47,IF(T12="Good",Scoring!$B$46,IF(T12="Very Good",Scoring!$B$45,IF(T12="",0))))))) -> 0 | AE12: =IF(K12="Poor",Scoring!$C$50,IF(K12="Fair -",Scoring!$C$49,IF(K12="Fair",Scoring!$C$48,IF(K12="Good -",Scoring!$C$47,IF(K12="Good",Scoring!$C$46,IF(K12="Very Good",Scoring!$C$45,IF(K12="",0))))))) -> 0 | AF12: =IF(L12="Poor",Scoring!$C$50,IF(L12="Fair -",Scoring!$C$49,IF(L12="Fair",Scoring!$C$48,IF(L12="Good -",Scoring!$C$47,IF(L12="Good",Scoring!$C$46,IF(L12="Very Good",Scoring!$C$45,IF(L12="",0))))))) -> 0 | AG12: =IF(T12="Poor",Scoring!$C$50,IF(T12="Fair -",Scoring!$C$49,IF(T12="Fair",Scoring!$C$48,IF(T12="Good -",Scoring!$C$47,IF(T12="Good",Scoring!$C$46,IF(T12="Very Good",Scoring!$C$45,IF(T12="",0))))))) -> 0 | AH12: 0 | AI12: 0 | AJ12: 0
A13: 213 | B13: 2 | C13: Boreal Forests - Upper Chena | T13: =IF(L13="","",IFERROR(INDEX(Outcomes!$F:$F, MATCH(A13,Outcomes!$H:$H,0)),L13)) ->  | U13: =IF(K13=0,"",IF(T13=0,"",INDEX(StressRankMatrix,MATCH(K13,Rating,0),MATCH(T13,Rating,0)))) ->  | Y13: =IFERROR(INDEX(#REF!,MATCH(A13,#REF!,0)),"") ->  | AB13: =IF(K13="Poor",Scoring!$B$50,IF(K13="Fair -",Scoring!$B$49,IF(K13="Fair",Scoring!$B$48,IF(K13="Good -",Scoring!$B$47,IF(K13="Good",Scoring!$B$46,IF(K13="Very Good",Scoring!$B$45,IF(K13="",0))))))) -> 0 | AC13: =IF(L13="Poor",Scoring!$B$50,IF(L13="Fair -",Scoring!$B$49,IF(L13="Fair",Scoring!$B$48,IF(L13="Good -",Scoring!$B$47,IF(L13="Good",Scoring!$B$46,IF(L13="Very Good",Scoring!$B$45,IF(L13="",0))))))) -> 0 | AD13: =IF(T13="Poor",Scoring!$B$50,IF(T13="Fair -",Scoring!$B$49,IF(T13="Fair",Scoring!$B$48,IF(T13="Good -",Scoring!$B$47,IF(T13="Good",Scoring!$B$46,IF(T13="Very Good",Scoring!$B$45,IF(T13="",0))))))) -> 0 | AE13: =IF(K13="Poor",Scoring!$C$50,IF(K13="Fair -",Scoring!$C$49,IF(K13="Fair",Scoring!$C$48,IF(K13="Good -",Scoring!$C$47,IF(K13="Good",Scoring!$C$46,IF(K13="Very Good",Scoring!$C$45,IF(K13="",0))))))) -> 0 | AF13: =IF(L13="Poor",Scoring!$C$50,IF(L13="Fair -",Scoring!$C$49,IF(L13="Fair",Scoring!$C$48,IF(L13="Good -",Scoring!$C$47,IF(L13="Good",Scoring!$C$46,IF(L13="Very Good",Scoring!$C$45,IF(L13="",0))))))) -> 0 | AG13: =IF(T13="Poor",Scoring!$C$50,IF(T13="Fair -",Scoring!$C$49,IF(T13="Fair",Scoring!$C$48,IF(T13="Good -",Scoring!$C$47,IF(T13="Good",Scoring!$C$46,IF(T13="Very Good",Scoring!$C$45,IF(T13="",0))))))) -> 0 | AH13: 0 | AI13: 0 | AJ13: 0
D14: Overall Target Health Score (0 = Poor - 100 = Very Good) | K14: =AK14 -> 80.03 | L14: =AL14 -> 56.70666667 | T14: =AM14 -> 60.03833333 | AE14: =SUM(AE4:AE13) -> 6 | AF14: 6 | AG14: 6 | AH14: 480.18 | AI14: 340.24 | AJ14: 360.23 | AK14: =IF(AH14=0,"",AH14/AE14) -> 80.03 | AL14: =IF(AI14=0,"",AI14/AF14) -> 56.70666667 | AM14: =IF(AJ14=0,"",AJ14/AG14) -> 60.03833333
E16: Threats (Sources of Stress) List Sources of stress below (max of 12 per target). Enter Contribution of each source where applicable. | F16: Key Attribute > | G16: =IF(E4=0,"",E4) -> Fire regime | H16: =IF(E5=0,"",E5) -> Habitat connectivity | I16: =IF(E6=0,"",E6) -> Hydrologic regime | J16: =IF(E7=0,"",E7) -> Characteristic native community | K16: =IF(E8=0,"",E8) -> Vegetation composition & structure - mosaic | L16: =IF(E9=0,"",E9) -> Extent of area | M16: =IF(E10=0,"",E10) ->  | N16: =IF(E11=0,"",E11) ->  | O16: =IF(E12=0,"",E12) ->  | P16: =IF(E13=0,"",E13) ->  | Q16: Threat to Target Rank
F17: Stress Rank> | G17: =IF(M4="","", IF(N4=0,M4,N4)) -> High | H17: =IF(M5="","", IF(N5=0,M5,N5)) -> Medium | I17: =IF(M6="","", IF(N6=0,M6,N6)) -> Medium | J17: =IF(M7="","", IF(N7=0,M7,N7)) -> Medium | K17: =IF(M8="","", IF(N8=0,M8,N8)) -> Medium | L17: =IF(M9="","", IF(N9=0,M9,N9)) -> Medium | M17: =IF(M10="","", IF(N10=0,M10,N10)) ->  | N17: =IF(M11="","", IF(N11=0,M11,N11)) ->  | O17: =IF(M12="","", IF(N12=0,M12,N12)) ->  | P17: =IF(M13="","", IF(N13=0,M13,N13)) -> 
E18: Warmer climate with more frequent weather extremes | F18: Contribution | G18: High | I18: Medium | J18: Medium | K18: High | Q18: =IF(AF19>=Scoring!$B$24,"Very High",IF(AF19>=Scoring!$B$25,"High",IF(AF19>=Scoring!$B$26,"Medium",IF(AF19>=Scoring!$B$27,"Low","-")))) -> High
F19: Threat Rank | G19: =IF(G18=0,"",INDEX(ThreatRankMatrix,MATCH($G$17,Rank,0),MATCH(G18,Rank,0))) -> High | H19: =IF(H18=0,"",INDEX(ThreatRankMatrix,MATCH($H$17,Rank,0),MATCH(H18,Rank,0))) ->  | I19: =IF(I18=0,"",INDEX(ThreatRankMatrix,MATCH($I$17,Rank,0),MATCH(I18,Rank,0))) -> Low | J19: =IF(J18=0,"",INDEX(ThreatRankMatrix,MATCH($J$17,Rank,0),MATCH(J18,Rank,0))) -> Low | K19: =IF(K18=0,"",INDEX(ThreatRankMatrix,MATCH($K$17,Rank,0),MATCH(K18,Rank,0))) -> Medium | L19: =IF(L18=0,"",INDEX(ThreatRankMatrix,MATCH($L$17,Rank,0),MATCH(L18,Rank,0))) ->  | M19: =IF(M18=0,"",INDEX(ThreatRankMatrix,MATCH($M$17,Rank,0),MATCH(M18,Rank,0))) ->  | N19: =IF(N18=0,"",INDEX(ThreatRankMatrix,MATCH($N$17,Rank,0),MATCH(N18,Rank,0))) ->  | O19: =IF(O18=0,"",INDEX(ThreatRankMatrix,MATCH($O$17,Rank,0),MATCH(O18,Rank,0))) ->  | P19: =IF(P18=0,"",INDEX(ThreatRankMatrix,MATCH($P$17,Rank,0),MATCH(P18,Rank,0))) ->  | AF19: =SUM(AG19:AP19) -> 44 | AG19: =IF(G$17="",0,(IF(G18=0,0,IF(G19=0,0,INDEX(ThreatScore,MATCH(G19,Rank,0)))))) -> 35 | AH19: 0 | AI19: 1 | AJ19: 1 | AK19: 7 | AL19: 0 | AM19: 0 | AN19: 0 | AO19: 0 | AP19: 0
E20: Invasive terrestrial species/pests/pathogens | F20: Contribution | J20: High | K20: High | Q20: =IF(AF21>=Scoring!$B$24,"Very High",IF(AF21>=Scoring!$B$25,"High",IF(AF21>=Scoring!$B$26,"Medium",IF(AF21>=Scoring!$B$27,"Low","-")))) -> Medium
F21: Threat Rank | G21: =IF(G20=0,"",INDEX(ThreatRankMatrix,MATCH($G$17,Rank,0),MATCH(G20,Rank,0))) ->  | H21: =IF(H20=0,"",INDEX(ThreatRankMatrix,MATCH($H$17,Rank,0),MATCH(H20,Rank,0))) ->  | I21: =IF(I20=0,"",INDEX(ThreatRankMatrix,MATCH($I$17,Rank,0),MATCH(I20,Rank,0))) ->  | J21: =IF(J20=0,"",INDEX(ThreatRankMatrix,MATCH($J$17,Rank,0),MATCH(J20,Rank,0))) -> Medium | K21: =IF(K20=0,"",INDEX(ThreatRankMatrix,MATCH($K$17,Rank,0),MATCH(K20,Rank,0))) -> Medium | L21: =IF(L20=0,"",INDEX(ThreatRankMatrix,MATCH($L$17,Rank,0),MATCH(L20,Rank,0))) ->  | M21: =IF(M20=0,"",INDEX(ThreatRankMatrix,MATCH($M$17,Rank,0),MATCH(M20,Rank,0))) ->  | N21: =IF(N20=0,"",INDEX(ThreatRankMatrix,MATCH($N$17,Rank,0),MATCH(N20,Rank,0))) ->  | O21: =IF(O20=0,"",INDEX(ThreatRankMatrix,MATCH($O$17,Rank,0),MATCH(O20,Rank,0))) ->  | P21: =IF(P20=0,"",INDEX(ThreatRankMatrix,MATCH($P$17,Rank,0),MATCH(P20,Rank,0))) ->  | AF21: =SUM(AG21:AP21) -> 14 | AG21: =IF(G$17="",0,(IF(G20=0,0,IF(G21=0,0,INDEX(ThreatScore,MATCH(G21,Rank,0)))))) -> 0 | AH21: 0 | AI21: 0 | AJ21: 7 | AK21: 7 | AL21: 0 | AM21: 0 | AN21: 0 | AO21: 0 | AP21: 0
E22: Incompatible road design / maintenance | F22: Contribution | H22: High | I22: Medium | K22: High | L22: Low | Q22: =IF(AF23>=Scoring!$B$24,"Very High",IF(AF23>=Scoring!$B$25,"High",IF(AF23>=Scoring!$B$26,"Medium",IF(AF23>=Scoring!$B$27,"Low","-")))) -> Medium
F23: Threat Rank | G23: =IF(G22=0,"",INDEX(ThreatRankMatrix,MATCH($G$17,Rank,0),MATCH(G22,Rank,0))) ->  | H23: =IF(H22=0,"",INDEX(ThreatRankMatrix,MATCH($H$17,Rank,0),MATCH(H22,Rank,0))) -> Medium | I23: =IF(I22=0,"",INDEX(ThreatRankMatrix,MATCH($I$17,Rank,0),MATCH(I22,Rank,0))) -> Low | J23: =IF(J22=0,"",INDEX(ThreatRankMatrix,MATCH($J$17,Rank,0),MATCH(J22,Rank,0))) ->  | K23: =IF(K22=0,"",INDEX(ThreatRankMatrix,MATCH($K$17,Rank,0),MATCH(K22,Rank,0))) -> Medium | L23: =IF(L22=0,"",INDEX(ThreatRankMatrix,MATCH($L$17,Rank,0),MATCH(L22,Rank,0))) -> Low | M23: =IF(M22=0,"",INDEX(ThreatRankMatrix,MATCH($M$17,Rank,0),MATCH(M22,Rank,0))) ->  | N23: =IF(N22=0,"",INDEX(ThreatRankMatrix,MATCH($N$17,Rank,0),MATCH(N22,Rank,0))) ->  | O23: =IF(O22=0,"",INDEX(ThreatRankMatrix,MATCH($O$17,Rank,0),MATCH(O22,Rank,0))) ->  | P23: =IF(P22=0,"",INDEX(ThreatRankMatrix,MATCH($P$17,Rank,0),MATCH(P22,Rank,0))) ->  | AF23: =SUM(AG23:AP23) -> 16 | AG23: =IF(G$17="",0,(IF(G22=0,0,IF(G23=0,0,INDEX(ThreatScore,MATCH(G23,Rank,0)))))) -> 0 | AH23: 7 | AI23: 1 | AJ23: 0 | AK23: 7 | AL23: 1 | AM23: 0 | AN23: 0 | AO23: 0 | AP23: 0
E24: Residential / commercial development | F24: Contribution | H24: Medium | I24: Low | Q24: =IF(AF25>=Scoring!$B$24,"Very High",IF(AF25>=Scoring!$B$25,"High",IF(AF25>=Scoring!$B$26,"Medium",IF(AF25>=Scoring!$B$27,"Low","-")))) -> Low
